{"text_format":"1","workbook":"xlsx","n_sheets":17,"sheets":["Individual Cost Statement","Personnel_EMPLOYEES","Personnel_NON_EMPLOYEES","Travel","External assistance","Infrastructure","Equipment","Prototype","Land_purchase","Land_Lease_Compensation","Consumables","Other direct costs","Funding","Certificate_NATURE_projects","Certificate_INTEGRATED_projects","VAT_Calculation","LISTS"],"not_rendered":{"charts":0,"images":14,"macros":1,"external_links":0,"defined_names":23,"comments":1,"pivot_tables":0},"unopened":[],"bounds":{"document_bytes":16777216,"sheet_cells":100000,"rows_first":2000,"rows_last":500,"rows_between":2000,"halvings":0,"cell_chars":16384,"cell_head_chars":4096},"cells_cut":0,"cells_raw":0,"read":"whole","date_system":"1900"}

{"sheet":"Individual Cost Statement","index":0,"n_rows":35,"n_cols":8,"rows_kept":35,"cut":false,"hidden":false,"merged":[[26,0,26,5],[33,0,33,5],[34,1,34,5],[27,3,27,5],[27,0,27,2],[24,3,24,5],[24,0,24,2],[25,0,25,4],[0,0,0,5],[5,1,5,5],[23,0,23,1],[2,1,2,2],[2,4,2,5],[3,4,3,5],[7,1,7,2],[6,1,6,2],[7,4,7,5]]}
["FINANCIAL STATEMENT of the INDIVIDUAL Beneficiary"]
[]
["PROJECT reference :","LIFEXX XXX/XX/XXXXXX - ACRONYM",null,"PERIOD (FROM) :"]
["COUNTRY CODE :","Austria",{"$f":"VLOOKUP(B4,LISTS!A1:B36,2,)","v":"AT"},"PERIOD (TO) :"]
[]
["NAME OF BENEFICIARY : "]
["Type of Beneficiary ?","COORDINATING beneficiary",null,"Local currency applied?","EUR",{"$f":"IF(ISERROR(VLOOKUP(E7,LISTS!F:G,2,FALSE)),\"<-- select currency\",VLOOKUP(E7,LISTS!F:G,2,FALSE))","v":"Euro"}]
["Legal status ?","Public body",null,"Strand type  ?","CLIMA - CCA"]
[]
["Statement of \nEXPENDITURES","Total costs \nwith non-recoverable VAT (in €)","Total ELIGIBLE costs with non-recoverable VAT (in €)","Statement of \nINCOME (to cover the total cost)","€","% of eligible costs",null,{"$f":"IF($B$8=\"Public body\",IF((SUM(B12:B13)=(Personnel_EMPLOYEES!S3+Personnel_NON_EMPLOYEES!M3)),\" \",\"Please verify the option 'Additional ?' in the Personnel sheets\"),\" \")","v":" "}]
["PERSONNEL",{"$f":"IF($B$8=\"Public body\",B12+B13,Personnel_EMPLOYEES!S3+Personnel_NON_EMPLOYEES!M3)","v":0},{"$f":"B11","v":0},"Requested Union contribution",{"$f":"Funding!F12","v":0},{"$f":"IF($C$23=0,\" \",E11/$C$23)","v":" "}]
["Ä  Additional salary costs",{"$f":"IF($B$8=\"Public body\",SUMIFS(Personnel_EMPLOYEES!U:U,Personnel_EMPLOYEES!E:E,\"ADDITIONAL\")+SUMIFS(Personnel_NON_EMPLOYEES!R:R,Personnel_NON_EMPLOYEES!E:E,\"ADDITIONAL\"),0)","v":0},{"$f":"B12","v":0},"Beneficiary's own contribution",{"$f":"Funding!F22","v":0},{"$f":"IF($C$23=0,\" \",E12/$C$23)","v":" "},null,{"$f":"IF(C23=0,\" \", IF(E12<=0,\"The beneficiary must contribute financially to the project and may potentially be in a profit situation\",\" \"))","v":" "}]
["Ä  Non-additional salary costs",{"$f":"IF($B$8=\"Public body\",SUMIFS(Personnel_EMPLOYEES!U:U,Personnel_EMPLOYEES!E:E,\"NON_additional\")+SUMIFS(Personnel_NON_EMPLOYEES!R:R,Personnel_NON_EMPLOYEES!E:E,\"NON_additional\"),0)","v":0},{"$f":"B13","v":0},"Co-financer's contribution",{"$f":"Funding!F32","v":0},{"$f":"IF($C$23=0,\" \",E13/$C$23)","v":" "}]
["TRAVEL",{"$f":"Travel!N3","v":0},{"$f":"B14","v":0},"Direct income of the project",{"$f":"Funding!F47","v":0},{"$f":"IF($C$23=0,\" \",E14/$C$23)","v":" "}]
["EXTERNAL ASSISTANCE",{"$f":"'External assistance'!K3","v":0},{"$f":"B15","v":0},null,null,null,{"$f":"IF(ISBLANK(B8),\" \",IF((E12-C11)<0,\"2% rule may not be respected for public bodies\",\" \"))","v":" "}]
["Durable goods - INFRASTRUCTURE",{"$f":"Infrastructure!L3","v":0},{"$f":"Infrastructure!N3","v":0}]
["Durable goods - EQUIPMENT",{"$f":"Equipment!L3","v":0},{"$f":"Equipment!N3","v":0}]
["Durable goods - PROTOTYPES",{"$f":"Prototype!I3","v":0},{"$f":"B18","v":0}]
["LAND PURCHASE/LEASE/ONE-OFF COMPENSATION",{"$f":"Land_purchase!P3+Land_Lease_Compensation!P3","v":0},{"$f":"B19","v":0}]
["CONSUMABLES",{"$f":"Consumables!I3","v":0},{"$f":"B20","v":0}]
["OTHER direct costs",{"$f":"'Other direct costs'!I3","v":0},{"$f":"B21","v":0}]
["OVERHEADS",0,0]
["TOTAL ",{"$f":"SUM(B11,B14:B22)","v":0},{"$f":"SUM(C11,C14:C22)","v":0},"TOTAL",{"$f":"SUM(E11:E14)","v":0},{"$f":"IF(E23<>B23,\"Budget MUST be in balance !\",\" \")","v":" "}]
[]
["Exchange rate option used to convert national currency into EURO:",null,null,"Not applicable (all costs in EURO)"]
["Ä   Given that the option \"1st day after the end of reporting period\" is selected, please encode the exchange rate:",null,null,null,null,null,null,{"$f":"IF(OR(D25=\"Not applicable (all costs in EURO)\",D25=\"Date when costs incurred\"),IF(ISBLANK(F26),\" \",\"<- PLEASE REMOVE THE VALUE !\"),\" \")","v":" "}]
["We certify that that the information contained in this payment request is full, reliable and true. We also certify that the costs incurred can be considered eligible in accordance with the grant agreement and that: \n- the above costs correspond to the resources employed for the work under the agreement and that those resources were necessary for the work,\n- the costs were incurred and fall within the definition of eligible costs,\n- where necessary, authorisations have been obtained from the EASME, and\n- all the documents supporting the eligible costs reported above, including the time records are available for the purposes of audit by the EASME and its authorised representatives or the Court of Auditors \n  and reflect the costs actually incurred."]
["Name of the Person(s) Authorised to sign this Financial Statement",null,null,"Date and signature"]
[]
[]
[]
[]
[]
["Explanations"]
["Exchange rate options","Date when costs incurred = the monthly accounting rate established by the Commission applicable on the day when the cost was incurred.\n1st day after the end of reporting period = the monthly accounting rate established by the Commission applicable on the first working day of the month following the period covered by the financial statement concerned\n\nRates are published on the Commission website: http://ec.europa.eu/budget/contracts_grants/info_contracts/inforeuro/inforeuro_en.cfm"]

{"sheet":"Personnel_EMPLOYEES","index":1,"n_rows":89,"n_cols":22,"rows_kept":89,"cut":false,"hidden":false,"merged":[[77,1,77,20],[63,0,63,20],[70,1,70,20],[64,0,64,20],[2,18,2,20],[65,1,65,20],[1,18,1,20],[0,18,0,20],[57,0,57,19],[4,13,4,20],[0,2,0,4],[1,2,1,4],[2,2,2,4],[1,11,1,12],[0,11,0,12],[1,13,1,14],[0,13,0,14],[4,1,4,4],[4,5,4,6],[4,7,4,12]]}
[null,"PROJECT Reference :",{"$f":"'Individual Cost Statement'!B3:B3","v":"LIFEXX XXX/XX/XXXXXX - ACRONYM"},null,null,null,null,null,null,null,null,"PERIOD (FROM) :",null,{"$f":"'Individual Cost Statement'!E3:E3","v":"00:00:00"},null,null,null,null,"Personnel_EMPLOYEES"]
[null,"COUNTRY :",{"$f":"'Individual Cost Statement'!B4:B4","v":"Austria"},null,null,null,null,null,null,null,null,"PERIOD (TO) :",null,{"$f":"'Individual Cost Statement'!E4:E4","v":"00:00:00"},null,null,null,null,"Total annual costs claimed"]
[null,"Beneficiary: ",{"$f":"'Individual Cost Statement'!B6:B6","v":0},null,null,null,null,null,null,null,null,null,null,null,null,null,null,null,{"$f":"U58","v":0}]
[]
[null,"General information on staff assigned to the project",null,null,null,"Employment period",null,"Information on the working hours",null,null,null,null,null,"Calculation of the PERSONNEL EMPLOYEES costs"]
["A","B1","B2","B3","B4","C1","C2","D1","D2","D3","D4","D5","D6","E1","E2","E3","E4","E5","E6","E7","E8"]
["Seq n°","Name of person ","Job title ","Role in the project (according to budget form F1 or as justified)","For Public beneficiaries (add or non-add) + beneficiaries in CAP  (ONLY additional)\n\nAdditional /\nnon_additional","FROM","TO                  (if no end date in contract, leave open)","Year\nof\nexpense","Contract type \n(full time, part-time)","% of time allocated\nto the project (ONLY if fixed % in contract)","Daily working hours ","TOTAL \nnumber of   hours worked\nper year => use total working hours according to timesheet OR if no timesheets = 1720 hours (for fulltime)","Number of hours worked  on the project \nper year (OR per month if exchange rate day cost incurred is used !)","Annual \ngross salary\n(national currency)","Annual obligatory social charges & other eligible statutory costs\n(national currency)","Justification on other eligible statutory costs\n(amount + description)","TOTAL \nannual personnel costs \n(national currency)","Exchange rate","HOURLY\nrate\n(in EURO)","DAILY\nrate\n(in EURO)","TOTAL annual personnel costs claimed for the project reporting period\n(in EURO)"]
[{"$f":"ROW()-7","v":1},null,null,null,null,null,null,null,null,null,null,null,null,null,null,null,{"$f":"SUM(N8:O8)","v":0},{"$f":"IF(AND('Individual Cost Statement'!$D$25:$D$25=\"Not applicable (all costs in EURO)\",Q8>0),1,IF(AND('Individual Cost Statement'!$D$25:$D$25=\"Date when costs incurred\",Q8>0),0,'Individual Cost Statement'!$F$26))","v":0},{"$f":"IF(AND(L8>0,Q8>0,R8>0),Q8/L8/R8,\" \")","v":" "},{"$f":"IF(S8=\" \",\" \",S8*K8)","v":" "},{"$f":"IF(S8=\" \",\" \",S8*M8)","v":" "},{"$f":"IF(R8>0,\" \",IF(AND('Individual Cost Statement'!$D$25:$D$25=\"Date when costs incurred\",Q8>0),\"ENCODE Exchange rate !\",\" \"))","v":" "}]
[2,null,null,null,null,null,null,null,null,null,null,null,null,null,null,null,{"$f":"SUM(N9:O9)","v":0},{"$f":"IF(AND('Individual Cost Statement'!$D$25:$D$25=\"Not applicable (all costs in EURO)\",Q9>0),1,IF(AND('Individual Cost Statement'!$D$25:$D$25=\"Date when costs incurred\",Q9>0),0,'Individual Cost Statement'!$F$26))","v":0},{"$f":"IF(AND(L9>0,Q9>0,R9>0),Q9/L9/R9,\" \")","v":" "},{"$f":"IF(S9=\" \",\" \",S9*K9)","v":" "},{"$f":"IF(S9=\" \",\" \",S9*M9)","v":" "},{"$f":"IF(R9>0,\" \",IF(AND('Individual Cost Statement'!$D$25:$D$25=\"Date when costs incurred\",Q9>0),\"ENCODE Exchange rate !\",\" \"))","v":" "}]
[3,null,null,null,null,null,null,null,null,null,null,null,null,null,null,null,0,{"$f":"IF(AND('Individual Cost Statement'!$D$25:$D$25=\"Not applicable (all costs in EURO)\",Q10>0),1,IF(AND('Individual Cost Statement'!$D$25:$D$25=\"Date when costs incurred\",Q10>0),0,'Individual Cost Statement'!$F$26))","v":0}," "," "," ",{"$f":"IF(R10>0,\" \",IF(AND('Individual Cost Statement'!$D$25:$D$25=\"Date when costs incurred\",Q10>0),\"ENCODE Exchange rate !\",\" \"))","v":" "}]
[4,null,null,null,null,null,null,null,null,null,null,null,null,null,null,null,0,{"$f":"IF(AND('Individual Cost Statement'!$D$25:$D$25=\"Not applicable (all costs in EURO)\",Q11>0),1,IF(AND('Individual Cost Statement'!$D$25:$D$25=\"Date when costs incurred\",Q11>0),0,'Individual Cost Statement'!$F$26))","v":0}," "," "," ",{"$f":"IF(R11>0,\" \",IF(AND('Individual Cost Statement'!$D$25:$D$25=\"Date when costs incurred\",Q11>0),\"ENCODE Exchange rate !\",\" \"))","v":" "}]
[5,null,null,null,null,null,null,null,null,null,null,null,null,null,null,null,0,{"$f":"IF(AND('Individual Cost Statement'!$D$25:$D$25=\"Not applicable (all costs in EURO)\",Q12>0),1,IF(AND('Individual Cost Statement'!$D$25:$D$25=\"Date when costs incurred\",Q12>0),0,'Individual Cost Statement'!$F$26))","v":0}," "," "," ",{"$f":"IF(R12>0,\" \",IF(AND('Individual Cost Statement'!$D$25:$D$25=\"Date when costs incurred\",Q12>0),\"ENCODE Exchange rate !\",\" \"))","v":" "}]
[6,null,null,null,null,null,null,null,null,null,null,null,null,null,null,null,0,{"$f":"IF(AND('Individual Cost Statement'!$D$25:$D$25=\"Not applicable (all costs in EURO)\",Q13>0),1,IF(AND('Individual Cost Statement'!$D$25:$D$25=\"Date when costs incurred\",Q13>0),0,'Individual Cost Statement'!$F$26))","v":0}," "," "," ",{"$f":"IF(R13>0,\" \",IF(AND('Individual Cost Statement'!$D$25:$D$25=\"Date when costs incurred\",Q13>0),\"ENCODE Exchange rate !\",\" \"))","v":" "}]
[7,null,null,null,null,null,null,null,null,null,null,null,null,null,null,null,0,{"$f":"IF(AND('Individual Cost Statement'!$D$25:$D$25=\"Not applicable (all costs in EURO)\",Q14>0),1,IF(AND('Individual Cost Statement'!$D$25:$D$25=\"Date when costs incurred\",Q14>0),0,'Individual Cost Statement'!$F$26))","v":0}," "," "," ",{"$f":"IF(R14>0,\" \",IF(AND('Individual Cost Statement'!$D$25:$D$25=\"Date when costs incurred\",Q14>0),\"ENCODE Exchange rate !\",\" \"))","v":" "}]
[8,null,null,null,null,null,null,null,null,null,null,null,null,null,null,null,0,{"$f":"IF(AND('Individual Cost Statement'!$D$25:$D$25=\"Not applicable (all costs in EURO)\",Q15>0),1,IF(AND('Individual Cost Statement'!$D$25:$D$25=\"Date when costs incurred\",Q15>0),0,'Individual Cost Statement'!$F$26))","v":0}," "," "," ",{"$f":"IF(R15>0,\" \",IF(AND('Individual Cost Statement'!$D$25:$D$25=\"Date when costs incurred\",Q15>0),\"ENCODE Exchange rate !\",\" \"))","v":" "}]
[9,null,null,null,null,null,null,null,null,null,null,null,null,null,null,null,0,{"$f":"IF(AND('Individual Cost Statement'!$D$25:$D$25=\"Not applicable (all costs in EURO)\",Q16>0),1,IF(AND('Individual Cost Statement'!$D$25:$D$25=\"Date when costs incurred\",Q16>0),0,'Individual Cost Statement'!$F$26))","v":0}," "," "," ",{"$f":"IF(R16>0,\" \",IF(AND('Individual Cost Statement'!$D$25:$D$25=\"Date when costs incurred\",Q16>0),\"ENCODE Exchange rate !\",\" \"))","v":" "}]
[10,null,null,null,null,null,null,null,null,null,null,null,null,null,null,null,0,{"$f":"IF(AND('Individual Cost Statement'!$D$25:$D$25=\"Not applicable (all costs in EURO)\",Q17>0),1,IF(AND('Individual Cost Statement'!$D$25:$D$25=\"Date when costs incurred\",Q17>0),0,'Individual Cost Statement'!$F$26))","v":0}," "," "," ",{"$f":"IF(R17>0,\" \",IF(AND('Individual Cost Statement'!$D$25:$D$25=\"Date when costs incurred\",Q17>0),\"ENCODE Exchange rate !\",\" \"))","v":" "}]
[11,null,null,null,null,null,null,null,null,null,null,null,null,null,null,null,0,{"$f":"IF(AND('Individual Cost Statement'!$D$25:$D$25=\"Not applicable (all costs in EURO)\",Q18>0),1,IF(AND('Individual Cost Statement'!$D$25:$D$25=\"Date when costs incurred\",Q18>0),0,'Individual Cost Statement'!$F$26))","v":0}," "," "," ",{"$f":"IF(R18>0,\" \",IF(AND('Individual Cost Statement'!$D$25:$D$25=\"Date when costs incurred\",Q18>0),\"ENCODE Exchange rate !\",\" \"))","v":" "}]
[12,null,null,null,null,null,null,null,null,null,null,null,null,null,null,null,0,{"$f":"IF(AND('Individual Cost Statement'!$D$25:$D$25=\"Not applicable (all costs in EURO)\",Q19>0),1,IF(AND('Individual Cost Statement'!$D$25:$D$25=\"Date when costs incurred\",Q19>0),0,'Individual Cost Statement'!$F$26))","v":0}," "," "," ",{"$f":"IF(R19>0,\" \",IF(AND('Individual Cost Statement'!$D$25:$D$25=\"Date when costs incurred\",Q19>0),\"ENCODE Exchange rate !\",\" \"))","v":" "}]
[13,null,null,null,null,null,null,null,null,null,null,null,null,null,null,null,0,{"$f":"IF(AND('Individual Cost Statement'!$D$25:$D$25=\"Not applicable (all costs in EURO)\",Q20>0),1,IF(AND('Individual Cost Statement'!$D$25:$D$25=\"Date when costs incurred\",Q20>0),0,'Individual Cost Statement'!$F$26))","v":0}," "," "," ",{"$f":"IF(R20>0,\" \",IF(AND('Individual Cost Statement'!$D$25:$D$25=\"Date when costs incurred\",Q20>0),\"ENCODE Exchange rate !\",\" \"))","v":" "}]
[14,null,null,null,null,null,null,null,null,null,null,null,null,null,null,null,0,{"$f":"IF(AND('Individual Cost Statement'!$D$25:$D$25=\"Not applicable (all costs in EURO)\",Q21>0),1,IF(AND('Individual Cost Statement'!$D$25:$D$25=\"Date when costs incurred\",Q21>0),0,'Individual Cost Statement'!$F$26))","v":0}," "," "," ",{"$f":"IF(R21>0,\" \",IF(AND('Individual Cost Statement'!$D$25:$D$25=\"Date when costs incurred\",Q21>0),\"ENCODE Exchange rate !\",\" \"))","v":" "}]
[15,null,null,null,null,null,null,null,null,null,null,null,null,null,null,null,0,{"$f":"IF(AND('Individual Cost Statement'!$D$25:$D$25=\"Not applicable (all costs in EURO)\",Q22>0),1,IF(AND('Individual Cost Statement'!$D$25:$D$25=\"Date when costs incurred\",Q22>0),0,'Individual Cost Statement'!$F$26))","v":0}," "," "," ",{"$f":"IF(R22>0,\" \",IF(AND('Individual Cost Statement'!$D$25:$D$25=\"Date when costs incurred\",Q22>0),\"ENCODE Exchange rate !\",\" \"))","v":" "}]
[16,null,null,null,null,null,null,null,null,null,null,null,null,null,null,null,0,{"$f":"IF(AND('Individual Cost Statement'!$D$25:$D$25=\"Not applicable (all costs in EURO)\",Q23>0),1,IF(AND('Individual Cost Statement'!$D$25:$D$25=\"Date when costs incurred\",Q23>0),0,'Individual Cost Statement'!$F$26))","v":0}," "," "," ",{"$f":"IF(R23>0,\" \",IF(AND('Individual Cost Statement'!$D$25:$D$25=\"Date when costs incurred\",Q23>0),\"ENCODE Exchange rate !\",\" \"))","v":" "}]
[17,null,null,null,null,null,null,null,null,null,null,null,null,null,null,null,0,{"$f":"IF(AND('Individual Cost Statement'!$D$25:$D$25=\"Not applicable (all costs in EURO)\",Q24>0),1,IF(AND('Individual Cost Statement'!$D$25:$D$25=\"Date when costs incurred\",Q24>0),0,'Individual Cost Statement'!$F$26))","v":0}," "," "," ",{"$f":"IF(R24>0,\" \",IF(AND('Individual Cost Statement'!$D$25:$D$25=\"Date when costs incurred\",Q24>0),\"ENCODE Exchange rate !\",\" \"))","v":" "}]
[18,null,null,null,null,null,null,null,null,null,null,null,null,null,null,null,0,{"$f":"IF(AND('Individual Cost Statement'!$D$25:$D$25=\"Not applicable (all costs in EURO)\",Q25>0),1,IF(AND('Individual Cost Statement'!$D$25:$D$25=\"Date when costs incurred\",Q25>0),0,'Individual Cost Statement'!$F$26))","v":0}," "," "," ",{"$f":"IF(R25>0,\" \",IF(AND('Individual Cost Statement'!$D$25:$D$25=\"Date when costs incurred\",Q25>0),\"ENCODE Exchange rate !\",\" \"))","v":" "}]
[19,null,null,null,null,null,null,null,null,null,null,null,null,null,null,null,0,{"$f":"IF(AND('Individual Cost Statement'!$D$25:$D$25=\"Not applicable (all costs in EURO)\",Q26>0),1,IF(AND('Individual Cost Statement'!$D$25:$D$25=\"Date when costs incurred\",Q26>0),0,'Individual Cost Statement'!$F$26))","v":0}," "," "," ",{"$f":"IF(R26>0,\" \",IF(AND('Individual Cost Statement'!$D$25:$D$25=\"Date when costs incurred\",Q26>0),\"ENCODE Exchange rate !\",\" \"))","v":" "}]
[20,null,null,null,null,null,null,null,null,null,null,null,null,null,null,null,0,{"$f":"IF(AND('Individual Cost Statement'!$D$25:$D$25=\"Not applicable (all costs in EURO)\",Q27>0),1,IF(AND('Individual Cost Statement'!$D$25:$D$25=\"Date when costs incurred\",Q27>0),0,'Individual Cost Statement'!$F$26))","v":0}," "," "," ",{"$f":"IF(R27>0,\" \",IF(AND('Individual Cost Statement'!$D$25:$D$25=\"Date when costs incurred\",Q27>0),\"ENCODE Exchange rate !\",\" \"))","v":" "}]
[21,null,null,null,null,null,null,null,null,null,null,null,null,null,null,null,0,{"$f":"IF(AND('Individual Cost Statement'!$D$25:$D$25=\"Not applicable (all costs in EURO)\",Q28>0),1,IF(AND('Individual Cost Statement'!$D$25:$D$25=\"Date when costs incurred\",Q28>0),0,'Individual Cost Statement'!$F$26))","v":0}," "," "," ",{"$f":"IF(R28>0,\" \",IF(AND('Individual Cost Statement'!$D$25:$D$25=\"Date when costs incurred\",Q28>0),\"ENCODE Exchange rate !\",\" \"))","v":" "}]
[22,null,null,null,null,null,null,null,null,null,null,null,null,null,null,null,0,{"$f":"IF(AND('Individual Cost Statement'!$D$25:$D$25=\"Not applicable (all costs in EURO)\",Q29>0),1,IF(AND('Individual Cost Statement'!$D$25:$D$25=\"Date when costs incurred\",Q29>0),0,'Individual Cost Statement'!$F$26))","v":0}," "," "," ",{"$f":"IF(R29>0,\" \",IF(AND('Individual Cost Statement'!$D$25:$D$25=\"Date when costs incurred\",Q29>0),\"ENCODE Exchange rate !\",\" \"))","v":" "}]
[23,null,null,null,null,null,null,null,null,null,null,null,null,null,null,null,0,{"$f":"IF(AND('Individual Cost Statement'!$D$25:$D$25=\"Not applicable (all costs in EURO)\",Q30>0),1,IF(AND('Individual Cost Statement'!$D$25:$D$25=\"Date when costs incurred\",Q30>0),0,'Individual Cost Statement'!$F$26))","v":0}," "," "," ",{"$f":"IF(R30>0,\" \",IF(AND('Individual Cost Statement'!$D$25:$D$25=\"Date when costs incurred\",Q30>0),\"ENCODE Exchange rate !\",\" \"))","v":" "}]
[24,null,null,null,null,null,null,null,null,null,null,null,null,null,null,null,0,{"$f":"IF(AND('Individual Cost Statement'!$D$25:$D$25=\"Not applicable (all costs in EURO)\",Q31>0),1,IF(AND('Individual Cost Statement'!$D$25:$D$25=\"Date when costs incurred\",Q31>0),0,'Individual Cost Statement'!$F$26))","v":0}," "," "," ",{"$f":"IF(R31>0,\" \",IF(AND('Individual Cost Statement'!$D$25:$D$25=\"Date when costs incurred\",Q31>0),\"ENCODE Exchange rate !\",\" \"))","v":" "}]
[25,null,null,null,null,null,null,null,null,null,null,null,null,null,null,null,0,{"$f":"IF(AND('Individual Cost Statement'!$D$25:$D$25=\"Not applicable (all costs in EURO)\",Q32>0),1,IF(AND('Individual Cost Statement'!$D$25:$D$25=\"Date when costs incurred\",Q32>0),0,'Individual Cost Statement'!$F$26))","v":0}," "," "," ",{"$f":"IF(R32>0,\" \",IF(AND('Individual Cost Statement'!$D$25:$D$25=\"Date when costs incurred\",Q32>0),\"ENCODE Exchange rate !\",\" \"))","v":" "}]
[26,null,null,null,null,null,null,null,null,null,null,null,null,null,null,null,0,{"$f":"IF(AND('Individual Cost Statement'!$D$25:$D$25=\"Not applicable (all costs in EURO)\",Q33>0),1,IF(AND('Individual Cost Statement'!$D$25:$D$25=\"Date when costs incurred\",Q33>0),0,'Individual Cost Statement'!$F$26))","v":0}," "," "," ",{"$f":"IF(R33>0,\" \",IF(AND('Individual Cost Statement'!$D$25:$D$25=\"Date when costs incurred\",Q33>0),\"ENCODE Exchange rate !\",\" \"))","v":" "}]
[27,null,null,null,null,null,null,null,null,null,null,null,null,null,null,null,0,{"$f":"IF(AND('Individual Cost Statement'!$D$25:$D$25=\"Not applicable (all costs in EURO)\",Q34>0),1,IF(AND('Individual Cost Statement'!$D$25:$D$25=\"Date when costs incurred\",Q34>0),0,'Individual Cost Statement'!$F$26))","v":0}," "," "," ",{"$f":"IF(R34>0,\" \",IF(AND('Individual Cost Statement'!$D$25:$D$25=\"Date when costs incurred\",Q34>0),\"ENCODE Exchange rate !\",\" \"))","v":" "}]
[28,null,null,null,null,null,null,null,null,null,null,null,null,null,null,null,0,{"$f":"IF(AND('Individual Cost Statement'!$D$25:$D$25=\"Not applicable (all costs in EURO)\",Q35>0),1,IF(AND('Individual Cost Statement'!$D$25:$D$25=\"Date when costs incurred\",Q35>0),0,'Individual Cost Statement'!$F$26))","v":0}," "," "," ",{"$f":"IF(R35>0,\" \",IF(AND('Individual Cost Statement'!$D$25:$D$25=\"Date when costs incurred\",Q35>0),\"ENCODE Exchange rate !\",\" \"))","v":" "}]
[29,null,null,null,null,null,null,null,null,null,null,null,null,null,null,null,0,{"$f":"IF(AND('Individual Cost Statement'!$D$25:$D$25=\"Not applicable (all costs in EURO)\",Q36>0),1,IF(AND('Individual Cost Statement'!$D$25:$D$25=\"Date when costs incurred\",Q36>0),0,'Individual Cost Statement'!$F$26))","v":0}," "," "," ",{"$f":"IF(R36>0,\" \",IF(AND('Individual Cost Statement'!$D$25:$D$25=\"Date when costs incurred\",Q36>0),\"ENCODE Exchange rate !\",\" \"))","v":" "}]
[30,null,null,null,null,null,null,null,null,null,null,null,null,null,null,null,0,{"$f":"IF(AND('Individual Cost Statement'!$D$25:$D$25=\"Not applicable (all costs in EURO)\",Q37>0),1,IF(AND('Individual Cost Statement'!$D$25:$D$25=\"Date when costs incurred\",Q37>0),0,'Individual Cost Statement'!$F$26))","v":0}," "," "," ",{"$f":"IF(R37>0,\" \",IF(AND('Individual Cost Statement'!$D$25:$D$25=\"Date when costs incurred\",Q37>0),\"ENCODE Exchange rate !\",\" \"))","v":" "}]
[31,null,null,null,null,null,null,null,null,null,null,null,null,null,null,null,0,{"$f":"IF(AND('Individual Cost Statement'!$D$25:$D$25=\"Not applicable (all costs in EURO)\",Q38>0),1,IF(AND('Individual Cost Statement'!$D$25:$D$25=\"Date when costs incurred\",Q38>0),0,'Individual Cost Statement'!$F$26))","v":0}," "," "," ",{"$f":"IF(R38>0,\" \",IF(AND('Individual Cost Statement'!$D$25:$D$25=\"Date when costs incurred\",Q38>0),\"ENCODE Exchange rate !\",\" \"))","v":" "}]
[32,null,null,null,null,null,null,null,null,null,null,null,null,null,null,null,0,{"$f":"IF(AND('Individual Cost Statement'!$D$25:$D$25=\"Not applicable (all costs in EURO)\",Q39>0),1,IF(AND('Individual Cost Statement'!$D$25:$D$25=\"Date when costs incurred\",Q39>0),0,'Individual Cost Statement'!$F$26))","v":0}," "," "," ",{"$f":"IF(R39>0,\" \",IF(AND('Individual Cost Statement'!$D$25:$D$25=\"Date when costs incurred\",Q39>0),\"ENCODE Exchange rate !\",\" \"))","v":" "}]
[33,null,null,null,null,null,null,null,null,null,null,null,null,null,null,null,0,{"$f":"IF(AND('Individual Cost Statement'!$D$25:$D$25=\"Not applicable (all costs in EURO)\",Q40>0),1,IF(AND('Individual Cost Statement'!$D$25:$D$25=\"Date when costs incurred\",Q40>0),0,'Individual Cost Statement'!$F$26))","v":0}," "," "," ",{"$f":"IF(R40>0,\" \",IF(AND('Individual Cost Statement'!$D$25:$D$25=\"Date when costs incurred\",Q40>0),\"ENCODE Exchange rate !\",\" \"))","v":" "}]
[34,null,null,null,null,null,null,null,null,null,null,null,null,null,null,null,0,{"$f":"IF(AND('Individual Cost Statement'!$D$25:$D$25=\"Not applicable (all costs in EURO)\",Q41>0),1,IF(AND('Individual Cost Statement'!$D$25:$D$25=\"Date when costs incurred\",Q41>0),0,'Individual Cost Statement'!$F$26))","v":0}," "," "," ",{"$f":"IF(R41>0,\" \",IF(AND('Individual Cost Statement'!$D$25:$D$25=\"Date when costs incurred\",Q41>0),\"ENCODE Exchange rate !\",\" \"))","v":" "}]
[35,null,null,null,null,null,null,null,null,null,null,null,null,null,null,null,0,{"$f":"IF(AND('Individual Cost Statement'!$D$25:$D$25=\"Not applicable (all costs in EURO)\",Q42>0),1,IF(AND('Individual Cost Statement'!$D$25:$D$25=\"Date when costs incurred\",Q42>0),0,'Individual Cost Statement'!$F$26))","v":0}," "," "," ",{"$f":"IF(R42>0,\" \",IF(AND('Individual Cost Statement'!$D$25:$D$25=\"Date when costs incurred\",Q42>0),\"ENCODE Exchange rate !\",\" \"))","v":" "}]
[36,null,null,null,null,null,null,null,null,null,null,null,null,null,null,null,0,{"$f":"IF(AND('Individual Cost Statement'!$D$25:$D$25=\"Not applicable (all costs in EURO)\",Q43>0),1,IF(AND('Individual Cost Statement'!$D$25:$D$25=\"Date when costs incurred\",Q43>0),0,'Individual Cost Statement'!$F$26))","v":0}," "," "," ",{"$f":"IF(R43>0,\" \",IF(AND('Individual Cost Statement'!$D$25:$D$25=\"Date when costs incurred\",Q43>0),\"ENCODE Exchange rate !\",\" \"))","v":" "}]
[37,null,null,null,null,null,null,null,null,null,null,null,null,null,null,null,0,{"$f":"IF(AND('Individual Cost Statement'!$D$25:$D$25=\"Not applicable (all costs in EURO)\",Q44>0),1,IF(AND('Individual Cost Statement'!$D$25:$D$25=\"Date when costs incurred\",Q44>0),0,'Individual Cost Statement'!$F$26))","v":0}," "," "," ",{"$f":"IF(R44>0,\" \",IF(AND('Individual Cost Statement'!$D$25:$D$25=\"Date when costs incurred\",Q44>0),\"ENCODE Exchange rate !\",\" \"))","v":" "}]
[38,null,null,null,null,null,null,null,null,null,null,null,null,null,null,null,0,{"$f":"IF(AND('Individual Cost Statement'!$D$25:$D$25=\"Not applicable (all costs in EURO)\",Q45>0),1,IF(AND('Individual Cost Statement'!$D$25:$D$25=\"Date when costs incurred\",Q45>0),0,'Individual Cost Statement'!$F$26))","v":0}," "," "," ",{"$f":"IF(R45>0,\" \",IF(AND('Individual Cost Statement'!$D$25:$D$25=\"Date when costs incurred\",Q45>0),\"ENCODE Exchange rate !\",\" \"))","v":" "}]
[39,null,null,null,null,null,null,null,null,null,null,null,null,null,null,null,0,{"$f":"IF(AND('Individual Cost Statement'!$D$25:$D$25=\"Not applicable (all costs in EURO)\",Q46>0),1,IF(AND('Individual Cost Statement'!$D$25:$D$25=\"Date when costs incurred\",Q46>0),0,'Individual Cost Statement'!$F$26))","v":0}," "," "," ",{"$f":"IF(R46>0,\" \",IF(AND('Individual Cost Statement'!$D$25:$D$25=\"Date when costs incurred\",Q46>0),\"ENCODE Exchange rate !\",\" \"))","v":" "}]
[40,null,null,null,null,null,null,null,null,null,null,null,null,null,null,null,0,{"$f":"IF(AND('Individual Cost Statement'!$D$25:$D$25=\"Not applicable (all costs in EURO)\",Q47>0),1,IF(AND('Individual Cost Statement'!$D$25:$D$25=\"Date when costs incurred\",Q47>0),0,'Individual Cost Statement'!$F$26))","v":0}," "," "," ",{"$f":"IF(R47>0,\" \",IF(AND('Individual Cost Statement'!$D$25:$D$25=\"Date when costs incurred\",Q47>0),\"ENCODE Exchange rate !\",\" \"))","v":" "}]
[41,null,null,null,null,null,null,null,null,null,null,null,null,null,null,null,0,{"$f":"IF(AND('Individual Cost Statement'!$D$25:$D$25=\"Not applicable (all costs in EURO)\",Q48>0),1,IF(AND('Individual Cost Statement'!$D$25:$D$25=\"Date when costs incurred\",Q48>0),0,'Individual Cost Statement'!$F$26))","v":0}," "," "," ",{"$f":"IF(R48>0,\" \",IF(AND('Individual Cost Statement'!$D$25:$D$25=\"Date when costs incurred\",Q48>0),\"ENCODE Exchange rate !\",\" \"))","v":" "}]
[42,null,null,null,null,null,null,null,null,null,null,null,null,null,null,null,0,{"$f":"IF(AND('Individual Cost Statement'!$D$25:$D$25=\"Not applicable (all costs in EURO)\",Q49>0),1,IF(AND('Individual Cost Statement'!$D$25:$D$25=\"Date when costs incurred\",Q49>0),0,'Individual Cost Statement'!$F$26))","v":0}," "," "," ",{"$f":"IF(R49>0,\" \",IF(AND('Individual Cost Statement'!$D$25:$D$25=\"Date when costs incurred\",Q49>0),\"ENCODE Exchange rate !\",\" \"))","v":" "}]
[43,null,null,null,null,null,null,null,null,null,null,null,null,null,null,null,0,{"$f":"IF(AND('Individual Cost Statement'!$D$25:$D$25=\"Not applicable (all costs in EURO)\",Q50>0),1,IF(AND('Individual Cost Statement'!$D$25:$D$25=\"Date when costs incurred\",Q50>0),0,'Individual Cost Statement'!$F$26))","v":0}," "," "," ",{"$f":"IF(R50>0,\" \",IF(AND('Individual Cost Statement'!$D$25:$D$25=\"Date when costs incurred\",Q50>0),\"ENCODE Exchange rate !\",\" \"))","v":" "}]
[44,null,null,null,null,null,null,null,null,null,null,null,null,null,null,null,0,{"$f":"IF(AND('Individual Cost Statement'!$D$25:$D$25=\"Not applicable (all costs in EURO)\",Q51>0),1,IF(AND('Individual Cost Statement'!$D$25:$D$25=\"Date when costs incurred\",Q51>0),0,'Individual Cost Statement'!$F$26))","v":0}," "," "," ",{"$f":"IF(R51>0,\" \",IF(AND('Individual Cost Statement'!$D$25:$D$25=\"Date when costs incurred\",Q51>0),\"ENCODE Exchange rate !\",\" \"))","v":" "}]
[45,null,null,null,null,null,null,null,null,null,null,null,null,null,null,null,0,{"$f":"IF(AND('Individual Cost Statement'!$D$25:$D$25=\"Not applicable (all costs in EURO)\",Q52>0),1,IF(AND('Individual Cost Statement'!$D$25:$D$25=\"Date when costs incurred\",Q52>0),0,'Individual Cost Statement'!$F$26))","v":0}," "," "," ",{"$f":"IF(R52>0,\" \",IF(AND('Individual Cost Statement'!$D$25:$D$25=\"Date when costs incurred\",Q52>0),\"ENCODE Exchange rate !\",\" \"))","v":" "}]
[46,null,null,null,null,null,null,null,null,null,null,null,null,null,null,null,0,{"$f":"IF(AND('Individual Cost Statement'!$D$25:$D$25=\"Not applicable (all costs in EURO)\",Q53>0),1,IF(AND('Individual Cost Statement'!$D$25:$D$25=\"Date when costs incurred\",Q53>0),0,'Individual Cost Statement'!$F$26))","v":0}," "," "," ",{"$f":"IF(R53>0,\" \",IF(AND('Individual Cost Statement'!$D$25:$D$25=\"Date when costs incurred\",Q53>0),\"ENCODE Exchange rate !\",\" \"))","v":" "}]
[47,null,null,null,null,null,null,null,null,null,null,null,null,null,null,null,0,{"$f":"IF(AND('Individual Cost Statement'!$D$25:$D$25=\"Not applicable (all costs in EURO)\",Q54>0),1,IF(AND('Individual Cost Statement'!$D$25:$D$25=\"Date when costs incurred\",Q54>0),0,'Individual Cost Statement'!$F$26))","v":0}," "," "," ",{"$f":"IF(R54>0,\" \",IF(AND('Individual Cost Statement'!$D$25:$D$25=\"Date when costs incurred\",Q54>0),\"ENCODE Exchange rate !\",\" \"))","v":" "}]
[48,null,null,null,null,null,null,null,null,null,null,null,null,null,null,null,0,{"$f":"IF(AND('Individual Cost Statement'!$D$25:$D$25=\"Not applicable (all costs in EURO)\",Q55>0),1,IF(AND('Individual Cost Statement'!$D$25:$D$25=\"Date when costs incurred\",Q55>0),0,'Individual Cost Statement'!$F$26))","v":0}," "," "," ",{"$f":"IF(R55>0,\" \",IF(AND('Individual Cost Statement'!$D$25:$D$25=\"Date when costs incurred\",Q55>0),\"ENCODE Exchange rate !\",\" \"))","v":" "}]
[49,null,null,null,null,null,null,null,null,null,null,null,null,null,null,null,0,{"$f":"IF(AND('Individual Cost Statement'!$D$25:$D$25=\"Not applicable (all costs in EURO)\",Q56>0),1,IF(AND('Individual Cost Statement'!$D$25:$D$25=\"Date when costs incurred\",Q56>0),0,'Individual Cost Statement'!$F$26))","v":0}," "," "," ",{"$f":"IF(R56>0,\" \",IF(AND('Individual Cost Statement'!$D$25:$D$25=\"Date when costs incurred\",Q56>0),\"ENCODE Exchange rate !\",\" \"))","v":" "}]
[50,null,null,null,null,null,null,null,null,null,null,null,null,null,null,null,0,{"$f":"IF(AND('Individual Cost Statement'!$D$25:$D$25=\"Not applicable (all costs in EURO)\",Q57>0),1,IF(AND('Individual Cost Statement'!$D$25:$D$25=\"Date when costs incurred\",Q57>0),0,'Individual Cost Statement'!$F$26))","v":0}," "," "," ",{"$f":"IF(R57>0,\" \",IF(AND('Individual Cost Statement'!$D$25:$D$25=\"Date when costs incurred\",Q57>0),\"ENCODE Exchange rate !\",\" \"))","v":" "}]
["Total",null,null,null,null,null,null,null,null,null,null,null,null,null,null,null,null,null,null,null,{"$f":"SUM(U8:INDIRECT(\"U\"&ROW()-1))","v":0}]
[]
[]
[]
[]
[]
["Explanation of the content of each Column"]
["PLEASE FILL-IN ONLY BLUE CELLS"]
[null,"TO BE FILLED-IN FOR EMPLOYEES"]
["A","Sequential number of the entries."]
["B1","Name of person assigned to the project (to be repeated for every month worked if exchange rate option \"the day when costs incurred\" is chosen) - For beneficiaries declaring costs of affiliates in their individual statement, put here also a line with the name of the affiliate and include under column E8 the total employee cost of the affiliate in EUR (according to its individual financial statement)"]
["B2","Job title of the person listed in column B1"]
["B3","Role in the project of the person listed in column B1, please use the same description as used in the budget proposal IF the role was foreseen in the budget form F1 (if not foreseen, please indicate between brackets 'new role')."]
["B4","Select additional or non-additional\nAdditional personnel includes all employees (permanent or temporary) of public bodies whose contracts or contract renewals :\no Start on or after the start date of the project or on or after the date of signature of the grant agreement by the Agency in case this date takes place before the project start date (For CAP projects the notion of \"additional personnel\" shall also include \"employees – permanent or temporary – whose contracts started before the start date of the project and whose responsibilities were previously unrelated to the implementation of the LIFE programme\").\no Specifically second/assign them to the project"]
["C1","Start of the employment contract"]
["C2","End of the employment contract (if no end date, please leave the field empty)"]
["D1","Year of expense"]
["D2","Contract type: full time=100%, part time=50%,…"]
["D3","Percentage of time allocated to the project should only be filled if the employment contract (or assignement letter) states that the employee needs to work a fixed % of time"]
["D4","Daily working hours used to convert reported hourly rate to the daily rate"]
["D5","TOTAL number of  hours worked  per year (annual productive hours) is the consolidated time actually worked by an employee, not only for the project , according to the time registration system (holidays, weekends, parental leave, sickness or other similar absence should not be included in the productive time) OR if no timesheets are to be kept : 1720 hours for a full time employment (or pro-rata if employment is part time)"]
["D6","Number of worked hours on the project per year, during the reporting period, in accordance with timesheets OR if no timesheets need to be kept, time according to assignment to project, i.e. % of 1720 (= 100% if fulltime = 1720, 50% if halftime = 860, etc)"]
["E1","Annual gross salary: Total gross remuneration from the payroll"]
["E2","Annual obligatory social charges & other eligible statutory costs"]
["E3","If other eligible statutory costs have been declared, please include the amounts, describe and justify them. If the information is too long, please include it with your technical report (and include here the reference)."]
["E4","The sum of the annual personnel costs is calculated automatically (sum of columns E1 and E2)"]
["E5","If costs are reported in Euro ,where beneficiary keep its general accounts in Euro, no exchange rate to include"]
["E5","If the currency of the reported costs is not EURO where beneficiary keeps its general accounts in a currency other than Euro) and the exchange rate option chosen is \"1st day after the end of reporting period\", the monthly exchange rate encoded in the individual Costs statement sheet will be automatically inserted. "]
["E5","If the currency of the reported costs is not EURO, where beneficiary keeps its general accounts in a currency other than Euro and the exchange rate option chosen is the day when the costs incurred, please enter the monthly exchange rate published on the Commission website: http://ec.europa.eu/budget/contracts_grants/info_contracts/inforeuro/inforeuro_en.cfm."]
["E6","Hourly rate in Euro, automatically calculated (column E4 divided by D4 and E5)"]
["E7","Daily rate in Euro; houlry rate in Euro  automatically converted into daily rate (according to information provided in colomn D3)"]
["E8","TOTAL annual personnel costs claimed on the project during the period coverd by the report, automatically calculated according to columns D5 and E6"]

{"sheet":"Personnel_NON_EMPLOYEES","index":2,"n_rows":86,"n_cols":21,"rows_kept":86,"cut":false,"hidden":false,"merged":[[57,0,57,13],[0,2,0,4],[0,7,0,8],[0,9,0,10],[1,2,1,4],[1,7,1,8],[1,9,1,10],[2,2,2,4],[4,1,4,4],[4,5,4,6],[4,10,4,17],[0,12,0,14],[1,12,1,14],[4,7,4,9],[65,1,65,17],[75,1,75,17],[64,0,64,17],[2,12,2,14],[84,1,84,17],[63,0,63,17],[66,1,66,17],[67,1,67,17],[68,1,68,17],[70,1,70,17],[71,1,71,17],[72,1,72,17],[74,1,74,17],[69,1,69,17],[81,1,81,17],[73,1,73,17],[85,1,85,17],[76,1,76,17],[77,1,77,17],[78,1,78,17],[79,1,79,17],[82,1,82,17],[83,1,83,17]]}
[null,"PROJECT Reference :",{"$f":"'Individual Cost Statement'!B3:B3","v":"LIFEXX XXX/XX/XXXXXX - ACRONYM"},null,null,null,null,"PERIOD (FROM) :",null,{"$f":"'Individual Cost Statement'!E3:E3","v":"00:00:00"},null,null,"Personnel_NON-EMPLOYEES"]
[null,"COUNTRY :",{"$f":"'Individual Cost Statement'!B4:B4","v":"Austria"},null,null,null,null,"PERIOD (TO) :",null,{"$f":"'Individual Cost Statement'!E4:E4","v":"00:00:00"},null,null,"Amount claimed WITH NON-recoverable VAT"]
[null,"Beneficiary: ",{"$f":"'Individual Cost Statement'!B6:B6","v":0},null,null,null,null,null,null,null,null,null,{"$f":"R58","v":0}]
[]
[null,"General information on staff assigned to the project",null,null,null,"Employment period",null,"Info on working hours",null,null,"Calculation of the PERSONNEL NON-EMPLOYEES costs"]
["A","B1","B2","B3","B4","C1","C2","D1","D2","D3","E1","E2","E3","E4","E5","E6","E7","E8"]
["Seq n°","Name of person","Job title ","Role in the project (according to budget form F1 or as justified)","For Public beneficiaries (add or non-add) + beneficiaries in CAP  (ONLY additional)\n\n\nAdditional /\nnon_additional","FROM","TO                  (if no end date in contract, leave open)","Year\nof\nexpense","TOTAL \nnumber of   worked hours/days\nper year ( use total working hours according to timesheet OR if no timesheets = 1720 hours (for fulltime)","Number of hours/days worked  on the project\nper year ","Hourly/Daily rate\nwithout VAT\n(in national currency)","Hourly/Daily rate\nwith non-recoverable VAT\n(in national currency)","Select Unit rate\n(Hourly rate\nor\nDaily rate)","Exchange rate","Hourly/Daily rate\nwithout VAT\n(in EURO)","Hourly/Daily rate\nwith non-recoverable VAT\n(in EURO)","TOTAL annual costs in EURO\nwithout VAT ","TOTAL annual costs in EURO\nwith non-recoverable VAT ",null,null,"VAT\nCalculation"]
[{"$f":"ROW()-7","v":1},null,null,null,{"$f":"IF('Individual Cost Statement'!$B$8:$B$8=\"Public body\",IF(ISBLANK(Personnel_NON_EMPLOYEES!B8),\" \",\"?\"),\"N/A\")","v":" "},null,null,null,null,null,null,null,null,{"$f":"IF(AND('Individual Cost Statement'!$D$25:$D$25=\"Not applicable (all costs in EURO)\",K8>0),1,IF(AND('Individual Cost Statement'!$D$25:$D$25=\"Date when costs incurred\",K8>0),0,'Individual Cost Statement'!$F$26))","v":0},{"$f":"IF(AND(K8>0,N8>0),K8/N8,\" \")","v":" "},{"$f":"IF(AND(L8>0,N8>0),L8/N8,\" \")","v":" "},{"$f":"IF(O8=\" \",\" \",O8*J8)","v":" "},{"$f":"IF(P8=\" \",\" \",P8*J8)","v":" "},{"$f":"IF(N8>0,\" \",IF(AND('Individual Cost Statement'!$D$25:$D$25=\"Date when costs incurred\",(SUM(K8:M8)>0)),\"ENCODE Exchange rate !\",\" \"))","v":" "},null,{"$f":"IF(Q8=\" \",\" \",R8-Q8)","v":" "}]
[2,null,null,null,{"$f":"IF('Individual Cost Statement'!$B$8:$B$8=\"Public body\",IF(ISBLANK(Personnel_NON_EMPLOYEES!B9),\" \",\"?\"),\"N/A\")","v":" "},null,null,null,null,null,null,null,null,{"$f":"IF(AND('Individual Cost Statement'!$D$25:$D$25=\"Not applicable (all costs in EURO)\",K9>0),1,IF(AND('Individual Cost Statement'!$D$25:$D$25=\"Date when costs incurred\",K9>0),0,'Individual Cost Statement'!$F$26))","v":0},{"$f":"IF(AND(K9>0,N9>0),K9/N9,\" \")","v":" "},{"$f":"IF(AND(L9>0,N9>0),L9/N9,\" \")","v":" "},{"$f":"IF(O9=\" \",\" \",O9*J9)","v":" "},{"$f":"IF(P9=\" \",\" \",P9*J9)","v":" "},{"$f":"IF(N9>0,\" \",IF(AND('Individual Cost Statement'!$D$25:$D$25=\"Date when costs incurred\",(SUM(K9:M9)>0)),\"ENCODE Exchange rate !\",\" \"))","v":" "},null,{"$f":"IF(Q9=\" \",\" \",R9-Q9)","v":" "}]
[3,null,null,null,{"$f":"IF('Individual Cost Statement'!$B$8:$B$8=\"Public body\",IF(ISBLANK(Personnel_NON_EMPLOYEES!B10),\" \",\"?\"),\"N/A\")","v":" "},null,null,null,null,null,null,null,null,{"$f":"IF(AND('Individual Cost Statement'!$D$25:$D$25=\"Not applicable (all costs in EURO)\",K10>0),1,IF(AND('Individual Cost Statement'!$D$25:$D$25=\"Date when costs incurred\",K10>0),0,'Individual Cost Statement'!$F$26))","v":0}," "," "," "," ",{"$f":"IF(N10>0,\" \",IF(AND('Individual Cost Statement'!$D$25:$D$25=\"Date when costs incurred\",(SUM(K10:M10)>0)),\"ENCODE Exchange rate !\",\" \"))","v":" "},null," "]
[4,null,null,null,{"$f":"IF('Individual Cost Statement'!$B$8:$B$8=\"Public body\",IF(ISBLANK(Personnel_NON_EMPLOYEES!B11),\" \",\"?\"),\"N/A\")","v":" "},null,null,null,null,null,null,null,null,{"$f":"IF(AND('Individual Cost Statement'!$D$25:$D$25=\"Not applicable (all costs in EURO)\",K11>0),1,IF(AND('Individual Cost Statement'!$D$25:$D$25=\"Date when costs incurred\",K11>0),0,'Individual Cost Statement'!$F$26))","v":0}," "," "," "," ",{"$f":"IF(N11>0,\" \",IF(AND('Individual Cost Statement'!$D$25:$D$25=\"Date when costs incurred\",(SUM(K11:M11)>0)),\"ENCODE Exchange rate !\",\" \"))","v":" "},null," "]
[5,null,null,null,{"$f":"IF('Individual Cost Statement'!$B$8:$B$8=\"Public body\",IF(ISBLANK(Personnel_NON_EMPLOYEES!B12),\" \",\"?\"),\"N/A\")","v":" "},null,null,null,null,null,null,null,null,{"$f":"IF(AND('Individual Cost Statement'!$D$25:$D$25=\"Not applicable (all costs in EURO)\",K12>0),1,IF(AND('Individual Cost Statement'!$D$25:$D$25=\"Date when costs incurred\",K12>0),0,'Individual Cost Statement'!$F$26))","v":0}," "," "," "," ",{"$f":"IF(N12>0,\" \",IF(AND('Individual Cost Statement'!$D$25:$D$25=\"Date when costs incurred\",(SUM(K12:M12)>0)),\"ENCODE Exchange rate !\",\" \"))","v":" "},null," "]
[6,null,null,null,{"$f":"IF('Individual Cost Statement'!$B$8:$B$8=\"Public body\",IF(ISBLANK(Personnel_NON_EMPLOYEES!B13),\" \",\"?\"),\"N/A\")","v":" "},null,null,null,null,null,null,null,null,{"$f":"IF(AND('Individual Cost Statement'!$D$25:$D$25=\"Not applicable (all costs in EURO)\",K13>0),1,IF(AND('Individual Cost Statement'!$D$25:$D$25=\"Date when costs incurred\",K13>0),0,'Individual Cost Statement'!$F$26))","v":0}," "," "," "," ",{"$f":"IF(N13>0,\" \",IF(AND('Individual Cost Statement'!$D$25:$D$25=\"Date when costs incurred\",(SUM(K13:M13)>0)),\"ENCODE Exchange rate !\",\" \"))","v":" "},null," "]
[7,null,null,null,{"$f":"IF('Individual Cost Statement'!$B$8:$B$8=\"Public body\",IF(ISBLANK(Personnel_NON_EMPLOYEES!B14),\" \",\"?\"),\"N/A\")","v":" "},null,null,null,null,null,null,null,null,{"$f":"IF(AND('Individual Cost Statement'!$D$25:$D$25=\"Not applicable (all costs in EURO)\",K14>0),1,IF(AND('Individual Cost Statement'!$D$25:$D$25=\"Date when costs incurred\",K14>0),0,'Individual Cost Statement'!$F$26))","v":0}," "," "," "," ",{"$f":"IF(N14>0,\" \",IF(AND('Individual Cost Statement'!$D$25:$D$25=\"Date when costs incurred\",(SUM(K14:M14)>0)),\"ENCODE Exchange rate !\",\" \"))","v":" "},null," "]
[8,null,null,null,{"$f":"IF('Individual Cost Statement'!$B$8:$B$8=\"Public body\",IF(ISBLANK(Personnel_NON_EMPLOYEES!B15),\" \",\"?\"),\"N/A\")","v":" "},null,null,null,null,null,null,null,null,{"$f":"IF(AND('Individual Cost Statement'!$D$25:$D$25=\"Not applicable (all costs in EURO)\",K15>0),1,IF(AND('Individual Cost Statement'!$D$25:$D$25=\"Date when costs incurred\",K15>0),0,'Individual Cost Statement'!$F$26))","v":0}," "," "," "," ",{"$f":"IF(N15>0,\" \",IF(AND('Individual Cost Statement'!$D$25:$D$25=\"Date when costs incurred\",(SUM(K15:M15)>0)),\"ENCODE Exchange rate !\",\" \"))","v":" "},null," "]
[9,null,null,null,{"$f":"IF('Individual Cost Statement'!$B$8:$B$8=\"Public body\",IF(ISBLANK(Personnel_NON_EMPLOYEES!B16),\" \",\"?\"),\"N/A\")","v":" "},null,null,null,null,null,null,null,null,{"$f":"IF(AND('Individual Cost Statement'!$D$25:$D$25=\"Not applicable (all costs in EURO)\",K16>0),1,IF(AND('Individual Cost Statement'!$D$25:$D$25=\"Date when costs incurred\",K16>0),0,'Individual Cost Statement'!$F$26))","v":0}," "," "," "," ",{"$f":"IF(N16>0,\" \",IF(AND('Individual Cost Statement'!$D$25:$D$25=\"Date when costs incurred\",(SUM(K16:M16)>0)),\"ENCODE Exchange rate !\",\" \"))","v":" "},null," "]
[10,null,null,null,{"$f":"IF('Individual Cost Statement'!$B$8:$B$8=\"Public body\",IF(ISBLANK(Personnel_NON_EMPLOYEES!B17),\" \",\"?\"),\"N/A\")","v":" "},null,null,null,null,null,null,null,null,{"$f":"IF(AND('Individual Cost Statement'!$D$25:$D$25=\"Not applicable (all costs in EURO)\",K17>0),1,IF(AND('Individual Cost Statement'!$D$25:$D$25=\"Date when costs incurred\",K17>0),0,'Individual Cost Statement'!$F$26))","v":0}," "," "," "," ",{"$f":"IF(N17>0,\" \",IF(AND('Individual Cost Statement'!$D$25:$D$25=\"Date when costs incurred\",(SUM(K17:M17)>0)),\"ENCODE Exchange rate !\",\" \"))","v":" "},null," "]
[11,null,null,null,{"$f":"IF('Individual Cost Statement'!$B$8:$B$8=\"Public body\",IF(ISBLANK(Personnel_NON_EMPLOYEES!B18),\" \",\"?\"),\"N/A\")","v":" "},null,null,null,null,null,null,null,null,{"$f":"IF(AND('Individual Cost Statement'!$D$25:$D$25=\"Not applicable (all costs in EURO)\",K18>0),1,IF(AND('Individual Cost Statement'!$D$25:$D$25=\"Date when costs incurred\",K18>0),0,'Individual Cost Statement'!$F$26))","v":0}," "," "," "," ",{"$f":"IF(N18>0,\" \",IF(AND('Individual Cost Statement'!$D$25:$D$25=\"Date when costs incurred\",(SUM(K18:M18)>0)),\"ENCODE Exchange rate !\",\" \"))","v":" "},null," "]
[12,null,null,null,{"$f":"IF('Individual Cost Statement'!$B$8:$B$8=\"Public body\",IF(ISBLANK(Personnel_NON_EMPLOYEES!B19),\" \",\"?\"),\"N/A\")","v":" "},null,null,null,null,null,null,null,null,{"$f":"IF(AND('Individual Cost Statement'!$D$25:$D$25=\"Not applicable (all costs in EURO)\",K19>0),1,IF(AND('Individual Cost Statement'!$D$25:$D$25=\"Date when costs incurred\",K19>0),0,'Individual Cost Statement'!$F$26))","v":0}," "," "," "," ",{"$f":"IF(N19>0,\" \",IF(AND('Individual Cost Statement'!$D$25:$D$25=\"Date when costs incurred\",(SUM(K19:M19)>0)),\"ENCODE Exchange rate !\",\" \"))","v":" "},null," "]
[13,null,null,null,{"$f":"IF('Individual Cost Statement'!$B$8:$B$8=\"Public body\",IF(ISBLANK(Personnel_NON_EMPLOYEES!B20),\" \",\"?\"),\"N/A\")","v":" "},null,null,null,null,null,null,null,null,{"$f":"IF(AND('Individual Cost Statement'!$D$25:$D$25=\"Not applicable (all costs in EURO)\",K20>0),1,IF(AND('Individual Cost Statement'!$D$25:$D$25=\"Date when costs incurred\",K20>0),0,'Individual Cost Statement'!$F$26))","v":0}," "," "," "," ",{"$f":"IF(N20>0,\" \",IF(AND('Individual Cost Statement'!$D$25:$D$25=\"Date when costs incurred\",(SUM(K20:M20)>0)),\"ENCODE Exchange rate !\",\" \"))","v":" "},null," "]
[14,null,null,null,{"$f":"IF('Individual Cost Statement'!$B$8:$B$8=\"Public body\",IF(ISBLANK(Personnel_NON_EMPLOYEES!B21),\" \",\"?\"),\"N/A\")","v":" "},null,null,null,null,null,null,null,null,{"$f":"IF(AND('Individual Cost Statement'!$D$25:$D$25=\"Not applicable (all costs in EURO)\",K21>0),1,IF(AND('Individual Cost Statement'!$D$25:$D$25=\"Date when costs incurred\",K21>0),0,'Individual Cost Statement'!$F$26))","v":0}," "," "," "," ",{"$f":"IF(N21>0,\" \",IF(AND('Individual Cost Statement'!$D$25:$D$25=\"Date when costs incurred\",(SUM(K21:M21)>0)),\"ENCODE Exchange rate !\",\" \"))","v":" "},null," "]
[15,null,null,null,{"$f":"IF('Individual Cost Statement'!$B$8:$B$8=\"Public body\",IF(ISBLANK(Personnel_NON_EMPLOYEES!B22),\" \",\"?\"),\"N/A\")","v":" "},null,null,null,null,null,null,null,null,{"$f":"IF(AND('Individual Cost Statement'!$D$25:$D$25=\"Not applicable (all costs in EURO)\",K22>0),1,IF(AND('Individual Cost Statement'!$D$25:$D$25=\"Date when costs incurred\",K22>0),0,'Individual Cost Statement'!$F$26))","v":0}," "," "," "," ",{"$f":"IF(N22>0,\" \",IF(AND('Individual Cost Statement'!$D$25:$D$25=\"Date when costs incurred\",(SUM(K22:M22)>0)),\"ENCODE Exchange rate !\",\" \"))","v":" "},null," "]
[16,null,null,null,{"$f":"IF('Individual Cost Statement'!$B$8:$B$8=\"Public body\",IF(ISBLANK(Personnel_NON_EMPLOYEES!B23),\" \",\"?\"),\"N/A\")","v":" "},null,null,null,null,null,null,null,null,{"$f":"IF(AND('Individual Cost Statement'!$D$25:$D$25=\"Not applicable (all costs in EURO)\",K23>0),1,IF(AND('Individual Cost Statement'!$D$25:$D$25=\"Date when costs incurred\",K23>0),0,'Individual Cost Statement'!$F$26))","v":0}," "," "," "," ",{"$f":"IF(N23>0,\" \",IF(AND('Individual Cost Statement'!$D$25:$D$25=\"Date when costs incurred\",(SUM(K23:M23)>0)),\"ENCODE Exchange rate !\",\" \"))","v":" "},null," "]
[17,null,null,null,{"$f":"IF('Individual Cost Statement'!$B$8:$B$8=\"Public body\",IF(ISBLANK(Personnel_NON_EMPLOYEES!B24),\" \",\"?\"),\"N/A\")","v":" "},null,null,null,null,null,null,null,null,{"$f":"IF(AND('Individual Cost Statement'!$D$25:$D$25=\"Not applicable (all costs in EURO)\",K24>0),1,IF(AND('Individual Cost Statement'!$D$25:$D$25=\"Date when costs incurred\",K24>0),0,'Individual Cost Statement'!$F$26))","v":0}," "," "," "," ",{"$f":"IF(N24>0,\" \",IF(AND('Individual Cost Statement'!$D$25:$D$25=\"Date when costs incurred\",(SUM(K24:M24)>0)),\"ENCODE Exchange rate !\",\" \"))","v":" "},null," "]
[18,null,null,null,{"$f":"IF('Individual Cost Statement'!$B$8:$B$8=\"Public body\",IF(ISBLANK(Personnel_NON_EMPLOYEES!B25),\" \",\"?\"),\"N/A\")","v":" "},null,null,null,null,null,null,null,null,{"$f":"IF(AND('Individual Cost Statement'!$D$25:$D$25=\"Not applicable (all costs in EURO)\",K25>0),1,IF(AND('Individual Cost Statement'!$D$25:$D$25=\"Date when costs incurred\",K25>0),0,'Individual Cost Statement'!$F$26))","v":0}," "," "," "," ",{"$f":"IF(N25>0,\" \",IF(AND('Individual Cost Statement'!$D$25:$D$25=\"Date when costs incurred\",(SUM(K25:M25)>0)),\"ENCODE Exchange rate !\",\" \"))","v":" "},null," "]
[19,null,null,null,{"$f":"IF('Individual Cost Statement'!$B$8:$B$8=\"Public body\",IF(ISBLANK(Personnel_NON_EMPLOYEES!B26),\" \",\"?\"),\"N/A\")","v":" "},null,null,null,null,null,null,null,null,{"$f":"IF(AND('Individual Cost Statement'!$D$25:$D$25=\"Not applicable (all costs in EURO)\",K26>0),1,IF(AND('Individual Cost Statement'!$D$25:$D$25=\"Date when costs incurred\",K26>0),0,'Individual Cost Statement'!$F$26))","v":0}," "," "," "," ",{"$f":"IF(N26>0,\" \",IF(AND('Individual Cost Statement'!$D$25:$D$25=\"Date when costs incurred\",(SUM(K26:M26)>0)),\"ENCODE Exchange rate !\",\" \"))","v":" "},null," "]
[20,null,null,null,{"$f":"IF('Individual Cost Statement'!$B$8:$B$8=\"Public body\",IF(ISBLANK(Personnel_NON_EMPLOYEES!B27),\" \",\"?\"),\"N/A\")","v":" "},null,null,null,null,null,null,null,null,{"$f":"IF(AND('Individual Cost Statement'!$D$25:$D$25=\"Not applicable (all costs in EURO)\",K27>0),1,IF(AND('Individual Cost Statement'!$D$25:$D$25=\"Date when costs incurred\",K27>0),0,'Individual Cost Statement'!$F$26))","v":0}," "," "," "," ",{"$f":"IF(N27>0,\" \",IF(AND('Individual Cost Statement'!$D$25:$D$25=\"Date when costs incurred\",(SUM(K27:M27)>0)),\"ENCODE Exchange rate !\",\" \"))","v":" "},null," "]
[21,null,null,null,{"$f":"IF('Individual Cost Statement'!$B$8:$B$8=\"Public body\",IF(ISBLANK(Personnel_NON_EMPLOYEES!B28),\" \",\"?\"),\"N/A\")","v":" "},null,null,null,null,null,null,null,null,{"$f":"IF(AND('Individual Cost Statement'!$D$25:$D$25=\"Not applicable (all costs in EURO)\",K28>0),1,IF(AND('Individual Cost Statement'!$D$25:$D$25=\"Date when costs incurred\",K28>0),0,'Individual Cost Statement'!$F$26))","v":0}," "," "," "," ",{"$f":"IF(N28>0,\" \",IF(AND('Individual Cost Statement'!$D$25:$D$25=\"Date when costs incurred\",(SUM(K28:M28)>0)),\"ENCODE Exchange rate !\",\" \"))","v":" "},null," "]
[22,null,null,null,{"$f":"IF('Individual Cost Statement'!$B$8:$B$8=\"Public body\",IF(ISBLANK(Personnel_NON_EMPLOYEES!B29),\" \",\"?\"),\"N/A\")","v":" "},null,null,null,null,null,null,null,null,{"$f":"IF(AND('Individual Cost Statement'!$D$25:$D$25=\"Not applicable (all costs in EURO)\",K29>0),1,IF(AND('Individual Cost Statement'!$D$25:$D$25=\"Date when costs incurred\",K29>0),0,'Individual Cost Statement'!$F$26))","v":0}," "," "," "," ",{"$f":"IF(N29>0,\" \",IF(AND('Individual Cost Statement'!$D$25:$D$25=\"Date when costs incurred\",(SUM(K29:M29)>0)),\"ENCODE Exchange rate !\",\" \"))","v":" "},null," "]
[23,null,null,null,{"$f":"IF('Individual Cost Statement'!$B$8:$B$8=\"Public body\",IF(ISBLANK(Personnel_NON_EMPLOYEES!B30),\" \",\"?\"),\"N/A\")","v":" "},null,null,null,null,null,null,null,null,{"$f":"IF(AND('Individual Cost Statement'!$D$25:$D$25=\"Not applicable (all costs in EURO)\",K30>0),1,IF(AND('Individual Cost Statement'!$D$25:$D$25=\"Date when costs incurred\",K30>0),0,'Individual Cost Statement'!$F$26))","v":0}," "," "," "," ",{"$f":"IF(N30>0,\" \",IF(AND('Individual Cost Statement'!$D$25:$D$25=\"Date when costs incurred\",(SUM(K30:M30)>0)),\"ENCODE Exchange rate !\",\" \"))","v":" "},null," "]
[24,null,null,null,{"$f":"IF('Individual Cost Statement'!$B$8:$B$8=\"Public body\",IF(ISBLANK(Personnel_NON_EMPLOYEES!B31),\" \",\"?\"),\"N/A\")","v":" "},null,null,null,null,null,null,null,null,{"$f":"IF(AND('Individual Cost Statement'!$D$25:$D$25=\"Not applicable (all costs in EURO)\",K31>0),1,IF(AND('Individual Cost Statement'!$D$25:$D$25=\"Date when costs incurred\",K31>0),0,'Individual Cost Statement'!$F$26))","v":0}," "," "," "," ",{"$f":"IF(N31>0,\" \",IF(AND('Individual Cost Statement'!$D$25:$D$25=\"Date when costs incurred\",(SUM(K31:M31)>0)),\"ENCODE Exchange rate !\",\" \"))","v":" "},null," "]
[25,null,null,null,{"$f":"IF('Individual Cost Statement'!$B$8:$B$8=\"Public body\",IF(ISBLANK(Personnel_NON_EMPLOYEES!B32),\" \",\"?\"),\"N/A\")","v":" "},null,null,null,null,null,null,null,null,{"$f":"IF(AND('Individual Cost Statement'!$D$25:$D$25=\"Not applicable (all costs in EURO)\",K32>0),1,IF(AND('Individual Cost Statement'!$D$25:$D$25=\"Date when costs incurred\",K32>0),0,'Individual Cost Statement'!$F$26))","v":0}," "," "," "," ",{"$f":"IF(N32>0,\" \",IF(AND('Individual Cost Statement'!$D$25:$D$25=\"Date when costs incurred\",(SUM(K32:M32)>0)),\"ENCODE Exchange rate !\",\" \"))","v":" "},null," "]
[26,null,null,null,{"$f":"IF('Individual Cost Statement'!$B$8:$B$8=\"Public body\",IF(ISBLANK(Personnel_NON_EMPLOYEES!B33),\" \",\"?\"),\"N/A\")","v":" "},null,null,null,null,null,null,null,null,{"$f":"IF(AND('Individual Cost Statement'!$D$25:$D$25=\"Not applicable (all costs in EURO)\",K33>0),1,IF(AND('Individual Cost Statement'!$D$25:$D$25=\"Date when costs incurred\",K33>0),0,'Individual Cost Statement'!$F$26))","v":0}," "," "," "," ",{"$f":"IF(N33>0,\" \",IF(AND('Individual Cost Statement'!$D$25:$D$25=\"Date when costs incurred\",(SUM(K33:M33)>0)),\"ENCODE Exchange rate !\",\" \"))","v":" "},null," "]
[27,null,null,null,{"$f":"IF('Individual Cost Statement'!$B$8:$B$8=\"Public body\",IF(ISBLANK(Personnel_NON_EMPLOYEES!B34),\" \",\"?\"),\"N/A\")","v":" "},null,null,null,null,null,null,null,null,{"$f":"IF(AND('Individual Cost Statement'!$D$25:$D$25=\"Not applicable (all costs in EURO)\",K34>0),1,IF(AND('Individual Cost Statement'!$D$25:$D$25=\"Date when costs incurred\",K34>0),0,'Individual Cost Statement'!$F$26))","v":0}," "," "," "," ",{"$f":"IF(N34>0,\" \",IF(AND('Individual Cost Statement'!$D$25:$D$25=\"Date when costs incurred\",(SUM(K34:M34)>0)),\"ENCODE Exchange rate !\",\" \"))","v":" "},null," "]
[28,null,null,null,{"$f":"IF('Individual Cost Statement'!$B$8:$B$8=\"Public body\",IF(ISBLANK(Personnel_NON_EMPLOYEES!B35),\" \",\"?\"),\"N/A\")","v":" "},null,null,null,null,null,null,null,null,{"$f":"IF(AND('Individual Cost Statement'!$D$25:$D$25=\"Not applicable (all costs in EURO)\",K35>0),1,IF(AND('Individual Cost Statement'!$D$25:$D$25=\"Date when costs incurred\",K35>0),0,'Individual Cost Statement'!$F$26))","v":0}," "," "," "," ",{"$f":"IF(N35>0,\" \",IF(AND('Individual Cost Statement'!$D$25:$D$25=\"Date when costs incurred\",(SUM(K35:M35)>0)),\"ENCODE Exchange rate !\",\" \"))","v":" "},null," "]
[29,null,null,null,{"$f":"IF('Individual Cost Statement'!$B$8:$B$8=\"Public body\",IF(ISBLANK(Personnel_NON_EMPLOYEES!B36),\" \",\"?\"),\"N/A\")","v":" "},null,null,null,null,null,null,null,null,{"$f":"IF(AND('Individual Cost Statement'!$D$25:$D$25=\"Not applicable (all costs in EURO)\",K36>0),1,IF(AND('Individual Cost Statement'!$D$25:$D$25=\"Date when costs incurred\",K36>0),0,'Individual Cost Statement'!$F$26))","v":0}," "," "," "," ",{"$f":"IF(N36>0,\" \",IF(AND('Individual Cost Statement'!$D$25:$D$25=\"Date when costs incurred\",(SUM(K36:M36)>0)),\"ENCODE Exchange rate !\",\" \"))","v":" "},null," "]
[30,null,null,null,{"$f":"IF('Individual Cost Statement'!$B$8:$B$8=\"Public body\",IF(ISBLANK(Personnel_NON_EMPLOYEES!B37),\" \",\"?\"),\"N/A\")","v":" "},null,null,null,null,null,null,null,null,{"$f":"IF(AND('Individual Cost Statement'!$D$25:$D$25=\"Not applicable (all costs in EURO)\",K37>0),1,IF(AND('Individual Cost Statement'!$D$25:$D$25=\"Date when costs incurred\",K37>0),0,'Individual Cost Statement'!$F$26))","v":0}," "," "," "," ",{"$f":"IF(N37>0,\" \",IF(AND('Individual Cost Statement'!$D$25:$D$25=\"Date when costs incurred\",(SUM(K37:M37)>0)),\"ENCODE Exchange rate !\",\" \"))","v":" "},null," "]
[31,null,null,null,{"$f":"IF('Individual Cost Statement'!$B$8:$B$8=\"Public body\",IF(ISBLANK(Personnel_NON_EMPLOYEES!B38),\" \",\"?\"),\"N/A\")","v":" "},null,null,null,null,null,null,null,null,{"$f":"IF(AND('Individual Cost Statement'!$D$25:$D$25=\"Not applicable (all costs in EURO)\",K38>0),1,IF(AND('Individual Cost Statement'!$D$25:$D$25=\"Date when costs incurred\",K38>0),0,'Individual Cost Statement'!$F$26))","v":0}," "," "," "," ",{"$f":"IF(N38>0,\" \",IF(AND('Individual Cost Statement'!$D$25:$D$25=\"Date when costs incurred\",(SUM(K38:M38)>0)),\"ENCODE Exchange rate !\",\" \"))","v":" "},null," "]
[32,null,null,null,{"$f":"IF('Individual Cost Statement'!$B$8:$B$8=\"Public body\",IF(ISBLANK(Personnel_NON_EMPLOYEES!B39),\" \",\"?\"),\"N/A\")","v":" "},null,null,null,null,null,null,null,null,{"$f":"IF(AND('Individual Cost Statement'!$D$25:$D$25=\"Not applicable (all costs in EURO)\",K39>0),1,IF(AND('Individual Cost Statement'!$D$25:$D$25=\"Date when costs incurred\",K39>0),0,'Individual Cost Statement'!$F$26))","v":0}," "," "," "," ",{"$f":"IF(N39>0,\" \",IF(AND('Individual Cost Statement'!$D$25:$D$25=\"Date when costs incurred\",(SUM(K39:M39)>0)),\"ENCODE Exchange rate !\",\" \"))","v":" "},null," "]
[33,null,null,null,{"$f":"IF('Individual Cost Statement'!$B$8:$B$8=\"Public body\",IF(ISBLANK(Personnel_NON_EMPLOYEES!B40),\" \",\"?\"),\"N/A\")","v":" "},null,null,null,null,null,null,null,null,{"$f":"IF(AND('Individual Cost Statement'!$D$25:$D$25=\"Not applicable (all costs in EURO)\",K40>0),1,IF(AND('Individual Cost Statement'!$D$25:$D$25=\"Date when costs incurred\",K40>0),0,'Individual Cost Statement'!$F$26))","v":0}," "," "," "," ",{"$f":"IF(N40>0,\" \",IF(AND('Individual Cost Statement'!$D$25:$D$25=\"Date when costs incurred\",(SUM(K40:M40)>0)),\"ENCODE Exchange rate !\",\" \"))","v":" "},null," "]
[34,null,null,null,{"$f":"IF('Individual Cost Statement'!$B$8:$B$8=\"Public body\",IF(ISBLANK(Personnel_NON_EMPLOYEES!B41),\" \",\"?\"),\"N/A\")","v":" "},null,null,null,null,null,null,null,null,{"$f":"IF(AND('Individual Cost Statement'!$D$25:$D$25=\"Not applicable (all costs in EURO)\",K41>0),1,IF(AND('Individual Cost Statement'!$D$25:$D$25=\"Date when costs incurred\",K41>0),0,'Individual Cost Statement'!$F$26))","v":0}," "," "," "," ",{"$f":"IF(N41>0,\" \",IF(AND('Individual Cost Statement'!$D$25:$D$25=\"Date when costs incurred\",(SUM(K41:M41)>0)),\"ENCODE Exchange rate !\",\" \"))","v":" "},null," "]
[35,null,null,null,{"$f":"IF('Individual Cost Statement'!$B$8:$B$8=\"Public body\",IF(ISBLANK(Personnel_NON_EMPLOYEES!B42),\" \",\"?\"),\"N/A\")","v":" "},null,null,null,null,null,null,null,null,{"$f":"IF(AND('Individual Cost Statement'!$D$25:$D$25=\"Not applicable (all costs in EURO)\",K42>0),1,IF(AND('Individual Cost Statement'!$D$25:$D$25=\"Date when costs incurred\",K42>0),0,'Individual Cost Statement'!$F$26))","v":0}," "," "," "," ",{"$f":"IF(N42>0,\" \",IF(AND('Individual Cost Statement'!$D$25:$D$25=\"Date when costs incurred\",(SUM(K42:M42)>0)),\"ENCODE Exchange rate !\",\" \"))","v":" "},null," "]
[36,null,null,null,{"$f":"IF('Individual Cost Statement'!$B$8:$B$8=\"Public body\",IF(ISBLANK(Personnel_NON_EMPLOYEES!B43),\" \",\"?\"),\"N/A\")","v":" "},null,null,null,null,null,null,null,null,{"$f":"IF(AND('Individual Cost Statement'!$D$25:$D$25=\"Not applicable (all costs in EURO)\",K43>0),1,IF(AND('Individual Cost Statement'!$D$25:$D$25=\"Date when costs incurred\",K43>0),0,'Individual Cost Statement'!$F$26))","v":0}," "," "," "," ",{"$f":"IF(N43>0,\" \",IF(AND('Individual Cost Statement'!$D$25:$D$25=\"Date when costs incurred\",(SUM(K43:M43)>0)),\"ENCODE Exchange rate !\",\" \"))","v":" "},null," "]
[37,null,null,null,{"$f":"IF('Individual Cost Statement'!$B$8:$B$8=\"Public body\",IF(ISBLANK(Personnel_NON_EMPLOYEES!B44),\" \",\"?\"),\"N/A\")","v":" "},null,null,null,null,null,null,null,null,{"$f":"IF(AND('Individual Cost Statement'!$D$25:$D$25=\"Not applicable (all costs in EURO)\",K44>0),1,IF(AND('Individual Cost Statement'!$D$25:$D$25=\"Date when costs incurred\",K44>0),0,'Individual Cost Statement'!$F$26))","v":0}," "," "," "," ",{"$f":"IF(N44>0,\" \",IF(AND('Individual Cost Statement'!$D$25:$D$25=\"Date when costs incurred\",(SUM(K44:M44)>0)),\"ENCODE Exchange rate !\",\" \"))","v":" "},null," "]
[38,null,null,null,{"$f":"IF('Individual Cost Statement'!$B$8:$B$8=\"Public body\",IF(ISBLANK(Personnel_NON_EMPLOYEES!B45),\" \",\"?\"),\"N/A\")","v":" "},null,null,null,null,null,null,null,null,{"$f":"IF(AND('Individual Cost Statement'!$D$25:$D$25=\"Not applicable (all costs in EURO)\",K45>0),1,IF(AND('Individual Cost Statement'!$D$25:$D$25=\"Date when costs incurred\",K45>0),0,'Individual Cost Statement'!$F$26))","v":0}," "," "," "," ",{"$f":"IF(N45>0,\" \",IF(AND('Individual Cost Statement'!$D$25:$D$25=\"Date when costs incurred\",(SUM(K45:M45)>0)),\"ENCODE Exchange rate !\",\" \"))","v":" "},null," "]
[39,null,null,null,{"$f":"IF('Individual Cost Statement'!$B$8:$B$8=\"Public body\",IF(ISBLANK(Personnel_NON_EMPLOYEES!B46),\" \",\"?\"),\"N/A\")","v":" "},null,null,null,null,null,null,null,null,{"$f":"IF(AND('Individual Cost Statement'!$D$25:$D$25=\"Not applicable (all costs in EURO)\",K46>0),1,IF(AND('Individual Cost Statement'!$D$25:$D$25=\"Date when costs incurred\",K46>0),0,'Individual Cost Statement'!$F$26))","v":0}," "," "," "," ",{"$f":"IF(N46>0,\" \",IF(AND('Individual Cost Statement'!$D$25:$D$25=\"Date when costs incurred\",(SUM(K46:M46)>0)),\"ENCODE Exchange rate !\",\" \"))","v":" "},null," "]
[40,null,null,null,{"$f":"IF('Individual Cost Statement'!$B$8:$B$8=\"Public body\",IF(ISBLANK(Personnel_NON_EMPLOYEES!B47),\" \",\"?\"),\"N/A\")","v":" "},null,null,null,null,null,null,null,null,{"$f":"IF(AND('Individual Cost Statement'!$D$25:$D$25=\"Not applicable (all costs in EURO)\",K47>0),1,IF(AND('Individual Cost Statement'!$D$25:$D$25=\"Date when costs incurred\",K47>0),0,'Individual Cost Statement'!$F$26))","v":0}," "," "," "," ",{"$f":"IF(N47>0,\" \",IF(AND('Individual Cost Statement'!$D$25:$D$25=\"Date when costs incurred\",(SUM(K47:M47)>0)),\"ENCODE Exchange rate !\",\" \"))","v":" "},null," "]
[41,null,null,null,{"$f":"IF('Individual Cost Statement'!$B$8:$B$8=\"Public body\",IF(ISBLANK(Personnel_NON_EMPLOYEES!B48),\" \",\"?\"),\"N/A\")","v":" "},null,null,null,null,null,null,null,null,{"$f":"IF(AND('Individual Cost Statement'!$D$25:$D$25=\"Not applicable (all costs in EURO)\",K48>0),1,IF(AND('Individual Cost Statement'!$D$25:$D$25=\"Date when costs incurred\",K48>0),0,'Individual Cost Statement'!$F$26))","v":0}," "," "," "," ",{"$f":"IF(N48>0,\" \",IF(AND('Individual Cost Statement'!$D$25:$D$25=\"Date when costs incurred\",(SUM(K48:M48)>0)),\"ENCODE Exchange rate !\",\" \"))","v":" "},null," "]
[42,null,null,null,{"$f":"IF('Individual Cost Statement'!$B$8:$B$8=\"Public body\",IF(ISBLANK(Personnel_NON_EMPLOYEES!B49),\" \",\"?\"),\"N/A\")","v":" "},null,null,null,null,null,null,null,null,{"$f":"IF(AND('Individual Cost Statement'!$D$25:$D$25=\"Not applicable (all costs in EURO)\",K49>0),1,IF(AND('Individual Cost Statement'!$D$25:$D$25=\"Date when costs incurred\",K49>0),0,'Individual Cost Statement'!$F$26))","v":0}," "," "," "," ",{"$f":"IF(N49>0,\" \",IF(AND('Individual Cost Statement'!$D$25:$D$25=\"Date when costs incurred\",(SUM(K49:M49)>0)),\"ENCODE Exchange rate !\",\" \"))","v":" "},null," "]
[43,null,null,null,{"$f":"IF('Individual Cost Statement'!$B$8:$B$8=\"Public body\",IF(ISBLANK(Personnel_NON_EMPLOYEES!B50),\" \",\"?\"),\"N/A\")","v":" "},null,null,null,null,null,null,null,null,{"$f":"IF(AND('Individual Cost Statement'!$D$25:$D$25=\"Not applicable (all costs in EURO)\",K50>0),1,IF(AND('Individual Cost Statement'!$D$25:$D$25=\"Date when costs incurred\",K50>0),0,'Individual Cost Statement'!$F$26))","v":0}," "," "," "," ",{"$f":"IF(N50>0,\" \",IF(AND('Individual Cost Statement'!$D$25:$D$25=\"Date when costs incurred\",(SUM(K50:M50)>0)),\"ENCODE Exchange rate !\",\" \"))","v":" "},null," "]
[44,null,null,null,{"$f":"IF('Individual Cost Statement'!$B$8:$B$8=\"Public body\",IF(ISBLANK(Personnel_NON_EMPLOYEES!B51),\" \",\"?\"),\"N/A\")","v":" "},null,null,null,null,null,null,null,null,{"$f":"IF(AND('Individual Cost Statement'!$D$25:$D$25=\"Not applicable (all costs in EURO)\",K51>0),1,IF(AND('Individual Cost Statement'!$D$25:$D$25=\"Date when costs incurred\",K51>0),0,'Individual Cost Statement'!$F$26))","v":0}," "," "," "," ",{"$f":"IF(N51>0,\" \",IF(AND('Individual Cost Statement'!$D$25:$D$25=\"Date when costs incurred\",(SUM(K51:M51)>0)),\"ENCODE Exchange rate !\",\" \"))","v":" "},null," "]
[45,null,null,null,{"$f":"IF('Individual Cost Statement'!$B$8:$B$8=\"Public body\",IF(ISBLANK(Personnel_NON_EMPLOYEES!B52),\" \",\"?\"),\"N/A\")","v":" "},null,null,null,null,null,null,null,null,{"$f":"IF(AND('Individual Cost Statement'!$D$25:$D$25=\"Not applicable (all costs in EURO)\",K52>0),1,IF(AND('Individual Cost Statement'!$D$25:$D$25=\"Date when costs incurred\",K52>0),0,'Individual Cost Statement'!$F$26))","v":0}," "," "," "," ",{"$f":"IF(N52>0,\" \",IF(AND('Individual Cost Statement'!$D$25:$D$25=\"Date when costs incurred\",(SUM(K52:M52)>0)),\"ENCODE Exchange rate !\",\" \"))","v":" "},null," "]
[46,null,null,null,{"$f":"IF('Individual Cost Statement'!$B$8:$B$8=\"Public body\",IF(ISBLANK(Personnel_NON_EMPLOYEES!B53),\" \",\"?\"),\"N/A\")","v":" "},null,null,null,null,null,null,null,null,{"$f":"IF(AND('Individual Cost Statement'!$D$25:$D$25=\"Not applicable (all costs in EURO)\",K53>0),1,IF(AND('Individual Cost Statement'!$D$25:$D$25=\"Date when costs incurred\",K53>0),0,'Individual Cost Statement'!$F$26))","v":0}," "," "," "," ",{"$f":"IF(N53>0,\" \",IF(AND('Individual Cost Statement'!$D$25:$D$25=\"Date when costs incurred\",(SUM(K53:M53)>0)),\"ENCODE Exchange rate !\",\" \"))","v":" "},null," "]
[47,null,null,null,{"$f":"IF('Individual Cost Statement'!$B$8:$B$8=\"Public body\",IF(ISBLANK(Personnel_NON_EMPLOYEES!B54),\" \",\"?\"),\"N/A\")","v":" "},null,null,null,null,null,null,null,null,{"$f":"IF(AND('Individual Cost Statement'!$D$25:$D$25=\"Not applicable (all costs in EURO)\",K54>0),1,IF(AND('Individual Cost Statement'!$D$25:$D$25=\"Date when costs incurred\",K54>0),0,'Individual Cost Statement'!$F$26))","v":0}," "," "," "," ",{"$f":"IF(N54>0,\" \",IF(AND('Individual Cost Statement'!$D$25:$D$25=\"Date when costs incurred\",(SUM(K54:M54)>0)),\"ENCODE Exchange rate !\",\" \"))","v":" "},null," "]
[48,null,null,null,{"$f":"IF('Individual Cost Statement'!$B$8:$B$8=\"Public body\",IF(ISBLANK(Personnel_NON_EMPLOYEES!B55),\" \",\"?\"),\"N/A\")","v":" "},null,null,null,null,null,null,null,null,{"$f":"IF(AND('Individual Cost Statement'!$D$25:$D$25=\"Not applicable (all costs in EURO)\",K55>0),1,IF(AND('Individual Cost Statement'!$D$25:$D$25=\"Date when costs incurred\",K55>0),0,'Individual Cost Statement'!$F$26))","v":0}," "," "," "," ",{"$f":"IF(N55>0,\" \",IF(AND('Individual Cost Statement'!$D$25:$D$25=\"Date when costs incurred\",(SUM(K55:M55)>0)),\"ENCODE Exchange rate !\",\" \"))","v":" "},null," "]
[49,null,null,null,{"$f":"IF('Individual Cost Statement'!$B$8:$B$8=\"Public body\",IF(ISBLANK(Personnel_NON_EMPLOYEES!B56),\" \",\"?\"),\"N/A\")","v":" "},null,null,null,null,null,null,null,null,{"$f":"IF(AND('Individual Cost Statement'!$D$25:$D$25=\"Not applicable (all costs in EURO)\",K56>0),1,IF(AND('Individual Cost Statement'!$D$25:$D$25=\"Date when costs incurred\",K56>0),0,'Individual Cost Statement'!$F$26))","v":0}," "," "," "," ",{"$f":"IF(N56>0,\" \",IF(AND('Individual Cost Statement'!$D$25:$D$25=\"Date when costs incurred\",(SUM(K56:M56)>0)),\"ENCODE Exchange rate !\",\" \"))","v":" "},null," "]
[50,null,null,null,{"$f":"IF('Individual Cost Statement'!$B$8:$B$8=\"Public body\",IF(ISBLANK(Personnel_NON_EMPLOYEES!B57),\" \",\"?\"),\"N/A\")","v":" "},null,null,null,null,null,null,null,null,{"$f":"IF(AND('Individual Cost Statement'!$D$25:$D$25=\"Not applicable (all costs in EURO)\",K57>0),1,IF(AND('Individual Cost Statement'!$D$25:$D$25=\"Date when costs incurred\",K57>0),0,'Individual Cost Statement'!$F$26))","v":0}," "," "," "," ",{"$f":"IF(N57>0,\" \",IF(AND('Individual Cost Statement'!$D$25:$D$25=\"Date when costs incurred\",(SUM(K57:M57)>0)),\"ENCODE Exchange rate !\",\" \"))","v":" "},null," "]
["Total",null,null,null,null,null,null,null,null,null,null,null,null,null,null,null,{"$f":"SUM(Q8:INDIRECT(\"Q\"&ROW()-1))","v":0},{"$f":"SUM(R8:INDIRECT(\"R\"&ROW()-1))","v":0}]
[]
[]
[]
[]
[]
["Explanation of the content of each Column"]
["PLEASE FILL-IN ONLY BLUE CELLS"]
[null,"TO BE FILLED-IN FOR NON-EMPLOYEES "]
["A","Sequential number of the entries. "]
["B1","Name of person (to be repeated for every month worked if exchange rate option \"the day when costs incurred\" is chosen) - For beneficiaries declaring costs of affiliates in their individual statement, put here also a line with the name of the affiliate and include under column E8 the total  non-employee cost of the affiliate in EUR (according to its individual financial statement)"]
["B2","Job title of the person listed in column B2"]
["B3","Role in the project of the person listed in column B2, please use the same description as used in the budget proposal IF the role was foreseen in the budget."]
["B4","Select additional or non-additional\nAdditional personnel includes all employees (permanent or temporary) of public bodies whose contracts or contract renewals :\no Start on or after the start date of the project or on or after the date of signature of the grant agreement by the Agency in case this date takes place before the project start date (For CAP projects the notion of \"additional personnel\" shall also include \"employees – permanent or temporary – whose contracts started before the start date of the project and whose responsibilities were previously unrelated to the implementation of the LIFE programme\").\no Specifically second/assign them to the project"]
["C1","Start of the employment contract","Start of the employment contract","Start of the employment contract","Start of the employment contract","Start of the employment contract","Start of the employment contract","Start of the employment contract","Start of the employment contract","Start of the employment contract","Start of the employment contract","Start of the employment contract","Start of the employment contract","Start of the employment contract","Start of the employment contract","Start of the employment contract",null,"Start of the employment contract"]
["C2","End of the employment contract (if no end date, please leave the field empty)","End of the employment contract","End of the employment contract","End of the employment contract","End of the employment contract","End of the employment contract","End of the employment contract","End of the employment contract","End of the employment contract","End of the employment contract","End of the employment contract","End of the employment contract","End of the employment contract","End of the employment contract","End of the employment contract",null,"End of the employment contract"]
["D1","Year of expense"]
["D2","TOTAL number of  hours worked  per year (annual productive hours) is the consolidated time actually worked by the staff member for the beneficiary under the employment/consultancy contract (not only for the project unless the contract was project specific) in accordance with the time registration system (holidays, weekends, parental leave, sickness or other similar absence should not be included in the productive time) OR if no timesheets are to be kept : 1720 hours for a full time employment (or pro-rata if employment is part time)","TOTAL number of   worked hours per year (productive time); not only on the project","TOTAL number of   worked hours per year (productive time); not only on the project","TOTAL number of   worked hours per year (productive time); not only on the project","TOTAL number of   worked hours per year (productive time); not only on the project","TOTAL number of   worked hours per year (productive time); not only on the project",null,"TOTAL number of   worked hours per year (productive time); not only on the project","TOTAL number of   worked hours per year (productive time); not only on the project","TOTAL number of   worked hours per year (productive time); not only on the project","TOTAL number of   worked hours per year (productive time); not only on the project","TOTAL number of   worked hours per year (productive time); not only on the project","TOTAL number of   worked hours per year (productive time); not only on the project","TOTAL number of   worked hours per year (productive time); not only on the project","TOTAL number of   worked hours per year (productive time); not only on the project",null,"TOTAL number of   worked hours per year (productive time); not only on the project"]
["D3","Number of   worked hours or days on the project per year, during the reporting period, in accordance with timesheets or in accordance with employment contract/assigment letter if no timesheets are to be kept in line with Annex X of the grant agreement","Number of   worked hours on the project per year","Number of   worked hours on the project per year","Number of   worked hours on the project per year","Number of   worked hours on the project per year","Number of   worked hours on the project per year",null,"Number of   worked hours on the project per year","Number of   worked hours on the project per year","Number of   worked hours on the project per year","Number of   worked hours on the project per year","Number of   worked hours on the project per year","Number of   worked hours on the project per year","Number of   worked hours on the project per year","Number of   worked hours on the project per year",null,"Number of   worked hours on the project per year"]
["E1","Hourly or daily rate without VAT (in national currency). Indicate Daily rates ONLY if the contract specifies \ndaily rate instead of hourly rate"]
["E2","Hourly or daily rate with  non-recoverable VAT (in national currency). Indicate Daily rates ONLY if the contract specifies \ndaily rate instead of hourly rate"]
["E3","Select Unit rate: hourly rate or daily rate (this last to be selected ONLY if the contract specifies \ndaily rate instead of hourly rate)"]
["E4","If costs are reported in Euro ,where beneficiary keeps its general accounts in Euro, no exchange rate to include"]
["E4","If the currency of the reported costs is not EURO where beneficiary keeps its general accounts in a currency other than Euro) and the exchange rate option chosen is \"1st day after the end of reporting period\", the monthly exchange rate encoded in the individual Costs statement sheet will be automatically inserted. "]
["E4","If the currency of the reported costs is not EURO, where beneficiary keeps its general accounts in a currency other than Euro and the exchange rate option chosen is the day when the costs incurred, please enter the monthly exchange rate published on the Commission website: http://ec.europa.eu/budget/contracts_grants/info_contracts/inforeuro/inforeuro_en.cfm."]
["E5","Hourly or daily rate without VAT (in EURO), automatically calculated (column E1 divided by E4)"]
["E6","Hourly or daily rate with non-recoverable VAT (in EURO), automatically calculated (column E2 divided by E4)"]
["E7","Total annual costs for staff not considered as employees, working on specific work contracts, in EURO without VAT, automatically calculated (column D3 multiplied by E5)"]
["E8","Total annual costs for staff not considered as employees, working on specific work contracts, in EURO with non-recoverable VAT, automatically calculated (column D3 multiplied by E6)"]

{"sheet":"Travel","index":3,"n_rows":83,"n_cols":20,"rows_kept":83,"cut":false,"hidden":false,"merged":[[73,1,73,15],[74,1,74,15],[75,1,75,15],[68,1,68,15],[69,1,69,15],[70,1,70,15],[71,1,71,15],[72,1,72,15],[81,1,81,15],[82,1,82,15],[76,1,76,15],[77,1,77,15],[78,1,78,15],[79,1,79,15],[80,1,80,15],[4,8,4,10],[4,11,4,15],[57,0,57,12],[66,1,66,15],[67,1,67,15],[63,0,63,15],[64,0,64,15],[65,1,65,15],[4,1,4,5],[4,6,4,7],[0,13,0,15],[1,13,1,15],[2,13,2,15],[0,2,0,4],[1,2,1,4],[2,2,2,4],[0,7,0,8],[0,9,0,10],[1,7,1,8],[1,9,1,10]]}
[null,"PROJECT Reference :",{"$f":"'Individual Cost Statement'!B3:B3","v":"LIFEXX XXX/XX/XXXXXX - ACRONYM"},null,null,null,null,"PERIOD (FROM) :",null,{"$f":"'Individual Cost Statement'!E3:E3","v":"00:00:00"},null,null,null,"TRAVEL"]
[null,"COUNTRY :",{"$f":"'Individual Cost Statement'!B4:B4","v":"Austria"},null,null,null,null,"PERIOD (TO) :",null,{"$f":"'Individual Cost Statement'!E4:E4","v":"00:00:00"},null,null,null,"Amount WITH NON-recoverable VAT"]
[null,"Beneficiary: ",{"$f":"'Individual Cost Statement'!B6:B6","v":0},null,null,null,null,null,null,null,null,null,null,{"$f":"P58","v":0}]
[]
[null,"General information on travel costs",null,null,null,null,"Info on cost item",null,"Details on cost item",null,null,"Calculation of the TRAVEL & SUBSISTENCE costs"]
["A","B1","B2","B3","B4","B5","C1","C2","D1","D2","D3","E1","E2","E3","E4","E5"]
["Seq n°","Name of person \nwho travelled","Date of travel","Purpose","Location \nFROM","Location \nTO","Description \nof the cost item ","Duration \n(in days)","Date of invoice","Invoice number","Date of payment","Amount in national currency without VAT","Amount in national currency with non-recoverable VAT","Exchange rate","Amount in EURO\nwithout VAT","Amount in EURO \nwith non-recoverable VAT ",null,null,null,"VAT\nCalculation"]
[{"$f":"ROW()-7","v":1},null,null,null,null,null,null,null,null,null,null,null,null,{"$f":"IF(AND('Individual Cost Statement'!$D$25:$D$25=\"Not applicable (all costs in EURO)\",L8>0),1,IF(AND('Individual Cost Statement'!$D$25:$D$25=\"Date when costs incurred\",L8>0),0,'Individual Cost Statement'!$F$26))","v":0},{"$f":"IF(AND(L8>0,N8>0),L8/N8,\" \")","v":" "},{"$f":"IF(AND(M8>0,N8>0),M8/N8,\" \")","v":" "},{"$f":"IF(N8>0,\" \",IF(AND('Individual Cost Statement'!$D$25:$D$25=\"Date when costs incurred\",L8>0),\"ENCODE Exchange rate !\",\" \"))","v":" "},null,null,{"$f":"IF(O8=\" \",\" \",P8-O8)","v":" "}]
[2,null,null,null,null,null,null,null,null,null,null,null,null,{"$f":"IF(AND('Individual Cost Statement'!$D$25:$D$25=\"Not applicable (all costs in EURO)\",L9>0),1,IF(AND('Individual Cost Statement'!$D$25:$D$25=\"Date when costs incurred\",L9>0),0,'Individual Cost Statement'!$F$26))","v":0},{"$f":"IF(AND(L9>0,N9>0),L9/N9,\" \")","v":" "},{"$f":"IF(AND(M9>0,N9>0),M9/N9,\" \")","v":" "},{"$f":"IF(N9>0,\" \",IF(AND('Individual Cost Statement'!$D$25:$D$25=\"Date when costs incurred\",L9>0),\"ENCODE Exchange rate !\",\" \"))","v":" "},null,null,{"$f":"IF(O9=\" \",\" \",P9-O9)","v":" "}]
[3,null,null,null,null,null,null,null,null,null,null,null,null,{"$f":"IF(AND('Individual Cost Statement'!$D$25:$D$25=\"Not applicable (all costs in EURO)\",L10>0),1,IF(AND('Individual Cost Statement'!$D$25:$D$25=\"Date when costs incurred\",L10>0),0,'Individual Cost Statement'!$F$26))","v":0}," "," ",{"$f":"IF(N10>0,\" \",IF(AND('Individual Cost Statement'!$D$25:$D$25=\"Date when costs incurred\",L10>0),\"ENCODE Exchange rate !\",\" \"))","v":" "},null,null," "]
[4,null,null,null,null,null,null,null,null,null,null,null,null,{"$f":"IF(AND('Individual Cost Statement'!$D$25:$D$25=\"Not applicable (all costs in EURO)\",L11>0),1,IF(AND('Individual Cost Statement'!$D$25:$D$25=\"Date when costs incurred\",L11>0),0,'Individual Cost Statement'!$F$26))","v":0}," "," ",{"$f":"IF(N11>0,\" \",IF(AND('Individual Cost Statement'!$D$25:$D$25=\"Date when costs incurred\",L11>0),\"ENCODE Exchange rate !\",\" \"))","v":" "},null,null," "]
[5,null,null,null,null,null,null,null,null,null,null,null,null,{"$f":"IF(AND('Individual Cost Statement'!$D$25:$D$25=\"Not applicable (all costs in EURO)\",L12>0),1,IF(AND('Individual Cost Statement'!$D$25:$D$25=\"Date when costs incurred\",L12>0),0,'Individual Cost Statement'!$F$26))","v":0}," "," ",{"$f":"IF(N12>0,\" \",IF(AND('Individual Cost Statement'!$D$25:$D$25=\"Date when costs incurred\",L12>0),\"ENCODE Exchange rate !\",\" \"))","v":" "},null,null," "]
[6,null,null,null,null,null,null,null,null,null,null,null,null,{"$f":"IF(AND('Individual Cost Statement'!$D$25:$D$25=\"Not applicable (all costs in EURO)\",L13>0),1,IF(AND('Individual Cost Statement'!$D$25:$D$25=\"Date when costs incurred\",L13>0),0,'Individual Cost Statement'!$F$26))","v":0}," "," ",{"$f":"IF(N13>0,\" \",IF(AND('Individual Cost Statement'!$D$25:$D$25=\"Date when costs incurred\",L13>0),\"ENCODE Exchange rate !\",\" \"))","v":" "},null,null," "]
[7,null,null,null,null,null,null,null,null,null,null,null,null,{"$f":"IF(AND('Individual Cost Statement'!$D$25:$D$25=\"Not applicable (all costs in EURO)\",L14>0),1,IF(AND('Individual Cost Statement'!$D$25:$D$25=\"Date when costs incurred\",L14>0),0,'Individual Cost Statement'!$F$26))","v":0}," "," ",{"$f":"IF(N14>0,\" \",IF(AND('Individual Cost Statement'!$D$25:$D$25=\"Date when costs incurred\",L14>0),\"ENCODE Exchange rate !\",\" \"))","v":" "},null,null," "]
[8,null,null,null,null,null,null,null,null,null,null,null,null,{"$f":"IF(AND('Individual Cost Statement'!$D$25:$D$25=\"Not applicable (all costs in EURO)\",L15>0),1,IF(AND('Individual Cost Statement'!$D$25:$D$25=\"Date when costs incurred\",L15>0),0,'Individual Cost Statement'!$F$26))","v":0}," "," ",{"$f":"IF(N15>0,\" \",IF(AND('Individual Cost Statement'!$D$25:$D$25=\"Date when costs incurred\",L15>0),\"ENCODE Exchange rate !\",\" \"))","v":" "},null,null," "]
[9,null,null,null,null,null,null,null,null,null,null,null,null,{"$f":"IF(AND('Individual Cost Statement'!$D$25:$D$25=\"Not applicable (all costs in EURO)\",L16>0),1,IF(AND('Individual Cost Statement'!$D$25:$D$25=\"Date when costs incurred\",L16>0),0,'Individual Cost Statement'!$F$26))","v":0}," "," ",{"$f":"IF(N16>0,\" \",IF(AND('Individual Cost Statement'!$D$25:$D$25=\"Date when costs incurred\",L16>0),\"ENCODE Exchange rate !\",\" \"))","v":" "},null,null," "]
[10,null,null,null,null,null,null,null,null,null,null,null,null,{"$f":"IF(AND('Individual Cost Statement'!$D$25:$D$25=\"Not applicable (all costs in EURO)\",L17>0),1,IF(AND('Individual Cost Statement'!$D$25:$D$25=\"Date when costs incurred\",L17>0),0,'Individual Cost Statement'!$F$26))","v":0}," "," ",{"$f":"IF(N17>0,\" \",IF(AND('Individual Cost Statement'!$D$25:$D$25=\"Date when costs incurred\",L17>0),\"ENCODE Exchange rate !\",\" \"))","v":" "},null,null," "]
[11,null,null,null,null,null,null,null,null,null,null,null,null,{"$f":"IF(AND('Individual Cost Statement'!$D$25:$D$25=\"Not applicable (all costs in EURO)\",L18>0),1,IF(AND('Individual Cost Statement'!$D$25:$D$25=\"Date when costs incurred\",L18>0),0,'Individual Cost Statement'!$F$26))","v":0}," "," ",{"$f":"IF(N18>0,\" \",IF(AND('Individual Cost Statement'!$D$25:$D$25=\"Date when costs incurred\",L18>0),\"ENCODE Exchange rate !\",\" \"))","v":" "},null,null," "]
[12,null,null,null,null,null,null,null,null,null,null,null,null,{"$f":"IF(AND('Individual Cost Statement'!$D$25:$D$25=\"Not applicable (all costs in EURO)\",L19>0),1,IF(AND('Individual Cost Statement'!$D$25:$D$25=\"Date when costs incurred\",L19>0),0,'Individual Cost Statement'!$F$26))","v":0}," "," ",{"$f":"IF(N19>0,\" \",IF(AND('Individual Cost Statement'!$D$25:$D$25=\"Date when costs incurred\",L19>0),\"ENCODE Exchange rate !\",\" \"))","v":" "},null,null," "]
[13,null,null,null,null,null,null,null,null,null,null,null,null,{"$f":"IF(AND('Individual Cost Statement'!$D$25:$D$25=\"Not applicable (all costs in EURO)\",L20>0),1,IF(AND('Individual Cost Statement'!$D$25:$D$25=\"Date when costs incurred\",L20>0),0,'Individual Cost Statement'!$F$26))","v":0}," "," ",{"$f":"IF(N20>0,\" \",IF(AND('Individual Cost Statement'!$D$25:$D$25=\"Date when costs incurred\",L20>0),\"ENCODE Exchange rate !\",\" \"))","v":" "},null,null," "]
[14,null,null,null,null,null,null,null,null,null,null,null,null,{"$f":"IF(AND('Individual Cost Statement'!$D$25:$D$25=\"Not applicable (all costs in EURO)\",L21>0),1,IF(AND('Individual Cost Statement'!$D$25:$D$25=\"Date when costs incurred\",L21>0),0,'Individual Cost Statement'!$F$26))","v":0}," "," ",{"$f":"IF(N21>0,\" \",IF(AND('Individual Cost Statement'!$D$25:$D$25=\"Date when costs incurred\",L21>0),\"ENCODE Exchange rate !\",\" \"))","v":" "},null,null," "]
[15,null,null,null,null,null,null,null,null,null,null,null,null,{"$f":"IF(AND('Individual Cost Statement'!$D$25:$D$25=\"Not applicable (all costs in EURO)\",L22>0),1,IF(AND('Individual Cost Statement'!$D$25:$D$25=\"Date when costs incurred\",L22>0),0,'Individual Cost Statement'!$F$26))","v":0}," "," ",{"$f":"IF(N22>0,\" \",IF(AND('Individual Cost Statement'!$D$25:$D$25=\"Date when costs incurred\",L22>0),\"ENCODE Exchange rate !\",\" \"))","v":" "},null,null," "]
[16,null,null,null,null,null,null,null,null,null,null,null,null,{"$f":"IF(AND('Individual Cost Statement'!$D$25:$D$25=\"Not applicable (all costs in EURO)\",L23>0),1,IF(AND('Individual Cost Statement'!$D$25:$D$25=\"Date when costs incurred\",L23>0),0,'Individual Cost Statement'!$F$26))","v":0}," "," ",{"$f":"IF(N23>0,\" \",IF(AND('Individual Cost Statement'!$D$25:$D$25=\"Date when costs incurred\",L23>0),\"ENCODE Exchange rate !\",\" \"))","v":" "},null,null," "]
[17,null,null,null,null,null,null,null,null,null,null,null,null,{"$f":"IF(AND('Individual Cost Statement'!$D$25:$D$25=\"Not applicable (all costs in EURO)\",L24>0),1,IF(AND('Individual Cost Statement'!$D$25:$D$25=\"Date when costs incurred\",L24>0),0,'Individual Cost Statement'!$F$26))","v":0}," "," ",{"$f":"IF(N24>0,\" \",IF(AND('Individual Cost Statement'!$D$25:$D$25=\"Date when costs incurred\",L24>0),\"ENCODE Exchange rate !\",\" \"))","v":" "},null,null," "]
[18,null,null,null,null,null,null,null,null,null,null,null,null,{"$f":"IF(AND('Individual Cost Statement'!$D$25:$D$25=\"Not applicable (all costs in EURO)\",L25>0),1,IF(AND('Individual Cost Statement'!$D$25:$D$25=\"Date when costs incurred\",L25>0),0,'Individual Cost Statement'!$F$26))","v":0}," "," ",{"$f":"IF(N25>0,\" \",IF(AND('Individual Cost Statement'!$D$25:$D$25=\"Date when costs incurred\",L25>0),\"ENCODE Exchange rate !\",\" \"))","v":" "},null,null," "]
[19,null,null,null,null,null,null,null,null,null,null,null,null,{"$f":"IF(AND('Individual Cost Statement'!$D$25:$D$25=\"Not applicable (all costs in EURO)\",L26>0),1,IF(AND('Individual Cost Statement'!$D$25:$D$25=\"Date when costs incurred\",L26>0),0,'Individual Cost Statement'!$F$26))","v":0}," "," ",{"$f":"IF(N26>0,\" \",IF(AND('Individual Cost Statement'!$D$25:$D$25=\"Date when costs incurred\",L26>0),\"ENCODE Exchange rate !\",\" \"))","v":" "},null,null," "]
[20,null,null,null,null,null,null,null,null,null,null,null,null,{"$f":"IF(AND('Individual Cost Statement'!$D$25:$D$25=\"Not applicable (all costs in EURO)\",L27>0),1,IF(AND('Individual Cost Statement'!$D$25:$D$25=\"Date when costs incurred\",L27>0),0,'Individual Cost Statement'!$F$26))","v":0}," "," ",{"$f":"IF(N27>0,\" \",IF(AND('Individual Cost Statement'!$D$25:$D$25=\"Date when costs incurred\",L27>0),\"ENCODE Exchange rate !\",\" \"))","v":" "},null,null," "]
[21,null,null,null,null,null,null,null,null,null,null,null,null,{"$f":"IF(AND('Individual Cost Statement'!$D$25:$D$25=\"Not applicable (all costs in EURO)\",L28>0),1,IF(AND('Individual Cost Statement'!$D$25:$D$25=\"Date when costs incurred\",L28>0),0,'Individual Cost Statement'!$F$26))","v":0}," "," ",{"$f":"IF(N28>0,\" \",IF(AND('Individual Cost Statement'!$D$25:$D$25=\"Date when costs incurred\",L28>0),\"ENCODE Exchange rate !\",\" \"))","v":" "},null,null," "]
[22,null,null,null,null,null,null,null,null,null,null,null,null,{"$f":"IF(AND('Individual Cost Statement'!$D$25:$D$25=\"Not applicable (all costs in EURO)\",L29>0),1,IF(AND('Individual Cost Statement'!$D$25:$D$25=\"Date when costs incurred\",L29>0),0,'Individual Cost Statement'!$F$26))","v":0}," "," ",{"$f":"IF(N29>0,\" \",IF(AND('Individual Cost Statement'!$D$25:$D$25=\"Date when costs incurred\",L29>0),\"ENCODE Exchange rate !\",\" \"))","v":" "},null,null," "]
[23,null,null,null,null,null,null,null,null,null,null,null,null,{"$f":"IF(AND('Individual Cost Statement'!$D$25:$D$25=\"Not applicable (all costs in EURO)\",L30>0),1,IF(AND('Individual Cost Statement'!$D$25:$D$25=\"Date when costs incurred\",L30>0),0,'Individual Cost Statement'!$F$26))","v":0}," "," ",{"$f":"IF(N30>0,\" \",IF(AND('Individual Cost Statement'!$D$25:$D$25=\"Date when costs incurred\",L30>0),\"ENCODE Exchange rate !\",\" \"))","v":" "},null,null," "]
[24,null,null,null,null,null,null,null,null,null,null,null,null,{"$f":"IF(AND('Individual Cost Statement'!$D$25:$D$25=\"Not applicable (all costs in EURO)\",L31>0),1,IF(AND('Individual Cost Statement'!$D$25:$D$25=\"Date when costs incurred\",L31>0),0,'Individual Cost Statement'!$F$26))","v":0}," "," ",{"$f":"IF(N31>0,\" \",IF(AND('Individual Cost Statement'!$D$25:$D$25=\"Date when costs incurred\",L31>0),\"ENCODE Exchange rate !\",\" \"))","v":" "},null,null," "]
[25,null,null,null,null,null,null,null,null,null,null,null,null,{"$f":"IF(AND('Individual Cost Statement'!$D$25:$D$25=\"Not applicable (all costs in EURO)\",L32>0),1,IF(AND('Individual Cost Statement'!$D$25:$D$25=\"Date when costs incurred\",L32>0),0,'Individual Cost Statement'!$F$26))","v":0}," "," ",{"$f":"IF(N32>0,\" \",IF(AND('Individual Cost Statement'!$D$25:$D$25=\"Date when costs incurred\",L32>0),\"ENCODE Exchange rate !\",\" \"))","v":" "},null,null," "]
[26,null,null,null,null,null,null,null,null,null,null,null,null,{"$f":"IF(AND('Individual Cost Statement'!$D$25:$D$25=\"Not applicable (all costs in EURO)\",L33>0),1,IF(AND('Individual Cost Statement'!$D$25:$D$25=\"Date when costs incurred\",L33>0),0,'Individual Cost Statement'!$F$26))","v":0}," "," ",{"$f":"IF(N33>0,\" \",IF(AND('Individual Cost Statement'!$D$25:$D$25=\"Date when costs incurred\",L33>0),\"ENCODE Exchange rate !\",\" \"))","v":" "},null,null," "]
[27,null,null,null,null,null,null,null,null,null,null,null,null,{"$f":"IF(AND('Individual Cost Statement'!$D$25:$D$25=\"Not applicable (all costs in EURO)\",L34>0),1,IF(AND('Individual Cost Statement'!$D$25:$D$25=\"Date when costs incurred\",L34>0),0,'Individual Cost Statement'!$F$26))","v":0}," "," ",{"$f":"IF(N34>0,\" \",IF(AND('Individual Cost Statement'!$D$25:$D$25=\"Date when costs incurred\",L34>0),\"ENCODE Exchange rate !\",\" \"))","v":" "},null,null," "]
[28,null,null,null,null,null,null,null,null,null,null,null,null,{"$f":"IF(AND('Individual Cost Statement'!$D$25:$D$25=\"Not applicable (all costs in EURO)\",L35>0),1,IF(AND('Individual Cost Statement'!$D$25:$D$25=\"Date when costs incurred\",L35>0),0,'Individual Cost Statement'!$F$26))","v":0}," "," ",{"$f":"IF(N35>0,\" \",IF(AND('Individual Cost Statement'!$D$25:$D$25=\"Date when costs incurred\",L35>0),\"ENCODE Exchange rate !\",\" \"))","v":" "},null,null," "]
[29,null,null,null,null,null,null,null,null,null,null,null,null,{"$f":"IF(AND('Individual Cost Statement'!$D$25:$D$25=\"Not applicable (all costs in EURO)\",L36>0),1,IF(AND('Individual Cost Statement'!$D$25:$D$25=\"Date when costs incurred\",L36>0),0,'Individual Cost Statement'!$F$26))","v":0}," "," ",{"$f":"IF(N36>0,\" \",IF(AND('Individual Cost Statement'!$D$25:$D$25=\"Date when costs incurred\",L36>0),\"ENCODE Exchange rate !\",\" \"))","v":" "},null,null," "]
[30,null,null,null,null,null,null,null,null,null,null,null,null,{"$f":"IF(AND('Individual Cost Statement'!$D$25:$D$25=\"Not applicable (all costs in EURO)\",L37>0),1,IF(AND('Individual Cost Statement'!$D$25:$D$25=\"Date when costs incurred\",L37>0),0,'Individual Cost Statement'!$F$26))","v":0}," "," ",{"$f":"IF(N37>0,\" \",IF(AND('Individual Cost Statement'!$D$25:$D$25=\"Date when costs incurred\",L37>0),\"ENCODE Exchange rate !\",\" \"))","v":" "},null,null," "]
[31,null,null,null,null,null,null,null,null,null,null,null,null,{"$f":"IF(AND('Individual Cost Statement'!$D$25:$D$25=\"Not applicable (all costs in EURO)\",L38>0),1,IF(AND('Individual Cost Statement'!$D$25:$D$25=\"Date when costs incurred\",L38>0),0,'Individual Cost Statement'!$F$26))","v":0}," "," ",{"$f":"IF(N38>0,\" \",IF(AND('Individual Cost Statement'!$D$25:$D$25=\"Date when costs incurred\",L38>0),\"ENCODE Exchange rate !\",\" \"))","v":" "},null,null," "]
[32,null,null,null,null,null,null,null,null,null,null,null,null,{"$f":"IF(AND('Individual Cost Statement'!$D$25:$D$25=\"Not applicable (all costs in EURO)\",L39>0),1,IF(AND('Individual Cost Statement'!$D$25:$D$25=\"Date when costs incurred\",L39>0),0,'Individual Cost Statement'!$F$26))","v":0}," "," ",{"$f":"IF(N39>0,\" \",IF(AND('Individual Cost Statement'!$D$25:$D$25=\"Date when costs incurred\",L39>0),\"ENCODE Exchange rate !\",\" \"))","v":" "},null,null," "]
[33,null,null,null,null,null,null,null,null,null,null,null,null,{"$f":"IF(AND('Individual Cost Statement'!$D$25:$D$25=\"Not applicable (all costs in EURO)\",L40>0),1,IF(AND('Individual Cost Statement'!$D$25:$D$25=\"Date when costs incurred\",L40>0),0,'Individual Cost Statement'!$F$26))","v":0}," "," ",{"$f":"IF(N40>0,\" \",IF(AND('Individual Cost Statement'!$D$25:$D$25=\"Date when costs incurred\",L40>0),\"ENCODE Exchange rate !\",\" \"))","v":" "},null,null," "]
[34,null,null,null,null,null,null,null,null,null,null,null,null,{"$f":"IF(AND('Individual Cost Statement'!$D$25:$D$25=\"Not applicable (all costs in EURO)\",L41>0),1,IF(AND('Individual Cost Statement'!$D$25:$D$25=\"Date when costs incurred\",L41>0),0,'Individual Cost Statement'!$F$26))","v":0}," "," ",{"$f":"IF(N41>0,\" \",IF(AND('Individual Cost Statement'!$D$25:$D$25=\"Date when costs incurred\",L41>0),\"ENCODE Exchange rate !\",\" \"))","v":" "},null,null," "]
[35,null,null,null,null,null,null,null,null,null,null,null,null,{"$f":"IF(AND('Individual Cost Statement'!$D$25:$D$25=\"Not applicable (all costs in EURO)\",L42>0),1,IF(AND('Individual Cost Statement'!$D$25:$D$25=\"Date when costs incurred\",L42>0),0,'Individual Cost Statement'!$F$26))","v":0}," "," ",{"$f":"IF(N42>0,\" \",IF(AND('Individual Cost Statement'!$D$25:$D$25=\"Date when costs incurred\",L42>0),\"ENCODE Exchange rate !\",\" \"))","v":" "},null,null," "]
[36,null,null,null,null,null,null,null,null,null,null,null,null,{"$f":"IF(AND('Individual Cost Statement'!$D$25:$D$25=\"Not applicable (all costs in EURO)\",L43>0),1,IF(AND('Individual Cost Statement'!$D$25:$D$25=\"Date when costs incurred\",L43>0),0,'Individual Cost Statement'!$F$26))","v":0}," "," ",{"$f":"IF(N43>0,\" \",IF(AND('Individual Cost Statement'!$D$25:$D$25=\"Date when costs incurred\",L43>0),\"ENCODE Exchange rate !\",\" \"))","v":" "},null,null," "]
[37,null,null,null,null,null,null,null,null,null,null,null,null,{"$f":"IF(AND('Individual Cost Statement'!$D$25:$D$25=\"Not applicable (all costs in EURO)\",L44>0),1,IF(AND('Individual Cost Statement'!$D$25:$D$25=\"Date when costs incurred\",L44>0),0,'Individual Cost Statement'!$F$26))","v":0}," "," ",{"$f":"IF(N44>0,\" \",IF(AND('Individual Cost Statement'!$D$25:$D$25=\"Date when costs incurred\",L44>0),\"ENCODE Exchange rate !\",\" \"))","v":" "},null,null," "]
[38,null,null,null,null,null,null,null,null,null,null,null,null,{"$f":"IF(AND('Individual Cost Statement'!$D$25:$D$25=\"Not applicable (all costs in EURO)\",L45>0),1,IF(AND('Individual Cost Statement'!$D$25:$D$25=\"Date when costs incurred\",L45>0),0,'Individual Cost Statement'!$F$26))","v":0}," "," ",{"$f":"IF(N45>0,\" \",IF(AND('Individual Cost Statement'!$D$25:$D$25=\"Date when costs incurred\",L45>0),\"ENCODE Exchange rate !\",\" \"))","v":" "},null,null," "]
[39,null,null,null,null,null,null,null,null,null,null,null,null,{"$f":"IF(AND('Individual Cost Statement'!$D$25:$D$25=\"Not applicable (all costs in EURO)\",L46>0),1,IF(AND('Individual Cost Statement'!$D$25:$D$25=\"Date when costs incurred\",L46>0),0,'Individual Cost Statement'!$F$26))","v":0}," "," ",{"$f":"IF(N46>0,\" \",IF(AND('Individual Cost Statement'!$D$25:$D$25=\"Date when costs incurred\",L46>0),\"ENCODE Exchange rate !\",\" \"))","v":" "},null,null," "]
[40,null,null,null,null,null,null,null,null,null,null,null,null,{"$f":"IF(AND('Individual Cost Statement'!$D$25:$D$25=\"Not applicable (all costs in EURO)\",L47>0),1,IF(AND('Individual Cost Statement'!$D$25:$D$25=\"Date when costs incurred\",L47>0),0,'Individual Cost Statement'!$F$26))","v":0}," "," ",{"$f":"IF(N47>0,\" \",IF(AND('Individual Cost Statement'!$D$25:$D$25=\"Date when costs incurred\",L47>0),\"ENCODE Exchange rate !\",\" \"))","v":" "},null,null," "]
[41,null,null,null,null,null,null,null,null,null,null,null,null,{"$f":"IF(AND('Individual Cost Statement'!$D$25:$D$25=\"Not applicable (all costs in EURO)\",L48>0),1,IF(AND('Individual Cost Statement'!$D$25:$D$25=\"Date when costs incurred\",L48>0),0,'Individual Cost Statement'!$F$26))","v":0}," "," ",{"$f":"IF(N48>0,\" \",IF(AND('Individual Cost Statement'!$D$25:$D$25=\"Date when costs incurred\",L48>0),\"ENCODE Exchange rate !\",\" \"))","v":" "},null,null," "]
[42,null,null,null,null,null,null,null,null,null,null,null,null,{"$f":"IF(AND('Individual Cost Statement'!$D$25:$D$25=\"Not applicable (all costs in EURO)\",L49>0),1,IF(AND('Individual Cost Statement'!$D$25:$D$25=\"Date when costs incurred\",L49>0),0,'Individual Cost Statement'!$F$26))","v":0}," "," ",{"$f":"IF(N49>0,\" \",IF(AND('Individual Cost Statement'!$D$25:$D$25=\"Date when costs incurred\",L49>0),\"ENCODE Exchange rate !\",\" \"))","v":" "},null,null," "]
[43,null,null,null,null,null,null,null,null,null,null,null,null,{"$f":"IF(AND('Individual Cost Statement'!$D$25:$D$25=\"Not applicable (all costs in EURO)\",L50>0),1,IF(AND('Individual Cost Statement'!$D$25:$D$25=\"Date when costs incurred\",L50>0),0,'Individual Cost Statement'!$F$26))","v":0}," "," ",{"$f":"IF(N50>0,\" \",IF(AND('Individual Cost Statement'!$D$25:$D$25=\"Date when costs incurred\",L50>0),\"ENCODE Exchange rate !\",\" \"))","v":" "},null,null," "]
[44,null,null,null,null,null,null,null,null,null,null,null,null,{"$f":"IF(AND('Individual Cost Statement'!$D$25:$D$25=\"Not applicable (all costs in EURO)\",L51>0),1,IF(AND('Individual Cost Statement'!$D$25:$D$25=\"Date when costs incurred\",L51>0),0,'Individual Cost Statement'!$F$26))","v":0}," "," ",{"$f":"IF(N51>0,\" \",IF(AND('Individual Cost Statement'!$D$25:$D$25=\"Date when costs incurred\",L51>0),\"ENCODE Exchange rate !\",\" \"))","v":" "},null,null," "]
[45,null,null,null,null,null,null,null,null,null,null,null,null,{"$f":"IF(AND('Individual Cost Statement'!$D$25:$D$25=\"Not applicable (all costs in EURO)\",L52>0),1,IF(AND('Individual Cost Statement'!$D$25:$D$25=\"Date when costs incurred\",L52>0),0,'Individual Cost Statement'!$F$26))","v":0}," "," ",{"$f":"IF(N52>0,\" \",IF(AND('Individual Cost Statement'!$D$25:$D$25=\"Date when costs incurred\",L52>0),\"ENCODE Exchange rate !\",\" \"))","v":" "},null,null," "]
[46,null,null,null,null,null,null,null,null,null,null,null,null,{"$f":"IF(AND('Individual Cost Statement'!$D$25:$D$25=\"Not applicable (all costs in EURO)\",L53>0),1,IF(AND('Individual Cost Statement'!$D$25:$D$25=\"Date when costs incurred\",L53>0),0,'Individual Cost Statement'!$F$26))","v":0}," "," ",{"$f":"IF(N53>0,\" \",IF(AND('Individual Cost Statement'!$D$25:$D$25=\"Date when costs incurred\",L53>0),\"ENCODE Exchange rate !\",\" \"))","v":" "},null,null," "]
[47,null,null,null,null,null,null,null,null,null,null,null,null,{"$f":"IF(AND('Individual Cost Statement'!$D$25:$D$25=\"Not applicable (all costs in EURO)\",L54>0),1,IF(AND('Individual Cost Statement'!$D$25:$D$25=\"Date when costs incurred\",L54>0),0,'Individual Cost Statement'!$F$26))","v":0}," "," ",{"$f":"IF(N54>0,\" \",IF(AND('Individual Cost Statement'!$D$25:$D$25=\"Date when costs incurred\",L54>0),\"ENCODE Exchange rate !\",\" \"))","v":" "},null,null," "]
[48,null,null,null,null,null,null,null,null,null,null,null,null,{"$f":"IF(AND('Individual Cost Statement'!$D$25:$D$25=\"Not applicable (all costs in EURO)\",L55>0),1,IF(AND('Individual Cost Statement'!$D$25:$D$25=\"Date when costs incurred\",L55>0),0,'Individual Cost Statement'!$F$26))","v":0}," "," ",{"$f":"IF(N55>0,\" \",IF(AND('Individual Cost Statement'!$D$25:$D$25=\"Date when costs incurred\",L55>0),\"ENCODE Exchange rate !\",\" \"))","v":" "},null,null," "]
[49,null,null,null,null,null,null,null,null,null,null,null,null,{"$f":"IF(AND('Individual Cost Statement'!$D$25:$D$25=\"Not applicable (all costs in EURO)\",L56>0),1,IF(AND('Individual Cost Statement'!$D$25:$D$25=\"Date when costs incurred\",L56>0),0,'Individual Cost Statement'!$F$26))","v":0}," "," ",{"$f":"IF(N56>0,\" \",IF(AND('Individual Cost Statement'!$D$25:$D$25=\"Date when costs incurred\",L56>0),\"ENCODE Exchange rate !\",\" \"))","v":" "},null,null," "]
[50,null,null,null,null,null,null,null,null,null,null,null,null,{"$f":"IF(AND('Individual Cost Statement'!$D$25:$D$25=\"Not applicable (all costs in EURO)\",L57>0),1,IF(AND('Individual Cost Statement'!$D$25:$D$25=\"Date when costs incurred\",L57>0),0,'Individual Cost Statement'!$F$26))","v":0}," "," ",{"$f":"IF(N57>0,\" \",IF(AND('Individual Cost Statement'!$D$25:$D$25=\"Date when costs incurred\",L57>0),\"ENCODE Exchange rate !\",\" \"))","v":" "},null,null," "]
["Total",null,null,null,null,null,null,null,null,null,null,null,null,null,{"$f":"SUM(O8:INDIRECT(\"O\"&ROW()-1))","v":0},{"$f":"SUM(P8:INDIRECT(\"P\"&ROW()-1))","v":0}]
[]
[]
[]
[]
[]
["Explanation of the content of each Column"]
["PLEASE FILL-IN ONLY BLUE CELLS"]
["A","Sequential number of the entries. "]
["B1","Name of person who travelled, who are part of the personnel - For beneficiaries declaring costs of affiliates in their individual statement, put here also a line with the name of the affiliate and include under column E4 & E5 the total travel cost - with or without VAT - of the affiliate in EUR (according to its individual financial statement)"]
["B2","Date of travel"]
["B3","Purpose of the travel, for example participating in various meetings, work shops, field exercise etc, "]
["B4","Location From: origin of travel"]
["B5","Location To: destination of travel"]
["C1","Description of the cost items, i.e. travel costs, hotel costs or per diem. In case of a lot of low value transactions related to the same trip, please group them."]
["C2","Travel duration"]
["D1","Date of invoice "]
["D2","Invoice number or reference number of another accounting document, which could be travel ticket, hotel invoice, per diem calculation form etc."]
["D3","Date of payment of the invoice"]
["E1","Amount in national curency, without VAT"]
["E2","Amount in national currency, with non-recoverable VAT"]
["E3","If costs are reported in Euro, where beneficiary keeps its general accounts in Euro, no exchange rate to include"]
["E3","If the currency of the reported costs is not EURO where beneficiary keeps its general accounts in a currency other than Euro) and the exchange rate option chosen is \"1st day after the end of reporting period\", the monthly exchange rate encoded in the individual Costs statement sheet will be automatically inserted. "]
["E3","If the currency of the reported costs is not EURO, where beneficiary keeps its general accounts in a currency other than Euro and the exchange rate option chosen is the day when the costs incurred, please enter the monthly exchange rate published on the Commission website: http://ec.europa.eu/budget/contracts_grants/info_contracts/inforeuro/inforeuro_en.cfm."]
["E4","Invoiced amount in national currency without VAT (automatic calculation)"]
["E5","Invoiced amount in national currency with non-recoverable VAT (automatic calculation)"]

{"sheet":"External assistance","index":4,"n_rows":81,"n_cols":17,"rows_kept":81,"cut":false,"hidden":false,"merged":[[78,1,78,13],[79,1,79,13],[80,1,80,13],[73,1,73,13],[74,1,74,13],[75,1,75,13],[76,1,76,13],[77,1,77,13],[63,0,63,13],[64,0,64,13],[65,1,65,13],[66,1,66,13],[67,1,67,13],[68,1,68,13],[69,1,69,13],[70,1,70,13],[71,1,71,13],[72,1,72,13],[2,2,2,4],[0,2,0,4],[1,2,1,4],[57,0,57,10],[4,1,4,3],[4,4,4,7],[4,8,4,12],[1,6,1,7],[0,6,0,7],[0,10,0,12],[1,10,1,12],[2,10,2,12]]}
[null,"PROJECT Reference :",{"$f":"'Individual Cost Statement'!B3:B3","v":"LIFEXX XXX/XX/XXXXXX - ACRONYM"},null,null,null,"PERIOD (FROM) :",null,{"$f":"'Individual Cost Statement'!E3:E3","v":"00:00:00"},null,"EXTERNAL ASSISTANCE"]
[null,"COUNTRY :",{"$f":"'Individual Cost Statement'!B4:B4","v":"Austria"},null,null,null,"PERIOD (TO) :",null,{"$f":"'Individual Cost Statement'!E4:E4","v":"00:00:00"},null,"Amount WITH NON-recoverable VAT"]
[null,"Beneficiary: ",{"$f":"'Individual Cost Statement'!B6:B6","v":0},null,null,null,null,null,null,null,{"$f":"M58","v":0}]
[]
[null,"Details on cost item",null,null,"Info on cost item",null,null,null,"Calculation of the EXTERNAL ASSISTANCE costs",null,null,null,null,"Selection procedure"]
["A","B1","B2","B3","C1","C2","C3","C4","D1","D2","D3","D4","D5","F"]
["Seq n°","Date of invoice","Invoice number","Date of payment","Name of sub-contractor","Description of sub-contracted item/service","Period when the service was provided\nFROM","Period when the service was provided\nTO","Amount in national currency without VAT","Amount in national currency with non-recoverable VAT","Exchange rate","Amount in EURO\nwithout VAT","Amount in EURO \nwith non-recoverable VAT ","Applied selection procedure",null,null,"VAT\nCalculation"]
[{"$f":"ROW()-7","v":1},null,null,null,null,null,null,null,null,null,{"$f":"IF(AND('Individual Cost Statement'!$D$25:$D$25=\"Not applicable (all costs in EURO)\",I8>0),1,IF(AND('Individual Cost Statement'!$D$25:$D$25=\"Date when costs incurred\",I8>0),0,'Individual Cost Statement'!$F$26))","v":0},{"$f":"IF(AND(I8>0,K8>0),I8/K8,\" \")","v":" "},{"$f":"IF(AND(J8>0,K8>0),J8/K8,\" \")","v":" "},null,{"$f":"IF(K8>0,\" \",IF(AND('Individual Cost Statement'!$D$25:$D$25=\"Date when costs incurred\",I8>0),\"ENCODE Exchange rate !\",\" \"))","v":" "},null,{"$f":"IF(L8=\" \",\" \",M8-L8)","v":" "}]
[2,null,null,null,null,null,null,null,null,null,{"$f":"IF(AND('Individual Cost Statement'!$D$25:$D$25=\"Not applicable (all costs in EURO)\",I9>0),1,IF(AND('Individual Cost Statement'!$D$25:$D$25=\"Date when costs incurred\",I9>0),0,'Individual Cost Statement'!$F$26))","v":0},{"$f":"IF(AND(I9>0,K9>0),I9/K9,\" \")","v":" "},{"$f":"IF(AND(J9>0,K9>0),J9/K9,\" \")","v":" "},null,{"$f":"IF(K9>0,\" \",IF(AND('Individual Cost Statement'!$D$25:$D$25=\"Date when costs incurred\",I9>0),\"ENCODE Exchange rate !\",\" \"))","v":" "},null,{"$f":"IF(L9=\" \",\" \",M9-L9)","v":" "}]
[3,null,null,null,null,null,null,null,null,null,{"$f":"IF(AND('Individual Cost Statement'!$D$25:$D$25=\"Not applicable (all costs in EURO)\",I10>0),1,IF(AND('Individual Cost Statement'!$D$25:$D$25=\"Date when costs incurred\",I10>0),0,'Individual Cost Statement'!$F$26))","v":0}," "," ",null,{"$f":"IF(K10>0,\" \",IF(AND('Individual Cost Statement'!$D$25:$D$25=\"Date when costs incurred\",I10>0),\"ENCODE Exchange rate !\",\" \"))","v":" "},null," "]
[4,null,null,null,null,null,null,null,null,null,{"$f":"IF(AND('Individual Cost Statement'!$D$25:$D$25=\"Not applicable (all costs in EURO)\",I11>0),1,IF(AND('Individual Cost Statement'!$D$25:$D$25=\"Date when costs incurred\",I11>0),0,'Individual Cost Statement'!$F$26))","v":0}," "," ",null,{"$f":"IF(K11>0,\" \",IF(AND('Individual Cost Statement'!$D$25:$D$25=\"Date when costs incurred\",I11>0),\"ENCODE Exchange rate !\",\" \"))","v":" "},null," "]
[5,null,null,null,null,null,null,null,null,null,{"$f":"IF(AND('Individual Cost Statement'!$D$25:$D$25=\"Not applicable (all costs in EURO)\",I12>0),1,IF(AND('Individual Cost Statement'!$D$25:$D$25=\"Date when costs incurred\",I12>0),0,'Individual Cost Statement'!$F$26))","v":0}," "," ",null,{"$f":"IF(K12>0,\" \",IF(AND('Individual Cost Statement'!$D$25:$D$25=\"Date when costs incurred\",I12>0),\"ENCODE Exchange rate !\",\" \"))","v":" "},null," "]
[6,null,null,null,null,null,null,null,null,null,{"$f":"IF(AND('Individual Cost Statement'!$D$25:$D$25=\"Not applicable (all costs in EURO)\",I13>0),1,IF(AND('Individual Cost Statement'!$D$25:$D$25=\"Date when costs incurred\",I13>0),0,'Individual Cost Statement'!$F$26))","v":0}," "," ",null,{"$f":"IF(K13>0,\" \",IF(AND('Individual Cost Statement'!$D$25:$D$25=\"Date when costs incurred\",I13>0),\"ENCODE Exchange rate !\",\" \"))","v":" "},null," "]
[7,null,null,null,null,null,null,null,null,null,{"$f":"IF(AND('Individual Cost Statement'!$D$25:$D$25=\"Not applicable (all costs in EURO)\",I14>0),1,IF(AND('Individual Cost Statement'!$D$25:$D$25=\"Date when costs incurred\",I14>0),0,'Individual Cost Statement'!$F$26))","v":0}," "," ",null,{"$f":"IF(K14>0,\" \",IF(AND('Individual Cost Statement'!$D$25:$D$25=\"Date when costs incurred\",I14>0),\"ENCODE Exchange rate !\",\" \"))","v":" "},null," "]
[8,null,null,null,null,null,null,null,null,null,{"$f":"IF(AND('Individual Cost Statement'!$D$25:$D$25=\"Not applicable (all costs in EURO)\",I15>0),1,IF(AND('Individual Cost Statement'!$D$25:$D$25=\"Date when costs incurred\",I15>0),0,'Individual Cost Statement'!$F$26))","v":0}," "," ",null,{"$f":"IF(K15>0,\" \",IF(AND('Individual Cost Statement'!$D$25:$D$25=\"Date when costs incurred\",I15>0),\"ENCODE Exchange rate !\",\" \"))","v":" "},null," "]
[9,null,null,null,null,null,null,null,null,null,{"$f":"IF(AND('Individual Cost Statement'!$D$25:$D$25=\"Not applicable (all costs in EURO)\",I16>0),1,IF(AND('Individual Cost Statement'!$D$25:$D$25=\"Date when costs incurred\",I16>0),0,'Individual Cost Statement'!$F$26))","v":0}," "," ",null,{"$f":"IF(K16>0,\" \",IF(AND('Individual Cost Statement'!$D$25:$D$25=\"Date when costs incurred\",I16>0),\"ENCODE Exchange rate !\",\" \"))","v":" "},null," "]
[10,null,null,null,null,null,null,null,null,null,{"$f":"IF(AND('Individual Cost Statement'!$D$25:$D$25=\"Not applicable (all costs in EURO)\",I17>0),1,IF(AND('Individual Cost Statement'!$D$25:$D$25=\"Date when costs incurred\",I17>0),0,'Individual Cost Statement'!$F$26))","v":0}," "," ",null,{"$f":"IF(K17>0,\" \",IF(AND('Individual Cost Statement'!$D$25:$D$25=\"Date when costs incurred\",I17>0),\"ENCODE Exchange rate !\",\" \"))","v":" "},null," "]
[11,null,null,null,null,null,null,null,null,null,{"$f":"IF(AND('Individual Cost Statement'!$D$25:$D$25=\"Not applicable (all costs in EURO)\",I18>0),1,IF(AND('Individual Cost Statement'!$D$25:$D$25=\"Date when costs incurred\",I18>0),0,'Individual Cost Statement'!$F$26))","v":0}," "," ",null,{"$f":"IF(K18>0,\" \",IF(AND('Individual Cost Statement'!$D$25:$D$25=\"Date when costs incurred\",I18>0),\"ENCODE Exchange rate !\",\" \"))","v":" "},null," "]
[12,null,null,null,null,null,null,null,null,null,{"$f":"IF(AND('Individual Cost Statement'!$D$25:$D$25=\"Not applicable (all costs in EURO)\",I19>0),1,IF(AND('Individual Cost Statement'!$D$25:$D$25=\"Date when costs incurred\",I19>0),0,'Individual Cost Statement'!$F$26))","v":0}," "," ",null,{"$f":"IF(K19>0,\" \",IF(AND('Individual Cost Statement'!$D$25:$D$25=\"Date when costs incurred\",I19>0),\"ENCODE Exchange rate !\",\" \"))","v":" "},null," "]
[13,null,null,null,null,null,null,null,null,null,{"$f":"IF(AND('Individual Cost Statement'!$D$25:$D$25=\"Not applicable (all costs in EURO)\",I20>0),1,IF(AND('Individual Cost Statement'!$D$25:$D$25=\"Date when costs incurred\",I20>0),0,'Individual Cost Statement'!$F$26))","v":0}," "," ",null,{"$f":"IF(K20>0,\" \",IF(AND('Individual Cost Statement'!$D$25:$D$25=\"Date when costs incurred\",I20>0),\"ENCODE Exchange rate !\",\" \"))","v":" "},null," "]
[14,null,null,null,null,null,null,null,null,null,{"$f":"IF(AND('Individual Cost Statement'!$D$25:$D$25=\"Not applicable (all costs in EURO)\",I21>0),1,IF(AND('Individual Cost Statement'!$D$25:$D$25=\"Date when costs incurred\",I21>0),0,'Individual Cost Statement'!$F$26))","v":0}," "," ",null,{"$f":"IF(K21>0,\" \",IF(AND('Individual Cost Statement'!$D$25:$D$25=\"Date when costs incurred\",I21>0),\"ENCODE Exchange rate !\",\" \"))","v":" "},null," "]
[15,null,null,null,null,null,null,null,null,null,{"$f":"IF(AND('Individual Cost Statement'!$D$25:$D$25=\"Not applicable (all costs in EURO)\",I22>0),1,IF(AND('Individual Cost Statement'!$D$25:$D$25=\"Date when costs incurred\",I22>0),0,'Individual Cost Statement'!$F$26))","v":0}," "," ",null,{"$f":"IF(K22>0,\" \",IF(AND('Individual Cost Statement'!$D$25:$D$25=\"Date when costs incurred\",I22>0),\"ENCODE Exchange rate !\",\" \"))","v":" "},null," "]
[16,null,null,null,null,null,null,null,null,null,{"$f":"IF(AND('Individual Cost Statement'!$D$25:$D$25=\"Not applicable (all costs in EURO)\",I23>0),1,IF(AND('Individual Cost Statement'!$D$25:$D$25=\"Date when costs incurred\",I23>0),0,'Individual Cost Statement'!$F$26))","v":0}," "," ",null,{"$f":"IF(K23>0,\" \",IF(AND('Individual Cost Statement'!$D$25:$D$25=\"Date when costs incurred\",I23>0),\"ENCODE Exchange rate !\",\" \"))","v":" "},null," "]
[17,null,null,null,null,null,null,null,null,null,{"$f":"IF(AND('Individual Cost Statement'!$D$25:$D$25=\"Not applicable (all costs in EURO)\",I24>0),1,IF(AND('Individual Cost Statement'!$D$25:$D$25=\"Date when costs incurred\",I24>0),0,'Individual Cost Statement'!$F$26))","v":0}," "," ",null,{"$f":"IF(K24>0,\" \",IF(AND('Individual Cost Statement'!$D$25:$D$25=\"Date when costs incurred\",I24>0),\"ENCODE Exchange rate !\",\" \"))","v":" "},null," "]
[18,null,null,null,null,null,null,null,null,null,{"$f":"IF(AND('Individual Cost Statement'!$D$25:$D$25=\"Not applicable (all costs in EURO)\",I25>0),1,IF(AND('Individual Cost Statement'!$D$25:$D$25=\"Date when costs incurred\",I25>0),0,'Individual Cost Statement'!$F$26))","v":0}," "," ",null,{"$f":"IF(K25>0,\" \",IF(AND('Individual Cost Statement'!$D$25:$D$25=\"Date when costs incurred\",I25>0),\"ENCODE Exchange rate !\",\" \"))","v":" "},null," "]
[19,null,null,null,null,null,null,null,null,null,{"$f":"IF(AND('Individual Cost Statement'!$D$25:$D$25=\"Not applicable (all costs in EURO)\",I26>0),1,IF(AND('Individual Cost Statement'!$D$25:$D$25=\"Date when costs incurred\",I26>0),0,'Individual Cost Statement'!$F$26))","v":0}," "," ",null,{"$f":"IF(K26>0,\" \",IF(AND('Individual Cost Statement'!$D$25:$D$25=\"Date when costs incurred\",I26>0),\"ENCODE Exchange rate !\",\" \"))","v":" "},null," "]
[20,null,null,null,null,null,null,null,null,null,{"$f":"IF(AND('Individual Cost Statement'!$D$25:$D$25=\"Not applicable (all costs in EURO)\",I27>0),1,IF(AND('Individual Cost Statement'!$D$25:$D$25=\"Date when costs incurred\",I27>0),0,'Individual Cost Statement'!$F$26))","v":0}," "," ",null,{"$f":"IF(K27>0,\" \",IF(AND('Individual Cost Statement'!$D$25:$D$25=\"Date when costs incurred\",I27>0),\"ENCODE Exchange rate !\",\" \"))","v":" "},null," "]
[21,null,null,null,null,null,null,null,null,null,{"$f":"IF(AND('Individual Cost Statement'!$D$25:$D$25=\"Not applicable (all costs in EURO)\",I28>0),1,IF(AND('Individual Cost Statement'!$D$25:$D$25=\"Date when costs incurred\",I28>0),0,'Individual Cost Statement'!$F$26))","v":0}," "," ",null,{"$f":"IF(K28>0,\" \",IF(AND('Individual Cost Statement'!$D$25:$D$25=\"Date when costs incurred\",I28>0),\"ENCODE Exchange rate !\",\" \"))","v":" "},null," "]
[22,null,null,null,null,null,null,null,null,null,{"$f":"IF(AND('Individual Cost Statement'!$D$25:$D$25=\"Not applicable (all costs in EURO)\",I29>0),1,IF(AND('Individual Cost Statement'!$D$25:$D$25=\"Date when costs incurred\",I29>0),0,'Individual Cost Statement'!$F$26))","v":0}," "," ",null,{"$f":"IF(K29>0,\" \",IF(AND('Individual Cost Statement'!$D$25:$D$25=\"Date when costs incurred\",I29>0),\"ENCODE Exchange rate !\",\" \"))","v":" "},null," "]
[23,null,null,null,null,null,null,null,null,null,{"$f":"IF(AND('Individual Cost Statement'!$D$25:$D$25=\"Not applicable (all costs in EURO)\",I30>0),1,IF(AND('Individual Cost Statement'!$D$25:$D$25=\"Date when costs incurred\",I30>0),0,'Individual Cost Statement'!$F$26))","v":0}," "," ",null,{"$f":"IF(K30>0,\" \",IF(AND('Individual Cost Statement'!$D$25:$D$25=\"Date when costs incurred\",I30>0),\"ENCODE Exchange rate !\",\" \"))","v":" "},null," "]
[24,null,null,null,null,null,null,null,null,null,{"$f":"IF(AND('Individual Cost Statement'!$D$25:$D$25=\"Not applicable (all costs in EURO)\",I31>0),1,IF(AND('Individual Cost Statement'!$D$25:$D$25=\"Date when costs incurred\",I31>0),0,'Individual Cost Statement'!$F$26))","v":0}," "," ",null,{"$f":"IF(K31>0,\" \",IF(AND('Individual Cost Statement'!$D$25:$D$25=\"Date when costs incurred\",I31>0),\"ENCODE Exchange rate !\",\" \"))","v":" "},null," "]
[25,null,null,null,null,null,null,null,null,null,{"$f":"IF(AND('Individual Cost Statement'!$D$25:$D$25=\"Not applicable (all costs in EURO)\",I32>0),1,IF(AND('Individual Cost Statement'!$D$25:$D$25=\"Date when costs incurred\",I32>0),0,'Individual Cost Statement'!$F$26))","v":0}," "," ",null,{"$f":"IF(K32>0,\" \",IF(AND('Individual Cost Statement'!$D$25:$D$25=\"Date when costs incurred\",I32>0),\"ENCODE Exchange rate !\",\" \"))","v":" "},null," "]
[26,null,null,null,null,null,null,null,null,null,{"$f":"IF(AND('Individual Cost Statement'!$D$25:$D$25=\"Not applicable (all costs in EURO)\",I33>0),1,IF(AND('Individual Cost Statement'!$D$25:$D$25=\"Date when costs incurred\",I33>0),0,'Individual Cost Statement'!$F$26))","v":0}," "," ",null,{"$f":"IF(K33>0,\" \",IF(AND('Individual Cost Statement'!$D$25:$D$25=\"Date when costs incurred\",I33>0),\"ENCODE Exchange rate !\",\" \"))","v":" "},null," "]
[27,null,null,null,null,null,null,null,null,null,{"$f":"IF(AND('Individual Cost Statement'!$D$25:$D$25=\"Not applicable (all costs in EURO)\",I34>0),1,IF(AND('Individual Cost Statement'!$D$25:$D$25=\"Date when costs incurred\",I34>0),0,'Individual Cost Statement'!$F$26))","v":0}," "," ",null,{"$f":"IF(K34>0,\" \",IF(AND('Individual Cost Statement'!$D$25:$D$25=\"Date when costs incurred\",I34>0),\"ENCODE Exchange rate !\",\" \"))","v":" "},null," "]
[28,null,null,null,null,null,null,null,null,null,{"$f":"IF(AND('Individual Cost Statement'!$D$25:$D$25=\"Not applicable (all costs in EURO)\",I35>0),1,IF(AND('Individual Cost Statement'!$D$25:$D$25=\"Date when costs incurred\",I35>0),0,'Individual Cost Statement'!$F$26))","v":0}," "," ",null,{"$f":"IF(K35>0,\" \",IF(AND('Individual Cost Statement'!$D$25:$D$25=\"Date when costs incurred\",I35>0),\"ENCODE Exchange rate !\",\" \"))","v":" "},null," "]
[29,null,null,null,null,null,null,null,null,null,{"$f":"IF(AND('Individual Cost Statement'!$D$25:$D$25=\"Not applicable (all costs in EURO)\",I36>0),1,IF(AND('Individual Cost Statement'!$D$25:$D$25=\"Date when costs incurred\",I36>0),0,'Individual Cost Statement'!$F$26))","v":0}," "," ",null,{"$f":"IF(K36>0,\" \",IF(AND('Individual Cost Statement'!$D$25:$D$25=\"Date when costs incurred\",I36>0),\"ENCODE Exchange rate !\",\" \"))","v":" "},null," "]
[30,null,null,null,null,null,null,null,null,null,{"$f":"IF(AND('Individual Cost Statement'!$D$25:$D$25=\"Not applicable (all costs in EURO)\",I37>0),1,IF(AND('Individual Cost Statement'!$D$25:$D$25=\"Date when costs incurred\",I37>0),0,'Individual Cost Statement'!$F$26))","v":0}," "," ",null,{"$f":"IF(K37>0,\" \",IF(AND('Individual Cost Statement'!$D$25:$D$25=\"Date when costs incurred\",I37>0),\"ENCODE Exchange rate !\",\" \"))","v":" "},null," "]
[31,null,null,null,null,null,null,null,null,null,{"$f":"IF(AND('Individual Cost Statement'!$D$25:$D$25=\"Not applicable (all costs in EURO)\",I38>0),1,IF(AND('Individual Cost Statement'!$D$25:$D$25=\"Date when costs incurred\",I38>0),0,'Individual Cost Statement'!$F$26))","v":0}," "," ",null,{"$f":"IF(K38>0,\" \",IF(AND('Individual Cost Statement'!$D$25:$D$25=\"Date when costs incurred\",I38>0),\"ENCODE Exchange rate !\",\" \"))","v":" "},null," "]
[32,null,null,null,null,null,null,null,null,null,{"$f":"IF(AND('Individual Cost Statement'!$D$25:$D$25=\"Not applicable (all costs in EURO)\",I39>0),1,IF(AND('Individual Cost Statement'!$D$25:$D$25=\"Date when costs incurred\",I39>0),0,'Individual Cost Statement'!$F$26))","v":0}," "," ",null,{"$f":"IF(K39>0,\" \",IF(AND('Individual Cost Statement'!$D$25:$D$25=\"Date when costs incurred\",I39>0),\"ENCODE Exchange rate !\",\" \"))","v":" "},null," "]
[33,null,null,null,null,null,null,null,null,null,{"$f":"IF(AND('Individual Cost Statement'!$D$25:$D$25=\"Not applicable (all costs in EURO)\",I40>0),1,IF(AND('Individual Cost Statement'!$D$25:$D$25=\"Date when costs incurred\",I40>0),0,'Individual Cost Statement'!$F$26))","v":0}," "," ",null,{"$f":"IF(K40>0,\" \",IF(AND('Individual Cost Statement'!$D$25:$D$25=\"Date when costs incurred\",I40>0),\"ENCODE Exchange rate !\",\" \"))","v":" "},null," "]
[34,null,null,null,null,null,null,null,null,null,{"$f":"IF(AND('Individual Cost Statement'!$D$25:$D$25=\"Not applicable (all costs in EURO)\",I41>0),1,IF(AND('Individual Cost Statement'!$D$25:$D$25=\"Date when costs incurred\",I41>0),0,'Individual Cost Statement'!$F$26))","v":0}," "," ",null,{"$f":"IF(K41>0,\" \",IF(AND('Individual Cost Statement'!$D$25:$D$25=\"Date when costs incurred\",I41>0),\"ENCODE Exchange rate !\",\" \"))","v":" "},null," "]
[35,null,null,null,null,null,null,null,null,null,{"$f":"IF(AND('Individual Cost Statement'!$D$25:$D$25=\"Not applicable (all costs in EURO)\",I42>0),1,IF(AND('Individual Cost Statement'!$D$25:$D$25=\"Date when costs incurred\",I42>0),0,'Individual Cost Statement'!$F$26))","v":0}," "," ",null,{"$f":"IF(K42>0,\" \",IF(AND('Individual Cost Statement'!$D$25:$D$25=\"Date when costs incurred\",I42>0),\"ENCODE Exchange rate !\",\" \"))","v":" "},null," "]
[36,null,null,null,null,null,null,null,null,null,{"$f":"IF(AND('Individual Cost Statement'!$D$25:$D$25=\"Not applicable (all costs in EURO)\",I43>0),1,IF(AND('Individual Cost Statement'!$D$25:$D$25=\"Date when costs incurred\",I43>0),0,'Individual Cost Statement'!$F$26))","v":0}," "," ",null,{"$f":"IF(K43>0,\" \",IF(AND('Individual Cost Statement'!$D$25:$D$25=\"Date when costs incurred\",I43>0),\"ENCODE Exchange rate !\",\" \"))","v":" "},null," "]
[37,null,null,null,null,null,null,null,null,null,{"$f":"IF(AND('Individual Cost Statement'!$D$25:$D$25=\"Not applicable (all costs in EURO)\",I44>0),1,IF(AND('Individual Cost Statement'!$D$25:$D$25=\"Date when costs incurred\",I44>0),0,'Individual Cost Statement'!$F$26))","v":0}," "," ",null,{"$f":"IF(K44>0,\" \",IF(AND('Individual Cost Statement'!$D$25:$D$25=\"Date when costs incurred\",I44>0),\"ENCODE Exchange rate !\",\" \"))","v":" "},null," "]
[38,null,null,null,null,null,null,null,null,null,{"$f":"IF(AND('Individual Cost Statement'!$D$25:$D$25=\"Not applicable (all costs in EURO)\",I45>0),1,IF(AND('Individual Cost Statement'!$D$25:$D$25=\"Date when costs incurred\",I45>0),0,'Individual Cost Statement'!$F$26))","v":0}," "," ",null,{"$f":"IF(K45>0,\" \",IF(AND('Individual Cost Statement'!$D$25:$D$25=\"Date when costs incurred\",I45>0),\"ENCODE Exchange rate !\",\" \"))","v":" "},null," "]
[39,null,null,null,null,null,null,null,null,null,{"$f":"IF(AND('Individual Cost Statement'!$D$25:$D$25=\"Not applicable (all costs in EURO)\",I46>0),1,IF(AND('Individual Cost Statement'!$D$25:$D$25=\"Date when costs incurred\",I46>0),0,'Individual Cost Statement'!$F$26))","v":0}," "," ",null,{"$f":"IF(K46>0,\" \",IF(AND('Individual Cost Statement'!$D$25:$D$25=\"Date when costs incurred\",I46>0),\"ENCODE Exchange rate !\",\" \"))","v":" "},null," "]
[40,null,null,null,null,null,null,null,null,null,{"$f":"IF(AND('Individual Cost Statement'!$D$25:$D$25=\"Not applicable (all costs in EURO)\",I47>0),1,IF(AND('Individual Cost Statement'!$D$25:$D$25=\"Date when costs incurred\",I47>0),0,'Individual Cost Statement'!$F$26))","v":0}," "," ",null,{"$f":"IF(K47>0,\" \",IF(AND('Individual Cost Statement'!$D$25:$D$25=\"Date when costs incurred\",I47>0),\"ENCODE Exchange rate !\",\" \"))","v":" "},null," "]
[41,null,null,null,null,null,null,null,null,null,{"$f":"IF(AND('Individual Cost Statement'!$D$25:$D$25=\"Not applicable (all costs in EURO)\",I48>0),1,IF(AND('Individual Cost Statement'!$D$25:$D$25=\"Date when costs incurred\",I48>0),0,'Individual Cost Statement'!$F$26))","v":0}," "," ",null,{"$f":"IF(K48>0,\" \",IF(AND('Individual Cost Statement'!$D$25:$D$25=\"Date when costs incurred\",I48>0),\"ENCODE Exchange rate !\",\" \"))","v":" "},null," "]
[42,null,null,null,null,null,null,null,null,null,{"$f":"IF(AND('Individual Cost Statement'!$D$25:$D$25=\"Not applicable (all costs in EURO)\",I49>0),1,IF(AND('Individual Cost Statement'!$D$25:$D$25=\"Date when costs incurred\",I49>0),0,'Individual Cost Statement'!$F$26))","v":0}," "," ",null,{"$f":"IF(K49>0,\" \",IF(AND('Individual Cost Statement'!$D$25:$D$25=\"Date when costs incurred\",I49>0),\"ENCODE Exchange rate !\",\" \"))","v":" "},null," "]
[43,null,null,null,null,null,null,null,null,null,{"$f":"IF(AND('Individual Cost Statement'!$D$25:$D$25=\"Not applicable (all costs in EURO)\",I50>0),1,IF(AND('Individual Cost Statement'!$D$25:$D$25=\"Date when costs incurred\",I50>0),0,'Individual Cost Statement'!$F$26))","v":0}," "," ",null,{"$f":"IF(K50>0,\" \",IF(AND('Individual Cost Statement'!$D$25:$D$25=\"Date when costs incurred\",I50>0),\"ENCODE Exchange rate !\",\" \"))","v":" "},null," "]
[44,null,null,null,null,null,null,null,null,null,{"$f":"IF(AND('Individual Cost Statement'!$D$25:$D$25=\"Not applicable (all costs in EURO)\",I51>0),1,IF(AND('Individual Cost Statement'!$D$25:$D$25=\"Date when costs incurred\",I51>0),0,'Individual Cost Statement'!$F$26))","v":0}," "," ",null,{"$f":"IF(K51>0,\" \",IF(AND('Individual Cost Statement'!$D$25:$D$25=\"Date when costs incurred\",I51>0),\"ENCODE Exchange rate !\",\" \"))","v":" "},null," "]
[45,null,null,null,null,null,null,null,null,null,{"$f":"IF(AND('Individual Cost Statement'!$D$25:$D$25=\"Not applicable (all costs in EURO)\",I52>0),1,IF(AND('Individual Cost Statement'!$D$25:$D$25=\"Date when costs incurred\",I52>0),0,'Individual Cost Statement'!$F$26))","v":0}," "," ",null,{"$f":"IF(K52>0,\" \",IF(AND('Individual Cost Statement'!$D$25:$D$25=\"Date when costs incurred\",I52>0),\"ENCODE Exchange rate !\",\" \"))","v":" "},null," "]
[46,null,null,null,null,null,null,null,null,null,{"$f":"IF(AND('Individual Cost Statement'!$D$25:$D$25=\"Not applicable (all costs in EURO)\",I53>0),1,IF(AND('Individual Cost Statement'!$D$25:$D$25=\"Date when costs incurred\",I53>0),0,'Individual Cost Statement'!$F$26))","v":0}," "," ",null,{"$f":"IF(K53>0,\" \",IF(AND('Individual Cost Statement'!$D$25:$D$25=\"Date when costs incurred\",I53>0),\"ENCODE Exchange rate !\",\" \"))","v":" "},null," "]
[47,null,null,null,null,null,null,null,null,null,{"$f":"IF(AND('Individual Cost Statement'!$D$25:$D$25=\"Not applicable (all costs in EURO)\",I54>0),1,IF(AND('Individual Cost Statement'!$D$25:$D$25=\"Date when costs incurred\",I54>0),0,'Individual Cost Statement'!$F$26))","v":0}," "," ",null,{"$f":"IF(K54>0,\" \",IF(AND('Individual Cost Statement'!$D$25:$D$25=\"Date when costs incurred\",I54>0),\"ENCODE Exchange rate !\",\" \"))","v":" "},null," "]
[48,null,null,null,null,null,null,null,null,null,{"$f":"IF(AND('Individual Cost Statement'!$D$25:$D$25=\"Not applicable (all costs in EURO)\",I55>0),1,IF(AND('Individual Cost Statement'!$D$25:$D$25=\"Date when costs incurred\",I55>0),0,'Individual Cost Statement'!$F$26))","v":0}," "," ",null,{"$f":"IF(K55>0,\" \",IF(AND('Individual Cost Statement'!$D$25:$D$25=\"Date when costs incurred\",I55>0),\"ENCODE Exchange rate !\",\" \"))","v":" "},null," "]
[49,null,null,null,null,null,null,null,null,null,{"$f":"IF(AND('Individual Cost Statement'!$D$25:$D$25=\"Not applicable (all costs in EURO)\",I56>0),1,IF(AND('Individual Cost Statement'!$D$25:$D$25=\"Date when costs incurred\",I56>0),0,'Individual Cost Statement'!$F$26))","v":0}," "," ",null,{"$f":"IF(K56>0,\" \",IF(AND('Individual Cost Statement'!$D$25:$D$25=\"Date when costs incurred\",I56>0),\"ENCODE Exchange rate !\",\" \"))","v":" "},null," "]
[50,null,null,null,null,null,null,null,null,null,{"$f":"IF(AND('Individual Cost Statement'!$D$25:$D$25=\"Not applicable (all costs in EURO)\",I57>0),1,IF(AND('Individual Cost Statement'!$D$25:$D$25=\"Date when costs incurred\",I57>0),0,'Individual Cost Statement'!$F$26))","v":0}," "," ",null,{"$f":"IF(K57>0,\" \",IF(AND('Individual Cost Statement'!$D$25:$D$25=\"Date when costs incurred\",I57>0),\"ENCODE Exchange rate !\",\" \"))","v":" "},null," "]
["Total",null,null,null,null,null,null,null,null,null,null,{"$f":"SUM(L8:INDIRECT(\"L\"&ROW()-1))","v":0},{"$f":"SUM(M8:INDIRECT(\"M\"&ROW()-1))","v":0}]
[]
[]
[]
[]
[]
["Explanation of the content of each Column"]
["PLEASE FILL-IN ONLY BLUE CELLS"]
["A","Sequential number of the entries."]
["B1","Date of invoice "]
["B2","Invoice number or reference number of another accounting document, with which the transaction is identified in the accounting system."]
["B3","Date of payment of the invoice"]
["C1","Name of the subcontractor or service provider - For beneficiaries declaring costs of affiliates in their individual statement, put here also a line with the name of the affiliate and include under column D4 & D5  the total external assistance cost (with and without VAT) of the affiliate in EUR (according to its individual financial statement)"]
["C2","Description of the subcontracted item or service and where applicable indicate the period in which the service was provided. Please provide enough details in order to assess the eligibility of the cost item."]
["C3","Indicate the start date of the period in which the service was provided, where applicable"]
["C4","Indicate the end date of the period in which the service was provided, where applicable"]
["D1","Amount in national currency without VAT"]
["D2","Amount in national currency with non-recoverable VAT"]
["D3","If costs are reported in Euro, where beneficiary keeps its general accounts in Euro, no exchange rate to include"]
["D3","If the currency of the reported costs is not EURO, where beneficiary keeps its general accounts in a currency other than Euro and the exchange rate option chosen is \"1st day after the end of reporting period\", the monthly exchange rate encoded in the individual Costs statement sheet will be automatically inserted. "]
["D3","If the currency of the reported costs is not EURO, where beneficiary keeps its general accounts in a currency other than Euro and the exchange rate option chosen is \"the day when the costs incurred\", please enter the monthly exchange rate published on the Commission website: http://ec.europa.eu/budget/contracts_grants/info_contracts/inforeuro/inforeuro_en.cfm."]
["D4","Invoiced amount in Euro without  VAT (automatic calculation)"]
["D5","Invoiced amount in Euro with non recoverable VAT (automatic calculation)"]
["F","Indicate which selection procedure have been used to select the supplier.\nFor public entities: public procurment rules\nFor private entities: direct award, multiple bids, open tender (for cost items >130.000), framework contract."]

{"sheet":"Infrastructure","index":5,"n_rows":83,"n_cols":19,"rows_kept":83,"cut":false,"hidden":false,"merged":[[64,2,64,15],[77,1,77,15],[82,1,82,15],[0,2,0,4],[1,2,1,4],[4,4,4,5],[4,6,4,14],[57,0,57,10],[4,1,4,3],[0,6,0,7],[1,6,1,7],[0,11,0,14],[2,11,2,12],[1,11,1,12],[1,13,1,14],[2,13,2,14],[2,2,2,4],[63,2,63,15]]}
[null,"PROJECT Reference :",{"$f":"'Individual Cost Statement'!B3:B3","v":"LIFEXX XXX/XX/XXXXXX - ACRONYM"},null,null,null,"PERIOD (FROM) :",null,{"$f":"'Individual Cost Statement'!E3:E3","v":"00:00:00"},null,null,"INFRASTRUCTURE"]
[null,"COUNTRY :",{"$f":"'Individual Cost Statement'!B4:B4","v":"Austria"},null,null,null,"PERIOD (TO) :",null,{"$f":"'Individual Cost Statement'!E4:E4","v":"00:00:00"},null,null,"Invoiced amount WITH non-rec VAT",null,"Depreciated amount WITH non-rec VAT"]
[null,"Beneficiary: ",{"$f":"'Individual Cost Statement'!B6:B6","v":0},null,null,null,null,null,null,null,null,{"$f":"M58","v":0},null,{"$f":"O58","v":0}]
[]
[null,"Details on cost item",null,null,"Info on cost item",null,"Calculation of the INFRASTRUCTURE DEPRECIATION costs",null,null,null,null,null,null,null,null,"Selection procedure"]
["A","B1","B2","B3","C1","C2","D1","D2","D3","D4","D5","D6","D7","D8","D9","F"]
["Seq n°","Date of invoice","Invoice number","Date of payment","Supplier","Description of infrastructure  + indicate % used for the project if not 100%","Amount in national currency without VAT (in accordance with pro rate % used for the project)","Amount in national currency with non-recoverable VAT (in accordance with pro rata % used for the project)","DEPRECIATION\nTotal number of months","DEPRECIATION\nNumber of months falling in the current reporting period","Exchange rate","Amount in EURO\nwithout VAT","Amount in EURO \nwith non-recoverable VAT ","Depreciation amount \nin EURO \nwithout VAT","Depreciation amount \nin EURO \nwith non-recoverable VAT ","Applied selection procedure",null,null,"VAT\nCalculation"]
[{"$f":"ROW()-7","v":1},null,null,null,null,null,null,null,null,null,{"$f":"IF(AND('Individual Cost Statement'!$D$25:$D$25=\"Not applicable (all costs in EURO)\",G8>0),1,IF(AND('Individual Cost Statement'!$D$25:$D$25=\"Date when costs incurred\",G8>0),0,'Individual Cost Statement'!$F$26))","v":0},{"$f":"IF(AND(G8>0,K8>0),G8/K8,\" \")","v":" "},{"$f":"IF(AND(H8>0,K8>0),H8/K8,\" \")","v":" "},{"$f":"IF(L8=\" \",\" \",IF(AND(I8>0,J8>0),L8/I8*J8,\" \"))","v":" "},{"$f":"IF(M8=\" \",\" \",IF(AND(I8>0,J8>0),M8/I8*J8,\" \"))","v":" "},null,{"$f":"IF(K8>0,\" \",IF(AND('Individual Cost Statement'!$D$25:$D$25=\"Date when costs incurred\",G8>0),\"ENCODE Exchange rate !\",\" \"))","v":" "},{"$f":"IF(O8=\" \",\" \",IF(OR('Individual Cost Statement'!$E$8:$E$8=\"CAPACITY BUILDING - CAP\",'Individual Cost Statement'!$E$8:$E$8=\"CLIMA - CCA\",'Individual Cost Statement'!$E$8:$E$8=\"CLIMA - CCM\",'Individual Cost Statement'!$E$8:$E$8=\"CLIMA - GIC\",'Individual Cost Statement'!$E$8:$E$8=\"ENVIRONMENT - ENV\",'Individual Cost Statement'!$E$8:$E$8=\"ENVIRONMENT - GIE\",'Individual Cost Statement'!$E$8:$E$8=\"TECHNICAL ASSISTANCE – TA\"),IF((O8/M8)>0.25,\"Please adjust manually the depreciation amounts in cells D8 and D9 in line with the applicable maximum authorised (25% for infrastructure)\",\" \"),IF(OR('Individual Cost Statement'!$E$8:$E$8=\"ENVIRONMENT - NAT\",'Individual Cost Statement'!$E$8:$E$8=\"INTEGRATED PROJECT - IP\"),IF((O8/M8)>0.25,\"Unless the appropriate certificate has been signed, please adjust manually the depreciation amounts in cells D8 and D9 in line with the applicable maximum authorised (25% for infrastructure)\",\" \"))))","v":" "},{"$f":"IF(N8=\" \",\" \",O8-N8)","v":" "}]
[2,null,null,null,null,null,null,null,null,null,{"$f":"IF(AND('Individual Cost Statement'!$D$25:$D$25=\"Not applicable (all costs in EURO)\",G9>0),1,IF(AND('Individual Cost Statement'!$D$25:$D$25=\"Date when costs incurred\",G9>0),0,'Individual Cost Statement'!$F$26))","v":0},{"$f":"IF(AND(G9>0,K9>0),G9/K9,\" \")","v":" "},{"$f":"IF(AND(H9>0,K9>0),H9/K9,\" \")","v":" "},{"$f":"IF(L9=\" \",\" \",IF(AND(I9>0,J9>0),L9/I9*J9,\" \"))","v":" "},{"$f":"IF(M9=\" \",\" \",IF(AND(I9>0,J9>0),M9/I9*J9,\" \"))","v":" "},null,{"$f":"IF(K9>0,\" \",IF(AND('Individual Cost Statement'!$D$25:$D$25=\"Date when costs incurred\",G9>0),\"ENCODE Exchange rate !\",\" \"))","v":" "},{"$f":"IF(O9=\" \",\" \",IF(OR('Individual Cost Statement'!$E$8:$E$8=\"CAPACITY BUILDING - CAP\",'Individual Cost Statement'!$E$8:$E$8=\"CLIMA - CCA\",'Individual Cost Statement'!$E$8:$E$8=\"CLIMA - CCM\",'Individual Cost Statement'!$E$8:$E$8=\"CLIMA - GIC\",'Individual Cost Statement'!$E$8:$E$8=\"ENVIRONMENT - ENV\",'Individual Cost Statement'!$E$8:$E$8=\"ENVIRONMENT - GIE\",'Individual Cost Statement'!$E$8:$E$8=\"TECHNICAL ASSISTANCE – TA\"),IF((O9/M9)>0.25,\"Please adjust manually the depreciation amounts in cells D8 and D9 in line with the applicable maximum authorised (25% for infrastructure)\",\" \"),IF(OR('Individual Cost Statement'!$E$8:$E$8=\"ENVIRONMENT - NAT\",'Individual Cost Statement'!$E$8:$E$8=\"INTEGRATED PROJECT - IP\"),IF((O9/M9)>0.25,\"Unless the appropriate certificate has been signed, please adjust manually the depreciation amounts in cells D8 and D9 in line with the applicable maximum authorised (25% for infrastructure)\",\" \"))))","v":" "},{"$f":"IF(N9=\" \",\" \",O9-N9)","v":" "}]
[3,null,null,null,null,null,null,null,null,null,{"$f":"IF(AND('Individual Cost Statement'!$D$25:$D$25=\"Not applicable (all costs in EURO)\",G10>0),1,IF(AND('Individual Cost Statement'!$D$25:$D$25=\"Date when costs incurred\",G10>0),0,'Individual Cost Statement'!$F$26))","v":0}," "," "," "," ",null,{"$f":"IF(K10>0,\" \",IF(AND('Individual Cost Statement'!$D$25:$D$25=\"Date when costs incurred\",G10>0),\"ENCODE Exchange rate !\",\" \"))","v":" "},{"$f":"IF(O10=\" \",\" \",IF(OR('Individual Cost Statement'!$E$8:$E$8=\"CAPACITY BUILDING - CAP\",'Individual Cost Statement'!$E$8:$E$8=\"CLIMA - CCA\",'Individual Cost Statement'!$E$8:$E$8=\"CLIMA - CCM\",'Individual Cost Statement'!$E$8:$E$8=\"CLIMA - GIC\",'Individual Cost Statement'!$E$8:$E$8=\"ENVIRONMENT - ENV\",'Individual Cost Statement'!$E$8:$E$8=\"ENVIRONMENT - GIE\",'Individual Cost Statement'!$E$8:$E$8=\"TECHNICAL ASSISTANCE – TA\"),IF((O10/M10)>0.25,\"Please adjust manually the depreciation amounts in cells D8 and D9 in line with the applicable maximum authorised (25% for infrastructure)\",\" \"),IF(OR('Individual Cost Statement'!$E$8:$E$8=\"ENVIRONMENT - NAT\",'Individual Cost Statement'!$E$8:$E$8=\"INTEGRATED PROJECT - IP\"),IF((O10/M10)>0.25,\"Unless the appropriate certificate has been signed, please adjust manually the depreciation amounts in cells D8 and D9 in line with the applicable maximum authorised (25% for infrastructure)\",\" \"))))","v":" "}," "]
[4,null,null,null,null,null,null,null,null,null,{"$f":"IF(AND('Individual Cost Statement'!$D$25:$D$25=\"Not applicable (all costs in EURO)\",G11>0),1,IF(AND('Individual Cost Statement'!$D$25:$D$25=\"Date when costs incurred\",G11>0),0,'Individual Cost Statement'!$F$26))","v":0}," "," "," "," ",null,{"$f":"IF(K11>0,\" \",IF(AND('Individual Cost Statement'!$D$25:$D$25=\"Date when costs incurred\",G11>0),\"ENCODE Exchange rate !\",\" \"))","v":" "},{"$f":"IF(O11=\" \",\" \",IF(OR('Individual Cost Statement'!$E$8:$E$8=\"CAPACITY BUILDING - CAP\",'Individual Cost Statement'!$E$8:$E$8=\"CLIMA - CCA\",'Individual Cost Statement'!$E$8:$E$8=\"CLIMA - CCM\",'Individual Cost Statement'!$E$8:$E$8=\"CLIMA - GIC\",'Individual Cost Statement'!$E$8:$E$8=\"ENVIRONMENT - ENV\",'Individual Cost Statement'!$E$8:$E$8=\"ENVIRONMENT - GIE\",'Individual Cost Statement'!$E$8:$E$8=\"TECHNICAL ASSISTANCE – TA\"),IF((O11/M11)>0.25,\"Please adjust manually the depreciation amounts in cells D8 and D9 in line with the applicable maximum authorised (25% for infrastructure)\",\" \"),IF(OR('Individual Cost Statement'!$E$8:$E$8=\"ENVIRONMENT - NAT\",'Individual Cost Statement'!$E$8:$E$8=\"INTEGRATED PROJECT - IP\"),IF((O11/M11)>0.25,\"Unless the appropriate certificate has been signed, please adjust manually the depreciation amounts in cells D8 and D9 in line with the applicable maximum authorised (25% for infrastructure)\",\" \"))))","v":" "}," "]
[5,null,null,null,null,null,null,null,null,null,{"$f":"IF(AND('Individual Cost Statement'!$D$25:$D$25=\"Not applicable (all costs in EURO)\",G12>0),1,IF(AND('Individual Cost Statement'!$D$25:$D$25=\"Date when costs incurred\",G12>0),0,'Individual Cost Statement'!$F$26))","v":0}," "," "," "," ",null,{"$f":"IF(K12>0,\" \",IF(AND('Individual Cost Statement'!$D$25:$D$25=\"Date when costs incurred\",G12>0),\"ENCODE Exchange rate !\",\" \"))","v":" "},{"$f":"IF(O12=\" \",\" \",IF(OR('Individual Cost Statement'!$E$8:$E$8=\"CAPACITY BUILDING - CAP\",'Individual Cost Statement'!$E$8:$E$8=\"CLIMA - CCA\",'Individual Cost Statement'!$E$8:$E$8=\"CLIMA - CCM\",'Individual Cost Statement'!$E$8:$E$8=\"CLIMA - GIC\",'Individual Cost Statement'!$E$8:$E$8=\"ENVIRONMENT - ENV\",'Individual Cost Statement'!$E$8:$E$8=\"ENVIRONMENT - GIE\",'Individual Cost Statement'!$E$8:$E$8=\"TECHNICAL ASSISTANCE – TA\"),IF((O12/M12)>0.25,\"Please adjust manually the depreciation amounts in cells D8 and D9 in line with the applicable maximum authorised (25% for infrastructure)\",\" \"),IF(OR('Individual Cost Statement'!$E$8:$E$8=\"ENVIRONMENT - NAT\",'Individual Cost Statement'!$E$8:$E$8=\"INTEGRATED PROJECT - IP\"),IF((O12/M12)>0.25,\"Unless the appropriate certificate has been signed, please adjust manually the depreciation amounts in cells D8 and D9 in line with the applicable maximum authorised (25% for infrastructure)\",\" \"))))","v":" "}," "]
[6,null,null,null,null,null,null,null,null,null,{"$f":"IF(AND('Individual Cost Statement'!$D$25:$D$25=\"Not applicable (all costs in EURO)\",G13>0),1,IF(AND('Individual Cost Statement'!$D$25:$D$25=\"Date when costs incurred\",G13>0),0,'Individual Cost Statement'!$F$26))","v":0}," "," "," "," ",null,{"$f":"IF(K13>0,\" \",IF(AND('Individual Cost Statement'!$D$25:$D$25=\"Date when costs incurred\",G13>0),\"ENCODE Exchange rate !\",\" \"))","v":" "},{"$f":"IF(O13=\" \",\" \",IF(OR('Individual Cost Statement'!$E$8:$E$8=\"CAPACITY BUILDING - CAP\",'Individual Cost Statement'!$E$8:$E$8=\"CLIMA - CCA\",'Individual Cost Statement'!$E$8:$E$8=\"CLIMA - CCM\",'Individual Cost Statement'!$E$8:$E$8=\"CLIMA - GIC\",'Individual Cost Statement'!$E$8:$E$8=\"ENVIRONMENT - ENV\",'Individual Cost Statement'!$E$8:$E$8=\"ENVIRONMENT - GIE\",'Individual Cost Statement'!$E$8:$E$8=\"TECHNICAL ASSISTANCE – TA\"),IF((O13/M13)>0.25,\"Please adjust manually the depreciation amounts in cells D8 and D9 in line with the applicable maximum authorised (25% for infrastructure)\",\" \"),IF(OR('Individual Cost Statement'!$E$8:$E$8=\"ENVIRONMENT - NAT\",'Individual Cost Statement'!$E$8:$E$8=\"INTEGRATED PROJECT - IP\"),IF((O13/M13)>0.25,\"Unless the appropriate certificate has been signed, please adjust manually the depreciation amounts in cells D8 and D9 in line with the applicable maximum authorised (25% for infrastructure)\",\" \"))))","v":" "}," "]
[7,null,null,null,null,null,null,null,null,null,{"$f":"IF(AND('Individual Cost Statement'!$D$25:$D$25=\"Not applicable (all costs in EURO)\",G14>0),1,IF(AND('Individual Cost Statement'!$D$25:$D$25=\"Date when costs incurred\",G14>0),0,'Individual Cost Statement'!$F$26))","v":0}," "," "," "," ",null,{"$f":"IF(K14>0,\" \",IF(AND('Individual Cost Statement'!$D$25:$D$25=\"Date when costs incurred\",G14>0),\"ENCODE Exchange rate !\",\" \"))","v":" "},{"$f":"IF(O14=\" \",\" \",IF(OR('Individual Cost Statement'!$E$8:$E$8=\"CAPACITY BUILDING - CAP\",'Individual Cost Statement'!$E$8:$E$8=\"CLIMA - CCA\",'Individual Cost Statement'!$E$8:$E$8=\"CLIMA - CCM\",'Individual Cost Statement'!$E$8:$E$8=\"CLIMA - GIC\",'Individual Cost Statement'!$E$8:$E$8=\"ENVIRONMENT - ENV\",'Individual Cost Statement'!$E$8:$E$8=\"ENVIRONMENT - GIE\",'Individual Cost Statement'!$E$8:$E$8=\"TECHNICAL ASSISTANCE – TA\"),IF((O14/M14)>0.25,\"Please adjust manually the depreciation amounts in cells D8 and D9 in line with the applicable maximum authorised (25% for infrastructure)\",\" \"),IF(OR('Individual Cost Statement'!$E$8:$E$8=\"ENVIRONMENT - NAT\",'Individual Cost Statement'!$E$8:$E$8=\"INTEGRATED PROJECT - IP\"),IF((O14/M14)>0.25,\"Unless the appropriate certificate has been signed, please adjust manually the depreciation amounts in cells D8 and D9 in line with the applicable maximum authorised (25% for infrastructure)\",\" \"))))","v":" "}," "]
[8,null,null,null,null,null,null,null,null,null,{"$f":"IF(AND('Individual Cost Statement'!$D$25:$D$25=\"Not applicable (all costs in EURO)\",G15>0),1,IF(AND('Individual Cost Statement'!$D$25:$D$25=\"Date when costs incurred\",G15>0),0,'Individual Cost Statement'!$F$26))","v":0}," "," "," "," ",null,{"$f":"IF(K15>0,\" \",IF(AND('Individual Cost Statement'!$D$25:$D$25=\"Date when costs incurred\",G15>0),\"ENCODE Exchange rate !\",\" \"))","v":" "},{"$f":"IF(O15=\" \",\" \",IF(OR('Individual Cost Statement'!$E$8:$E$8=\"CAPACITY BUILDING - CAP\",'Individual Cost Statement'!$E$8:$E$8=\"CLIMA - CCA\",'Individual Cost Statement'!$E$8:$E$8=\"CLIMA - CCM\",'Individual Cost Statement'!$E$8:$E$8=\"CLIMA - GIC\",'Individual Cost Statement'!$E$8:$E$8=\"ENVIRONMENT - ENV\",'Individual Cost Statement'!$E$8:$E$8=\"ENVIRONMENT - GIE\",'Individual Cost Statement'!$E$8:$E$8=\"TECHNICAL ASSISTANCE – TA\"),IF((O15/M15)>0.25,\"Please adjust manually the depreciation amounts in cells D8 and D9 in line with the applicable maximum authorised (25% for infrastructure)\",\" \"),IF(OR('Individual Cost Statement'!$E$8:$E$8=\"ENVIRONMENT - NAT\",'Individual Cost Statement'!$E$8:$E$8=\"INTEGRATED PROJECT - IP\"),IF((O15/M15)>0.25,\"Unless the appropriate certificate has been signed, please adjust manually the depreciation amounts in cells D8 and D9 in line with the applicable maximum authorised (25% for infrastructure)\",\" \"))))","v":" "}," "]
[9,null,null,null,null,null,null,null,null,null,{"$f":"IF(AND('Individual Cost Statement'!$D$25:$D$25=\"Not applicable (all costs in EURO)\",G16>0),1,IF(AND('Individual Cost Statement'!$D$25:$D$25=\"Date when costs incurred\",G16>0),0,'Individual Cost Statement'!$F$26))","v":0}," "," "," "," ",null,{"$f":"IF(K16>0,\" \",IF(AND('Individual Cost Statement'!$D$25:$D$25=\"Date when costs incurred\",G16>0),\"ENCODE Exchange rate !\",\" \"))","v":" "},{"$f":"IF(O16=\" \",\" \",IF(OR('Individual Cost Statement'!$E$8:$E$8=\"CAPACITY BUILDING - CAP\",'Individual Cost Statement'!$E$8:$E$8=\"CLIMA - CCA\",'Individual Cost Statement'!$E$8:$E$8=\"CLIMA - CCM\",'Individual Cost Statement'!$E$8:$E$8=\"CLIMA - GIC\",'Individual Cost Statement'!$E$8:$E$8=\"ENVIRONMENT - ENV\",'Individual Cost Statement'!$E$8:$E$8=\"ENVIRONMENT - GIE\",'Individual Cost Statement'!$E$8:$E$8=\"TECHNICAL ASSISTANCE – TA\"),IF((O16/M16)>0.25,\"Please adjust manually the depreciation amounts in cells D8 and D9 in line with the applicable maximum authorised (25% for infrastructure)\",\" \"),IF(OR('Individual Cost Statement'!$E$8:$E$8=\"ENVIRONMENT - NAT\",'Individual Cost Statement'!$E$8:$E$8=\"INTEGRATED PROJECT - IP\"),IF((O16/M16)>0.25,\"Unless the appropriate certificate has been signed, please adjust manually the depreciation amounts in cells D8 and D9 in line with the applicable maximum authorised (25% for infrastructure)\",\" \"))))","v":" "}," "]
[10,null,null,null,null,null,null,null,null,null,{"$f":"IF(AND('Individual Cost Statement'!$D$25:$D$25=\"Not applicable (all costs in EURO)\",G17>0),1,IF(AND('Individual Cost Statement'!$D$25:$D$25=\"Date when costs incurred\",G17>0),0,'Individual Cost Statement'!$F$26))","v":0}," "," "," "," ",null,{"$f":"IF(K17>0,\" \",IF(AND('Individual Cost Statement'!$D$25:$D$25=\"Date when costs incurred\",G17>0),\"ENCODE Exchange rate !\",\" \"))","v":" "},{"$f":"IF(O17=\" \",\" \",IF(OR('Individual Cost Statement'!$E$8:$E$8=\"CAPACITY BUILDING - CAP\",'Individual Cost Statement'!$E$8:$E$8=\"CLIMA - CCA\",'Individual Cost Statement'!$E$8:$E$8=\"CLIMA - CCM\",'Individual Cost Statement'!$E$8:$E$8=\"CLIMA - GIC\",'Individual Cost Statement'!$E$8:$E$8=\"ENVIRONMENT - ENV\",'Individual Cost Statement'!$E$8:$E$8=\"ENVIRONMENT - GIE\",'Individual Cost Statement'!$E$8:$E$8=\"TECHNICAL ASSISTANCE – TA\"),IF((O17/M17)>0.25,\"Please adjust manually the depreciation amounts in cells D8 and D9 in line with the applicable maximum authorised (25% for infrastructure)\",\" \"),IF(OR('Individual Cost Statement'!$E$8:$E$8=\"ENVIRONMENT - NAT\",'Individual Cost Statement'!$E$8:$E$8=\"INTEGRATED PROJECT - IP\"),IF((O17/M17)>0.25,\"Unless the appropriate certificate has been signed, please adjust manually the depreciation amounts in cells D8 and D9 in line with the applicable maximum authorised (25% for infrastructure)\",\" \"))))","v":" "}," "]
[11,null,null,null,null,null,null,null,null,null,{"$f":"IF(AND('Individual Cost Statement'!$D$25:$D$25=\"Not applicable (all costs in EURO)\",G18>0),1,IF(AND('Individual Cost Statement'!$D$25:$D$25=\"Date when costs incurred\",G18>0),0,'Individual Cost Statement'!$F$26))","v":0}," "," "," "," ",null,{"$f":"IF(K18>0,\" \",IF(AND('Individual Cost Statement'!$D$25:$D$25=\"Date when costs incurred\",G18>0),\"ENCODE Exchange rate !\",\" \"))","v":" "},{"$f":"IF(O18=\" \",\" \",IF(OR('Individual Cost Statement'!$E$8:$E$8=\"CAPACITY BUILDING - CAP\",'Individual Cost Statement'!$E$8:$E$8=\"CLIMA - CCA\",'Individual Cost Statement'!$E$8:$E$8=\"CLIMA - CCM\",'Individual Cost Statement'!$E$8:$E$8=\"CLIMA - GIC\",'Individual Cost Statement'!$E$8:$E$8=\"ENVIRONMENT - ENV\",'Individual Cost Statement'!$E$8:$E$8=\"ENVIRONMENT - GIE\",'Individual Cost Statement'!$E$8:$E$8=\"TECHNICAL ASSISTANCE – TA\"),IF((O18/M18)>0.25,\"Please adjust manually the depreciation amounts in cells D8 and D9 in line with the applicable maximum authorised (25% for infrastructure)\",\" \"),IF(OR('Individual Cost Statement'!$E$8:$E$8=\"ENVIRONMENT - NAT\",'Individual Cost Statement'!$E$8:$E$8=\"INTEGRATED PROJECT - IP\"),IF((O18/M18)>0.25,\"Unless the appropriate certificate has been signed, please adjust manually the depreciation amounts in cells D8 and D9 in line with the applicable maximum authorised (25% for infrastructure)\",\" \"))))","v":" "}," "]
[12,null,null,null,null,null,null,null,null,null,{"$f":"IF(AND('Individual Cost Statement'!$D$25:$D$25=\"Not applicable (all costs in EURO)\",G19>0),1,IF(AND('Individual Cost Statement'!$D$25:$D$25=\"Date when costs incurred\",G19>0),0,'Individual Cost Statement'!$F$26))","v":0}," "," "," "," ",null,{"$f":"IF(K19>0,\" \",IF(AND('Individual Cost Statement'!$D$25:$D$25=\"Date when costs incurred\",G19>0),\"ENCODE Exchange rate !\",\" \"))","v":" "},{"$f":"IF(O19=\" \",\" \",IF(OR('Individual Cost Statement'!$E$8:$E$8=\"CAPACITY BUILDING - CAP\",'Individual Cost Statement'!$E$8:$E$8=\"CLIMA - CCA\",'Individual Cost Statement'!$E$8:$E$8=\"CLIMA - CCM\",'Individual Cost Statement'!$E$8:$E$8=\"CLIMA - GIC\",'Individual Cost Statement'!$E$8:$E$8=\"ENVIRONMENT - ENV\",'Individual Cost Statement'!$E$8:$E$8=\"ENVIRONMENT - GIE\",'Individual Cost Statement'!$E$8:$E$8=\"TECHNICAL ASSISTANCE – TA\"),IF((O19/M19)>0.25,\"Please adjust manually the depreciation amounts in cells D8 and D9 in line with the applicable maximum authorised (25% for infrastructure)\",\" \"),IF(OR('Individual Cost Statement'!$E$8:$E$8=\"ENVIRONMENT - NAT\",'Individual Cost Statement'!$E$8:$E$8=\"INTEGRATED PROJECT - IP\"),IF((O19/M19)>0.25,\"Unless the appropriate certificate has been signed, please adjust manually the depreciation amounts in cells D8 and D9 in line with the applicable maximum authorised (25% for infrastructure)\",\" \"))))","v":" "}," "]
[13,null,null,null,null,null,null,null,null,null,{"$f":"IF(AND('Individual Cost Statement'!$D$25:$D$25=\"Not applicable (all costs in EURO)\",G20>0),1,IF(AND('Individual Cost Statement'!$D$25:$D$25=\"Date when costs incurred\",G20>0),0,'Individual Cost Statement'!$F$26))","v":0}," "," "," "," ",null,{"$f":"IF(K20>0,\" \",IF(AND('Individual Cost Statement'!$D$25:$D$25=\"Date when costs incurred\",G20>0),\"ENCODE Exchange rate !\",\" \"))","v":" "},{"$f":"IF(O20=\" \",\" \",IF(OR('Individual Cost Statement'!$E$8:$E$8=\"CAPACITY BUILDING - CAP\",'Individual Cost Statement'!$E$8:$E$8=\"CLIMA - CCA\",'Individual Cost Statement'!$E$8:$E$8=\"CLIMA - CCM\",'Individual Cost Statement'!$E$8:$E$8=\"CLIMA - GIC\",'Individual Cost Statement'!$E$8:$E$8=\"ENVIRONMENT - ENV\",'Individual Cost Statement'!$E$8:$E$8=\"ENVIRONMENT - GIE\",'Individual Cost Statement'!$E$8:$E$8=\"TECHNICAL ASSISTANCE – TA\"),IF((O20/M20)>0.25,\"Please adjust manually the depreciation amounts in cells D8 and D9 in line with the applicable maximum authorised (25% for infrastructure)\",\" \"),IF(OR('Individual Cost Statement'!$E$8:$E$8=\"ENVIRONMENT - NAT\",'Individual Cost Statement'!$E$8:$E$8=\"INTEGRATED PROJECT - IP\"),IF((O20/M20)>0.25,\"Unless the appropriate certificate has been signed, please adjust manually the depreciation amounts in cells D8 and D9 in line with the applicable maximum authorised (25% for infrastructure)\",\" \"))))","v":" "}," "]
[14,null,null,null,null,null,null,null,null,null,{"$f":"IF(AND('Individual Cost Statement'!$D$25:$D$25=\"Not applicable (all costs in EURO)\",G21>0),1,IF(AND('Individual Cost Statement'!$D$25:$D$25=\"Date when costs incurred\",G21>0),0,'Individual Cost Statement'!$F$26))","v":0}," "," "," "," ",null,{"$f":"IF(K21>0,\" \",IF(AND('Individual Cost Statement'!$D$25:$D$25=\"Date when costs incurred\",G21>0),\"ENCODE Exchange rate !\",\" \"))","v":" "},{"$f":"IF(O21=\" \",\" \",IF(OR('Individual Cost Statement'!$E$8:$E$8=\"CAPACITY BUILDING - CAP\",'Individual Cost Statement'!$E$8:$E$8=\"CLIMA - CCA\",'Individual Cost Statement'!$E$8:$E$8=\"CLIMA - CCM\",'Individual Cost Statement'!$E$8:$E$8=\"CLIMA - GIC\",'Individual Cost Statement'!$E$8:$E$8=\"ENVIRONMENT - ENV\",'Individual Cost Statement'!$E$8:$E$8=\"ENVIRONMENT - GIE\",'Individual Cost Statement'!$E$8:$E$8=\"TECHNICAL ASSISTANCE – TA\"),IF((O21/M21)>0.25,\"Please adjust manually the depreciation amounts in cells D8 and D9 in line with the applicable maximum authorised (25% for infrastructure)\",\" \"),IF(OR('Individual Cost Statement'!$E$8:$E$8=\"ENVIRONMENT - NAT\",'Individual Cost Statement'!$E$8:$E$8=\"INTEGRATED PROJECT - IP\"),IF((O21/M21)>0.25,\"Unless the appropriate certificate has been signed, please adjust manually the depreciation amounts in cells D8 and D9 in line with the applicable maximum authorised (25% for infrastructure)\",\" \"))))","v":" "}," "]
[15,null,null,null,null,null,null,null,null,null,{"$f":"IF(AND('Individual Cost Statement'!$D$25:$D$25=\"Not applicable (all costs in EURO)\",G22>0),1,IF(AND('Individual Cost Statement'!$D$25:$D$25=\"Date when costs incurred\",G22>0),0,'Individual Cost Statement'!$F$26))","v":0}," "," "," "," ",null,{"$f":"IF(K22>0,\" \",IF(AND('Individual Cost Statement'!$D$25:$D$25=\"Date when costs incurred\",G22>0),\"ENCODE Exchange rate !\",\" \"))","v":" "},{"$f":"IF(O22=\" \",\" \",IF(OR('Individual Cost Statement'!$E$8:$E$8=\"CAPACITY BUILDING - CAP\",'Individual Cost Statement'!$E$8:$E$8=\"CLIMA - CCA\",'Individual Cost Statement'!$E$8:$E$8=\"CLIMA - CCM\",'Individual Cost Statement'!$E$8:$E$8=\"CLIMA - GIC\",'Individual Cost Statement'!$E$8:$E$8=\"ENVIRONMENT - ENV\",'Individual Cost Statement'!$E$8:$E$8=\"ENVIRONMENT - GIE\",'Individual Cost Statement'!$E$8:$E$8=\"TECHNICAL ASSISTANCE – TA\"),IF((O22/M22)>0.25,\"Please adjust manually the depreciation amounts in cells D8 and D9 in line with the applicable maximum authorised (25% for infrastructure)\",\" \"),IF(OR('Individual Cost Statement'!$E$8:$E$8=\"ENVIRONMENT - NAT\",'Individual Cost Statement'!$E$8:$E$8=\"INTEGRATED PROJECT - IP\"),IF((O22/M22)>0.25,\"Unless the appropriate certificate has been signed, please adjust manually the depreciation amounts in cells D8 and D9 in line with the applicable maximum authorised (25% for infrastructure)\",\" \"))))","v":" "}," "]
[16,null,null,null,null,null,null,null,null,null,{"$f":"IF(AND('Individual Cost Statement'!$D$25:$D$25=\"Not applicable (all costs in EURO)\",G23>0),1,IF(AND('Individual Cost Statement'!$D$25:$D$25=\"Date when costs incurred\",G23>0),0,'Individual Cost Statement'!$F$26))","v":0}," "," "," "," ",null,{"$f":"IF(K23>0,\" \",IF(AND('Individual Cost Statement'!$D$25:$D$25=\"Date when costs incurred\",G23>0),\"ENCODE Exchange rate !\",\" \"))","v":" "},{"$f":"IF(O23=\" \",\" \",IF(OR('Individual Cost Statement'!$E$8:$E$8=\"CAPACITY BUILDING - CAP\",'Individual Cost Statement'!$E$8:$E$8=\"CLIMA - CCA\",'Individual Cost Statement'!$E$8:$E$8=\"CLIMA - CCM\",'Individual Cost Statement'!$E$8:$E$8=\"CLIMA - GIC\",'Individual Cost Statement'!$E$8:$E$8=\"ENVIRONMENT - ENV\",'Individual Cost Statement'!$E$8:$E$8=\"ENVIRONMENT - GIE\",'Individual Cost Statement'!$E$8:$E$8=\"TECHNICAL ASSISTANCE – TA\"),IF((O23/M23)>0.25,\"Please adjust manually the depreciation amounts in cells D8 and D9 in line with the applicable maximum authorised (25% for infrastructure)\",\" \"),IF(OR('Individual Cost Statement'!$E$8:$E$8=\"ENVIRONMENT - NAT\",'Individual Cost Statement'!$E$8:$E$8=\"INTEGRATED PROJECT - IP\"),IF((O23/M23)>0.25,\"Unless the appropriate certificate has been signed, please adjust manually the depreciation amounts in cells D8 and D9 in line with the applicable maximum authorised (25% for infrastructure)\",\" \"))))","v":" "}," "]
[17,null,null,null,null,null,null,null,null,null,{"$f":"IF(AND('Individual Cost Statement'!$D$25:$D$25=\"Not applicable (all costs in EURO)\",G24>0),1,IF(AND('Individual Cost Statement'!$D$25:$D$25=\"Date when costs incurred\",G24>0),0,'Individual Cost Statement'!$F$26))","v":0}," "," "," "," ",null,{"$f":"IF(K24>0,\" \",IF(AND('Individual Cost Statement'!$D$25:$D$25=\"Date when costs incurred\",G24>0),\"ENCODE Exchange rate !\",\" \"))","v":" "},{"$f":"IF(O24=\" \",\" \",IF(OR('Individual Cost Statement'!$E$8:$E$8=\"CAPACITY BUILDING - CAP\",'Individual Cost Statement'!$E$8:$E$8=\"CLIMA - CCA\",'Individual Cost Statement'!$E$8:$E$8=\"CLIMA - CCM\",'Individual Cost Statement'!$E$8:$E$8=\"CLIMA - GIC\",'Individual Cost Statement'!$E$8:$E$8=\"ENVIRONMENT - ENV\",'Individual Cost Statement'!$E$8:$E$8=\"ENVIRONMENT - GIE\",'Individual Cost Statement'!$E$8:$E$8=\"TECHNICAL ASSISTANCE – TA\"),IF((O24/M24)>0.25,\"Please adjust manually the depreciation amounts in cells D8 and D9 in line with the applicable maximum authorised (25% for infrastructure)\",\" \"),IF(OR('Individual Cost Statement'!$E$8:$E$8=\"ENVIRONMENT - NAT\",'Individual Cost Statement'!$E$8:$E$8=\"INTEGRATED PROJECT - IP\"),IF((O24/M24)>0.25,\"Unless the appropriate certificate has been signed, please adjust manually the depreciation amounts in cells D8 and D9 in line with the applicable maximum authorised (25% for infrastructure)\",\" \"))))","v":" "}," "]
[18,null,null,null,null,null,null,null,null,null,{"$f":"IF(AND('Individual Cost Statement'!$D$25:$D$25=\"Not applicable (all costs in EURO)\",G25>0),1,IF(AND('Individual Cost Statement'!$D$25:$D$25=\"Date when costs incurred\",G25>0),0,'Individual Cost Statement'!$F$26))","v":0}," "," "," "," ",null,{"$f":"IF(K25>0,\" \",IF(AND('Individual Cost Statement'!$D$25:$D$25=\"Date when costs incurred\",G25>0),\"ENCODE Exchange rate !\",\" \"))","v":" "},{"$f":"IF(O25=\" \",\" \",IF(OR('Individual Cost Statement'!$E$8:$E$8=\"CAPACITY BUILDING - CAP\",'Individual Cost Statement'!$E$8:$E$8=\"CLIMA - CCA\",'Individual Cost Statement'!$E$8:$E$8=\"CLIMA - CCM\",'Individual Cost Statement'!$E$8:$E$8=\"CLIMA - GIC\",'Individual Cost Statement'!$E$8:$E$8=\"ENVIRONMENT - ENV\",'Individual Cost Statement'!$E$8:$E$8=\"ENVIRONMENT - GIE\",'Individual Cost Statement'!$E$8:$E$8=\"TECHNICAL ASSISTANCE – TA\"),IF((O25/M25)>0.25,\"Please adjust manually the depreciation amounts in cells D8 and D9 in line with the applicable maximum authorised (25% for infrastructure)\",\" \"),IF(OR('Individual Cost Statement'!$E$8:$E$8=\"ENVIRONMENT - NAT\",'Individual Cost Statement'!$E$8:$E$8=\"INTEGRATED PROJECT - IP\"),IF((O25/M25)>0.25,\"Unless the appropriate certificate has been signed, please adjust manually the depreciation amounts in cells D8 and D9 in line with the applicable maximum authorised (25% for infrastructure)\",\" \"))))","v":" "}," "]
[19,null,null,null,null,null,null,null,null,null,{"$f":"IF(AND('Individual Cost Statement'!$D$25:$D$25=\"Not applicable (all costs in EURO)\",G26>0),1,IF(AND('Individual Cost Statement'!$D$25:$D$25=\"Date when costs incurred\",G26>0),0,'Individual Cost Statement'!$F$26))","v":0}," "," "," "," ",null,{"$f":"IF(K26>0,\" \",IF(AND('Individual Cost Statement'!$D$25:$D$25=\"Date when costs incurred\",G26>0),\"ENCODE Exchange rate !\",\" \"))","v":" "},{"$f":"IF(O26=\" \",\" \",IF(OR('Individual Cost Statement'!$E$8:$E$8=\"CAPACITY BUILDING - CAP\",'Individual Cost Statement'!$E$8:$E$8=\"CLIMA - CCA\",'Individual Cost Statement'!$E$8:$E$8=\"CLIMA - CCM\",'Individual Cost Statement'!$E$8:$E$8=\"CLIMA - GIC\",'Individual Cost Statement'!$E$8:$E$8=\"ENVIRONMENT - ENV\",'Individual Cost Statement'!$E$8:$E$8=\"ENVIRONMENT - GIE\",'Individual Cost Statement'!$E$8:$E$8=\"TECHNICAL ASSISTANCE – TA\"),IF((O26/M26)>0.25,\"Please adjust manually the depreciation amounts in cells D8 and D9 in line with the applicable maximum authorised (25% for infrastructure)\",\" \"),IF(OR('Individual Cost Statement'!$E$8:$E$8=\"ENVIRONMENT - NAT\",'Individual Cost Statement'!$E$8:$E$8=\"INTEGRATED PROJECT - IP\"),IF((O26/M26)>0.25,\"Unless the appropriate certificate has been signed, please adjust manually the depreciation amounts in cells D8 and D9 in line with the applicable maximum authorised (25% for infrastructure)\",\" \"))))","v":" "}," "]
[20,null,null,null,null,null,null,null,null,null,{"$f":"IF(AND('Individual Cost Statement'!$D$25:$D$25=\"Not applicable (all costs in EURO)\",G27>0),1,IF(AND('Individual Cost Statement'!$D$25:$D$25=\"Date when costs incurred\",G27>0),0,'Individual Cost Statement'!$F$26))","v":0}," "," "," "," ",null,{"$f":"IF(K27>0,\" \",IF(AND('Individual Cost Statement'!$D$25:$D$25=\"Date when costs incurred\",G27>0),\"ENCODE Exchange rate !\",\" \"))","v":" "},{"$f":"IF(O27=\" \",\" \",IF(OR('Individual Cost Statement'!$E$8:$E$8=\"CAPACITY BUILDING - CAP\",'Individual Cost Statement'!$E$8:$E$8=\"CLIMA - CCA\",'Individual Cost Statement'!$E$8:$E$8=\"CLIMA - CCM\",'Individual Cost Statement'!$E$8:$E$8=\"CLIMA - GIC\",'Individual Cost Statement'!$E$8:$E$8=\"ENVIRONMENT - ENV\",'Individual Cost Statement'!$E$8:$E$8=\"ENVIRONMENT - GIE\",'Individual Cost Statement'!$E$8:$E$8=\"TECHNICAL ASSISTANCE – TA\"),IF((O27/M27)>0.25,\"Please adjust manually the depreciation amounts in cells D8 and D9 in line with the applicable maximum authorised (25% for infrastructure)\",\" \"),IF(OR('Individual Cost Statement'!$E$8:$E$8=\"ENVIRONMENT - NAT\",'Individual Cost Statement'!$E$8:$E$8=\"INTEGRATED PROJECT - IP\"),IF((O27/M27)>0.25,\"Unless the appropriate certificate has been signed, please adjust manually the depreciation amounts in cells D8 and D9 in line with the applicable maximum authorised (25% for infrastructure)\",\" \"))))","v":" "}," "]
[21,null,null,null,null,null,null,null,null,null,{"$f":"IF(AND('Individual Cost Statement'!$D$25:$D$25=\"Not applicable (all costs in EURO)\",G28>0),1,IF(AND('Individual Cost Statement'!$D$25:$D$25=\"Date when costs incurred\",G28>0),0,'Individual Cost Statement'!$F$26))","v":0}," "," "," "," ",null,{"$f":"IF(K28>0,\" \",IF(AND('Individual Cost Statement'!$D$25:$D$25=\"Date when costs incurred\",G28>0),\"ENCODE Exchange rate !\",\" \"))","v":" "},{"$f":"IF(O28=\" \",\" \",IF(OR('Individual Cost Statement'!$E$8:$E$8=\"CAPACITY BUILDING - CAP\",'Individual Cost Statement'!$E$8:$E$8=\"CLIMA - CCA\",'Individual Cost Statement'!$E$8:$E$8=\"CLIMA - CCM\",'Individual Cost Statement'!$E$8:$E$8=\"CLIMA - GIC\",'Individual Cost Statement'!$E$8:$E$8=\"ENVIRONMENT - ENV\",'Individual Cost Statement'!$E$8:$E$8=\"ENVIRONMENT - GIE\",'Individual Cost Statement'!$E$8:$E$8=\"TECHNICAL ASSISTANCE – TA\"),IF((O28/M28)>0.25,\"Please adjust manually the depreciation amounts in cells D8 and D9 in line with the applicable maximum authorised (25% for infrastructure)\",\" \"),IF(OR('Individual Cost Statement'!$E$8:$E$8=\"ENVIRONMENT - NAT\",'Individual Cost Statement'!$E$8:$E$8=\"INTEGRATED PROJECT - IP\"),IF((O28/M28)>0.25,\"Unless the appropriate certificate has been signed, please adjust manually the depreciation amounts in cells D8 and D9 in line with the applicable maximum authorised (25% for infrastructure)\",\" \"))))","v":" "}," "]
[22,null,null,null,null,null,null,null,null,null,{"$f":"IF(AND('Individual Cost Statement'!$D$25:$D$25=\"Not applicable (all costs in EURO)\",G29>0),1,IF(AND('Individual Cost Statement'!$D$25:$D$25=\"Date when costs incurred\",G29>0),0,'Individual Cost Statement'!$F$26))","v":0}," "," "," "," ",null,{"$f":"IF(K29>0,\" \",IF(AND('Individual Cost Statement'!$D$25:$D$25=\"Date when costs incurred\",G29>0),\"ENCODE Exchange rate !\",\" \"))","v":" "},{"$f":"IF(O29=\" \",\" \",IF(OR('Individual Cost Statement'!$E$8:$E$8=\"CAPACITY BUILDING - CAP\",'Individual Cost Statement'!$E$8:$E$8=\"CLIMA - CCA\",'Individual Cost Statement'!$E$8:$E$8=\"CLIMA - CCM\",'Individual Cost Statement'!$E$8:$E$8=\"CLIMA - GIC\",'Individual Cost Statement'!$E$8:$E$8=\"ENVIRONMENT - ENV\",'Individual Cost Statement'!$E$8:$E$8=\"ENVIRONMENT - GIE\",'Individual Cost Statement'!$E$8:$E$8=\"TECHNICAL ASSISTANCE – TA\"),IF((O29/M29)>0.25,\"Please adjust manually the depreciation amounts in cells D8 and D9 in line with the applicable maximum authorised (25% for infrastructure)\",\" \"),IF(OR('Individual Cost Statement'!$E$8:$E$8=\"ENVIRONMENT - NAT\",'Individual Cost Statement'!$E$8:$E$8=\"INTEGRATED PROJECT - IP\"),IF((O29/M29)>0.25,\"Unless the appropriate certificate has been signed, please adjust manually the depreciation amounts in cells D8 and D9 in line with the applicable maximum authorised (25% for infrastructure)\",\" \"))))","v":" "}," "]
[23,null,null,null,null,null,null,null,null,null,{"$f":"IF(AND('Individual Cost Statement'!$D$25:$D$25=\"Not applicable (all costs in EURO)\",G30>0),1,IF(AND('Individual Cost Statement'!$D$25:$D$25=\"Date when costs incurred\",G30>0),0,'Individual Cost Statement'!$F$26))","v":0}," "," "," "," ",null,{"$f":"IF(K30>0,\" \",IF(AND('Individual Cost Statement'!$D$25:$D$25=\"Date when costs incurred\",G30>0),\"ENCODE Exchange rate !\",\" \"))","v":" "},{"$f":"IF(O30=\" \",\" \",IF(OR('Individual Cost Statement'!$E$8:$E$8=\"CAPACITY BUILDING - CAP\",'Individual Cost Statement'!$E$8:$E$8=\"CLIMA - CCA\",'Individual Cost Statement'!$E$8:$E$8=\"CLIMA - CCM\",'Individual Cost Statement'!$E$8:$E$8=\"CLIMA - GIC\",'Individual Cost Statement'!$E$8:$E$8=\"ENVIRONMENT - ENV\",'Individual Cost Statement'!$E$8:$E$8=\"ENVIRONMENT - GIE\",'Individual Cost Statement'!$E$8:$E$8=\"TECHNICAL ASSISTANCE – TA\"),IF((O30/M30)>0.25,\"Please adjust manually the depreciation amounts in cells D8 and D9 in line with the applicable maximum authorised (25% for infrastructure)\",\" \"),IF(OR('Individual Cost Statement'!$E$8:$E$8=\"ENVIRONMENT - NAT\",'Individual Cost Statement'!$E$8:$E$8=\"INTEGRATED PROJECT - IP\"),IF((O30/M30)>0.25,\"Unless the appropriate certificate has been signed, please adjust manually the depreciation amounts in cells D8 and D9 in line with the applicable maximum authorised (25% for infrastructure)\",\" \"))))","v":" "}," "]
[24,null,null,null,null,null,null,null,null,null,{"$f":"IF(AND('Individual Cost Statement'!$D$25:$D$25=\"Not applicable (all costs in EURO)\",G31>0),1,IF(AND('Individual Cost Statement'!$D$25:$D$25=\"Date when costs incurred\",G31>0),0,'Individual Cost Statement'!$F$26))","v":0}," "," "," "," ",null,{"$f":"IF(K31>0,\" \",IF(AND('Individual Cost Statement'!$D$25:$D$25=\"Date when costs incurred\",G31>0),\"ENCODE Exchange rate !\",\" \"))","v":" "},{"$f":"IF(O31=\" \",\" \",IF(OR('Individual Cost Statement'!$E$8:$E$8=\"CAPACITY BUILDING - CAP\",'Individual Cost Statement'!$E$8:$E$8=\"CLIMA - CCA\",'Individual Cost Statement'!$E$8:$E$8=\"CLIMA - CCM\",'Individual Cost Statement'!$E$8:$E$8=\"CLIMA - GIC\",'Individual Cost Statement'!$E$8:$E$8=\"ENVIRONMENT - ENV\",'Individual Cost Statement'!$E$8:$E$8=\"ENVIRONMENT - GIE\",'Individual Cost Statement'!$E$8:$E$8=\"TECHNICAL ASSISTANCE – TA\"),IF((O31/M31)>0.25,\"Please adjust manually the depreciation amounts in cells D8 and D9 in line with the applicable maximum authorised (25% for infrastructure)\",\" \"),IF(OR('Individual Cost Statement'!$E$8:$E$8=\"ENVIRONMENT - NAT\",'Individual Cost Statement'!$E$8:$E$8=\"INTEGRATED PROJECT - IP\"),IF((O31/M31)>0.25,\"Unless the appropriate certificate has been signed, please adjust manually the depreciation amounts in cells D8 and D9 in line with the applicable maximum authorised (25% for infrastructure)\",\" \"))))","v":" "}," "]
[25,null,null,null,null,null,null,null,null,null,{"$f":"IF(AND('Individual Cost Statement'!$D$25:$D$25=\"Not applicable (all costs in EURO)\",G32>0),1,IF(AND('Individual Cost Statement'!$D$25:$D$25=\"Date when costs incurred\",G32>0),0,'Individual Cost Statement'!$F$26))","v":0}," "," "," "," ",null,{"$f":"IF(K32>0,\" \",IF(AND('Individual Cost Statement'!$D$25:$D$25=\"Date when costs incurred\",G32>0),\"ENCODE Exchange rate !\",\" \"))","v":" "},{"$f":"IF(O32=\" \",\" \",IF(OR('Individual Cost Statement'!$E$8:$E$8=\"CAPACITY BUILDING - CAP\",'Individual Cost Statement'!$E$8:$E$8=\"CLIMA - CCA\",'Individual Cost Statement'!$E$8:$E$8=\"CLIMA - CCM\",'Individual Cost Statement'!$E$8:$E$8=\"CLIMA - GIC\",'Individual Cost Statement'!$E$8:$E$8=\"ENVIRONMENT - ENV\",'Individual Cost Statement'!$E$8:$E$8=\"ENVIRONMENT - GIE\",'Individual Cost Statement'!$E$8:$E$8=\"TECHNICAL ASSISTANCE – TA\"),IF((O32/M32)>0.25,\"Please adjust manually the depreciation amounts in cells D8 and D9 in line with the applicable maximum authorised (25% for infrastructure)\",\" \"),IF(OR('Individual Cost Statement'!$E$8:$E$8=\"ENVIRONMENT - NAT\",'Individual Cost Statement'!$E$8:$E$8=\"INTEGRATED PROJECT - IP\"),IF((O32/M32)>0.25,\"Unless the appropriate certificate has been signed, please adjust manually the depreciation amounts in cells D8 and D9 in line with the applicable maximum authorised (25% for infrastructure)\",\" \"))))","v":" "}," "]
[26,null,null,null,null,null,null,null,null,null,{"$f":"IF(AND('Individual Cost Statement'!$D$25:$D$25=\"Not applicable (all costs in EURO)\",G33>0),1,IF(AND('Individual Cost Statement'!$D$25:$D$25=\"Date when costs incurred\",G33>0),0,'Individual Cost Statement'!$F$26))","v":0}," "," "," "," ",null,{"$f":"IF(K33>0,\" \",IF(AND('Individual Cost Statement'!$D$25:$D$25=\"Date when costs incurred\",G33>0),\"ENCODE Exchange rate !\",\" \"))","v":" "},{"$f":"IF(O33=\" \",\" \",IF(OR('Individual Cost Statement'!$E$8:$E$8=\"CAPACITY BUILDING - CAP\",'Individual Cost Statement'!$E$8:$E$8=\"CLIMA - CCA\",'Individual Cost Statement'!$E$8:$E$8=\"CLIMA - CCM\",'Individual Cost Statement'!$E$8:$E$8=\"CLIMA - GIC\",'Individual Cost Statement'!$E$8:$E$8=\"ENVIRONMENT - ENV\",'Individual Cost Statement'!$E$8:$E$8=\"ENVIRONMENT - GIE\",'Individual Cost Statement'!$E$8:$E$8=\"TECHNICAL ASSISTANCE – TA\"),IF((O33/M33)>0.25,\"Please adjust manually the depreciation amounts in cells D8 and D9 in line with the applicable maximum authorised (25% for infrastructure)\",\" \"),IF(OR('Individual Cost Statement'!$E$8:$E$8=\"ENVIRONMENT - NAT\",'Individual Cost Statement'!$E$8:$E$8=\"INTEGRATED PROJECT - IP\"),IF((O33/M33)>0.25,\"Unless the appropriate certificate has been signed, please adjust manually the depreciation amounts in cells D8 and D9 in line with the applicable maximum authorised (25% for infrastructure)\",\" \"))))","v":" "}," "]
[27,null,null,null,null,null,null,null,null,null,{"$f":"IF(AND('Individual Cost Statement'!$D$25:$D$25=\"Not applicable (all costs in EURO)\",G34>0),1,IF(AND('Individual Cost Statement'!$D$25:$D$25=\"Date when costs incurred\",G34>0),0,'Individual Cost Statement'!$F$26))","v":0}," "," "," "," ",null,{"$f":"IF(K34>0,\" \",IF(AND('Individual Cost Statement'!$D$25:$D$25=\"Date when costs incurred\",G34>0),\"ENCODE Exchange rate !\",\" \"))","v":" "},{"$f":"IF(O34=\" \",\" \",IF(OR('Individual Cost Statement'!$E$8:$E$8=\"CAPACITY BUILDING - CAP\",'Individual Cost Statement'!$E$8:$E$8=\"CLIMA - CCA\",'Individual Cost Statement'!$E$8:$E$8=\"CLIMA - CCM\",'Individual Cost Statement'!$E$8:$E$8=\"CLIMA - GIC\",'Individual Cost Statement'!$E$8:$E$8=\"ENVIRONMENT - ENV\",'Individual Cost Statement'!$E$8:$E$8=\"ENVIRONMENT - GIE\",'Individual Cost Statement'!$E$8:$E$8=\"TECHNICAL ASSISTANCE – TA\"),IF((O34/M34)>0.25,\"Please adjust manually the depreciation amounts in cells D8 and D9 in line with the applicable maximum authorised (25% for infrastructure)\",\" \"),IF(OR('Individual Cost Statement'!$E$8:$E$8=\"ENVIRONMENT - NAT\",'Individual Cost Statement'!$E$8:$E$8=\"INTEGRATED PROJECT - IP\"),IF((O34/M34)>0.25,\"Unless the appropriate certificate has been signed, please adjust manually the depreciation amounts in cells D8 and D9 in line with the applicable maximum authorised (25% for infrastructure)\",\" \"))))","v":" "}," "]
[28,null,null,null,null,null,null,null,null,null,{"$f":"IF(AND('Individual Cost Statement'!$D$25:$D$25=\"Not applicable (all costs in EURO)\",G35>0),1,IF(AND('Individual Cost Statement'!$D$25:$D$25=\"Date when costs incurred\",G35>0),0,'Individual Cost Statement'!$F$26))","v":0}," "," "," "," ",null,{"$f":"IF(K35>0,\" \",IF(AND('Individual Cost Statement'!$D$25:$D$25=\"Date when costs incurred\",G35>0),\"ENCODE Exchange rate !\",\" \"))","v":" "},{"$f":"IF(O35=\" \",\" \",IF(OR('Individual Cost Statement'!$E$8:$E$8=\"CAPACITY BUILDING - CAP\",'Individual Cost Statement'!$E$8:$E$8=\"CLIMA - CCA\",'Individual Cost Statement'!$E$8:$E$8=\"CLIMA - CCM\",'Individual Cost Statement'!$E$8:$E$8=\"CLIMA - GIC\",'Individual Cost Statement'!$E$8:$E$8=\"ENVIRONMENT - ENV\",'Individual Cost Statement'!$E$8:$E$8=\"ENVIRONMENT - GIE\",'Individual Cost Statement'!$E$8:$E$8=\"TECHNICAL ASSISTANCE – TA\"),IF((O35/M35)>0.25,\"Please adjust manually the depreciation amounts in cells D8 and D9 in line with the applicable maximum authorised (25% for infrastructure)\",\" \"),IF(OR('Individual Cost Statement'!$E$8:$E$8=\"ENVIRONMENT - NAT\",'Individual Cost Statement'!$E$8:$E$8=\"INTEGRATED PROJECT - IP\"),IF((O35/M35)>0.25,\"Unless the appropriate certificate has been signed, please adjust manually the depreciation amounts in cells D8 and D9 in line with the applicable maximum authorised (25% for infrastructure)\",\" \"))))","v":" "}," "]
[29,null,null,null,null,null,null,null,null,null,{"$f":"IF(AND('Individual Cost Statement'!$D$25:$D$25=\"Not applicable (all costs in EURO)\",G36>0),1,IF(AND('Individual Cost Statement'!$D$25:$D$25=\"Date when costs incurred\",G36>0),0,'Individual Cost Statement'!$F$26))","v":0}," "," "," "," ",null,{"$f":"IF(K36>0,\" \",IF(AND('Individual Cost Statement'!$D$25:$D$25=\"Date when costs incurred\",G36>0),\"ENCODE Exchange rate !\",\" \"))","v":" "},{"$f":"IF(O36=\" \",\" \",IF(OR('Individual Cost Statement'!$E$8:$E$8=\"CAPACITY BUILDING - CAP\",'Individual Cost Statement'!$E$8:$E$8=\"CLIMA - CCA\",'Individual Cost Statement'!$E$8:$E$8=\"CLIMA - CCM\",'Individual Cost Statement'!$E$8:$E$8=\"CLIMA - GIC\",'Individual Cost Statement'!$E$8:$E$8=\"ENVIRONMENT - ENV\",'Individual Cost Statement'!$E$8:$E$8=\"ENVIRONMENT - GIE\",'Individual Cost Statement'!$E$8:$E$8=\"TECHNICAL ASSISTANCE – TA\"),IF((O36/M36)>0.25,\"Please adjust manually the depreciation amounts in cells D8 and D9 in line with the applicable maximum authorised (25% for infrastructure)\",\" \"),IF(OR('Individual Cost Statement'!$E$8:$E$8=\"ENVIRONMENT - NAT\",'Individual Cost Statement'!$E$8:$E$8=\"INTEGRATED PROJECT - IP\"),IF((O36/M36)>0.25,\"Unless the appropriate certificate has been signed, please adjust manually the depreciation amounts in cells D8 and D9 in line with the applicable maximum authorised (25% for infrastructure)\",\" \"))))","v":" "}," "]
[30,null,null,null,null,null,null,null,null,null,{"$f":"IF(AND('Individual Cost Statement'!$D$25:$D$25=\"Not applicable (all costs in EURO)\",G37>0),1,IF(AND('Individual Cost Statement'!$D$25:$D$25=\"Date when costs incurred\",G37>0),0,'Individual Cost Statement'!$F$26))","v":0}," "," "," "," ",null,{"$f":"IF(K37>0,\" \",IF(AND('Individual Cost Statement'!$D$25:$D$25=\"Date when costs incurred\",G37>0),\"ENCODE Exchange rate !\",\" \"))","v":" "},{"$f":"IF(O37=\" \",\" \",IF(OR('Individual Cost Statement'!$E$8:$E$8=\"CAPACITY BUILDING - CAP\",'Individual Cost Statement'!$E$8:$E$8=\"CLIMA - CCA\",'Individual Cost Statement'!$E$8:$E$8=\"CLIMA - CCM\",'Individual Cost Statement'!$E$8:$E$8=\"CLIMA - GIC\",'Individual Cost Statement'!$E$8:$E$8=\"ENVIRONMENT - ENV\",'Individual Cost Statement'!$E$8:$E$8=\"ENVIRONMENT - GIE\",'Individual Cost Statement'!$E$8:$E$8=\"TECHNICAL ASSISTANCE – TA\"),IF((O37/M37)>0.25,\"Please adjust manually the depreciation amounts in cells D8 and D9 in line with the applicable maximum authorised (25% for infrastructure)\",\" \"),IF(OR('Individual Cost Statement'!$E$8:$E$8=\"ENVIRONMENT - NAT\",'Individual Cost Statement'!$E$8:$E$8=\"INTEGRATED PROJECT - IP\"),IF((O37/M37)>0.25,\"Unless the appropriate certificate has been signed, please adjust manually the depreciation amounts in cells D8 and D9 in line with the applicable maximum authorised (25% for infrastructure)\",\" \"))))","v":" "}," "]
[31,null,null,null,null,null,null,null,null,null,{"$f":"IF(AND('Individual Cost Statement'!$D$25:$D$25=\"Not applicable (all costs in EURO)\",G38>0),1,IF(AND('Individual Cost Statement'!$D$25:$D$25=\"Date when costs incurred\",G38>0),0,'Individual Cost Statement'!$F$26))","v":0}," "," "," "," ",null,{"$f":"IF(K38>0,\" \",IF(AND('Individual Cost Statement'!$D$25:$D$25=\"Date when costs incurred\",G38>0),\"ENCODE Exchange rate !\",\" \"))","v":" "},{"$f":"IF(O38=\" \",\" \",IF(OR('Individual Cost Statement'!$E$8:$E$8=\"CAPACITY BUILDING - CAP\",'Individual Cost Statement'!$E$8:$E$8=\"CLIMA - CCA\",'Individual Cost Statement'!$E$8:$E$8=\"CLIMA - CCM\",'Individual Cost Statement'!$E$8:$E$8=\"CLIMA - GIC\",'Individual Cost Statement'!$E$8:$E$8=\"ENVIRONMENT - ENV\",'Individual Cost Statement'!$E$8:$E$8=\"ENVIRONMENT - GIE\",'Individual Cost Statement'!$E$8:$E$8=\"TECHNICAL ASSISTANCE – TA\"),IF((O38/M38)>0.25,\"Please adjust manually the depreciation amounts in cells D8 and D9 in line with the applicable maximum authorised (25% for infrastructure)\",\" \"),IF(OR('Individual Cost Statement'!$E$8:$E$8=\"ENVIRONMENT - NAT\",'Individual Cost Statement'!$E$8:$E$8=\"INTEGRATED PROJECT - IP\"),IF((O38/M38)>0.25,\"Unless the appropriate certificate has been signed, please adjust manually the depreciation amounts in cells D8 and D9 in line with the applicable maximum authorised (25% for infrastructure)\",\" \"))))","v":" "}," "]
[32,null,null,null,null,null,null,null,null,null,{"$f":"IF(AND('Individual Cost Statement'!$D$25:$D$25=\"Not applicable (all costs in EURO)\",G39>0),1,IF(AND('Individual Cost Statement'!$D$25:$D$25=\"Date when costs incurred\",G39>0),0,'Individual Cost Statement'!$F$26))","v":0}," "," "," "," ",null,{"$f":"IF(K39>0,\" \",IF(AND('Individual Cost Statement'!$D$25:$D$25=\"Date when costs incurred\",G39>0),\"ENCODE Exchange rate !\",\" \"))","v":" "},{"$f":"IF(O39=\" \",\" \",IF(OR('Individual Cost Statement'!$E$8:$E$8=\"CAPACITY BUILDING - CAP\",'Individual Cost Statement'!$E$8:$E$8=\"CLIMA - CCA\",'Individual Cost Statement'!$E$8:$E$8=\"CLIMA - CCM\",'Individual Cost Statement'!$E$8:$E$8=\"CLIMA - GIC\",'Individual Cost Statement'!$E$8:$E$8=\"ENVIRONMENT - ENV\",'Individual Cost Statement'!$E$8:$E$8=\"ENVIRONMENT - GIE\",'Individual Cost Statement'!$E$8:$E$8=\"TECHNICAL ASSISTANCE – TA\"),IF((O39/M39)>0.25,\"Please adjust manually the depreciation amounts in cells D8 and D9 in line with the applicable maximum authorised (25% for infrastructure)\",\" \"),IF(OR('Individual Cost Statement'!$E$8:$E$8=\"ENVIRONMENT - NAT\",'Individual Cost Statement'!$E$8:$E$8=\"INTEGRATED PROJECT - IP\"),IF((O39/M39)>0.25,\"Unless the appropriate certificate has been signed, please adjust manually the depreciation amounts in cells D8 and D9 in line with the applicable maximum authorised (25% for infrastructure)\",\" \"))))","v":" "}," "]
[33,null,null,null,null,null,null,null,null,null,{"$f":"IF(AND('Individual Cost Statement'!$D$25:$D$25=\"Not applicable (all costs in EURO)\",G40>0),1,IF(AND('Individual Cost Statement'!$D$25:$D$25=\"Date when costs incurred\",G40>0),0,'Individual Cost Statement'!$F$26))","v":0}," "," "," "," ",null,{"$f":"IF(K40>0,\" \",IF(AND('Individual Cost Statement'!$D$25:$D$25=\"Date when costs incurred\",G40>0),\"ENCODE Exchange rate !\",\" \"))","v":" "},{"$f":"IF(O40=\" \",\" \",IF(OR('Individual Cost Statement'!$E$8:$E$8=\"CAPACITY BUILDING - CAP\",'Individual Cost Statement'!$E$8:$E$8=\"CLIMA - CCA\",'Individual Cost Statement'!$E$8:$E$8=\"CLIMA - CCM\",'Individual Cost Statement'!$E$8:$E$8=\"CLIMA - GIC\",'Individual Cost Statement'!$E$8:$E$8=\"ENVIRONMENT - ENV\",'Individual Cost Statement'!$E$8:$E$8=\"ENVIRONMENT - GIE\",'Individual Cost Statement'!$E$8:$E$8=\"TECHNICAL ASSISTANCE – TA\"),IF((O40/M40)>0.25,\"Please adjust manually the depreciation amounts in cells D8 and D9 in line with the applicable maximum authorised (25% for infrastructure)\",\" \"),IF(OR('Individual Cost Statement'!$E$8:$E$8=\"ENVIRONMENT - NAT\",'Individual Cost Statement'!$E$8:$E$8=\"INTEGRATED PROJECT - IP\"),IF((O40/M40)>0.25,\"Unless the appropriate certificate has been signed, please adjust manually the depreciation amounts in cells D8 and D9 in line with the applicable maximum authorised (25% for infrastructure)\",\" \"))))","v":" "}," "]
[34,null,null,null,null,null,null,null,null,null,{"$f":"IF(AND('Individual Cost Statement'!$D$25:$D$25=\"Not applicable (all costs in EURO)\",G41>0),1,IF(AND('Individual Cost Statement'!$D$25:$D$25=\"Date when costs incurred\",G41>0),0,'Individual Cost Statement'!$F$26))","v":0}," "," "," "," ",null,{"$f":"IF(K41>0,\" \",IF(AND('Individual Cost Statement'!$D$25:$D$25=\"Date when costs incurred\",G41>0),\"ENCODE Exchange rate !\",\" \"))","v":" "},{"$f":"IF(O41=\" \",\" \",IF(OR('Individual Cost Statement'!$E$8:$E$8=\"CAPACITY BUILDING - CAP\",'Individual Cost Statement'!$E$8:$E$8=\"CLIMA - CCA\",'Individual Cost Statement'!$E$8:$E$8=\"CLIMA - CCM\",'Individual Cost Statement'!$E$8:$E$8=\"CLIMA - GIC\",'Individual Cost Statement'!$E$8:$E$8=\"ENVIRONMENT - ENV\",'Individual Cost Statement'!$E$8:$E$8=\"ENVIRONMENT - GIE\",'Individual Cost Statement'!$E$8:$E$8=\"TECHNICAL ASSISTANCE – TA\"),IF((O41/M41)>0.25,\"Please adjust manually the depreciation amounts in cells D8 and D9 in line with the applicable maximum authorised (25% for infrastructure)\",\" \"),IF(OR('Individual Cost Statement'!$E$8:$E$8=\"ENVIRONMENT - NAT\",'Individual Cost Statement'!$E$8:$E$8=\"INTEGRATED PROJECT - IP\"),IF((O41/M41)>0.25,\"Unless the appropriate certificate has been signed, please adjust manually the depreciation amounts in cells D8 and D9 in line with the applicable maximum authorised (25% for infrastructure)\",\" \"))))","v":" "}," "]
[35,null,null,null,null,null,null,null,null,null,{"$f":"IF(AND('Individual Cost Statement'!$D$25:$D$25=\"Not applicable (all costs in EURO)\",G42>0),1,IF(AND('Individual Cost Statement'!$D$25:$D$25=\"Date when costs incurred\",G42>0),0,'Individual Cost Statement'!$F$26))","v":0}," "," "," "," ",null,{"$f":"IF(K42>0,\" \",IF(AND('Individual Cost Statement'!$D$25:$D$25=\"Date when costs incurred\",G42>0),\"ENCODE Exchange rate !\",\" \"))","v":" "},{"$f":"IF(O42=\" \",\" \",IF(OR('Individual Cost Statement'!$E$8:$E$8=\"CAPACITY BUILDING - CAP\",'Individual Cost Statement'!$E$8:$E$8=\"CLIMA - CCA\",'Individual Cost Statement'!$E$8:$E$8=\"CLIMA - CCM\",'Individual Cost Statement'!$E$8:$E$8=\"CLIMA - GIC\",'Individual Cost Statement'!$E$8:$E$8=\"ENVIRONMENT - ENV\",'Individual Cost Statement'!$E$8:$E$8=\"ENVIRONMENT - GIE\",'Individual Cost Statement'!$E$8:$E$8=\"TECHNICAL ASSISTANCE – TA\"),IF((O42/M42)>0.25,\"Please adjust manually the depreciation amounts in cells D8 and D9 in line with the applicable maximum authorised (25% for infrastructure)\",\" \"),IF(OR('Individual Cost Statement'!$E$8:$E$8=\"ENVIRONMENT - NAT\",'Individual Cost Statement'!$E$8:$E$8=\"INTEGRATED PROJECT - IP\"),IF((O42/M42)>0.25,\"Unless the appropriate certificate has been signed, please adjust manually the depreciation amounts in cells D8 and D9 in line with the applicable maximum authorised (25% for infrastructure)\",\" \"))))","v":" "}," "]
[36,null,null,null,null,null,null,null,null,null,{"$f":"IF(AND('Individual Cost Statement'!$D$25:$D$25=\"Not applicable (all costs in EURO)\",G43>0),1,IF(AND('Individual Cost Statement'!$D$25:$D$25=\"Date when costs incurred\",G43>0),0,'Individual Cost Statement'!$F$26))","v":0}," "," "," "," ",null,{"$f":"IF(K43>0,\" \",IF(AND('Individual Cost Statement'!$D$25:$D$25=\"Date when costs incurred\",G43>0),\"ENCODE Exchange rate !\",\" \"))","v":" "},{"$f":"IF(O43=\" \",\" \",IF(OR('Individual Cost Statement'!$E$8:$E$8=\"CAPACITY BUILDING - CAP\",'Individual Cost Statement'!$E$8:$E$8=\"CLIMA - CCA\",'Individual Cost Statement'!$E$8:$E$8=\"CLIMA - CCM\",'Individual Cost Statement'!$E$8:$E$8=\"CLIMA - GIC\",'Individual Cost Statement'!$E$8:$E$8=\"ENVIRONMENT - ENV\",'Individual Cost Statement'!$E$8:$E$8=\"ENVIRONMENT - GIE\",'Individual Cost Statement'!$E$8:$E$8=\"TECHNICAL ASSISTANCE – TA\"),IF((O43/M43)>0.25,\"Please adjust manually the depreciation amounts in cells D8 and D9 in line with the applicable maximum authorised (25% for infrastructure)\",\" \"),IF(OR('Individual Cost Statement'!$E$8:$E$8=\"ENVIRONMENT - NAT\",'Individual Cost Statement'!$E$8:$E$8=\"INTEGRATED PROJECT - IP\"),IF((O43/M43)>0.25,\"Unless the appropriate certificate has been signed, please adjust manually the depreciation amounts in cells D8 and D9 in line with the applicable maximum authorised (25% for infrastructure)\",\" \"))))","v":" "}," "]
[37,null,null,null,null,null,null,null,null,null,{"$f":"IF(AND('Individual Cost Statement'!$D$25:$D$25=\"Not applicable (all costs in EURO)\",G44>0),1,IF(AND('Individual Cost Statement'!$D$25:$D$25=\"Date when costs incurred\",G44>0),0,'Individual Cost Statement'!$F$26))","v":0}," "," "," "," ",null,{"$f":"IF(K44>0,\" \",IF(AND('Individual Cost Statement'!$D$25:$D$25=\"Date when costs incurred\",G44>0),\"ENCODE Exchange rate !\",\" \"))","v":" "},{"$f":"IF(O44=\" \",\" \",IF(OR('Individual Cost Statement'!$E$8:$E$8=\"CAPACITY BUILDING - CAP\",'Individual Cost Statement'!$E$8:$E$8=\"CLIMA - CCA\",'Individual Cost Statement'!$E$8:$E$8=\"CLIMA - CCM\",'Individual Cost Statement'!$E$8:$E$8=\"CLIMA - GIC\",'Individual Cost Statement'!$E$8:$E$8=\"ENVIRONMENT - ENV\",'Individual Cost Statement'!$E$8:$E$8=\"ENVIRONMENT - GIE\",'Individual Cost Statement'!$E$8:$E$8=\"TECHNICAL ASSISTANCE – TA\"),IF((O44/M44)>0.25,\"Please adjust manually the depreciation amounts in cells D8 and D9 in line with the applicable maximum authorised (25% for infrastructure)\",\" \"),IF(OR('Individual Cost Statement'!$E$8:$E$8=\"ENVIRONMENT - NAT\",'Individual Cost Statement'!$E$8:$E$8=\"INTEGRATED PROJECT - IP\"),IF((O44/M44)>0.25,\"Unless the appropriate certificate has been signed, please adjust manually the depreciation amounts in cells D8 and D9 in line with the applicable maximum authorised (25% for infrastructure)\",\" \"))))","v":" "}," "]
[38,null,null,null,null,null,null,null,null,null,{"$f":"IF(AND('Individual Cost Statement'!$D$25:$D$25=\"Not applicable (all costs in EURO)\",G45>0),1,IF(AND('Individual Cost Statement'!$D$25:$D$25=\"Date when costs incurred\",G45>0),0,'Individual Cost Statement'!$F$26))","v":0}," "," "," "," ",null,{"$f":"IF(K45>0,\" \",IF(AND('Individual Cost Statement'!$D$25:$D$25=\"Date when costs incurred\",G45>0),\"ENCODE Exchange rate !\",\" \"))","v":" "},{"$f":"IF(O45=\" \",\" \",IF(OR('Individual Cost Statement'!$E$8:$E$8=\"CAPACITY BUILDING - CAP\",'Individual Cost Statement'!$E$8:$E$8=\"CLIMA - CCA\",'Individual Cost Statement'!$E$8:$E$8=\"CLIMA - CCM\",'Individual Cost Statement'!$E$8:$E$8=\"CLIMA - GIC\",'Individual Cost Statement'!$E$8:$E$8=\"ENVIRONMENT - ENV\",'Individual Cost Statement'!$E$8:$E$8=\"ENVIRONMENT - GIE\",'Individual Cost Statement'!$E$8:$E$8=\"TECHNICAL ASSISTANCE – TA\"),IF((O45/M45)>0.25,\"Please adjust manually the depreciation amounts in cells D8 and D9 in line with the applicable maximum authorised (25% for infrastructure)\",\" \"),IF(OR('Individual Cost Statement'!$E$8:$E$8=\"ENVIRONMENT - NAT\",'Individual Cost Statement'!$E$8:$E$8=\"INTEGRATED PROJECT - IP\"),IF((O45/M45)>0.25,\"Unless the appropriate certificate has been signed, please adjust manually the depreciation amounts in cells D8 and D9 in line with the applicable maximum authorised (25% for infrastructure)\",\" \"))))","v":" "}," "]
[39,null,null,null,null,null,null,null,null,null,{"$f":"IF(AND('Individual Cost Statement'!$D$25:$D$25=\"Not applicable (all costs in EURO)\",G46>0),1,IF(AND('Individual Cost Statement'!$D$25:$D$25=\"Date when costs incurred\",G46>0),0,'Individual Cost Statement'!$F$26))","v":0}," "," "," "," ",null,{"$f":"IF(K46>0,\" \",IF(AND('Individual Cost Statement'!$D$25:$D$25=\"Date when costs incurred\",G46>0),\"ENCODE Exchange rate !\",\" \"))","v":" "},{"$f":"IF(O46=\" \",\" \",IF(OR('Individual Cost Statement'!$E$8:$E$8=\"CAPACITY BUILDING - CAP\",'Individual Cost Statement'!$E$8:$E$8=\"CLIMA - CCA\",'Individual Cost Statement'!$E$8:$E$8=\"CLIMA - CCM\",'Individual Cost Statement'!$E$8:$E$8=\"CLIMA - GIC\",'Individual Cost Statement'!$E$8:$E$8=\"ENVIRONMENT - ENV\",'Individual Cost Statement'!$E$8:$E$8=\"ENVIRONMENT - GIE\",'Individual Cost Statement'!$E$8:$E$8=\"TECHNICAL ASSISTANCE – TA\"),IF((O46/M46)>0.25,\"Please adjust manually the depreciation amounts in cells D8 and D9 in line with the applicable maximum authorised (25% for infrastructure)\",\" \"),IF(OR('Individual Cost Statement'!$E$8:$E$8=\"ENVIRONMENT - NAT\",'Individual Cost Statement'!$E$8:$E$8=\"INTEGRATED PROJECT - IP\"),IF((O46/M46)>0.25,\"Unless the appropriate certificate has been signed, please adjust manually the depreciation amounts in cells D8 and D9 in line with the applicable maximum authorised (25% for infrastructure)\",\" \"))))","v":" "}," "]
[40,null,null,null,null,null,null,null,null,null,{"$f":"IF(AND('Individual Cost Statement'!$D$25:$D$25=\"Not applicable (all costs in EURO)\",G47>0),1,IF(AND('Individual Cost Statement'!$D$25:$D$25=\"Date when costs incurred\",G47>0),0,'Individual Cost Statement'!$F$26))","v":0}," "," "," "," ",null,{"$f":"IF(K47>0,\" \",IF(AND('Individual Cost Statement'!$D$25:$D$25=\"Date when costs incurred\",G47>0),\"ENCODE Exchange rate !\",\" \"))","v":" "},{"$f":"IF(O47=\" \",\" \",IF(OR('Individual Cost Statement'!$E$8:$E$8=\"CAPACITY BUILDING - CAP\",'Individual Cost Statement'!$E$8:$E$8=\"CLIMA - CCA\",'Individual Cost Statement'!$E$8:$E$8=\"CLIMA - CCM\",'Individual Cost Statement'!$E$8:$E$8=\"CLIMA - GIC\",'Individual Cost Statement'!$E$8:$E$8=\"ENVIRONMENT - ENV\",'Individual Cost Statement'!$E$8:$E$8=\"ENVIRONMENT - GIE\",'Individual Cost Statement'!$E$8:$E$8=\"TECHNICAL ASSISTANCE – TA\"),IF((O47/M47)>0.25,\"Please adjust manually the depreciation amounts in cells D8 and D9 in line with the applicable maximum authorised (25% for infrastructure)\",\" \"),IF(OR('Individual Cost Statement'!$E$8:$E$8=\"ENVIRONMENT - NAT\",'Individual Cost Statement'!$E$8:$E$8=\"INTEGRATED PROJECT - IP\"),IF((O47/M47)>0.25,\"Unless the appropriate certificate has been signed, please adjust manually the depreciation amounts in cells D8 and D9 in line with the applicable maximum authorised (25% for infrastructure)\",\" \"))))","v":" "}," "]
[41,null,null,null,null,null,null,null,null,null,{"$f":"IF(AND('Individual Cost Statement'!$D$25:$D$25=\"Not applicable (all costs in EURO)\",G48>0),1,IF(AND('Individual Cost Statement'!$D$25:$D$25=\"Date when costs incurred\",G48>0),0,'Individual Cost Statement'!$F$26))","v":0}," "," "," "," ",null,{"$f":"IF(K48>0,\" \",IF(AND('Individual Cost Statement'!$D$25:$D$25=\"Date when costs incurred\",G48>0),\"ENCODE Exchange rate !\",\" \"))","v":" "},{"$f":"IF(O48=\" \",\" \",IF(OR('Individual Cost Statement'!$E$8:$E$8=\"CAPACITY BUILDING - CAP\",'Individual Cost Statement'!$E$8:$E$8=\"CLIMA - CCA\",'Individual Cost Statement'!$E$8:$E$8=\"CLIMA - CCM\",'Individual Cost Statement'!$E$8:$E$8=\"CLIMA - GIC\",'Individual Cost Statement'!$E$8:$E$8=\"ENVIRONMENT - ENV\",'Individual Cost Statement'!$E$8:$E$8=\"ENVIRONMENT - GIE\",'Individual Cost Statement'!$E$8:$E$8=\"TECHNICAL ASSISTANCE – TA\"),IF((O48/M48)>0.25,\"Please adjust manually the depreciation amounts in cells D8 and D9 in line with the applicable maximum authorised (25% for infrastructure)\",\" \"),IF(OR('Individual Cost Statement'!$E$8:$E$8=\"ENVIRONMENT - NAT\",'Individual Cost Statement'!$E$8:$E$8=\"INTEGRATED PROJECT - IP\"),IF((O48/M48)>0.25,\"Unless the appropriate certificate has been signed, please adjust manually the depreciation amounts in cells D8 and D9 in line with the applicable maximum authorised (25% for infrastructure)\",\" \"))))","v":" "}," "]
[42,null,null,null,null,null,null,null,null,null,{"$f":"IF(AND('Individual Cost Statement'!$D$25:$D$25=\"Not applicable (all costs in EURO)\",G49>0),1,IF(AND('Individual Cost Statement'!$D$25:$D$25=\"Date when costs incurred\",G49>0),0,'Individual Cost Statement'!$F$26))","v":0}," "," "," "," ",null,{"$f":"IF(K49>0,\" \",IF(AND('Individual Cost Statement'!$D$25:$D$25=\"Date when costs incurred\",G49>0),\"ENCODE Exchange rate !\",\" \"))","v":" "},{"$f":"IF(O49=\" \",\" \",IF(OR('Individual Cost Statement'!$E$8:$E$8=\"CAPACITY BUILDING - CAP\",'Individual Cost Statement'!$E$8:$E$8=\"CLIMA - CCA\",'Individual Cost Statement'!$E$8:$E$8=\"CLIMA - CCM\",'Individual Cost Statement'!$E$8:$E$8=\"CLIMA - GIC\",'Individual Cost Statement'!$E$8:$E$8=\"ENVIRONMENT - ENV\",'Individual Cost Statement'!$E$8:$E$8=\"ENVIRONMENT - GIE\",'Individual Cost Statement'!$E$8:$E$8=\"TECHNICAL ASSISTANCE – TA\"),IF((O49/M49)>0.25,\"Please adjust manually the depreciation amounts in cells D8 and D9 in line with the applicable maximum authorised (25% for infrastructure)\",\" \"),IF(OR('Individual Cost Statement'!$E$8:$E$8=\"ENVIRONMENT - NAT\",'Individual Cost Statement'!$E$8:$E$8=\"INTEGRATED PROJECT - IP\"),IF((O49/M49)>0.25,\"Unless the appropriate certificate has been signed, please adjust manually the depreciation amounts in cells D8 and D9 in line with the applicable maximum authorised (25% for infrastructure)\",\" \"))))","v":" "}," "]
[43,null,null,null,null,null,null,null,null,null,{"$f":"IF(AND('Individual Cost Statement'!$D$25:$D$25=\"Not applicable (all costs in EURO)\",G50>0),1,IF(AND('Individual Cost Statement'!$D$25:$D$25=\"Date when costs incurred\",G50>0),0,'Individual Cost Statement'!$F$26))","v":0}," "," "," "," ",null,{"$f":"IF(K50>0,\" \",IF(AND('Individual Cost Statement'!$D$25:$D$25=\"Date when costs incurred\",G50>0),\"ENCODE Exchange rate !\",\" \"))","v":" "},{"$f":"IF(O50=\" \",\" \",IF(OR('Individual Cost Statement'!$E$8:$E$8=\"CAPACITY BUILDING - CAP\",'Individual Cost Statement'!$E$8:$E$8=\"CLIMA - CCA\",'Individual Cost Statement'!$E$8:$E$8=\"CLIMA - CCM\",'Individual Cost Statement'!$E$8:$E$8=\"CLIMA - GIC\",'Individual Cost Statement'!$E$8:$E$8=\"ENVIRONMENT - ENV\",'Individual Cost Statement'!$E$8:$E$8=\"ENVIRONMENT - GIE\",'Individual Cost Statement'!$E$8:$E$8=\"TECHNICAL ASSISTANCE – TA\"),IF((O50/M50)>0.25,\"Please adjust manually the depreciation amounts in cells D8 and D9 in line with the applicable maximum authorised (25% for infrastructure)\",\" \"),IF(OR('Individual Cost Statement'!$E$8:$E$8=\"ENVIRONMENT - NAT\",'Individual Cost Statement'!$E$8:$E$8=\"INTEGRATED PROJECT - IP\"),IF((O50/M50)>0.25,\"Unless the appropriate certificate has been signed, please adjust manually the depreciation amounts in cells D8 and D9 in line with the applicable maximum authorised (25% for infrastructure)\",\" \"))))","v":" "}," "]
[44,null,null,null,null,null,null,null,null,null,{"$f":"IF(AND('Individual Cost Statement'!$D$25:$D$25=\"Not applicable (all costs in EURO)\",G51>0),1,IF(AND('Individual Cost Statement'!$D$25:$D$25=\"Date when costs incurred\",G51>0),0,'Individual Cost Statement'!$F$26))","v":0}," "," "," "," ",null,{"$f":"IF(K51>0,\" \",IF(AND('Individual Cost Statement'!$D$25:$D$25=\"Date when costs incurred\",G51>0),\"ENCODE Exchange rate !\",\" \"))","v":" "},{"$f":"IF(O51=\" \",\" \",IF(OR('Individual Cost Statement'!$E$8:$E$8=\"CAPACITY BUILDING - CAP\",'Individual Cost Statement'!$E$8:$E$8=\"CLIMA - CCA\",'Individual Cost Statement'!$E$8:$E$8=\"CLIMA - CCM\",'Individual Cost Statement'!$E$8:$E$8=\"CLIMA - GIC\",'Individual Cost Statement'!$E$8:$E$8=\"ENVIRONMENT - ENV\",'Individual Cost Statement'!$E$8:$E$8=\"ENVIRONMENT - GIE\",'Individual Cost Statement'!$E$8:$E$8=\"TECHNICAL ASSISTANCE – TA\"),IF((O51/M51)>0.25,\"Please adjust manually the depreciation amounts in cells D8 and D9 in line with the applicable maximum authorised (25% for infrastructure)\",\" \"),IF(OR('Individual Cost Statement'!$E$8:$E$8=\"ENVIRONMENT - NAT\",'Individual Cost Statement'!$E$8:$E$8=\"INTEGRATED PROJECT - IP\"),IF((O51/M51)>0.25,\"Unless the appropriate certificate has been signed, please adjust manually the depreciation amounts in cells D8 and D9 in line with the applicable maximum authorised (25% for infrastructure)\",\" \"))))","v":" "}," "]
[45,null,null,null,null,null,null,null,null,null,{"$f":"IF(AND('Individual Cost Statement'!$D$25:$D$25=\"Not applicable (all costs in EURO)\",G52>0),1,IF(AND('Individual Cost Statement'!$D$25:$D$25=\"Date when costs incurred\",G52>0),0,'Individual Cost Statement'!$F$26))","v":0}," "," "," "," ",null,{"$f":"IF(K52>0,\" \",IF(AND('Individual Cost Statement'!$D$25:$D$25=\"Date when costs incurred\",G52>0),\"ENCODE Exchange rate !\",\" \"))","v":" "},{"$f":"IF(O52=\" \",\" \",IF(OR('Individual Cost Statement'!$E$8:$E$8=\"CAPACITY BUILDING - CAP\",'Individual Cost Statement'!$E$8:$E$8=\"CLIMA - CCA\",'Individual Cost Statement'!$E$8:$E$8=\"CLIMA - CCM\",'Individual Cost Statement'!$E$8:$E$8=\"CLIMA - GIC\",'Individual Cost Statement'!$E$8:$E$8=\"ENVIRONMENT - ENV\",'Individual Cost Statement'!$E$8:$E$8=\"ENVIRONMENT - GIE\",'Individual Cost Statement'!$E$8:$E$8=\"TECHNICAL ASSISTANCE – TA\"),IF((O52/M52)>0.25,\"Please adjust manually the depreciation amounts in cells D8 and D9 in line with the applicable maximum authorised (25% for infrastructure)\",\" \"),IF(OR('Individual Cost Statement'!$E$8:$E$8=\"ENVIRONMENT - NAT\",'Individual Cost Statement'!$E$8:$E$8=\"INTEGRATED PROJECT - IP\"),IF((O52/M52)>0.25,\"Unless the appropriate certificate has been signed, please adjust manually the depreciation amounts in cells D8 and D9 in line with the applicable maximum authorised (25% for infrastructure)\",\" \"))))","v":" "}," "]
[46,null,null,null,null,null,null,null,null,null,{"$f":"IF(AND('Individual Cost Statement'!$D$25:$D$25=\"Not applicable (all costs in EURO)\",G53>0),1,IF(AND('Individual Cost Statement'!$D$25:$D$25=\"Date when costs incurred\",G53>0),0,'Individual Cost Statement'!$F$26))","v":0}," "," "," "," ",null,{"$f":"IF(K53>0,\" \",IF(AND('Individual Cost Statement'!$D$25:$D$25=\"Date when costs incurred\",G53>0),\"ENCODE Exchange rate !\",\" \"))","v":" "},{"$f":"IF(O53=\" \",\" \",IF(OR('Individual Cost Statement'!$E$8:$E$8=\"CAPACITY BUILDING - CAP\",'Individual Cost Statement'!$E$8:$E$8=\"CLIMA - CCA\",'Individual Cost Statement'!$E$8:$E$8=\"CLIMA - CCM\",'Individual Cost Statement'!$E$8:$E$8=\"CLIMA - GIC\",'Individual Cost Statement'!$E$8:$E$8=\"ENVIRONMENT - ENV\",'Individual Cost Statement'!$E$8:$E$8=\"ENVIRONMENT - GIE\",'Individual Cost Statement'!$E$8:$E$8=\"TECHNICAL ASSISTANCE – TA\"),IF((O53/M53)>0.25,\"Please adjust manually the depreciation amounts in cells D8 and D9 in line with the applicable maximum authorised (25% for infrastructure)\",\" \"),IF(OR('Individual Cost Statement'!$E$8:$E$8=\"ENVIRONMENT - NAT\",'Individual Cost Statement'!$E$8:$E$8=\"INTEGRATED PROJECT - IP\"),IF((O53/M53)>0.25,\"Unless the appropriate certificate has been signed, please adjust manually the depreciation amounts in cells D8 and D9 in line with the applicable maximum authorised (25% for infrastructure)\",\" \"))))","v":" "}," "]
[47,null,null,null,null,null,null,null,null,null,{"$f":"IF(AND('Individual Cost Statement'!$D$25:$D$25=\"Not applicable (all costs in EURO)\",G54>0),1,IF(AND('Individual Cost Statement'!$D$25:$D$25=\"Date when costs incurred\",G54>0),0,'Individual Cost Statement'!$F$26))","v":0}," "," "," "," ",null,{"$f":"IF(K54>0,\" \",IF(AND('Individual Cost Statement'!$D$25:$D$25=\"Date when costs incurred\",G54>0),\"ENCODE Exchange rate !\",\" \"))","v":" "},{"$f":"IF(O54=\" \",\" \",IF(OR('Individual Cost Statement'!$E$8:$E$8=\"CAPACITY BUILDING - CAP\",'Individual Cost Statement'!$E$8:$E$8=\"CLIMA - CCA\",'Individual Cost Statement'!$E$8:$E$8=\"CLIMA - CCM\",'Individual Cost Statement'!$E$8:$E$8=\"CLIMA - GIC\",'Individual Cost Statement'!$E$8:$E$8=\"ENVIRONMENT - ENV\",'Individual Cost Statement'!$E$8:$E$8=\"ENVIRONMENT - GIE\",'Individual Cost Statement'!$E$8:$E$8=\"TECHNICAL ASSISTANCE – TA\"),IF((O54/M54)>0.25,\"Please adjust manually the depreciation amounts in cells D8 and D9 in line with the applicable maximum authorised (25% for infrastructure)\",\" \"),IF(OR('Individual Cost Statement'!$E$8:$E$8=\"ENVIRONMENT - NAT\",'Individual Cost Statement'!$E$8:$E$8=\"INTEGRATED PROJECT - IP\"),IF((O54/M54)>0.25,\"Unless the appropriate certificate has been signed, please adjust manually the depreciation amounts in cells D8 and D9 in line with the applicable maximum authorised (25% for infrastructure)\",\" \"))))","v":" "}," "]
[48,null,null,null,null,null,null,null,null,null,{"$f":"IF(AND('Individual Cost Statement'!$D$25:$D$25=\"Not applicable (all costs in EURO)\",G55>0),1,IF(AND('Individual Cost Statement'!$D$25:$D$25=\"Date when costs incurred\",G55>0),0,'Individual Cost Statement'!$F$26))","v":0}," "," "," "," ",null,{"$f":"IF(K55>0,\" \",IF(AND('Individual Cost Statement'!$D$25:$D$25=\"Date when costs incurred\",G55>0),\"ENCODE Exchange rate !\",\" \"))","v":" "},{"$f":"IF(O55=\" \",\" \",IF(OR('Individual Cost Statement'!$E$8:$E$8=\"CAPACITY BUILDING - CAP\",'Individual Cost Statement'!$E$8:$E$8=\"CLIMA - CCA\",'Individual Cost Statement'!$E$8:$E$8=\"CLIMA - CCM\",'Individual Cost Statement'!$E$8:$E$8=\"CLIMA - GIC\",'Individual Cost Statement'!$E$8:$E$8=\"ENVIRONMENT - ENV\",'Individual Cost Statement'!$E$8:$E$8=\"ENVIRONMENT - GIE\",'Individual Cost Statement'!$E$8:$E$8=\"TECHNICAL ASSISTANCE – TA\"),IF((O55/M55)>0.25,\"Please adjust manually the depreciation amounts in cells D8 and D9 in line with the applicable maximum authorised (25% for infrastructure)\",\" \"),IF(OR('Individual Cost Statement'!$E$8:$E$8=\"ENVIRONMENT - NAT\",'Individual Cost Statement'!$E$8:$E$8=\"INTEGRATED PROJECT - IP\"),IF((O55/M55)>0.25,\"Unless the appropriate certificate has been signed, please adjust manually the depreciation amounts in cells D8 and D9 in line with the applicable maximum authorised (25% for infrastructure)\",\" \"))))","v":" "}," "]
[49,null,null,null,null,null,null,null,null,null,{"$f":"IF(AND('Individual Cost Statement'!$D$25:$D$25=\"Not applicable (all costs in EURO)\",G56>0),1,IF(AND('Individual Cost Statement'!$D$25:$D$25=\"Date when costs incurred\",G56>0),0,'Individual Cost Statement'!$F$26))","v":0}," "," "," "," ",null,{"$f":"IF(K56>0,\" \",IF(AND('Individual Cost Statement'!$D$25:$D$25=\"Date when costs incurred\",G56>0),\"ENCODE Exchange rate !\",\" \"))","v":" "},{"$f":"IF(O56=\" \",\" \",IF(OR('Individual Cost Statement'!$E$8:$E$8=\"CAPACITY BUILDING - CAP\",'Individual Cost Statement'!$E$8:$E$8=\"CLIMA - CCA\",'Individual Cost Statement'!$E$8:$E$8=\"CLIMA - CCM\",'Individual Cost Statement'!$E$8:$E$8=\"CLIMA - GIC\",'Individual Cost Statement'!$E$8:$E$8=\"ENVIRONMENT - ENV\",'Individual Cost Statement'!$E$8:$E$8=\"ENVIRONMENT - GIE\",'Individual Cost Statement'!$E$8:$E$8=\"TECHNICAL ASSISTANCE – TA\"),IF((O56/M56)>0.25,\"Please adjust manually the depreciation amounts in cells D8 and D9 in line with the applicable maximum authorised (25% for infrastructure)\",\" \"),IF(OR('Individual Cost Statement'!$E$8:$E$8=\"ENVIRONMENT - NAT\",'Individual Cost Statement'!$E$8:$E$8=\"INTEGRATED PROJECT - IP\"),IF((O56/M56)>0.25,\"Unless the appropriate certificate has been signed, please adjust manually the depreciation amounts in cells D8 and D9 in line with the applicable maximum authorised (25% for infrastructure)\",\" \"))))","v":" "}," "]
[50,null,null,null,null,null,null,null,null,null,{"$f":"IF(AND('Individual Cost Statement'!$D$25:$D$25=\"Not applicable (all costs in EURO)\",G57>0),1,IF(AND('Individual Cost Statement'!$D$25:$D$25=\"Date when costs incurred\",G57>0),0,'Individual Cost Statement'!$F$26))","v":0}," "," "," "," ",null,{"$f":"IF(K57>0,\" \",IF(AND('Individual Cost Statement'!$D$25:$D$25=\"Date when costs incurred\",G57>0),\"ENCODE Exchange rate !\",\" \"))","v":" "},{"$f":"IF(O57=\" \",\" \",IF(OR('Individual Cost Statement'!$E$8:$E$8=\"CAPACITY BUILDING - CAP\",'Individual Cost Statement'!$E$8:$E$8=\"CLIMA - CCA\",'Individual Cost Statement'!$E$8:$E$8=\"CLIMA - CCM\",'Individual Cost Statement'!$E$8:$E$8=\"CLIMA - GIC\",'Individual Cost Statement'!$E$8:$E$8=\"ENVIRONMENT - ENV\",'Individual Cost Statement'!$E$8:$E$8=\"ENVIRONMENT - GIE\",'Individual Cost Statement'!$E$8:$E$8=\"TECHNICAL ASSISTANCE – TA\"),IF((O57/M57)>0.25,\"Please adjust manually the depreciation amounts in cells D8 and D9 in line with the applicable maximum authorised (25% for infrastructure)\",\" \"),IF(OR('Individual Cost Statement'!$E$8:$E$8=\"ENVIRONMENT - NAT\",'Individual Cost Statement'!$E$8:$E$8=\"INTEGRATED PROJECT - IP\"),IF((O57/M57)>0.25,\"Unless the appropriate certificate has been signed, please adjust manually the depreciation amounts in cells D8 and D9 in line with the applicable maximum authorised (25% for infrastructure)\",\" \"))))","v":" "}," "]
["Total",null,null,null,null,null,null,null,null,null,null,{"$f":"SUM(L8:INDIRECT(\"L\"&ROW()-1))","v":0},{"$f":"SUM(M8:INDIRECT(\"M\"&ROW()-1))","v":0},{"$f":"SUM(N8:INDIRECT(\"N\"&ROW()-1))","v":0},{"$f":"SUM(O8:INDIRECT(\"O\"&ROW()-1))","v":0}]
[]
[]
[]
[]
[]
["Explanation of the content of each Column"]
["PLEASE FILL-IN ONLY BLUE CELLS"]
["A","Sequential number of the entries. "]
["B1","Date of invoice "]
["B2","Invoice number or reference number of another accounting document, with which the transaction is identified in the accounting system."]
["B3","Date of payment of the invoice"]
["C1","Name of the supplier - For beneficiaries declaring costs of affiliates in their individual statement, put here also a line with the name of the affiliate and include under column D8 & D9 the total depreciated infrastructure cost of the affiliate in EUR (with and without VAT) (according to its individual financial statement)"]
["C2","Description of the infrastructure. Please provide enough details in order to assess the eligibility of the cost item and include (if not fully used for project), the % used for the project and the total purchase cost as on the invoice"]
["D1","Invoiced amount in national currency without VAT"]
["D2","Invoiced amount in national currency with non-recoverable VAT"]
["D3","Depreciation rate expressed in number of months, in line with depreciation method applied further to accounting rules"]
["D4","Number of months the item was used during the current reporting period  - Please note that if the depreciation % is higher than the max. allowed (unless there is an exception for NAT/IP public and non-commercial entities) the max. nr of months to be encoded in D4 should be adjusted to 25% of the nr of months in D3"]
["D5","If costs are reported in Euro, where beneficiary keeps its general accounts in Euro, no exchange rate to include"]
["D5","If the currency of the reported costs is not EURO, where beneficiary keeps its general accounts in a currency other than Euro and the exchange rate option chosen is \"1st day after the end of reporting period\", the monthly exchange rate encoded in the individual Costs statement sheet will be automatically inserted. "]
["D5","If the currency of the reported costs is not EURO, where beneficiary keeps its general accounts in a currency other than Euro and the exchange rate option chosen is \"the day when the costs incurred\", please enter the monthly exchange rate published on the Commission website: http://ec.europa.eu/budget/contracts_grants/info_contracts/inforeuro/inforeuro_en.cfm."]
["D6","Invoiced amount in Euro without VAT (automatic calculation)"]
["D7","Invoiced amount in Euro with non-recoverable VAT (automatic calculation)"]
["D8","Depreciation amount in Euro without VAT (automatic calculation: D6/D3*D4)"]
["D9","Depreciation amount in Euro with non recoverable VAT (automatic calculation: D6/D3*D4) "]
["F","Indicate which selection procedure have been used to select the supplier.\nFor public entities: public procurment rules\nFor private entities: direct award, multiple bids, open tender (for cost items >130.000), framework contract."]

{"sheet":"Equipment","index":6,"n_rows":83,"n_cols":19,"rows_kept":83,"cut":false,"hidden":false,"merged":[[0,6,0,7],[1,6,1,7],[63,0,63,15],[64,0,64,15],[0,11,0,14],[1,11,1,12],[1,13,1,14],[0,2,0,4],[1,2,1,4],[77,1,77,15],[82,1,82,15],[2,11,2,12],[2,13,2,14],[57,0,57,10],[4,1,4,3],[4,4,4,5],[4,6,4,14],[2,2,2,4]]}
[null,"PROJECT Reference :",{"$f":"'Individual Cost Statement'!B3:B3","v":"LIFEXX XXX/XX/XXXXXX - ACRONYM"},null,null,null,"PERIOD (FROM) :",null,{"$f":"'Individual Cost Statement'!E3:E3","v":"00:00:00"},null,null,"EQUIPMENT"]
[null,"COUNTRY :",{"$f":"'Individual Cost Statement'!B4:B4","v":"Austria"},null,null,null,"PERIOD (TO) :",null,{"$f":"'Individual Cost Statement'!E4:E4","v":"00:00:00"},null,null,"Invoiced amount WITH non-rec VAT",null,"Depreciated amount WITH non-rec VAT"]
[null,"Beneficiary: ",{"$f":"'Individual Cost Statement'!B6:B6","v":0},null,null,null,null,null,null,null,null,{"$f":"M58","v":0},null,{"$f":"O58","v":0}]
[]
[null,"Details on cost item",null,null,"Info on cost item",null,"Calculation of the EQUIPMENT DEPRECIATION costs",null,null,null,null,null,null,null,null,"Selection procedure"]
["A","B2","B3","B4","C1","C2","D1","D2","D3","D4","D5","D6","D7","D8","D9","F"]
["Seq n°","Date of invoice","Invoice number","Date of payment","Supplier","Description of equipment + indicate % used for the project if not 100%","Amount in national currency without VAT (in accordance with pro rate % used for the project)","Amount in national currency with non-recoverable VAT (in accordance with pro rata % used for the project)","DEPRECIATION\nTotal number of months","DEPRECIATION\nNumber of months falling in the current reporting period","Exchange rate"," Amount in EURO\nwithout VAT","Amount in EURO \nwith non-recoverable VAT ","Depreciation amount \nin EURO \nwithout VAT","Depreciation amount \nin EURO \nwith non-recoverable VAT ","Applied selection procedure",null,null,"VAT\nCalculation"]
[{"$f":"ROW()-7","v":1},null,null,null,null,null,null,null,null,null,{"$f":"IF(AND('Individual Cost Statement'!$D$25:$D$25=\"Not applicable (all costs in EURO)\",G8>0),1,IF(AND('Individual Cost Statement'!$D$25:$D$25=\"Date when costs incurred\",G8>0),0,'Individual Cost Statement'!$F$26))","v":0},{"$f":"IF(AND(G8>0,K8>0),G8/K8,\" \")","v":" "},{"$f":"IF(AND(H8>0,K8>0),H8/K8,\" \")","v":" "},{"$f":"IF(L8=\" \",\" \",IF(AND(I8>0,J8>0),L8/I8*J8,\" \"))","v":" "},{"$f":"IF(M8=\" \",\" \",IF(AND(I8>0,J8>0),M8/I8*J8,\" \"))","v":" "},null,{"$f":"IF(K8>0,\" \",IF(AND('Individual Cost Statement'!$D$25:$D$25=\"Date when costs incurred\",G8>0),\"ENCODE Exchange rate !\",\" \"))","v":" "},{"$f":"IF(O8=\" \",\" \",IF(OR('Individual Cost Statement'!$E$8:$E$8=\"CAPACITY BUILDING - CAP\",'Individual Cost Statement'!$E$8:$E$8=\"CLIMA - CCA\",'Individual Cost Statement'!$E$8:$E$8=\"CLIMA - CCM\",'Individual Cost Statement'!$E$8:$E$8=\"CLIMA - GIC\",'Individual Cost Statement'!$E$8:$E$8=\"ENVIRONMENT - ENV\",'Individual Cost Statement'!$E$8:$E$8=\"ENVIRONMENT - GIE\",'Individual Cost Statement'!$E$8:$E$8=\"TECHNICAL ASSISTANCE – TA\"),IF((O8/M8)>0.5,\"Please adjust manually the depreciation amounts in cells D8 and D9 in line with the applicable maximum authorised (50% for equipmene)\",\" \"),IF(OR('Individual Cost Statement'!$E$8:$E$8=\"ENVIRONMENT - NAT\",'Individual Cost Statement'!$E$8:$E$8=\"INTEGRATED PROJECT - IP\"),IF((O8/M8)>0.5,\"Unless the appropriate certificate has been signed, please adjust manually the depreciation amounts in cells D8 and D9 in line with the applicable maximum authorised (50% for equipment)\",\" \"))))","v":" "},{"$f":"IF(N8=\" \",\" \",O8-N8)","v":" "}]
[2,null,null,null,null,null,null,null,null,null,{"$f":"IF(AND('Individual Cost Statement'!$D$25:$D$25=\"Not applicable (all costs in EURO)\",G9>0),1,IF(AND('Individual Cost Statement'!$D$25:$D$25=\"Date when costs incurred\",G9>0),0,'Individual Cost Statement'!$F$26))","v":0},{"$f":"IF(AND(G9>0,K9>0),G9/K9,\" \")","v":" "},{"$f":"IF(AND(H9>0,K9>0),H9/K9,\" \")","v":" "},{"$f":"IF(L9=\" \",\" \",IF(AND(I9>0,J9>0),L9/I9*J9,\" \"))","v":" "},{"$f":"IF(M9=\" \",\" \",IF(AND(I9>0,J9>0),M9/I9*J9,\" \"))","v":" "},null,{"$f":"IF(K9>0,\" \",IF(AND('Individual Cost Statement'!$D$25:$D$25=\"Date when costs incurred\",G9>0),\"ENCODE Exchange rate !\",\" \"))","v":" "},{"$f":"IF(O9=\" \",\" \",IF(OR('Individual Cost Statement'!$E$8:$E$8=\"CAPACITY BUILDING - CAP\",'Individual Cost Statement'!$E$8:$E$8=\"CLIMA - CCA\",'Individual Cost Statement'!$E$8:$E$8=\"CLIMA - CCM\",'Individual Cost Statement'!$E$8:$E$8=\"CLIMA - GIC\",'Individual Cost Statement'!$E$8:$E$8=\"ENVIRONMENT - ENV\",'Individual Cost Statement'!$E$8:$E$8=\"ENVIRONMENT - GIE\",'Individual Cost Statement'!$E$8:$E$8=\"TECHNICAL ASSISTANCE – TA\"),IF((O9/M9)>0.5,\"Please adjust manually the depreciation amounts in cells D8 and D9 in line with the applicable maximum authorised (50% for equipmene)\",\" \"),IF(OR('Individual Cost Statement'!$E$8:$E$8=\"ENVIRONMENT - NAT\",'Individual Cost Statement'!$E$8:$E$8=\"INTEGRATED PROJECT - IP\"),IF((O9/M9)>0.5,\"Unless the appropriate certificate has been signed, please adjust manually the depreciation amounts in cells D8 and D9 in line with the applicable maximum authorised (50% for equipment)\",\" \"))))","v":" "},{"$f":"IF(N9=\" \",\" \",O9-N9)","v":" "}]
[3,null,null,null,null,null,null,null,null,null,{"$f":"IF(AND('Individual Cost Statement'!$D$25:$D$25=\"Not applicable (all costs in EURO)\",G10>0),1,IF(AND('Individual Cost Statement'!$D$25:$D$25=\"Date when costs incurred\",G10>0),0,'Individual Cost Statement'!$F$26))","v":0}," "," "," "," ",null,{"$f":"IF(K10>0,\" \",IF(AND('Individual Cost Statement'!$D$25:$D$25=\"Date when costs incurred\",G10>0),\"ENCODE Exchange rate !\",\" \"))","v":" "},{"$f":"IF(O10=\" \",\" \",IF(OR('Individual Cost Statement'!$E$8:$E$8=\"CAPACITY BUILDING - CAP\",'Individual Cost Statement'!$E$8:$E$8=\"CLIMA - CCA\",'Individual Cost Statement'!$E$8:$E$8=\"CLIMA - CCM\",'Individual Cost Statement'!$E$8:$E$8=\"CLIMA - GIC\",'Individual Cost Statement'!$E$8:$E$8=\"ENVIRONMENT - ENV\",'Individual Cost Statement'!$E$8:$E$8=\"ENVIRONMENT - GIE\",'Individual Cost Statement'!$E$8:$E$8=\"TECHNICAL ASSISTANCE – TA\"),IF((O10/M10)>0.5,\"Please adjust manually the depreciation amounts in cells D8 and D9 in line with the applicable maximum authorised (50% for equipmene)\",\" \"),IF(OR('Individual Cost Statement'!$E$8:$E$8=\"ENVIRONMENT - NAT\",'Individual Cost Statement'!$E$8:$E$8=\"INTEGRATED PROJECT - IP\"),IF((O10/M10)>0.5,\"Unless the appropriate certificate has been signed, please adjust manually the depreciation amounts in cells D8 and D9 in line with the applicable maximum authorised (50% for equipment)\",\" \"))))","v":" "}," "]
[4,null,null,null,null,null,null,null,null,null,{"$f":"IF(AND('Individual Cost Statement'!$D$25:$D$25=\"Not applicable (all costs in EURO)\",G11>0),1,IF(AND('Individual Cost Statement'!$D$25:$D$25=\"Date when costs incurred\",G11>0),0,'Individual Cost Statement'!$F$26))","v":0}," "," "," "," ",null,{"$f":"IF(K11>0,\" \",IF(AND('Individual Cost Statement'!$D$25:$D$25=\"Date when costs incurred\",G11>0),\"ENCODE Exchange rate !\",\" \"))","v":" "},{"$f":"IF(O11=\" \",\" \",IF(OR('Individual Cost Statement'!$E$8:$E$8=\"CAPACITY BUILDING - CAP\",'Individual Cost Statement'!$E$8:$E$8=\"CLIMA - CCA\",'Individual Cost Statement'!$E$8:$E$8=\"CLIMA - CCM\",'Individual Cost Statement'!$E$8:$E$8=\"CLIMA - GIC\",'Individual Cost Statement'!$E$8:$E$8=\"ENVIRONMENT - ENV\",'Individual Cost Statement'!$E$8:$E$8=\"ENVIRONMENT - GIE\",'Individual Cost Statement'!$E$8:$E$8=\"TECHNICAL ASSISTANCE – TA\"),IF((O11/M11)>0.5,\"Please adjust manually the depreciation amounts in cells D8 and D9 in line with the applicable maximum authorised (50% for equipmene)\",\" \"),IF(OR('Individual Cost Statement'!$E$8:$E$8=\"ENVIRONMENT - NAT\",'Individual Cost Statement'!$E$8:$E$8=\"INTEGRATED PROJECT - IP\"),IF((O11/M11)>0.5,\"Unless the appropriate certificate has been signed, please adjust manually the depreciation amounts in cells D8 and D9 in line with the applicable maximum authorised (50% for equipment)\",\" \"))))","v":" "}," "]
[5,null,null,null,null,null,null,null,null,null,{"$f":"IF(AND('Individual Cost Statement'!$D$25:$D$25=\"Not applicable (all costs in EURO)\",G12>0),1,IF(AND('Individual Cost Statement'!$D$25:$D$25=\"Date when costs incurred\",G12>0),0,'Individual Cost Statement'!$F$26))","v":0}," "," "," "," ",null,{"$f":"IF(K12>0,\" \",IF(AND('Individual Cost Statement'!$D$25:$D$25=\"Date when costs incurred\",G12>0),\"ENCODE Exchange rate !\",\" \"))","v":" "},{"$f":"IF(O12=\" \",\" \",IF(OR('Individual Cost Statement'!$E$8:$E$8=\"CAPACITY BUILDING - CAP\",'Individual Cost Statement'!$E$8:$E$8=\"CLIMA - CCA\",'Individual Cost Statement'!$E$8:$E$8=\"CLIMA - CCM\",'Individual Cost Statement'!$E$8:$E$8=\"CLIMA - GIC\",'Individual Cost Statement'!$E$8:$E$8=\"ENVIRONMENT - ENV\",'Individual Cost Statement'!$E$8:$E$8=\"ENVIRONMENT - GIE\",'Individual Cost Statement'!$E$8:$E$8=\"TECHNICAL ASSISTANCE – TA\"),IF((O12/M12)>0.5,\"Please adjust manually the depreciation amounts in cells D8 and D9 in line with the applicable maximum authorised (50% for equipmene)\",\" \"),IF(OR('Individual Cost Statement'!$E$8:$E$8=\"ENVIRONMENT - NAT\",'Individual Cost Statement'!$E$8:$E$8=\"INTEGRATED PROJECT - IP\"),IF((O12/M12)>0.5,\"Unless the appropriate certificate has been signed, please adjust manually the depreciation amounts in cells D8 and D9 in line with the applicable maximum authorised (50% for equipment)\",\" \"))))","v":" "}," "]
[6,null,null,null,null,null,null,null,null,null,{"$f":"IF(AND('Individual Cost Statement'!$D$25:$D$25=\"Not applicable (all costs in EURO)\",G13>0),1,IF(AND('Individual Cost Statement'!$D$25:$D$25=\"Date when costs incurred\",G13>0),0,'Individual Cost Statement'!$F$26))","v":0}," "," "," "," ",null,{"$f":"IF(K13>0,\" \",IF(AND('Individual Cost Statement'!$D$25:$D$25=\"Date when costs incurred\",G13>0),\"ENCODE Exchange rate !\",\" \"))","v":" "},{"$f":"IF(O13=\" \",\" \",IF(OR('Individual Cost Statement'!$E$8:$E$8=\"CAPACITY BUILDING - CAP\",'Individual Cost Statement'!$E$8:$E$8=\"CLIMA - CCA\",'Individual Cost Statement'!$E$8:$E$8=\"CLIMA - CCM\",'Individual Cost Statement'!$E$8:$E$8=\"CLIMA - GIC\",'Individual Cost Statement'!$E$8:$E$8=\"ENVIRONMENT - ENV\",'Individual Cost Statement'!$E$8:$E$8=\"ENVIRONMENT - GIE\",'Individual Cost Statement'!$E$8:$E$8=\"TECHNICAL ASSISTANCE – TA\"),IF((O13/M13)>0.5,\"Please adjust manually the depreciation amounts in cells D8 and D9 in line with the applicable maximum authorised (50% for equipmene)\",\" \"),IF(OR('Individual Cost Statement'!$E$8:$E$8=\"ENVIRONMENT - NAT\",'Individual Cost Statement'!$E$8:$E$8=\"INTEGRATED PROJECT - IP\"),IF((O13/M13)>0.5,\"Unless the appropriate certificate has been signed, please adjust manually the depreciation amounts in cells D8 and D9 in line with the applicable maximum authorised (50% for equipment)\",\" \"))))","v":" "}," "]
[7,null,null,null,null,null,null,null,null,null,{"$f":"IF(AND('Individual Cost Statement'!$D$25:$D$25=\"Not applicable (all costs in EURO)\",G14>0),1,IF(AND('Individual Cost Statement'!$D$25:$D$25=\"Date when costs incurred\",G14>0),0,'Individual Cost Statement'!$F$26))","v":0}," "," "," "," ",null,{"$f":"IF(K14>0,\" \",IF(AND('Individual Cost Statement'!$D$25:$D$25=\"Date when costs incurred\",G14>0),\"ENCODE Exchange rate !\",\" \"))","v":" "},{"$f":"IF(O14=\" \",\" \",IF(OR('Individual Cost Statement'!$E$8:$E$8=\"CAPACITY BUILDING - CAP\",'Individual Cost Statement'!$E$8:$E$8=\"CLIMA - CCA\",'Individual Cost Statement'!$E$8:$E$8=\"CLIMA - CCM\",'Individual Cost Statement'!$E$8:$E$8=\"CLIMA - GIC\",'Individual Cost Statement'!$E$8:$E$8=\"ENVIRONMENT - ENV\",'Individual Cost Statement'!$E$8:$E$8=\"ENVIRONMENT - GIE\",'Individual Cost Statement'!$E$8:$E$8=\"TECHNICAL ASSISTANCE – TA\"),IF((O14/M14)>0.5,\"Please adjust manually the depreciation amounts in cells D8 and D9 in line with the applicable maximum authorised (50% for equipmene)\",\" \"),IF(OR('Individual Cost Statement'!$E$8:$E$8=\"ENVIRONMENT - NAT\",'Individual Cost Statement'!$E$8:$E$8=\"INTEGRATED PROJECT - IP\"),IF((O14/M14)>0.5,\"Unless the appropriate certificate has been signed, please adjust manually the depreciation amounts in cells D8 and D9 in line with the applicable maximum authorised (50% for equipment)\",\" \"))))","v":" "}," "]
[8,null,null,null,null,null,null,null,null,null,{"$f":"IF(AND('Individual Cost Statement'!$D$25:$D$25=\"Not applicable (all costs in EURO)\",G15>0),1,IF(AND('Individual Cost Statement'!$D$25:$D$25=\"Date when costs incurred\",G15>0),0,'Individual Cost Statement'!$F$26))","v":0}," "," "," "," ",null,{"$f":"IF(K15>0,\" \",IF(AND('Individual Cost Statement'!$D$25:$D$25=\"Date when costs incurred\",G15>0),\"ENCODE Exchange rate !\",\" \"))","v":" "},{"$f":"IF(O15=\" \",\" \",IF(OR('Individual Cost Statement'!$E$8:$E$8=\"CAPACITY BUILDING - CAP\",'Individual Cost Statement'!$E$8:$E$8=\"CLIMA - CCA\",'Individual Cost Statement'!$E$8:$E$8=\"CLIMA - CCM\",'Individual Cost Statement'!$E$8:$E$8=\"CLIMA - GIC\",'Individual Cost Statement'!$E$8:$E$8=\"ENVIRONMENT - ENV\",'Individual Cost Statement'!$E$8:$E$8=\"ENVIRONMENT - GIE\",'Individual Cost Statement'!$E$8:$E$8=\"TECHNICAL ASSISTANCE – TA\"),IF((O15/M15)>0.5,\"Please adjust manually the depreciation amounts in cells D8 and D9 in line with the applicable maximum authorised (50% for equipmene)\",\" \"),IF(OR('Individual Cost Statement'!$E$8:$E$8=\"ENVIRONMENT - NAT\",'Individual Cost Statement'!$E$8:$E$8=\"INTEGRATED PROJECT - IP\"),IF((O15/M15)>0.5,\"Unless the appropriate certificate has been signed, please adjust manually the depreciation amounts in cells D8 and D9 in line with the applicable maximum authorised (50% for equipment)\",\" \"))))","v":" "}," "]
[9,null,null,null,null,null,null,null,null,null,{"$f":"IF(AND('Individual Cost Statement'!$D$25:$D$25=\"Not applicable (all costs in EURO)\",G16>0),1,IF(AND('Individual Cost Statement'!$D$25:$D$25=\"Date when costs incurred\",G16>0),0,'Individual Cost Statement'!$F$26))","v":0}," "," "," "," ",null,{"$f":"IF(K16>0,\" \",IF(AND('Individual Cost Statement'!$D$25:$D$25=\"Date when costs incurred\",G16>0),\"ENCODE Exchange rate !\",\" \"))","v":" "},{"$f":"IF(O16=\" \",\" \",IF(OR('Individual Cost Statement'!$E$8:$E$8=\"CAPACITY BUILDING - CAP\",'Individual Cost Statement'!$E$8:$E$8=\"CLIMA - CCA\",'Individual Cost Statement'!$E$8:$E$8=\"CLIMA - CCM\",'Individual Cost Statement'!$E$8:$E$8=\"CLIMA - GIC\",'Individual Cost Statement'!$E$8:$E$8=\"ENVIRONMENT - ENV\",'Individual Cost Statement'!$E$8:$E$8=\"ENVIRONMENT - GIE\",'Individual Cost Statement'!$E$8:$E$8=\"TECHNICAL ASSISTANCE – TA\"),IF((O16/M16)>0.5,\"Please adjust manually the depreciation amounts in cells D8 and D9 in line with the applicable maximum authorised (50% for equipmene)\",\" \"),IF(OR('Individual Cost Statement'!$E$8:$E$8=\"ENVIRONMENT - NAT\",'Individual Cost Statement'!$E$8:$E$8=\"INTEGRATED PROJECT - IP\"),IF((O16/M16)>0.5,\"Unless the appropriate certificate has been signed, please adjust manually the depreciation amounts in cells D8 and D9 in line with the applicable maximum authorised (50% for equipment)\",\" \"))))","v":" "}," "]
[10,null,null,null,null,null,null,null,null,null,{"$f":"IF(AND('Individual Cost Statement'!$D$25:$D$25=\"Not applicable (all costs in EURO)\",G17>0),1,IF(AND('Individual Cost Statement'!$D$25:$D$25=\"Date when costs incurred\",G17>0),0,'Individual Cost Statement'!$F$26))","v":0}," "," "," "," ",null,{"$f":"IF(K17>0,\" \",IF(AND('Individual Cost Statement'!$D$25:$D$25=\"Date when costs incurred\",G17>0),\"ENCODE Exchange rate !\",\" \"))","v":" "},{"$f":"IF(O17=\" \",\" \",IF(OR('Individual Cost Statement'!$E$8:$E$8=\"CAPACITY BUILDING - CAP\",'Individual Cost Statement'!$E$8:$E$8=\"CLIMA - CCA\",'Individual Cost Statement'!$E$8:$E$8=\"CLIMA - CCM\",'Individual Cost Statement'!$E$8:$E$8=\"CLIMA - GIC\",'Individual Cost Statement'!$E$8:$E$8=\"ENVIRONMENT - ENV\",'Individual Cost Statement'!$E$8:$E$8=\"ENVIRONMENT - GIE\",'Individual Cost Statement'!$E$8:$E$8=\"TECHNICAL ASSISTANCE – TA\"),IF((O17/M17)>0.5,\"Please adjust manually the depreciation amounts in cells D8 and D9 in line with the applicable maximum authorised (50% for equipmene)\",\" \"),IF(OR('Individual Cost Statement'!$E$8:$E$8=\"ENVIRONMENT - NAT\",'Individual Cost Statement'!$E$8:$E$8=\"INTEGRATED PROJECT - IP\"),IF((O17/M17)>0.5,\"Unless the appropriate certificate has been signed, please adjust manually the depreciation amounts in cells D8 and D9 in line with the applicable maximum authorised (50% for equipment)\",\" \"))))","v":" "}," "]
[11,null,null,null,null,null,null,null,null,null,{"$f":"IF(AND('Individual Cost Statement'!$D$25:$D$25=\"Not applicable (all costs in EURO)\",G18>0),1,IF(AND('Individual Cost Statement'!$D$25:$D$25=\"Date when costs incurred\",G18>0),0,'Individual Cost Statement'!$F$26))","v":0}," "," "," "," ",null,{"$f":"IF(K18>0,\" \",IF(AND('Individual Cost Statement'!$D$25:$D$25=\"Date when costs incurred\",G18>0),\"ENCODE Exchange rate !\",\" \"))","v":" "},{"$f":"IF(O18=\" \",\" \",IF(OR('Individual Cost Statement'!$E$8:$E$8=\"CAPACITY BUILDING - CAP\",'Individual Cost Statement'!$E$8:$E$8=\"CLIMA - CCA\",'Individual Cost Statement'!$E$8:$E$8=\"CLIMA - CCM\",'Individual Cost Statement'!$E$8:$E$8=\"CLIMA - GIC\",'Individual Cost Statement'!$E$8:$E$8=\"ENVIRONMENT - ENV\",'Individual Cost Statement'!$E$8:$E$8=\"ENVIRONMENT - GIE\",'Individual Cost Statement'!$E$8:$E$8=\"TECHNICAL ASSISTANCE – TA\"),IF((O18/M18)>0.5,\"Please adjust manually the depreciation amounts in cells D8 and D9 in line with the applicable maximum authorised (50% for equipmene)\",\" \"),IF(OR('Individual Cost Statement'!$E$8:$E$8=\"ENVIRONMENT - NAT\",'Individual Cost Statement'!$E$8:$E$8=\"INTEGRATED PROJECT - IP\"),IF((O18/M18)>0.5,\"Unless the appropriate certificate has been signed, please adjust manually the depreciation amounts in cells D8 and D9 in line with the applicable maximum authorised (50% for equipment)\",\" \"))))","v":" "}," "]
[12,null,null,null,null,null,null,null,null,null,{"$f":"IF(AND('Individual Cost Statement'!$D$25:$D$25=\"Not applicable (all costs in EURO)\",G19>0),1,IF(AND('Individual Cost Statement'!$D$25:$D$25=\"Date when costs incurred\",G19>0),0,'Individual Cost Statement'!$F$26))","v":0}," "," "," "," ",null,{"$f":"IF(K19>0,\" \",IF(AND('Individual Cost Statement'!$D$25:$D$25=\"Date when costs incurred\",G19>0),\"ENCODE Exchange rate !\",\" \"))","v":" "},{"$f":"IF(O19=\" \",\" \",IF(OR('Individual Cost Statement'!$E$8:$E$8=\"CAPACITY BUILDING - CAP\",'Individual Cost Statement'!$E$8:$E$8=\"CLIMA - CCA\",'Individual Cost Statement'!$E$8:$E$8=\"CLIMA - CCM\",'Individual Cost Statement'!$E$8:$E$8=\"CLIMA - GIC\",'Individual Cost Statement'!$E$8:$E$8=\"ENVIRONMENT - ENV\",'Individual Cost Statement'!$E$8:$E$8=\"ENVIRONMENT - GIE\",'Individual Cost Statement'!$E$8:$E$8=\"TECHNICAL ASSISTANCE – TA\"),IF((O19/M19)>0.5,\"Please adjust manually the depreciation amounts in cells D8 and D9 in line with the applicable maximum authorised (50% for equipmene)\",\" \"),IF(OR('Individual Cost Statement'!$E$8:$E$8=\"ENVIRONMENT - NAT\",'Individual Cost Statement'!$E$8:$E$8=\"INTEGRATED PROJECT - IP\"),IF((O19/M19)>0.5,\"Unless the appropriate certificate has been signed, please adjust manually the depreciation amounts in cells D8 and D9 in line with the applicable maximum authorised (50% for equipment)\",\" \"))))","v":" "}," "]
[13,null,null,null,null,null,null,null,null,null,{"$f":"IF(AND('Individual Cost Statement'!$D$25:$D$25=\"Not applicable (all costs in EURO)\",G20>0),1,IF(AND('Individual Cost Statement'!$D$25:$D$25=\"Date when costs incurred\",G20>0),0,'Individual Cost Statement'!$F$26))","v":0}," "," "," "," ",null,{"$f":"IF(K20>0,\" \",IF(AND('Individual Cost Statement'!$D$25:$D$25=\"Date when costs incurred\",G20>0),\"ENCODE Exchange rate !\",\" \"))","v":" "},{"$f":"IF(O20=\" \",\" \",IF(OR('Individual Cost Statement'!$E$8:$E$8=\"CAPACITY BUILDING - CAP\",'Individual Cost Statement'!$E$8:$E$8=\"CLIMA - CCA\",'Individual Cost Statement'!$E$8:$E$8=\"CLIMA - CCM\",'Individual Cost Statement'!$E$8:$E$8=\"CLIMA - GIC\",'Individual Cost Statement'!$E$8:$E$8=\"ENVIRONMENT - ENV\",'Individual Cost Statement'!$E$8:$E$8=\"ENVIRONMENT - GIE\",'Individual Cost Statement'!$E$8:$E$8=\"TECHNICAL ASSISTANCE – TA\"),IF((O20/M20)>0.5,\"Please adjust manually the depreciation amounts in cells D8 and D9 in line with the applicable maximum authorised (50% for equipmene)\",\" \"),IF(OR('Individual Cost Statement'!$E$8:$E$8=\"ENVIRONMENT - NAT\",'Individual Cost Statement'!$E$8:$E$8=\"INTEGRATED PROJECT - IP\"),IF((O20/M20)>0.5,\"Unless the appropriate certificate has been signed, please adjust manually the depreciation amounts in cells D8 and D9 in line with the applicable maximum authorised (50% for equipment)\",\" \"))))","v":" "}," "]
[14,null,null,null,null,null,null,null,null,null,{"$f":"IF(AND('Individual Cost Statement'!$D$25:$D$25=\"Not applicable (all costs in EURO)\",G21>0),1,IF(AND('Individual Cost Statement'!$D$25:$D$25=\"Date when costs incurred\",G21>0),0,'Individual Cost Statement'!$F$26))","v":0}," "," "," "," ",null,{"$f":"IF(K21>0,\" \",IF(AND('Individual Cost Statement'!$D$25:$D$25=\"Date when costs incurred\",G21>0),\"ENCODE Exchange rate !\",\" \"))","v":" "},{"$f":"IF(O21=\" \",\" \",IF(OR('Individual Cost Statement'!$E$8:$E$8=\"CAPACITY BUILDING - CAP\",'Individual Cost Statement'!$E$8:$E$8=\"CLIMA - CCA\",'Individual Cost Statement'!$E$8:$E$8=\"CLIMA - CCM\",'Individual Cost Statement'!$E$8:$E$8=\"CLIMA - GIC\",'Individual Cost Statement'!$E$8:$E$8=\"ENVIRONMENT - ENV\",'Individual Cost Statement'!$E$8:$E$8=\"ENVIRONMENT - GIE\",'Individual Cost Statement'!$E$8:$E$8=\"TECHNICAL ASSISTANCE – TA\"),IF((O21/M21)>0.5,\"Please adjust manually the depreciation amounts in cells D8 and D9 in line with the applicable maximum authorised (50% for equipmene)\",\" \"),IF(OR('Individual Cost Statement'!$E$8:$E$8=\"ENVIRONMENT - NAT\",'Individual Cost Statement'!$E$8:$E$8=\"INTEGRATED PROJECT - IP\"),IF((O21/M21)>0.5,\"Unless the appropriate certificate has been signed, please adjust manually the depreciation amounts in cells D8 and D9 in line with the applicable maximum authorised (50% for equipment)\",\" \"))))","v":" "}," "]
[15,null,null,null,null,null,null,null,null,null,{"$f":"IF(AND('Individual Cost Statement'!$D$25:$D$25=\"Not applicable (all costs in EURO)\",G22>0),1,IF(AND('Individual Cost Statement'!$D$25:$D$25=\"Date when costs incurred\",G22>0),0,'Individual Cost Statement'!$F$26))","v":0}," "," "," "," ",null,{"$f":"IF(K22>0,\" \",IF(AND('Individual Cost Statement'!$D$25:$D$25=\"Date when costs incurred\",G22>0),\"ENCODE Exchange rate !\",\" \"))","v":" "},{"$f":"IF(O22=\" \",\" \",IF(OR('Individual Cost Statement'!$E$8:$E$8=\"CAPACITY BUILDING - CAP\",'Individual Cost Statement'!$E$8:$E$8=\"CLIMA - CCA\",'Individual Cost Statement'!$E$8:$E$8=\"CLIMA - CCM\",'Individual Cost Statement'!$E$8:$E$8=\"CLIMA - GIC\",'Individual Cost Statement'!$E$8:$E$8=\"ENVIRONMENT - ENV\",'Individual Cost Statement'!$E$8:$E$8=\"ENVIRONMENT - GIE\",'Individual Cost Statement'!$E$8:$E$8=\"TECHNICAL ASSISTANCE – TA\"),IF((O22/M22)>0.5,\"Please adjust manually the depreciation amounts in cells D8 and D9 in line with the applicable maximum authorised (50% for equipmene)\",\" \"),IF(OR('Individual Cost Statement'!$E$8:$E$8=\"ENVIRONMENT - NAT\",'Individual Cost Statement'!$E$8:$E$8=\"INTEGRATED PROJECT - IP\"),IF((O22/M22)>0.5,\"Unless the appropriate certificate has been signed, please adjust manually the depreciation amounts in cells D8 and D9 in line with the applicable maximum authorised (50% for equipment)\",\" \"))))","v":" "}," "]
[16,null,null,null,null,null,null,null,null,null,{"$f":"IF(AND('Individual Cost Statement'!$D$25:$D$25=\"Not applicable (all costs in EURO)\",G23>0),1,IF(AND('Individual Cost Statement'!$D$25:$D$25=\"Date when costs incurred\",G23>0),0,'Individual Cost Statement'!$F$26))","v":0}," "," "," "," ",null,{"$f":"IF(K23>0,\" \",IF(AND('Individual Cost Statement'!$D$25:$D$25=\"Date when costs incurred\",G23>0),\"ENCODE Exchange rate !\",\" \"))","v":" "},{"$f":"IF(O23=\" \",\" \",IF(OR('Individual Cost Statement'!$E$8:$E$8=\"CAPACITY BUILDING - CAP\",'Individual Cost Statement'!$E$8:$E$8=\"CLIMA - CCA\",'Individual Cost Statement'!$E$8:$E$8=\"CLIMA - CCM\",'Individual Cost Statement'!$E$8:$E$8=\"CLIMA - GIC\",'Individual Cost Statement'!$E$8:$E$8=\"ENVIRONMENT - ENV\",'Individual Cost Statement'!$E$8:$E$8=\"ENVIRONMENT - GIE\",'Individual Cost Statement'!$E$8:$E$8=\"TECHNICAL ASSISTANCE – TA\"),IF((O23/M23)>0.5,\"Please adjust manually the depreciation amounts in cells D8 and D9 in line with the applicable maximum authorised (50% for equipmene)\",\" \"),IF(OR('Individual Cost Statement'!$E$8:$E$8=\"ENVIRONMENT - NAT\",'Individual Cost Statement'!$E$8:$E$8=\"INTEGRATED PROJECT - IP\"),IF((O23/M23)>0.5,\"Unless the appropriate certificate has been signed, please adjust manually the depreciation amounts in cells D8 and D9 in line with the applicable maximum authorised (50% for equipment)\",\" \"))))","v":" "}," "]
[17,null,null,null,null,null,null,null,null,null,{"$f":"IF(AND('Individual Cost Statement'!$D$25:$D$25=\"Not applicable (all costs in EURO)\",G24>0),1,IF(AND('Individual Cost Statement'!$D$25:$D$25=\"Date when costs incurred\",G24>0),0,'Individual Cost Statement'!$F$26))","v":0}," "," "," "," ",null,{"$f":"IF(K24>0,\" \",IF(AND('Individual Cost Statement'!$D$25:$D$25=\"Date when costs incurred\",G24>0),\"ENCODE Exchange rate !\",\" \"))","v":" "},{"$f":"IF(O24=\" \",\" \",IF(OR('Individual Cost Statement'!$E$8:$E$8=\"CAPACITY BUILDING - CAP\",'Individual Cost Statement'!$E$8:$E$8=\"CLIMA - CCA\",'Individual Cost Statement'!$E$8:$E$8=\"CLIMA - CCM\",'Individual Cost Statement'!$E$8:$E$8=\"CLIMA - GIC\",'Individual Cost Statement'!$E$8:$E$8=\"ENVIRONMENT - ENV\",'Individual Cost Statement'!$E$8:$E$8=\"ENVIRONMENT - GIE\",'Individual Cost Statement'!$E$8:$E$8=\"TECHNICAL ASSISTANCE – TA\"),IF((O24/M24)>0.5,\"Please adjust manually the depreciation amounts in cells D8 and D9 in line with the applicable maximum authorised (50% for equipmene)\",\" \"),IF(OR('Individual Cost Statement'!$E$8:$E$8=\"ENVIRONMENT - NAT\",'Individual Cost Statement'!$E$8:$E$8=\"INTEGRATED PROJECT - IP\"),IF((O24/M24)>0.5,\"Unless the appropriate certificate has been signed, please adjust manually the depreciation amounts in cells D8 and D9 in line with the applicable maximum authorised (50% for equipment)\",\" \"))))","v":" "}," "]
[18,null,null,null,null,null,null,null,null,null,{"$f":"IF(AND('Individual Cost Statement'!$D$25:$D$25=\"Not applicable (all costs in EURO)\",G25>0),1,IF(AND('Individual Cost Statement'!$D$25:$D$25=\"Date when costs incurred\",G25>0),0,'Individual Cost Statement'!$F$26))","v":0}," "," "," "," ",null,{"$f":"IF(K25>0,\" \",IF(AND('Individual Cost Statement'!$D$25:$D$25=\"Date when costs incurred\",G25>0),\"ENCODE Exchange rate !\",\" \"))","v":" "},{"$f":"IF(O25=\" \",\" \",IF(OR('Individual Cost Statement'!$E$8:$E$8=\"CAPACITY BUILDING - CAP\",'Individual Cost Statement'!$E$8:$E$8=\"CLIMA - CCA\",'Individual Cost Statement'!$E$8:$E$8=\"CLIMA - CCM\",'Individual Cost Statement'!$E$8:$E$8=\"CLIMA - GIC\",'Individual Cost Statement'!$E$8:$E$8=\"ENVIRONMENT - ENV\",'Individual Cost Statement'!$E$8:$E$8=\"ENVIRONMENT - GIE\",'Individual Cost Statement'!$E$8:$E$8=\"TECHNICAL ASSISTANCE – TA\"),IF((O25/M25)>0.5,\"Please adjust manually the depreciation amounts in cells D8 and D9 in line with the applicable maximum authorised (50% for equipmene)\",\" \"),IF(OR('Individual Cost Statement'!$E$8:$E$8=\"ENVIRONMENT - NAT\",'Individual Cost Statement'!$E$8:$E$8=\"INTEGRATED PROJECT - IP\"),IF((O25/M25)>0.5,\"Unless the appropriate certificate has been signed, please adjust manually the depreciation amounts in cells D8 and D9 in line with the applicable maximum authorised (50% for equipment)\",\" \"))))","v":" "}," "]
[19,null,null,null,null,null,null,null,null,null,{"$f":"IF(AND('Individual Cost Statement'!$D$25:$D$25=\"Not applicable (all costs in EURO)\",G26>0),1,IF(AND('Individual Cost Statement'!$D$25:$D$25=\"Date when costs incurred\",G26>0),0,'Individual Cost Statement'!$F$26))","v":0}," "," "," "," ",null,{"$f":"IF(K26>0,\" \",IF(AND('Individual Cost Statement'!$D$25:$D$25=\"Date when costs incurred\",G26>0),\"ENCODE Exchange rate !\",\" \"))","v":" "},{"$f":"IF(O26=\" \",\" \",IF(OR('Individual Cost Statement'!$E$8:$E$8=\"CAPACITY BUILDING - CAP\",'Individual Cost Statement'!$E$8:$E$8=\"CLIMA - CCA\",'Individual Cost Statement'!$E$8:$E$8=\"CLIMA - CCM\",'Individual Cost Statement'!$E$8:$E$8=\"CLIMA - GIC\",'Individual Cost Statement'!$E$8:$E$8=\"ENVIRONMENT - ENV\",'Individual Cost Statement'!$E$8:$E$8=\"ENVIRONMENT - GIE\",'Individual Cost Statement'!$E$8:$E$8=\"TECHNICAL ASSISTANCE – TA\"),IF((O26/M26)>0.5,\"Please adjust manually the depreciation amounts in cells D8 and D9 in line with the applicable maximum authorised (50% for equipmene)\",\" \"),IF(OR('Individual Cost Statement'!$E$8:$E$8=\"ENVIRONMENT - NAT\",'Individual Cost Statement'!$E$8:$E$8=\"INTEGRATED PROJECT - IP\"),IF((O26/M26)>0.5,\"Unless the appropriate certificate has been signed, please adjust manually the depreciation amounts in cells D8 and D9 in line with the applicable maximum authorised (50% for equipment)\",\" \"))))","v":" "}," "]
[20,null,null,null,null,null,null,null,null,null,{"$f":"IF(AND('Individual Cost Statement'!$D$25:$D$25=\"Not applicable (all costs in EURO)\",G27>0),1,IF(AND('Individual Cost Statement'!$D$25:$D$25=\"Date when costs incurred\",G27>0),0,'Individual Cost Statement'!$F$26))","v":0}," "," "," "," ",null,{"$f":"IF(K27>0,\" \",IF(AND('Individual Cost Statement'!$D$25:$D$25=\"Date when costs incurred\",G27>0),\"ENCODE Exchange rate !\",\" \"))","v":" "},{"$f":"IF(O27=\" \",\" \",IF(OR('Individual Cost Statement'!$E$8:$E$8=\"CAPACITY BUILDING - CAP\",'Individual Cost Statement'!$E$8:$E$8=\"CLIMA - CCA\",'Individual Cost Statement'!$E$8:$E$8=\"CLIMA - CCM\",'Individual Cost Statement'!$E$8:$E$8=\"CLIMA - GIC\",'Individual Cost Statement'!$E$8:$E$8=\"ENVIRONMENT - ENV\",'Individual Cost Statement'!$E$8:$E$8=\"ENVIRONMENT - GIE\",'Individual Cost Statement'!$E$8:$E$8=\"TECHNICAL ASSISTANCE – TA\"),IF((O27/M27)>0.5,\"Please adjust manually the depreciation amounts in cells D8 and D9 in line with the applicable maximum authorised (50% for equipmene)\",\" \"),IF(OR('Individual Cost Statement'!$E$8:$E$8=\"ENVIRONMENT - NAT\",'Individual Cost Statement'!$E$8:$E$8=\"INTEGRATED PROJECT - IP\"),IF((O27/M27)>0.5,\"Unless the appropriate certificate has been signed, please adjust manually the depreciation amounts in cells D8 and D9 in line with the applicable maximum authorised (50% for equipment)\",\" \"))))","v":" "}," "]
[21,null,null,null,null,null,null,null,null,null,{"$f":"IF(AND('Individual Cost Statement'!$D$25:$D$25=\"Not applicable (all costs in EURO)\",G28>0),1,IF(AND('Individual Cost Statement'!$D$25:$D$25=\"Date when costs incurred\",G28>0),0,'Individual Cost Statement'!$F$26))","v":0}," "," "," "," ",null,{"$f":"IF(K28>0,\" \",IF(AND('Individual Cost Statement'!$D$25:$D$25=\"Date when costs incurred\",G28>0),\"ENCODE Exchange rate !\",\" \"))","v":" "},{"$f":"IF(O28=\" \",\" \",IF(OR('Individual Cost Statement'!$E$8:$E$8=\"CAPACITY BUILDING - CAP\",'Individual Cost Statement'!$E$8:$E$8=\"CLIMA - CCA\",'Individual Cost Statement'!$E$8:$E$8=\"CLIMA - CCM\",'Individual Cost Statement'!$E$8:$E$8=\"CLIMA - GIC\",'Individual Cost Statement'!$E$8:$E$8=\"ENVIRONMENT - ENV\",'Individual Cost Statement'!$E$8:$E$8=\"ENVIRONMENT - GIE\",'Individual Cost Statement'!$E$8:$E$8=\"TECHNICAL ASSISTANCE – TA\"),IF((O28/M28)>0.5,\"Please adjust manually the depreciation amounts in cells D8 and D9 in line with the applicable maximum authorised (50% for equipmene)\",\" \"),IF(OR('Individual Cost Statement'!$E$8:$E$8=\"ENVIRONMENT - NAT\",'Individual Cost Statement'!$E$8:$E$8=\"INTEGRATED PROJECT - IP\"),IF((O28/M28)>0.5,\"Unless the appropriate certificate has been signed, please adjust manually the depreciation amounts in cells D8 and D9 in line with the applicable maximum authorised (50% for equipment)\",\" \"))))","v":" "}," "]
[22,null,null,null,null,null,null,null,null,null,{"$f":"IF(AND('Individual Cost Statement'!$D$25:$D$25=\"Not applicable (all costs in EURO)\",G29>0),1,IF(AND('Individual Cost Statement'!$D$25:$D$25=\"Date when costs incurred\",G29>0),0,'Individual Cost Statement'!$F$26))","v":0}," "," "," "," ",null,{"$f":"IF(K29>0,\" \",IF(AND('Individual Cost Statement'!$D$25:$D$25=\"Date when costs incurred\",G29>0),\"ENCODE Exchange rate !\",\" \"))","v":" "},{"$f":"IF(O29=\" \",\" \",IF(OR('Individual Cost Statement'!$E$8:$E$8=\"CAPACITY BUILDING - CAP\",'Individual Cost Statement'!$E$8:$E$8=\"CLIMA - CCA\",'Individual Cost Statement'!$E$8:$E$8=\"CLIMA - CCM\",'Individual Cost Statement'!$E$8:$E$8=\"CLIMA - GIC\",'Individual Cost Statement'!$E$8:$E$8=\"ENVIRONMENT - ENV\",'Individual Cost Statement'!$E$8:$E$8=\"ENVIRONMENT - GIE\",'Individual Cost Statement'!$E$8:$E$8=\"TECHNICAL ASSISTANCE – TA\"),IF((O29/M29)>0.5,\"Please adjust manually the depreciation amounts in cells D8 and D9 in line with the applicable maximum authorised (50% for equipmene)\",\" \"),IF(OR('Individual Cost Statement'!$E$8:$E$8=\"ENVIRONMENT - NAT\",'Individual Cost Statement'!$E$8:$E$8=\"INTEGRATED PROJECT - IP\"),IF((O29/M29)>0.5,\"Unless the appropriate certificate has been signed, please adjust manually the depreciation amounts in cells D8 and D9 in line with the applicable maximum authorised (50% for equipment)\",\" \"))))","v":" "}," "]
[23,null,null,null,null,null,null,null,null,null,{"$f":"IF(AND('Individual Cost Statement'!$D$25:$D$25=\"Not applicable (all costs in EURO)\",G30>0),1,IF(AND('Individual Cost Statement'!$D$25:$D$25=\"Date when costs incurred\",G30>0),0,'Individual Cost Statement'!$F$26))","v":0}," "," "," "," ",null,{"$f":"IF(K30>0,\" \",IF(AND('Individual Cost Statement'!$D$25:$D$25=\"Date when costs incurred\",G30>0),\"ENCODE Exchange rate !\",\" \"))","v":" "},{"$f":"IF(O30=\" \",\" \",IF(OR('Individual Cost Statement'!$E$8:$E$8=\"CAPACITY BUILDING - CAP\",'Individual Cost Statement'!$E$8:$E$8=\"CLIMA - CCA\",'Individual Cost Statement'!$E$8:$E$8=\"CLIMA - CCM\",'Individual Cost Statement'!$E$8:$E$8=\"CLIMA - GIC\",'Individual Cost Statement'!$E$8:$E$8=\"ENVIRONMENT - ENV\",'Individual Cost Statement'!$E$8:$E$8=\"ENVIRONMENT - GIE\",'Individual Cost Statement'!$E$8:$E$8=\"TECHNICAL ASSISTANCE – TA\"),IF((O30/M30)>0.5,\"Please adjust manually the depreciation amounts in cells D8 and D9 in line with the applicable maximum authorised (50% for equipmene)\",\" \"),IF(OR('Individual Cost Statement'!$E$8:$E$8=\"ENVIRONMENT - NAT\",'Individual Cost Statement'!$E$8:$E$8=\"INTEGRATED PROJECT - IP\"),IF((O30/M30)>0.5,\"Unless the appropriate certificate has been signed, please adjust manually the depreciation amounts in cells D8 and D9 in line with the applicable maximum authorised (50% for equipment)\",\" \"))))","v":" "}," "]
[24,null,null,null,null,null,null,null,null,null,{"$f":"IF(AND('Individual Cost Statement'!$D$25:$D$25=\"Not applicable (all costs in EURO)\",G31>0),1,IF(AND('Individual Cost Statement'!$D$25:$D$25=\"Date when costs incurred\",G31>0),0,'Individual Cost Statement'!$F$26))","v":0}," "," "," "," ",null,{"$f":"IF(K31>0,\" \",IF(AND('Individual Cost Statement'!$D$25:$D$25=\"Date when costs incurred\",G31>0),\"ENCODE Exchange rate !\",\" \"))","v":" "},{"$f":"IF(O31=\" \",\" \",IF(OR('Individual Cost Statement'!$E$8:$E$8=\"CAPACITY BUILDING - CAP\",'Individual Cost Statement'!$E$8:$E$8=\"CLIMA - CCA\",'Individual Cost Statement'!$E$8:$E$8=\"CLIMA - CCM\",'Individual Cost Statement'!$E$8:$E$8=\"CLIMA - GIC\",'Individual Cost Statement'!$E$8:$E$8=\"ENVIRONMENT - ENV\",'Individual Cost Statement'!$E$8:$E$8=\"ENVIRONMENT - GIE\",'Individual Cost Statement'!$E$8:$E$8=\"TECHNICAL ASSISTANCE – TA\"),IF((O31/M31)>0.5,\"Please adjust manually the depreciation amounts in cells D8 and D9 in line with the applicable maximum authorised (50% for equipmene)\",\" \"),IF(OR('Individual Cost Statement'!$E$8:$E$8=\"ENVIRONMENT - NAT\",'Individual Cost Statement'!$E$8:$E$8=\"INTEGRATED PROJECT - IP\"),IF((O31/M31)>0.5,\"Unless the appropriate certificate has been signed, please adjust manually the depreciation amounts in cells D8 and D9 in line with the applicable maximum authorised (50% for equipment)\",\" \"))))","v":" "}," "]
[25,null,null,null,null,null,null,null,null,null,{"$f":"IF(AND('Individual Cost Statement'!$D$25:$D$25=\"Not applicable (all costs in EURO)\",G32>0),1,IF(AND('Individual Cost Statement'!$D$25:$D$25=\"Date when costs incurred\",G32>0),0,'Individual Cost Statement'!$F$26))","v":0}," "," "," "," ",null,{"$f":"IF(K32>0,\" \",IF(AND('Individual Cost Statement'!$D$25:$D$25=\"Date when costs incurred\",G32>0),\"ENCODE Exchange rate !\",\" \"))","v":" "},{"$f":"IF(O32=\" \",\" \",IF(OR('Individual Cost Statement'!$E$8:$E$8=\"CAPACITY BUILDING - CAP\",'Individual Cost Statement'!$E$8:$E$8=\"CLIMA - CCA\",'Individual Cost Statement'!$E$8:$E$8=\"CLIMA - CCM\",'Individual Cost Statement'!$E$8:$E$8=\"CLIMA - GIC\",'Individual Cost Statement'!$E$8:$E$8=\"ENVIRONMENT - ENV\",'Individual Cost Statement'!$E$8:$E$8=\"ENVIRONMENT - GIE\",'Individual Cost Statement'!$E$8:$E$8=\"TECHNICAL ASSISTANCE – TA\"),IF((O32/M32)>0.5,\"Please adjust manually the depreciation amounts in cells D8 and D9 in line with the applicable maximum authorised (50% for equipmene)\",\" \"),IF(OR('Individual Cost Statement'!$E$8:$E$8=\"ENVIRONMENT - NAT\",'Individual Cost Statement'!$E$8:$E$8=\"INTEGRATED PROJECT - IP\"),IF((O32/M32)>0.5,\"Unless the appropriate certificate has been signed, please adjust manually the depreciation amounts in cells D8 and D9 in line with the applicable maximum authorised (50% for equipment)\",\" \"))))","v":" "}," "]
[26,null,null,null,null,null,null,null,null,null,{"$f":"IF(AND('Individual Cost Statement'!$D$25:$D$25=\"Not applicable (all costs in EURO)\",G33>0),1,IF(AND('Individual Cost Statement'!$D$25:$D$25=\"Date when costs incurred\",G33>0),0,'Individual Cost Statement'!$F$26))","v":0}," "," "," "," ",null,{"$f":"IF(K33>0,\" \",IF(AND('Individual Cost Statement'!$D$25:$D$25=\"Date when costs incurred\",G33>0),\"ENCODE Exchange rate !\",\" \"))","v":" "},{"$f":"IF(O33=\" \",\" \",IF(OR('Individual Cost Statement'!$E$8:$E$8=\"CAPACITY BUILDING - CAP\",'Individual Cost Statement'!$E$8:$E$8=\"CLIMA - CCA\",'Individual Cost Statement'!$E$8:$E$8=\"CLIMA - CCM\",'Individual Cost Statement'!$E$8:$E$8=\"CLIMA - GIC\",'Individual Cost Statement'!$E$8:$E$8=\"ENVIRONMENT - ENV\",'Individual Cost Statement'!$E$8:$E$8=\"ENVIRONMENT - GIE\",'Individual Cost Statement'!$E$8:$E$8=\"TECHNICAL ASSISTANCE – TA\"),IF((O33/M33)>0.5,\"Please adjust manually the depreciation amounts in cells D8 and D9 in line with the applicable maximum authorised (50% for equipmene)\",\" \"),IF(OR('Individual Cost Statement'!$E$8:$E$8=\"ENVIRONMENT - NAT\",'Individual Cost Statement'!$E$8:$E$8=\"INTEGRATED PROJECT - IP\"),IF((O33/M33)>0.5,\"Unless the appropriate certificate has been signed, please adjust manually the depreciation amounts in cells D8 and D9 in line with the applicable maximum authorised (50% for equipment)\",\" \"))))","v":" "}," "]
[27,null,null,null,null,null,null,null,null,null,{"$f":"IF(AND('Individual Cost Statement'!$D$25:$D$25=\"Not applicable (all costs in EURO)\",G34>0),1,IF(AND('Individual Cost Statement'!$D$25:$D$25=\"Date when costs incurred\",G34>0),0,'Individual Cost Statement'!$F$26))","v":0}," "," "," "," ",null,{"$f":"IF(K34>0,\" \",IF(AND('Individual Cost Statement'!$D$25:$D$25=\"Date when costs incurred\",G34>0),\"ENCODE Exchange rate !\",\" \"))","v":" "},{"$f":"IF(O34=\" \",\" \",IF(OR('Individual Cost Statement'!$E$8:$E$8=\"CAPACITY BUILDING - CAP\",'Individual Cost Statement'!$E$8:$E$8=\"CLIMA - CCA\",'Individual Cost Statement'!$E$8:$E$8=\"CLIMA - CCM\",'Individual Cost Statement'!$E$8:$E$8=\"CLIMA - GIC\",'Individual Cost Statement'!$E$8:$E$8=\"ENVIRONMENT - ENV\",'Individual Cost Statement'!$E$8:$E$8=\"ENVIRONMENT - GIE\",'Individual Cost Statement'!$E$8:$E$8=\"TECHNICAL ASSISTANCE – TA\"),IF((O34/M34)>0.5,\"Please adjust manually the depreciation amounts in cells D8 and D9 in line with the applicable maximum authorised (50% for equipmene)\",\" \"),IF(OR('Individual Cost Statement'!$E$8:$E$8=\"ENVIRONMENT - NAT\",'Individual Cost Statement'!$E$8:$E$8=\"INTEGRATED PROJECT - IP\"),IF((O34/M34)>0.5,\"Unless the appropriate certificate has been signed, please adjust manually the depreciation amounts in cells D8 and D9 in line with the applicable maximum authorised (50% for equipment)\",\" \"))))","v":" "}," "]
[28,null,null,null,null,null,null,null,null,null,{"$f":"IF(AND('Individual Cost Statement'!$D$25:$D$25=\"Not applicable (all costs in EURO)\",G35>0),1,IF(AND('Individual Cost Statement'!$D$25:$D$25=\"Date when costs incurred\",G35>0),0,'Individual Cost Statement'!$F$26))","v":0}," "," "," "," ",null,{"$f":"IF(K35>0,\" \",IF(AND('Individual Cost Statement'!$D$25:$D$25=\"Date when costs incurred\",G35>0),\"ENCODE Exchange rate !\",\" \"))","v":" "},{"$f":"IF(O35=\" \",\" \",IF(OR('Individual Cost Statement'!$E$8:$E$8=\"CAPACITY BUILDING - CAP\",'Individual Cost Statement'!$E$8:$E$8=\"CLIMA - CCA\",'Individual Cost Statement'!$E$8:$E$8=\"CLIMA - CCM\",'Individual Cost Statement'!$E$8:$E$8=\"CLIMA - GIC\",'Individual Cost Statement'!$E$8:$E$8=\"ENVIRONMENT - ENV\",'Individual Cost Statement'!$E$8:$E$8=\"ENVIRONMENT - GIE\",'Individual Cost Statement'!$E$8:$E$8=\"TECHNICAL ASSISTANCE – TA\"),IF((O35/M35)>0.5,\"Please adjust manually the depreciation amounts in cells D8 and D9 in line with the applicable maximum authorised (50% for equipmene)\",\" \"),IF(OR('Individual Cost Statement'!$E$8:$E$8=\"ENVIRONMENT - NAT\",'Individual Cost Statement'!$E$8:$E$8=\"INTEGRATED PROJECT - IP\"),IF((O35/M35)>0.5,\"Unless the appropriate certificate has been signed, please adjust manually the depreciation amounts in cells D8 and D9 in line with the applicable maximum authorised (50% for equipment)\",\" \"))))","v":" "}," "]
[29,null,null,null,null,null,null,null,null,null,{"$f":"IF(AND('Individual Cost Statement'!$D$25:$D$25=\"Not applicable (all costs in EURO)\",G36>0),1,IF(AND('Individual Cost Statement'!$D$25:$D$25=\"Date when costs incurred\",G36>0),0,'Individual Cost Statement'!$F$26))","v":0}," "," "," "," ",null,{"$f":"IF(K36>0,\" \",IF(AND('Individual Cost Statement'!$D$25:$D$25=\"Date when costs incurred\",G36>0),\"ENCODE Exchange rate !\",\" \"))","v":" "},{"$f":"IF(O36=\" \",\" \",IF(OR('Individual Cost Statement'!$E$8:$E$8=\"CAPACITY BUILDING - CAP\",'Individual Cost Statement'!$E$8:$E$8=\"CLIMA - CCA\",'Individual Cost Statement'!$E$8:$E$8=\"CLIMA - CCM\",'Individual Cost Statement'!$E$8:$E$8=\"CLIMA - GIC\",'Individual Cost Statement'!$E$8:$E$8=\"ENVIRONMENT - ENV\",'Individual Cost Statement'!$E$8:$E$8=\"ENVIRONMENT - GIE\",'Individual Cost Statement'!$E$8:$E$8=\"TECHNICAL ASSISTANCE – TA\"),IF((O36/M36)>0.5,\"Please adjust manually the depreciation amounts in cells D8 and D9 in line with the applicable maximum authorised (50% for equipmene)\",\" \"),IF(OR('Individual Cost Statement'!$E$8:$E$8=\"ENVIRONMENT - NAT\",'Individual Cost Statement'!$E$8:$E$8=\"INTEGRATED PROJECT - IP\"),IF((O36/M36)>0.5,\"Unless the appropriate certificate has been signed, please adjust manually the depreciation amounts in cells D8 and D9 in line with the applicable maximum authorised (50% for equipment)\",\" \"))))","v":" "}," "]
[30,null,null,null,null,null,null,null,null,null,{"$f":"IF(AND('Individual Cost Statement'!$D$25:$D$25=\"Not applicable (all costs in EURO)\",G37>0),1,IF(AND('Individual Cost Statement'!$D$25:$D$25=\"Date when costs incurred\",G37>0),0,'Individual Cost Statement'!$F$26))","v":0}," "," "," "," ",null,{"$f":"IF(K37>0,\" \",IF(AND('Individual Cost Statement'!$D$25:$D$25=\"Date when costs incurred\",G37>0),\"ENCODE Exchange rate !\",\" \"))","v":" "},{"$f":"IF(O37=\" \",\" \",IF(OR('Individual Cost Statement'!$E$8:$E$8=\"CAPACITY BUILDING - CAP\",'Individual Cost Statement'!$E$8:$E$8=\"CLIMA - CCA\",'Individual Cost Statement'!$E$8:$E$8=\"CLIMA - CCM\",'Individual Cost Statement'!$E$8:$E$8=\"CLIMA - GIC\",'Individual Cost Statement'!$E$8:$E$8=\"ENVIRONMENT - ENV\",'Individual Cost Statement'!$E$8:$E$8=\"ENVIRONMENT - GIE\",'Individual Cost Statement'!$E$8:$E$8=\"TECHNICAL ASSISTANCE – TA\"),IF((O37/M37)>0.5,\"Please adjust manually the depreciation amounts in cells D8 and D9 in line with the applicable maximum authorised (50% for equipmene)\",\" \"),IF(OR('Individual Cost Statement'!$E$8:$E$8=\"ENVIRONMENT - NAT\",'Individual Cost Statement'!$E$8:$E$8=\"INTEGRATED PROJECT - IP\"),IF((O37/M37)>0.5,\"Unless the appropriate certificate has been signed, please adjust manually the depreciation amounts in cells D8 and D9 in line with the applicable maximum authorised (50% for equipment)\",\" \"))))","v":" "}," "]
[31,null,null,null,null,null,null,null,null,null,{"$f":"IF(AND('Individual Cost Statement'!$D$25:$D$25=\"Not applicable (all costs in EURO)\",G38>0),1,IF(AND('Individual Cost Statement'!$D$25:$D$25=\"Date when costs incurred\",G38>0),0,'Individual Cost Statement'!$F$26))","v":0}," "," "," "," ",null,{"$f":"IF(K38>0,\" \",IF(AND('Individual Cost Statement'!$D$25:$D$25=\"Date when costs incurred\",G38>0),\"ENCODE Exchange rate !\",\" \"))","v":" "},{"$f":"IF(O38=\" \",\" \",IF(OR('Individual Cost Statement'!$E$8:$E$8=\"CAPACITY BUILDING - CAP\",'Individual Cost Statement'!$E$8:$E$8=\"CLIMA - CCA\",'Individual Cost Statement'!$E$8:$E$8=\"CLIMA - CCM\",'Individual Cost Statement'!$E$8:$E$8=\"CLIMA - GIC\",'Individual Cost Statement'!$E$8:$E$8=\"ENVIRONMENT - ENV\",'Individual Cost Statement'!$E$8:$E$8=\"ENVIRONMENT - GIE\",'Individual Cost Statement'!$E$8:$E$8=\"TECHNICAL ASSISTANCE – TA\"),IF((O38/M38)>0.5,\"Please adjust manually the depreciation amounts in cells D8 and D9 in line with the applicable maximum authorised (50% for equipmene)\",\" \"),IF(OR('Individual Cost Statement'!$E$8:$E$8=\"ENVIRONMENT - NAT\",'Individual Cost Statement'!$E$8:$E$8=\"INTEGRATED PROJECT - IP\"),IF((O38/M38)>0.5,\"Unless the appropriate certificate has been signed, please adjust manually the depreciation amounts in cells D8 and D9 in line with the applicable maximum authorised (50% for equipment)\",\" \"))))","v":" "}," "]
[32,null,null,null,null,null,null,null,null,null,{"$f":"IF(AND('Individual Cost Statement'!$D$25:$D$25=\"Not applicable (all costs in EURO)\",G39>0),1,IF(AND('Individual Cost Statement'!$D$25:$D$25=\"Date when costs incurred\",G39>0),0,'Individual Cost Statement'!$F$26))","v":0}," "," "," "," ",null,{"$f":"IF(K39>0,\" \",IF(AND('Individual Cost Statement'!$D$25:$D$25=\"Date when costs incurred\",G39>0),\"ENCODE Exchange rate !\",\" \"))","v":" "},{"$f":"IF(O39=\" \",\" \",IF(OR('Individual Cost Statement'!$E$8:$E$8=\"CAPACITY BUILDING - CAP\",'Individual Cost Statement'!$E$8:$E$8=\"CLIMA - CCA\",'Individual Cost Statement'!$E$8:$E$8=\"CLIMA - CCM\",'Individual Cost Statement'!$E$8:$E$8=\"CLIMA - GIC\",'Individual Cost Statement'!$E$8:$E$8=\"ENVIRONMENT - ENV\",'Individual Cost Statement'!$E$8:$E$8=\"ENVIRONMENT - GIE\",'Individual Cost Statement'!$E$8:$E$8=\"TECHNICAL ASSISTANCE – TA\"),IF((O39/M39)>0.5,\"Please adjust manually the depreciation amounts in cells D8 and D9 in line with the applicable maximum authorised (50% for equipmene)\",\" \"),IF(OR('Individual Cost Statement'!$E$8:$E$8=\"ENVIRONMENT - NAT\",'Individual Cost Statement'!$E$8:$E$8=\"INTEGRATED PROJECT - IP\"),IF((O39/M39)>0.5,\"Unless the appropriate certificate has been signed, please adjust manually the depreciation amounts in cells D8 and D9 in line with the applicable maximum authorised (50% for equipment)\",\" \"))))","v":" "}," "]
[33,null,null,null,null,null,null,null,null,null,{"$f":"IF(AND('Individual Cost Statement'!$D$25:$D$25=\"Not applicable (all costs in EURO)\",G40>0),1,IF(AND('Individual Cost Statement'!$D$25:$D$25=\"Date when costs incurred\",G40>0),0,'Individual Cost Statement'!$F$26))","v":0}," "," "," "," ",null,{"$f":"IF(K40>0,\" \",IF(AND('Individual Cost Statement'!$D$25:$D$25=\"Date when costs incurred\",G40>0),\"ENCODE Exchange rate !\",\" \"))","v":" "},{"$f":"IF(O40=\" \",\" \",IF(OR('Individual Cost Statement'!$E$8:$E$8=\"CAPACITY BUILDING - CAP\",'Individual Cost Statement'!$E$8:$E$8=\"CLIMA - CCA\",'Individual Cost Statement'!$E$8:$E$8=\"CLIMA - CCM\",'Individual Cost Statement'!$E$8:$E$8=\"CLIMA - GIC\",'Individual Cost Statement'!$E$8:$E$8=\"ENVIRONMENT - ENV\",'Individual Cost Statement'!$E$8:$E$8=\"ENVIRONMENT - GIE\",'Individual Cost Statement'!$E$8:$E$8=\"TECHNICAL ASSISTANCE – TA\"),IF((O40/M40)>0.5,\"Please adjust manually the depreciation amounts in cells D8 and D9 in line with the applicable maximum authorised (50% for equipmene)\",\" \"),IF(OR('Individual Cost Statement'!$E$8:$E$8=\"ENVIRONMENT - NAT\",'Individual Cost Statement'!$E$8:$E$8=\"INTEGRATED PROJECT - IP\"),IF((O40/M40)>0.5,\"Unless the appropriate certificate has been signed, please adjust manually the depreciation amounts in cells D8 and D9 in line with the applicable maximum authorised (50% for equipment)\",\" \"))))","v":" "}," "]
[34,null,null,null,null,null,null,null,null,null,{"$f":"IF(AND('Individual Cost Statement'!$D$25:$D$25=\"Not applicable (all costs in EURO)\",G41>0),1,IF(AND('Individual Cost Statement'!$D$25:$D$25=\"Date when costs incurred\",G41>0),0,'Individual Cost Statement'!$F$26))","v":0}," "," "," "," ",null,{"$f":"IF(K41>0,\" \",IF(AND('Individual Cost Statement'!$D$25:$D$25=\"Date when costs incurred\",G41>0),\"ENCODE Exchange rate !\",\" \"))","v":" "},{"$f":"IF(O41=\" \",\" \",IF(OR('Individual Cost Statement'!$E$8:$E$8=\"CAPACITY BUILDING - CAP\",'Individual Cost Statement'!$E$8:$E$8=\"CLIMA - CCA\",'Individual Cost Statement'!$E$8:$E$8=\"CLIMA - CCM\",'Individual Cost Statement'!$E$8:$E$8=\"CLIMA - GIC\",'Individual Cost Statement'!$E$8:$E$8=\"ENVIRONMENT - ENV\",'Individual Cost Statement'!$E$8:$E$8=\"ENVIRONMENT - GIE\",'Individual Cost Statement'!$E$8:$E$8=\"TECHNICAL ASSISTANCE – TA\"),IF((O41/M41)>0.5,\"Please adjust manually the depreciation amounts in cells D8 and D9 in line with the applicable maximum authorised (50% for equipmene)\",\" \"),IF(OR('Individual Cost Statement'!$E$8:$E$8=\"ENVIRONMENT - NAT\",'Individual Cost Statement'!$E$8:$E$8=\"INTEGRATED PROJECT - IP\"),IF((O41/M41)>0.5,\"Unless the appropriate certificate has been signed, please adjust manually the depreciation amounts in cells D8 and D9 in line with the applicable maximum authorised (50% for equipment)\",\" \"))))","v":" "}," "]
[35,null,null,null,null,null,null,null,null,null,{"$f":"IF(AND('Individual Cost Statement'!$D$25:$D$25=\"Not applicable (all costs in EURO)\",G42>0),1,IF(AND('Individual Cost Statement'!$D$25:$D$25=\"Date when costs incurred\",G42>0),0,'Individual Cost Statement'!$F$26))","v":0}," "," "," "," ",null,{"$f":"IF(K42>0,\" \",IF(AND('Individual Cost Statement'!$D$25:$D$25=\"Date when costs incurred\",G42>0),\"ENCODE Exchange rate !\",\" \"))","v":" "},{"$f":"IF(O42=\" \",\" \",IF(OR('Individual Cost Statement'!$E$8:$E$8=\"CAPACITY BUILDING - CAP\",'Individual Cost Statement'!$E$8:$E$8=\"CLIMA - CCA\",'Individual Cost Statement'!$E$8:$E$8=\"CLIMA - CCM\",'Individual Cost Statement'!$E$8:$E$8=\"CLIMA - GIC\",'Individual Cost Statement'!$E$8:$E$8=\"ENVIRONMENT - ENV\",'Individual Cost Statement'!$E$8:$E$8=\"ENVIRONMENT - GIE\",'Individual Cost Statement'!$E$8:$E$8=\"TECHNICAL ASSISTANCE – TA\"),IF((O42/M42)>0.5,\"Please adjust manually the depreciation amounts in cells D8 and D9 in line with the applicable maximum authorised (50% for equipmene)\",\" \"),IF(OR('Individual Cost Statement'!$E$8:$E$8=\"ENVIRONMENT - NAT\",'Individual Cost Statement'!$E$8:$E$8=\"INTEGRATED PROJECT - IP\"),IF((O42/M42)>0.5,\"Unless the appropriate certificate has been signed, please adjust manually the depreciation amounts in cells D8 and D9 in line with the applicable maximum authorised (50% for equipment)\",\" \"))))","v":" "}," "]
[36,null,null,null,null,null,null,null,null,null,{"$f":"IF(AND('Individual Cost Statement'!$D$25:$D$25=\"Not applicable (all costs in EURO)\",G43>0),1,IF(AND('Individual Cost Statement'!$D$25:$D$25=\"Date when costs incurred\",G43>0),0,'Individual Cost Statement'!$F$26))","v":0}," "," "," "," ",null,{"$f":"IF(K43>0,\" \",IF(AND('Individual Cost Statement'!$D$25:$D$25=\"Date when costs incurred\",G43>0),\"ENCODE Exchange rate !\",\" \"))","v":" "},{"$f":"IF(O43=\" \",\" \",IF(OR('Individual Cost Statement'!$E$8:$E$8=\"CAPACITY BUILDING - CAP\",'Individual Cost Statement'!$E$8:$E$8=\"CLIMA - CCA\",'Individual Cost Statement'!$E$8:$E$8=\"CLIMA - CCM\",'Individual Cost Statement'!$E$8:$E$8=\"CLIMA - GIC\",'Individual Cost Statement'!$E$8:$E$8=\"ENVIRONMENT - ENV\",'Individual Cost Statement'!$E$8:$E$8=\"ENVIRONMENT - GIE\",'Individual Cost Statement'!$E$8:$E$8=\"TECHNICAL ASSISTANCE – TA\"),IF((O43/M43)>0.5,\"Please adjust manually the depreciation amounts in cells D8 and D9 in line with the applicable maximum authorised (50% for equipmene)\",\" \"),IF(OR('Individual Cost Statement'!$E$8:$E$8=\"ENVIRONMENT - NAT\",'Individual Cost Statement'!$E$8:$E$8=\"INTEGRATED PROJECT - IP\"),IF((O43/M43)>0.5,\"Unless the appropriate certificate has been signed, please adjust manually the depreciation amounts in cells D8 and D9 in line with the applicable maximum authorised (50% for equipment)\",\" \"))))","v":" "}," "]
[37,null,null,null,null,null,null,null,null,null,{"$f":"IF(AND('Individual Cost Statement'!$D$25:$D$25=\"Not applicable (all costs in EURO)\",G44>0),1,IF(AND('Individual Cost Statement'!$D$25:$D$25=\"Date when costs incurred\",G44>0),0,'Individual Cost Statement'!$F$26))","v":0}," "," "," "," ",null,{"$f":"IF(K44>0,\" \",IF(AND('Individual Cost Statement'!$D$25:$D$25=\"Date when costs incurred\",G44>0),\"ENCODE Exchange rate !\",\" \"))","v":" "},{"$f":"IF(O44=\" \",\" \",IF(OR('Individual Cost Statement'!$E$8:$E$8=\"CAPACITY BUILDING - CAP\",'Individual Cost Statement'!$E$8:$E$8=\"CLIMA - CCA\",'Individual Cost Statement'!$E$8:$E$8=\"CLIMA - CCM\",'Individual Cost Statement'!$E$8:$E$8=\"CLIMA - GIC\",'Individual Cost Statement'!$E$8:$E$8=\"ENVIRONMENT - ENV\",'Individual Cost Statement'!$E$8:$E$8=\"ENVIRONMENT - GIE\",'Individual Cost Statement'!$E$8:$E$8=\"TECHNICAL ASSISTANCE – TA\"),IF((O44/M44)>0.5,\"Please adjust manually the depreciation amounts in cells D8 and D9 in line with the applicable maximum authorised (50% for equipmene)\",\" \"),IF(OR('Individual Cost Statement'!$E$8:$E$8=\"ENVIRONMENT - NAT\",'Individual Cost Statement'!$E$8:$E$8=\"INTEGRATED PROJECT - IP\"),IF((O44/M44)>0.5,\"Unless the appropriate certificate has been signed, please adjust manually the depreciation amounts in cells D8 and D9 in line with the applicable maximum authorised (50% for equipment)\",\" \"))))","v":" "}," "]
[38,null,null,null,null,null,null,null,null,null,{"$f":"IF(AND('Individual Cost Statement'!$D$25:$D$25=\"Not applicable (all costs in EURO)\",G45>0),1,IF(AND('Individual Cost Statement'!$D$25:$D$25=\"Date when costs incurred\",G45>0),0,'Individual Cost Statement'!$F$26))","v":0}," "," "," "," ",null,{"$f":"IF(K45>0,\" \",IF(AND('Individual Cost Statement'!$D$25:$D$25=\"Date when costs incurred\",G45>0),\"ENCODE Exchange rate !\",\" \"))","v":" "},{"$f":"IF(O45=\" \",\" \",IF(OR('Individual Cost Statement'!$E$8:$E$8=\"CAPACITY BUILDING - CAP\",'Individual Cost Statement'!$E$8:$E$8=\"CLIMA - CCA\",'Individual Cost Statement'!$E$8:$E$8=\"CLIMA - CCM\",'Individual Cost Statement'!$E$8:$E$8=\"CLIMA - GIC\",'Individual Cost Statement'!$E$8:$E$8=\"ENVIRONMENT - ENV\",'Individual Cost Statement'!$E$8:$E$8=\"ENVIRONMENT - GIE\",'Individual Cost Statement'!$E$8:$E$8=\"TECHNICAL ASSISTANCE – TA\"),IF((O45/M45)>0.5,\"Please adjust manually the depreciation amounts in cells D8 and D9 in line with the applicable maximum authorised (50% for equipmene)\",\" \"),IF(OR('Individual Cost Statement'!$E$8:$E$8=\"ENVIRONMENT - NAT\",'Individual Cost Statement'!$E$8:$E$8=\"INTEGRATED PROJECT - IP\"),IF((O45/M45)>0.5,\"Unless the appropriate certificate has been signed, please adjust manually the depreciation amounts in cells D8 and D9 in line with the applicable maximum authorised (50% for equipment)\",\" \"))))","v":" "}," "]
[39,null,null,null,null,null,null,null,null,null,{"$f":"IF(AND('Individual Cost Statement'!$D$25:$D$25=\"Not applicable (all costs in EURO)\",G46>0),1,IF(AND('Individual Cost Statement'!$D$25:$D$25=\"Date when costs incurred\",G46>0),0,'Individual Cost Statement'!$F$26))","v":0}," "," "," "," ",null,{"$f":"IF(K46>0,\" \",IF(AND('Individual Cost Statement'!$D$25:$D$25=\"Date when costs incurred\",G46>0),\"ENCODE Exchange rate !\",\" \"))","v":" "},{"$f":"IF(O46=\" \",\" \",IF(OR('Individual Cost Statement'!$E$8:$E$8=\"CAPACITY BUILDING - CAP\",'Individual Cost Statement'!$E$8:$E$8=\"CLIMA - CCA\",'Individual Cost Statement'!$E$8:$E$8=\"CLIMA - CCM\",'Individual Cost Statement'!$E$8:$E$8=\"CLIMA - GIC\",'Individual Cost Statement'!$E$8:$E$8=\"ENVIRONMENT - ENV\",'Individual Cost Statement'!$E$8:$E$8=\"ENVIRONMENT - GIE\",'Individual Cost Statement'!$E$8:$E$8=\"TECHNICAL ASSISTANCE – TA\"),IF((O46/M46)>0.5,\"Please adjust manually the depreciation amounts in cells D8 and D9 in line with the applicable maximum authorised (50% for equipmene)\",\" \"),IF(OR('Individual Cost Statement'!$E$8:$E$8=\"ENVIRONMENT - NAT\",'Individual Cost Statement'!$E$8:$E$8=\"INTEGRATED PROJECT - IP\"),IF((O46/M46)>0.5,\"Unless the appropriate certificate has been signed, please adjust manually the depreciation amounts in cells D8 and D9 in line with the applicable maximum authorised (50% for equipment)\",\" \"))))","v":" "}," "]
[40,null,null,null,null,null,null,null,null,null,{"$f":"IF(AND('Individual Cost Statement'!$D$25:$D$25=\"Not applicable (all costs in EURO)\",G47>0),1,IF(AND('Individual Cost Statement'!$D$25:$D$25=\"Date when costs incurred\",G47>0),0,'Individual Cost Statement'!$F$26))","v":0}," "," "," "," ",null,{"$f":"IF(K47>0,\" \",IF(AND('Individual Cost Statement'!$D$25:$D$25=\"Date when costs incurred\",G47>0),\"ENCODE Exchange rate !\",\" \"))","v":" "},{"$f":"IF(O47=\" \",\" \",IF(OR('Individual Cost Statement'!$E$8:$E$8=\"CAPACITY BUILDING - CAP\",'Individual Cost Statement'!$E$8:$E$8=\"CLIMA - CCA\",'Individual Cost Statement'!$E$8:$E$8=\"CLIMA - CCM\",'Individual Cost Statement'!$E$8:$E$8=\"CLIMA - GIC\",'Individual Cost Statement'!$E$8:$E$8=\"ENVIRONMENT - ENV\",'Individual Cost Statement'!$E$8:$E$8=\"ENVIRONMENT - GIE\",'Individual Cost Statement'!$E$8:$E$8=\"TECHNICAL ASSISTANCE – TA\"),IF((O47/M47)>0.5,\"Please adjust manually the depreciation amounts in cells D8 and D9 in line with the applicable maximum authorised (50% for equipmene)\",\" \"),IF(OR('Individual Cost Statement'!$E$8:$E$8=\"ENVIRONMENT - NAT\",'Individual Cost Statement'!$E$8:$E$8=\"INTEGRATED PROJECT - IP\"),IF((O47/M47)>0.5,\"Unless the appropriate certificate has been signed, please adjust manually the depreciation amounts in cells D8 and D9 in line with the applicable maximum authorised (50% for equipment)\",\" \"))))","v":" "}," "]
[41,null,null,null,null,null,null,null,null,null,{"$f":"IF(AND('Individual Cost Statement'!$D$25:$D$25=\"Not applicable (all costs in EURO)\",G48>0),1,IF(AND('Individual Cost Statement'!$D$25:$D$25=\"Date when costs incurred\",G48>0),0,'Individual Cost Statement'!$F$26))","v":0}," "," "," "," ",null,{"$f":"IF(K48>0,\" \",IF(AND('Individual Cost Statement'!$D$25:$D$25=\"Date when costs incurred\",G48>0),\"ENCODE Exchange rate !\",\" \"))","v":" "},{"$f":"IF(O48=\" \",\" \",IF(OR('Individual Cost Statement'!$E$8:$E$8=\"CAPACITY BUILDING - CAP\",'Individual Cost Statement'!$E$8:$E$8=\"CLIMA - CCA\",'Individual Cost Statement'!$E$8:$E$8=\"CLIMA - CCM\",'Individual Cost Statement'!$E$8:$E$8=\"CLIMA - GIC\",'Individual Cost Statement'!$E$8:$E$8=\"ENVIRONMENT - ENV\",'Individual Cost Statement'!$E$8:$E$8=\"ENVIRONMENT - GIE\",'Individual Cost Statement'!$E$8:$E$8=\"TECHNICAL ASSISTANCE – TA\"),IF((O48/M48)>0.5,\"Please adjust manually the depreciation amounts in cells D8 and D9 in line with the applicable maximum authorised (50% for equipmene)\",\" \"),IF(OR('Individual Cost Statement'!$E$8:$E$8=\"ENVIRONMENT - NAT\",'Individual Cost Statement'!$E$8:$E$8=\"INTEGRATED PROJECT - IP\"),IF((O48/M48)>0.5,\"Unless the appropriate certificate has been signed, please adjust manually the depreciation amounts in cells D8 and D9 in line with the applicable maximum authorised (50% for equipment)\",\" \"))))","v":" "}," "]
[42,null,null,null,null,null,null,null,null,null,{"$f":"IF(AND('Individual Cost Statement'!$D$25:$D$25=\"Not applicable (all costs in EURO)\",G49>0),1,IF(AND('Individual Cost Statement'!$D$25:$D$25=\"Date when costs incurred\",G49>0),0,'Individual Cost Statement'!$F$26))","v":0}," "," "," "," ",null,{"$f":"IF(K49>0,\" \",IF(AND('Individual Cost Statement'!$D$25:$D$25=\"Date when costs incurred\",G49>0),\"ENCODE Exchange rate !\",\" \"))","v":" "},{"$f":"IF(O49=\" \",\" \",IF(OR('Individual Cost Statement'!$E$8:$E$8=\"CAPACITY BUILDING - CAP\",'Individual Cost Statement'!$E$8:$E$8=\"CLIMA - CCA\",'Individual Cost Statement'!$E$8:$E$8=\"CLIMA - CCM\",'Individual Cost Statement'!$E$8:$E$8=\"CLIMA - GIC\",'Individual Cost Statement'!$E$8:$E$8=\"ENVIRONMENT - ENV\",'Individual Cost Statement'!$E$8:$E$8=\"ENVIRONMENT - GIE\",'Individual Cost Statement'!$E$8:$E$8=\"TECHNICAL ASSISTANCE – TA\"),IF((O49/M49)>0.5,\"Please adjust manually the depreciation amounts in cells D8 and D9 in line with the applicable maximum authorised (50% for equipmene)\",\" \"),IF(OR('Individual Cost Statement'!$E$8:$E$8=\"ENVIRONMENT - NAT\",'Individual Cost Statement'!$E$8:$E$8=\"INTEGRATED PROJECT - IP\"),IF((O49/M49)>0.5,\"Unless the appropriate certificate has been signed, please adjust manually the depreciation amounts in cells D8 and D9 in line with the applicable maximum authorised (50% for equipment)\",\" \"))))","v":" "}," "]
[43,null,null,null,null,null,null,null,null,null,{"$f":"IF(AND('Individual Cost Statement'!$D$25:$D$25=\"Not applicable (all costs in EURO)\",G50>0),1,IF(AND('Individual Cost Statement'!$D$25:$D$25=\"Date when costs incurred\",G50>0),0,'Individual Cost Statement'!$F$26))","v":0}," "," "," "," ",null,{"$f":"IF(K50>0,\" \",IF(AND('Individual Cost Statement'!$D$25:$D$25=\"Date when costs incurred\",G50>0),\"ENCODE Exchange rate !\",\" \"))","v":" "},{"$f":"IF(O50=\" \",\" \",IF(OR('Individual Cost Statement'!$E$8:$E$8=\"CAPACITY BUILDING - CAP\",'Individual Cost Statement'!$E$8:$E$8=\"CLIMA - CCA\",'Individual Cost Statement'!$E$8:$E$8=\"CLIMA - CCM\",'Individual Cost Statement'!$E$8:$E$8=\"CLIMA - GIC\",'Individual Cost Statement'!$E$8:$E$8=\"ENVIRONMENT - ENV\",'Individual Cost Statement'!$E$8:$E$8=\"ENVIRONMENT - GIE\",'Individual Cost Statement'!$E$8:$E$8=\"TECHNICAL ASSISTANCE – TA\"),IF((O50/M50)>0.5,\"Please adjust manually the depreciation amounts in cells D8 and D9 in line with the applicable maximum authorised (50% for equipmene)\",\" \"),IF(OR('Individual Cost Statement'!$E$8:$E$8=\"ENVIRONMENT - NAT\",'Individual Cost Statement'!$E$8:$E$8=\"INTEGRATED PROJECT - IP\"),IF((O50/M50)>0.5,\"Unless the appropriate certificate has been signed, please adjust manually the depreciation amounts in cells D8 and D9 in line with the applicable maximum authorised (50% for equipment)\",\" \"))))","v":" "}," "]
[44,null,null,null,null,null,null,null,null,null,{"$f":"IF(AND('Individual Cost Statement'!$D$25:$D$25=\"Not applicable (all costs in EURO)\",G51>0),1,IF(AND('Individual Cost Statement'!$D$25:$D$25=\"Date when costs incurred\",G51>0),0,'Individual Cost Statement'!$F$26))","v":0}," "," "," "," ",null,{"$f":"IF(K51>0,\" \",IF(AND('Individual Cost Statement'!$D$25:$D$25=\"Date when costs incurred\",G51>0),\"ENCODE Exchange rate !\",\" \"))","v":" "},{"$f":"IF(O51=\" \",\" \",IF(OR('Individual Cost Statement'!$E$8:$E$8=\"CAPACITY BUILDING - CAP\",'Individual Cost Statement'!$E$8:$E$8=\"CLIMA - CCA\",'Individual Cost Statement'!$E$8:$E$8=\"CLIMA - CCM\",'Individual Cost Statement'!$E$8:$E$8=\"CLIMA - GIC\",'Individual Cost Statement'!$E$8:$E$8=\"ENVIRONMENT - ENV\",'Individual Cost Statement'!$E$8:$E$8=\"ENVIRONMENT - GIE\",'Individual Cost Statement'!$E$8:$E$8=\"TECHNICAL ASSISTANCE – TA\"),IF((O51/M51)>0.5,\"Please adjust manually the depreciation amounts in cells D8 and D9 in line with the applicable maximum authorised (50% for equipmene)\",\" \"),IF(OR('Individual Cost Statement'!$E$8:$E$8=\"ENVIRONMENT - NAT\",'Individual Cost Statement'!$E$8:$E$8=\"INTEGRATED PROJECT - IP\"),IF((O51/M51)>0.5,\"Unless the appropriate certificate has been signed, please adjust manually the depreciation amounts in cells D8 and D9 in line with the applicable maximum authorised (50% for equipment)\",\" \"))))","v":" "}," "]
[45,null,null,null,null,null,null,null,null,null,{"$f":"IF(AND('Individual Cost Statement'!$D$25:$D$25=\"Not applicable (all costs in EURO)\",G52>0),1,IF(AND('Individual Cost Statement'!$D$25:$D$25=\"Date when costs incurred\",G52>0),0,'Individual Cost Statement'!$F$26))","v":0}," "," "," "," ",null,{"$f":"IF(K52>0,\" \",IF(AND('Individual Cost Statement'!$D$25:$D$25=\"Date when costs incurred\",G52>0),\"ENCODE Exchange rate !\",\" \"))","v":" "},{"$f":"IF(O52=\" \",\" \",IF(OR('Individual Cost Statement'!$E$8:$E$8=\"CAPACITY BUILDING - CAP\",'Individual Cost Statement'!$E$8:$E$8=\"CLIMA - CCA\",'Individual Cost Statement'!$E$8:$E$8=\"CLIMA - CCM\",'Individual Cost Statement'!$E$8:$E$8=\"CLIMA - GIC\",'Individual Cost Statement'!$E$8:$E$8=\"ENVIRONMENT - ENV\",'Individual Cost Statement'!$E$8:$E$8=\"ENVIRONMENT - GIE\",'Individual Cost Statement'!$E$8:$E$8=\"TECHNICAL ASSISTANCE – TA\"),IF((O52/M52)>0.5,\"Please adjust manually the depreciation amounts in cells D8 and D9 in line with the applicable maximum authorised (50% for equipmene)\",\" \"),IF(OR('Individual Cost Statement'!$E$8:$E$8=\"ENVIRONMENT - NAT\",'Individual Cost Statement'!$E$8:$E$8=\"INTEGRATED PROJECT - IP\"),IF((O52/M52)>0.5,\"Unless the appropriate certificate has been signed, please adjust manually the depreciation amounts in cells D8 and D9 in line with the applicable maximum authorised (50% for equipment)\",\" \"))))","v":" "}," "]
[46,null,null,null,null,null,null,null,null,null,{"$f":"IF(AND('Individual Cost Statement'!$D$25:$D$25=\"Not applicable (all costs in EURO)\",G53>0),1,IF(AND('Individual Cost Statement'!$D$25:$D$25=\"Date when costs incurred\",G53>0),0,'Individual Cost Statement'!$F$26))","v":0}," "," "," "," ",null,{"$f":"IF(K53>0,\" \",IF(AND('Individual Cost Statement'!$D$25:$D$25=\"Date when costs incurred\",G53>0),\"ENCODE Exchange rate !\",\" \"))","v":" "},{"$f":"IF(O53=\" \",\" \",IF(OR('Individual Cost Statement'!$E$8:$E$8=\"CAPACITY BUILDING - CAP\",'Individual Cost Statement'!$E$8:$E$8=\"CLIMA - CCA\",'Individual Cost Statement'!$E$8:$E$8=\"CLIMA - CCM\",'Individual Cost Statement'!$E$8:$E$8=\"CLIMA - GIC\",'Individual Cost Statement'!$E$8:$E$8=\"ENVIRONMENT - ENV\",'Individual Cost Statement'!$E$8:$E$8=\"ENVIRONMENT - GIE\",'Individual Cost Statement'!$E$8:$E$8=\"TECHNICAL ASSISTANCE – TA\"),IF((O53/M53)>0.5,\"Please adjust manually the depreciation amounts in cells D8 and D9 in line with the applicable maximum authorised (50% for equipmene)\",\" \"),IF(OR('Individual Cost Statement'!$E$8:$E$8=\"ENVIRONMENT - NAT\",'Individual Cost Statement'!$E$8:$E$8=\"INTEGRATED PROJECT - IP\"),IF((O53/M53)>0.5,\"Unless the appropriate certificate has been signed, please adjust manually the depreciation amounts in cells D8 and D9 in line with the applicable maximum authorised (50% for equipment)\",\" \"))))","v":" "}," "]
[47,null,null,null,null,null,null,null,null,null,{"$f":"IF(AND('Individual Cost Statement'!$D$25:$D$25=\"Not applicable (all costs in EURO)\",G54>0),1,IF(AND('Individual Cost Statement'!$D$25:$D$25=\"Date when costs incurred\",G54>0),0,'Individual Cost Statement'!$F$26))","v":0}," "," "," "," ",null,{"$f":"IF(K54>0,\" \",IF(AND('Individual Cost Statement'!$D$25:$D$25=\"Date when costs incurred\",G54>0),\"ENCODE Exchange rate !\",\" \"))","v":" "},{"$f":"IF(O54=\" \",\" \",IF(OR('Individual Cost Statement'!$E$8:$E$8=\"CAPACITY BUILDING - CAP\",'Individual Cost Statement'!$E$8:$E$8=\"CLIMA - CCA\",'Individual Cost Statement'!$E$8:$E$8=\"CLIMA - CCM\",'Individual Cost Statement'!$E$8:$E$8=\"CLIMA - GIC\",'Individual Cost Statement'!$E$8:$E$8=\"ENVIRONMENT - ENV\",'Individual Cost Statement'!$E$8:$E$8=\"ENVIRONMENT - GIE\",'Individual Cost Statement'!$E$8:$E$8=\"TECHNICAL ASSISTANCE – TA\"),IF((O54/M54)>0.5,\"Please adjust manually the depreciation amounts in cells D8 and D9 in line with the applicable maximum authorised (50% for equipmene)\",\" \"),IF(OR('Individual Cost Statement'!$E$8:$E$8=\"ENVIRONMENT - NAT\",'Individual Cost Statement'!$E$8:$E$8=\"INTEGRATED PROJECT - IP\"),IF((O54/M54)>0.5,\"Unless the appropriate certificate has been signed, please adjust manually the depreciation amounts in cells D8 and D9 in line with the applicable maximum authorised (50% for equipment)\",\" \"))))","v":" "}," "]
[48,null,null,null,null,null,null,null,null,null,{"$f":"IF(AND('Individual Cost Statement'!$D$25:$D$25=\"Not applicable (all costs in EURO)\",G55>0),1,IF(AND('Individual Cost Statement'!$D$25:$D$25=\"Date when costs incurred\",G55>0),0,'Individual Cost Statement'!$F$26))","v":0}," "," "," "," ",null,{"$f":"IF(K55>0,\" \",IF(AND('Individual Cost Statement'!$D$25:$D$25=\"Date when costs incurred\",G55>0),\"ENCODE Exchange rate !\",\" \"))","v":" "},{"$f":"IF(O55=\" \",\" \",IF(OR('Individual Cost Statement'!$E$8:$E$8=\"CAPACITY BUILDING - CAP\",'Individual Cost Statement'!$E$8:$E$8=\"CLIMA - CCA\",'Individual Cost Statement'!$E$8:$E$8=\"CLIMA - CCM\",'Individual Cost Statement'!$E$8:$E$8=\"CLIMA - GIC\",'Individual Cost Statement'!$E$8:$E$8=\"ENVIRONMENT - ENV\",'Individual Cost Statement'!$E$8:$E$8=\"ENVIRONMENT - GIE\",'Individual Cost Statement'!$E$8:$E$8=\"TECHNICAL ASSISTANCE – TA\"),IF((O55/M55)>0.5,\"Please adjust manually the depreciation amounts in cells D8 and D9 in line with the applicable maximum authorised (50% for equipmene)\",\" \"),IF(OR('Individual Cost Statement'!$E$8:$E$8=\"ENVIRONMENT - NAT\",'Individual Cost Statement'!$E$8:$E$8=\"INTEGRATED PROJECT - IP\"),IF((O55/M55)>0.5,\"Unless the appropriate certificate has been signed, please adjust manually the depreciation amounts in cells D8 and D9 in line with the applicable maximum authorised (50% for equipment)\",\" \"))))","v":" "}," "]
[49,null,null,null,null,null,null,null,null,null,{"$f":"IF(AND('Individual Cost Statement'!$D$25:$D$25=\"Not applicable (all costs in EURO)\",G56>0),1,IF(AND('Individual Cost Statement'!$D$25:$D$25=\"Date when costs incurred\",G56>0),0,'Individual Cost Statement'!$F$26))","v":0}," "," "," "," ",null,{"$f":"IF(K56>0,\" \",IF(AND('Individual Cost Statement'!$D$25:$D$25=\"Date when costs incurred\",G56>0),\"ENCODE Exchange rate !\",\" \"))","v":" "},{"$f":"IF(O56=\" \",\" \",IF(OR('Individual Cost Statement'!$E$8:$E$8=\"CAPACITY BUILDING - CAP\",'Individual Cost Statement'!$E$8:$E$8=\"CLIMA - CCA\",'Individual Cost Statement'!$E$8:$E$8=\"CLIMA - CCM\",'Individual Cost Statement'!$E$8:$E$8=\"CLIMA - GIC\",'Individual Cost Statement'!$E$8:$E$8=\"ENVIRONMENT - ENV\",'Individual Cost Statement'!$E$8:$E$8=\"ENVIRONMENT - GIE\",'Individual Cost Statement'!$E$8:$E$8=\"TECHNICAL ASSISTANCE – TA\"),IF((O56/M56)>0.5,\"Please adjust manually the depreciation amounts in cells D8 and D9 in line with the applicable maximum authorised (50% for equipmene)\",\" \"),IF(OR('Individual Cost Statement'!$E$8:$E$8=\"ENVIRONMENT - NAT\",'Individual Cost Statement'!$E$8:$E$8=\"INTEGRATED PROJECT - IP\"),IF((O56/M56)>0.5,\"Unless the appropriate certificate has been signed, please adjust manually the depreciation amounts in cells D8 and D9 in line with the applicable maximum authorised (50% for equipment)\",\" \"))))","v":" "}," "]
[50,null,null,null,null,null,null,null,null,null,{"$f":"IF(AND('Individual Cost Statement'!$D$25:$D$25=\"Not applicable (all costs in EURO)\",G57>0),1,IF(AND('Individual Cost Statement'!$D$25:$D$25=\"Date when costs incurred\",G57>0),0,'Individual Cost Statement'!$F$26))","v":0}," "," "," "," ",null,{"$f":"IF(K57>0,\" \",IF(AND('Individual Cost Statement'!$D$25:$D$25=\"Date when costs incurred\",G57>0),\"ENCODE Exchange rate !\",\" \"))","v":" "},{"$f":"IF(O57=\" \",\" \",IF(OR('Individual Cost Statement'!$E$8:$E$8=\"CAPACITY BUILDING - CAP\",'Individual Cost Statement'!$E$8:$E$8=\"CLIMA - CCA\",'Individual Cost Statement'!$E$8:$E$8=\"CLIMA - CCM\",'Individual Cost Statement'!$E$8:$E$8=\"CLIMA - GIC\",'Individual Cost Statement'!$E$8:$E$8=\"ENVIRONMENT - ENV\",'Individual Cost Statement'!$E$8:$E$8=\"ENVIRONMENT - GIE\",'Individual Cost Statement'!$E$8:$E$8=\"TECHNICAL ASSISTANCE – TA\"),IF((O57/M57)>0.5,\"Please adjust manually the depreciation amounts in cells D8 and D9 in line with the applicable maximum authorised (50% for equipmene)\",\" \"),IF(OR('Individual Cost Statement'!$E$8:$E$8=\"ENVIRONMENT - NAT\",'Individual Cost Statement'!$E$8:$E$8=\"INTEGRATED PROJECT - IP\"),IF((O57/M57)>0.5,\"Unless the appropriate certificate has been signed, please adjust manually the depreciation amounts in cells D8 and D9 in line with the applicable maximum authorised (50% for equipment)\",\" \"))))","v":" "}," "]
["Total",null,null,null,null,null,null,null,null,null,null,{"$f":"SUM(L8:INDIRECT(\"L\"&ROW()-1))","v":0},{"$f":"SUM(M8:INDIRECT(\"M\"&ROW()-1))","v":0},{"$f":"SUM(N8:INDIRECT(\"N\"&ROW()-1))","v":0},{"$f":"SUM(O8:INDIRECT(\"O\"&ROW()-1))","v":0}]
[]
[]
[]
[]
[]
["Explanation of the content of each Column"]
["PLEASE FILL-IN ONLY BLUE CELLS"]
["A","Sequential number of the entries."]
["B1","Date of invoice "]
["B2","Invoice number or reference number of another accounting document, with which the transaction is identified in the accounting system."]
["B3","Date of payment of the invoice"]
["C1","Name of the supplier  - For beneficiaries declaring costs of affiliates in their individual statement, put here also a line with the name of the affiliate and include under column D8 & D9  the total depreciated equipment cost (with and without VAT) of the affiliate in EUR (according to its individual financial statement)"]
["C2","Description of the equipment. Please provide enough details in order to assess the eligibility of the cost item and include (if not fully used for project), the % used for the project and the total purchase cost as on the invoice"]
["D1","Invoiced amount in national currency without VAT"]
["D2","Invoiced amount in national currency with non-recoverable VAT"]
["D3","Depreciation rate expressed in number of months, in line with depreciation method applied further to accounting rules"]
["D4","Number of months the item was used during the current reporting period - Please note that if the depreciation % is higher than the max. allowed (unless there is an exception for NAT/IP public and non-commercial entities) the max. nr of months to be included is 50% of D3"]
["D5","If costs are reported in Euro, where beneficiary keeps its general accounts in Euro, no exchange rate to include"]
["D5","If the currency of the reported costs is not EURO, where beneficiary keeps its general accounts in a currency other than Euro and the exchange rate option chosen is \"1st day after the end of reporting period\", the monthly exchange rate encoded in the individual Costs statement sheet will be automatically inserted. "]
["D5","If the currency of the reported costs is not EURO, where beneficiary keeps its general accounts in a currency other than Euro and the exchange rate option chosen is \"the day when the costs incurred\", please enter the monthly exchange rate published on the Commission website: http://ec.europa.eu/budget/contracts_grants/info_contracts/inforeuro/inforeuro_en.cfm."]
["D6","Invoiced amount in Euro without VAT (automatic calculation)"]
["D7","Invoiced amount in Euro with non-recoverable VAT (automatic calculation)"]
["D8","Depreciation amount in Euro without VAT (automatic calculation: D6/D3*D4)"]
["D9","Depreciation amount in Euro with non recoverable VAT (automatic calculation: D6/D3*D4) "]
["F","Indicate which selection procedure have been used to select the supplier.\nFor public entities: public procurment rules\nFor private entities: direct award, multiple bids, open tender (for cost items >130.000), framework contract."]

{"sheet":"Prototype","index":7,"n_rows":79,"n_cols":15,"rows_kept":79,"cut":false,"hidden":false,"merged":[[57,0,57,8],[78,1,78,11],[75,1,75,11],[74,1,74,11],[63,0,63,11],[64,0,64,11],[69,1,69,11],[4,4,4,5],[4,6,4,10],[4,1,4,3],[0,2,0,4],[1,2,1,4],[0,8,0,10],[1,8,1,10],[2,8,2,10],[2,2,2,4]]}
[null,"PROJECT Reference :",{"$f":"'Individual Cost Statement'!B3:B3","v":"LIFEXX XXX/XX/XXXXXX - ACRONYM"},null,null,null,"PERIOD (FROM) :",{"$f":"'Individual Cost Statement'!E3:E3","v":"00:00:00"},"PROTOTYPE"]
[null,"COUNTRY :",{"$f":"'Individual Cost Statement'!B4:B4","v":"Austria"},null,null,null,"PERIOD (TO) :",{"$f":"'Individual Cost Statement'!E4:E4","v":"00:00:00"},"Amount WITH NON-recoverable VAT"]
[null,"Beneficiary: ",{"$f":"'Individual Cost Statement'!B6:B6","v":0},null,null,null,null,null,{"$f":"K58","v":0}]
[]
[null,"Details on cost item",null,null,"Info on cost item",null,"Calculation of the PROTOTYPE costs",null,null,null,null,"Selection procedure"]
["A","B1","B2","B3","C1","C2","D1","D2","D3","D4","D5","F"]
["Seq n°","Date of invoice","Invoice number","Date of payment","Supplier","Description of prototype","Amount in national currency without VAT","Amount in national currency with non-recoverable VAT","Exchange rate","Amount in EURO\nwithout VAT","Amount in EURO \nwith non-recoverable VAT ","Applied selection procedure",null,null,"VAT\nCalculation"]
[{"$f":"ROW()-7","v":1},null,null,null,null,null,null,null,{"$f":"IF(AND('Individual Cost Statement'!$D$25:$D$25=\"Not applicable (all costs in EURO)\",G8>0),1,IF(AND('Individual Cost Statement'!$D$25:$D$25=\"Date when costs incurred\",G8>0),0,'Individual Cost Statement'!$F$26))","v":0},{"$f":"IF(AND(G8>0,I8>0),G8/I8,\" \")","v":" "},{"$f":"IF(AND(H8>0,I8>0),H8/I8,\" \")","v":" "},null,{"$f":"IF(I8>0,\" \",IF(AND('Individual Cost Statement'!$D$25:$D$25=\"Date when costs incurred\",G8>0),\"ENCODE Exchange rate !\",\" \"))","v":" "},null,{"$f":"IF(J8=\" \",\" \",K8-J8)","v":" "}]
[2,null,null,null,null,null,null,null,{"$f":"IF(AND('Individual Cost Statement'!$D$25:$D$25=\"Not applicable (all costs in EURO)\",G9>0),1,IF(AND('Individual Cost Statement'!$D$25:$D$25=\"Date when costs incurred\",G9>0),0,'Individual Cost Statement'!$F$26))","v":0},{"$f":"IF(AND(G9>0,I9>0),G9/I9,\" \")","v":" "},{"$f":"IF(AND(H9>0,I9>0),H9/I9,\" \")","v":" "},null,{"$f":"IF(I9>0,\" \",IF(AND('Individual Cost Statement'!$D$25:$D$25=\"Date when costs incurred\",G9>0),\"ENCODE Exchange rate !\",\" \"))","v":" "},null,{"$f":"IF(J9=\" \",\" \",K9-J9)","v":" "}]
[3,null,null,null,null,null,null,null,{"$f":"IF(AND('Individual Cost Statement'!$D$25:$D$25=\"Not applicable (all costs in EURO)\",G10>0),1,IF(AND('Individual Cost Statement'!$D$25:$D$25=\"Date when costs incurred\",G10>0),0,'Individual Cost Statement'!$F$26))","v":0}," "," ",null,{"$f":"IF(I10>0,\" \",IF(AND('Individual Cost Statement'!$D$25:$D$25=\"Date when costs incurred\",G10>0),\"ENCODE Exchange rate !\",\" \"))","v":" "},null," "]
[4,null,null,null,null,null,null,null,{"$f":"IF(AND('Individual Cost Statement'!$D$25:$D$25=\"Not applicable (all costs in EURO)\",G11>0),1,IF(AND('Individual Cost Statement'!$D$25:$D$25=\"Date when costs incurred\",G11>0),0,'Individual Cost Statement'!$F$26))","v":0}," "," ",null,{"$f":"IF(I11>0,\" \",IF(AND('Individual Cost Statement'!$D$25:$D$25=\"Date when costs incurred\",G11>0),\"ENCODE Exchange rate !\",\" \"))","v":" "},null," "]
[5,null,null,null,null,null,null,null,{"$f":"IF(AND('Individual Cost Statement'!$D$25:$D$25=\"Not applicable (all costs in EURO)\",G12>0),1,IF(AND('Individual Cost Statement'!$D$25:$D$25=\"Date when costs incurred\",G12>0),0,'Individual Cost Statement'!$F$26))","v":0}," "," ",null,{"$f":"IF(I12>0,\" \",IF(AND('Individual Cost Statement'!$D$25:$D$25=\"Date when costs incurred\",G12>0),\"ENCODE Exchange rate !\",\" \"))","v":" "},null," "]
[6,null,null,null,null,null,null,null,{"$f":"IF(AND('Individual Cost Statement'!$D$25:$D$25=\"Not applicable (all costs in EURO)\",G13>0),1,IF(AND('Individual Cost Statement'!$D$25:$D$25=\"Date when costs incurred\",G13>0),0,'Individual Cost Statement'!$F$26))","v":0}," "," ",null,{"$f":"IF(I13>0,\" \",IF(AND('Individual Cost Statement'!$D$25:$D$25=\"Date when costs incurred\",G13>0),\"ENCODE Exchange rate !\",\" \"))","v":" "},null," "]
[7,null,null,null,null,null,null,null,{"$f":"IF(AND('Individual Cost Statement'!$D$25:$D$25=\"Not applicable (all costs in EURO)\",G14>0),1,IF(AND('Individual Cost Statement'!$D$25:$D$25=\"Date when costs incurred\",G14>0),0,'Individual Cost Statement'!$F$26))","v":0}," "," ",null,{"$f":"IF(I14>0,\" \",IF(AND('Individual Cost Statement'!$D$25:$D$25=\"Date when costs incurred\",G14>0),\"ENCODE Exchange rate !\",\" \"))","v":" "},null," "]
[8,null,null,null,null,null,null,null,{"$f":"IF(AND('Individual Cost Statement'!$D$25:$D$25=\"Not applicable (all costs in EURO)\",G15>0),1,IF(AND('Individual Cost Statement'!$D$25:$D$25=\"Date when costs incurred\",G15>0),0,'Individual Cost Statement'!$F$26))","v":0}," "," ",null,{"$f":"IF(I15>0,\" \",IF(AND('Individual Cost Statement'!$D$25:$D$25=\"Date when costs incurred\",G15>0),\"ENCODE Exchange rate !\",\" \"))","v":" "},null," "]
[9,null,null,null,null,null,null,null,{"$f":"IF(AND('Individual Cost Statement'!$D$25:$D$25=\"Not applicable (all costs in EURO)\",G16>0),1,IF(AND('Individual Cost Statement'!$D$25:$D$25=\"Date when costs incurred\",G16>0),0,'Individual Cost Statement'!$F$26))","v":0}," "," ",null,{"$f":"IF(I16>0,\" \",IF(AND('Individual Cost Statement'!$D$25:$D$25=\"Date when costs incurred\",G16>0),\"ENCODE Exchange rate !\",\" \"))","v":" "},null," "]
[10,null,null,null,null,null,null,null,{"$f":"IF(AND('Individual Cost Statement'!$D$25:$D$25=\"Not applicable (all costs in EURO)\",G17>0),1,IF(AND('Individual Cost Statement'!$D$25:$D$25=\"Date when costs incurred\",G17>0),0,'Individual Cost Statement'!$F$26))","v":0}," "," ",null,{"$f":"IF(I17>0,\" \",IF(AND('Individual Cost Statement'!$D$25:$D$25=\"Date when costs incurred\",G17>0),\"ENCODE Exchange rate !\",\" \"))","v":" "},null," "]
[11,null,null,null,null,null,null,null,{"$f":"IF(AND('Individual Cost Statement'!$D$25:$D$25=\"Not applicable (all costs in EURO)\",G18>0),1,IF(AND('Individual Cost Statement'!$D$25:$D$25=\"Date when costs incurred\",G18>0),0,'Individual Cost Statement'!$F$26))","v":0}," "," ",null,{"$f":"IF(I18>0,\" \",IF(AND('Individual Cost Statement'!$D$25:$D$25=\"Date when costs incurred\",G18>0),\"ENCODE Exchange rate !\",\" \"))","v":" "},null," "]
[12,null,null,null,null,null,null,null,{"$f":"IF(AND('Individual Cost Statement'!$D$25:$D$25=\"Not applicable (all costs in EURO)\",G19>0),1,IF(AND('Individual Cost Statement'!$D$25:$D$25=\"Date when costs incurred\",G19>0),0,'Individual Cost Statement'!$F$26))","v":0}," "," ",null,{"$f":"IF(I19>0,\" \",IF(AND('Individual Cost Statement'!$D$25:$D$25=\"Date when costs incurred\",G19>0),\"ENCODE Exchange rate !\",\" \"))","v":" "},null," "]
[13,null,null,null,null,null,null,null,{"$f":"IF(AND('Individual Cost Statement'!$D$25:$D$25=\"Not applicable (all costs in EURO)\",G20>0),1,IF(AND('Individual Cost Statement'!$D$25:$D$25=\"Date when costs incurred\",G20>0),0,'Individual Cost Statement'!$F$26))","v":0}," "," ",null,{"$f":"IF(I20>0,\" \",IF(AND('Individual Cost Statement'!$D$25:$D$25=\"Date when costs incurred\",G20>0),\"ENCODE Exchange rate !\",\" \"))","v":" "},null," "]
[14,null,null,null,null,null,null,null,{"$f":"IF(AND('Individual Cost Statement'!$D$25:$D$25=\"Not applicable (all costs in EURO)\",G21>0),1,IF(AND('Individual Cost Statement'!$D$25:$D$25=\"Date when costs incurred\",G21>0),0,'Individual Cost Statement'!$F$26))","v":0}," "," ",null,{"$f":"IF(I21>0,\" \",IF(AND('Individual Cost Statement'!$D$25:$D$25=\"Date when costs incurred\",G21>0),\"ENCODE Exchange rate !\",\" \"))","v":" "},null," "]
[15,null,null,null,null,null,null,null,{"$f":"IF(AND('Individual Cost Statement'!$D$25:$D$25=\"Not applicable (all costs in EURO)\",G22>0),1,IF(AND('Individual Cost Statement'!$D$25:$D$25=\"Date when costs incurred\",G22>0),0,'Individual Cost Statement'!$F$26))","v":0}," "," ",null,{"$f":"IF(I22>0,\" \",IF(AND('Individual Cost Statement'!$D$25:$D$25=\"Date when costs incurred\",G22>0),\"ENCODE Exchange rate !\",\" \"))","v":" "},null," "]
[16,null,null,null,null,null,null,null,{"$f":"IF(AND('Individual Cost Statement'!$D$25:$D$25=\"Not applicable (all costs in EURO)\",G23>0),1,IF(AND('Individual Cost Statement'!$D$25:$D$25=\"Date when costs incurred\",G23>0),0,'Individual Cost Statement'!$F$26))","v":0}," "," ",null,{"$f":"IF(I23>0,\" \",IF(AND('Individual Cost Statement'!$D$25:$D$25=\"Date when costs incurred\",G23>0),\"ENCODE Exchange rate !\",\" \"))","v":" "},null," "]
[17,null,null,null,null,null,null,null,{"$f":"IF(AND('Individual Cost Statement'!$D$25:$D$25=\"Not applicable (all costs in EURO)\",G24>0),1,IF(AND('Individual Cost Statement'!$D$25:$D$25=\"Date when costs incurred\",G24>0),0,'Individual Cost Statement'!$F$26))","v":0}," "," ",null,{"$f":"IF(I24>0,\" \",IF(AND('Individual Cost Statement'!$D$25:$D$25=\"Date when costs incurred\",G24>0),\"ENCODE Exchange rate !\",\" \"))","v":" "},null," "]
[18,null,null,null,null,null,null,null,{"$f":"IF(AND('Individual Cost Statement'!$D$25:$D$25=\"Not applicable (all costs in EURO)\",G25>0),1,IF(AND('Individual Cost Statement'!$D$25:$D$25=\"Date when costs incurred\",G25>0),0,'Individual Cost Statement'!$F$26))","v":0}," "," ",null,{"$f":"IF(I25>0,\" \",IF(AND('Individual Cost Statement'!$D$25:$D$25=\"Date when costs incurred\",G25>0),\"ENCODE Exchange rate !\",\" \"))","v":" "},null," "]
[19,null,null,null,null,null,null,null,{"$f":"IF(AND('Individual Cost Statement'!$D$25:$D$25=\"Not applicable (all costs in EURO)\",G26>0),1,IF(AND('Individual Cost Statement'!$D$25:$D$25=\"Date when costs incurred\",G26>0),0,'Individual Cost Statement'!$F$26))","v":0}," "," ",null,{"$f":"IF(I26>0,\" \",IF(AND('Individual Cost Statement'!$D$25:$D$25=\"Date when costs incurred\",G26>0),\"ENCODE Exchange rate !\",\" \"))","v":" "},null," "]
[20,null,null,null,null,null,null,null,{"$f":"IF(AND('Individual Cost Statement'!$D$25:$D$25=\"Not applicable (all costs in EURO)\",G27>0),1,IF(AND('Individual Cost Statement'!$D$25:$D$25=\"Date when costs incurred\",G27>0),0,'Individual Cost Statement'!$F$26))","v":0}," "," ",null,{"$f":"IF(I27>0,\" \",IF(AND('Individual Cost Statement'!$D$25:$D$25=\"Date when costs incurred\",G27>0),\"ENCODE Exchange rate !\",\" \"))","v":" "},null," "]
[21,null,null,null,null,null,null,null,{"$f":"IF(AND('Individual Cost Statement'!$D$25:$D$25=\"Not applicable (all costs in EURO)\",G28>0),1,IF(AND('Individual Cost Statement'!$D$25:$D$25=\"Date when costs incurred\",G28>0),0,'Individual Cost Statement'!$F$26))","v":0}," "," ",null,{"$f":"IF(I28>0,\" \",IF(AND('Individual Cost Statement'!$D$25:$D$25=\"Date when costs incurred\",G28>0),\"ENCODE Exchange rate !\",\" \"))","v":" "},null," "]
[22,null,null,null,null,null,null,null,{"$f":"IF(AND('Individual Cost Statement'!$D$25:$D$25=\"Not applicable (all costs in EURO)\",G29>0),1,IF(AND('Individual Cost Statement'!$D$25:$D$25=\"Date when costs incurred\",G29>0),0,'Individual Cost Statement'!$F$26))","v":0}," "," ",null,{"$f":"IF(I29>0,\" \",IF(AND('Individual Cost Statement'!$D$25:$D$25=\"Date when costs incurred\",G29>0),\"ENCODE Exchange rate !\",\" \"))","v":" "},null," "]
[23,null,null,null,null,null,null,null,{"$f":"IF(AND('Individual Cost Statement'!$D$25:$D$25=\"Not applicable (all costs in EURO)\",G30>0),1,IF(AND('Individual Cost Statement'!$D$25:$D$25=\"Date when costs incurred\",G30>0),0,'Individual Cost Statement'!$F$26))","v":0}," "," ",null,{"$f":"IF(I30>0,\" \",IF(AND('Individual Cost Statement'!$D$25:$D$25=\"Date when costs incurred\",G30>0),\"ENCODE Exchange rate !\",\" \"))","v":" "},null," "]
[24,null,null,null,null,null,null,null,{"$f":"IF(AND('Individual Cost Statement'!$D$25:$D$25=\"Not applicable (all costs in EURO)\",G31>0),1,IF(AND('Individual Cost Statement'!$D$25:$D$25=\"Date when costs incurred\",G31>0),0,'Individual Cost Statement'!$F$26))","v":0}," "," ",null,{"$f":"IF(I31>0,\" \",IF(AND('Individual Cost Statement'!$D$25:$D$25=\"Date when costs incurred\",G31>0),\"ENCODE Exchange rate !\",\" \"))","v":" "},null," "]
[25,null,null,null,null,null,null,null,{"$f":"IF(AND('Individual Cost Statement'!$D$25:$D$25=\"Not applicable (all costs in EURO)\",G32>0),1,IF(AND('Individual Cost Statement'!$D$25:$D$25=\"Date when costs incurred\",G32>0),0,'Individual Cost Statement'!$F$26))","v":0}," "," ",null,{"$f":"IF(I32>0,\" \",IF(AND('Individual Cost Statement'!$D$25:$D$25=\"Date when costs incurred\",G32>0),\"ENCODE Exchange rate !\",\" \"))","v":" "},null," "]
[26,null,null,null,null,null,null,null,{"$f":"IF(AND('Individual Cost Statement'!$D$25:$D$25=\"Not applicable (all costs in EURO)\",G33>0),1,IF(AND('Individual Cost Statement'!$D$25:$D$25=\"Date when costs incurred\",G33>0),0,'Individual Cost Statement'!$F$26))","v":0}," "," ",null,{"$f":"IF(I33>0,\" \",IF(AND('Individual Cost Statement'!$D$25:$D$25=\"Date when costs incurred\",G33>0),\"ENCODE Exchange rate !\",\" \"))","v":" "},null," "]
[27,null,null,null,null,null,null,null,{"$f":"IF(AND('Individual Cost Statement'!$D$25:$D$25=\"Not applicable (all costs in EURO)\",G34>0),1,IF(AND('Individual Cost Statement'!$D$25:$D$25=\"Date when costs incurred\",G34>0),0,'Individual Cost Statement'!$F$26))","v":0}," "," ",null,{"$f":"IF(I34>0,\" \",IF(AND('Individual Cost Statement'!$D$25:$D$25=\"Date when costs incurred\",G34>0),\"ENCODE Exchange rate !\",\" \"))","v":" "},null," "]
[28,null,null,null,null,null,null,null,{"$f":"IF(AND('Individual Cost Statement'!$D$25:$D$25=\"Not applicable (all costs in EURO)\",G35>0),1,IF(AND('Individual Cost Statement'!$D$25:$D$25=\"Date when costs incurred\",G35>0),0,'Individual Cost Statement'!$F$26))","v":0}," "," ",null,{"$f":"IF(I35>0,\" \",IF(AND('Individual Cost Statement'!$D$25:$D$25=\"Date when costs incurred\",G35>0),\"ENCODE Exchange rate !\",\" \"))","v":" "},null," "]
[29,null,null,null,null,null,null,null,{"$f":"IF(AND('Individual Cost Statement'!$D$25:$D$25=\"Not applicable (all costs in EURO)\",G36>0),1,IF(AND('Individual Cost Statement'!$D$25:$D$25=\"Date when costs incurred\",G36>0),0,'Individual Cost Statement'!$F$26))","v":0}," "," ",null,{"$f":"IF(I36>0,\" \",IF(AND('Individual Cost Statement'!$D$25:$D$25=\"Date when costs incurred\",G36>0),\"ENCODE Exchange rate !\",\" \"))","v":" "},null," "]
[30,null,null,null,null,null,null,null,{"$f":"IF(AND('Individual Cost Statement'!$D$25:$D$25=\"Not applicable (all costs in EURO)\",G37>0),1,IF(AND('Individual Cost Statement'!$D$25:$D$25=\"Date when costs incurred\",G37>0),0,'Individual Cost Statement'!$F$26))","v":0}," "," ",null,{"$f":"IF(I37>0,\" \",IF(AND('Individual Cost Statement'!$D$25:$D$25=\"Date when costs incurred\",G37>0),\"ENCODE Exchange rate !\",\" \"))","v":" "},null," "]
[31,null,null,null,null,null,null,null,{"$f":"IF(AND('Individual Cost Statement'!$D$25:$D$25=\"Not applicable (all costs in EURO)\",G38>0),1,IF(AND('Individual Cost Statement'!$D$25:$D$25=\"Date when costs incurred\",G38>0),0,'Individual Cost Statement'!$F$26))","v":0}," "," ",null,{"$f":"IF(I38>0,\" \",IF(AND('Individual Cost Statement'!$D$25:$D$25=\"Date when costs incurred\",G38>0),\"ENCODE Exchange rate !\",\" \"))","v":" "},null," "]
[32,null,null,null,null,null,null,null,{"$f":"IF(AND('Individual Cost Statement'!$D$25:$D$25=\"Not applicable (all costs in EURO)\",G39>0),1,IF(AND('Individual Cost Statement'!$D$25:$D$25=\"Date when costs incurred\",G39>0),0,'Individual Cost Statement'!$F$26))","v":0}," "," ",null,{"$f":"IF(I39>0,\" \",IF(AND('Individual Cost Statement'!$D$25:$D$25=\"Date when costs incurred\",G39>0),\"ENCODE Exchange rate !\",\" \"))","v":" "},null," "]
[33,null,null,null,null,null,null,null,{"$f":"IF(AND('Individual Cost Statement'!$D$25:$D$25=\"Not applicable (all costs in EURO)\",G40>0),1,IF(AND('Individual Cost Statement'!$D$25:$D$25=\"Date when costs incurred\",G40>0),0,'Individual Cost Statement'!$F$26))","v":0}," "," ",null,{"$f":"IF(I40>0,\" \",IF(AND('Individual Cost Statement'!$D$25:$D$25=\"Date when costs incurred\",G40>0),\"ENCODE Exchange rate !\",\" \"))","v":" "},null," "]
[34,null,null,null,null,null,null,null,{"$f":"IF(AND('Individual Cost Statement'!$D$25:$D$25=\"Not applicable (all costs in EURO)\",G41>0),1,IF(AND('Individual Cost Statement'!$D$25:$D$25=\"Date when costs incurred\",G41>0),0,'Individual Cost Statement'!$F$26))","v":0}," "," ",null,{"$f":"IF(I41>0,\" \",IF(AND('Individual Cost Statement'!$D$25:$D$25=\"Date when costs incurred\",G41>0),\"ENCODE Exchange rate !\",\" \"))","v":" "},null," "]
[35,null,null,null,null,null,null,null,{"$f":"IF(AND('Individual Cost Statement'!$D$25:$D$25=\"Not applicable (all costs in EURO)\",G42>0),1,IF(AND('Individual Cost Statement'!$D$25:$D$25=\"Date when costs incurred\",G42>0),0,'Individual Cost Statement'!$F$26))","v":0}," "," ",null,{"$f":"IF(I42>0,\" \",IF(AND('Individual Cost Statement'!$D$25:$D$25=\"Date when costs incurred\",G42>0),\"ENCODE Exchange rate !\",\" \"))","v":" "},null," "]
[36,null,null,null,null,null,null,null,{"$f":"IF(AND('Individual Cost Statement'!$D$25:$D$25=\"Not applicable (all costs in EURO)\",G43>0),1,IF(AND('Individual Cost Statement'!$D$25:$D$25=\"Date when costs incurred\",G43>0),0,'Individual Cost Statement'!$F$26))","v":0}," "," ",null,{"$f":"IF(I43>0,\" \",IF(AND('Individual Cost Statement'!$D$25:$D$25=\"Date when costs incurred\",G43>0),\"ENCODE Exchange rate !\",\" \"))","v":" "},null," "]
[37,null,null,null,null,null,null,null,{"$f":"IF(AND('Individual Cost Statement'!$D$25:$D$25=\"Not applicable (all costs in EURO)\",G44>0),1,IF(AND('Individual Cost Statement'!$D$25:$D$25=\"Date when costs incurred\",G44>0),0,'Individual Cost Statement'!$F$26))","v":0}," "," ",null,{"$f":"IF(I44>0,\" \",IF(AND('Individual Cost Statement'!$D$25:$D$25=\"Date when costs incurred\",G44>0),\"ENCODE Exchange rate !\",\" \"))","v":" "},null," "]
[38,null,null,null,null,null,null,null,{"$f":"IF(AND('Individual Cost Statement'!$D$25:$D$25=\"Not applicable (all costs in EURO)\",G45>0),1,IF(AND('Individual Cost Statement'!$D$25:$D$25=\"Date when costs incurred\",G45>0),0,'Individual Cost Statement'!$F$26))","v":0}," "," ",null,{"$f":"IF(I45>0,\" \",IF(AND('Individual Cost Statement'!$D$25:$D$25=\"Date when costs incurred\",G45>0),\"ENCODE Exchange rate !\",\" \"))","v":" "},null," "]
[39,null,null,null,null,null,null,null,{"$f":"IF(AND('Individual Cost Statement'!$D$25:$D$25=\"Not applicable (all costs in EURO)\",G46>0),1,IF(AND('Individual Cost Statement'!$D$25:$D$25=\"Date when costs incurred\",G46>0),0,'Individual Cost Statement'!$F$26))","v":0}," "," ",null,{"$f":"IF(I46>0,\" \",IF(AND('Individual Cost Statement'!$D$25:$D$25=\"Date when costs incurred\",G46>0),\"ENCODE Exchange rate !\",\" \"))","v":" "},null," "]
[40,null,null,null,null,null,null,null,{"$f":"IF(AND('Individual Cost Statement'!$D$25:$D$25=\"Not applicable (all costs in EURO)\",G47>0),1,IF(AND('Individual Cost Statement'!$D$25:$D$25=\"Date when costs incurred\",G47>0),0,'Individual Cost Statement'!$F$26))","v":0}," "," ",null,{"$f":"IF(I47>0,\" \",IF(AND('Individual Cost Statement'!$D$25:$D$25=\"Date when costs incurred\",G47>0),\"ENCODE Exchange rate !\",\" \"))","v":" "},null," "]
[41,null,null,null,null,null,null,null,{"$f":"IF(AND('Individual Cost Statement'!$D$25:$D$25=\"Not applicable (all costs in EURO)\",G48>0),1,IF(AND('Individual Cost Statement'!$D$25:$D$25=\"Date when costs incurred\",G48>0),0,'Individual Cost Statement'!$F$26))","v":0}," "," ",null,{"$f":"IF(I48>0,\" \",IF(AND('Individual Cost Statement'!$D$25:$D$25=\"Date when costs incurred\",G48>0),\"ENCODE Exchange rate !\",\" \"))","v":" "},null," "]
[42,null,null,null,null,null,null,null,{"$f":"IF(AND('Individual Cost Statement'!$D$25:$D$25=\"Not applicable (all costs in EURO)\",G49>0),1,IF(AND('Individual Cost Statement'!$D$25:$D$25=\"Date when costs incurred\",G49>0),0,'Individual Cost Statement'!$F$26))","v":0}," "," ",null,{"$f":"IF(I49>0,\" \",IF(AND('Individual Cost Statement'!$D$25:$D$25=\"Date when costs incurred\",G49>0),\"ENCODE Exchange rate !\",\" \"))","v":" "},null," "]
[43,null,null,null,null,null,null,null,{"$f":"IF(AND('Individual Cost Statement'!$D$25:$D$25=\"Not applicable (all costs in EURO)\",G50>0),1,IF(AND('Individual Cost Statement'!$D$25:$D$25=\"Date when costs incurred\",G50>0),0,'Individual Cost Statement'!$F$26))","v":0}," "," ",null,{"$f":"IF(I50>0,\" \",IF(AND('Individual Cost Statement'!$D$25:$D$25=\"Date when costs incurred\",G50>0),\"ENCODE Exchange rate !\",\" \"))","v":" "},null," "]
[44,null,null,null,null,null,null,null,{"$f":"IF(AND('Individual Cost Statement'!$D$25:$D$25=\"Not applicable (all costs in EURO)\",G51>0),1,IF(AND('Individual Cost Statement'!$D$25:$D$25=\"Date when costs incurred\",G51>0),0,'Individual Cost Statement'!$F$26))","v":0}," "," ",null,{"$f":"IF(I51>0,\" \",IF(AND('Individual Cost Statement'!$D$25:$D$25=\"Date when costs incurred\",G51>0),\"ENCODE Exchange rate !\",\" \"))","v":" "},null," "]
[45,null,null,null,null,null,null,null,{"$f":"IF(AND('Individual Cost Statement'!$D$25:$D$25=\"Not applicable (all costs in EURO)\",G52>0),1,IF(AND('Individual Cost Statement'!$D$25:$D$25=\"Date when costs incurred\",G52>0),0,'Individual Cost Statement'!$F$26))","v":0}," "," ",null,{"$f":"IF(I52>0,\" \",IF(AND('Individual Cost Statement'!$D$25:$D$25=\"Date when costs incurred\",G52>0),\"ENCODE Exchange rate !\",\" \"))","v":" "},null," "]
[46,null,null,null,null,null,null,null,{"$f":"IF(AND('Individual Cost Statement'!$D$25:$D$25=\"Not applicable (all costs in EURO)\",G53>0),1,IF(AND('Individual Cost Statement'!$D$25:$D$25=\"Date when costs incurred\",G53>0),0,'Individual Cost Statement'!$F$26))","v":0}," "," ",null,{"$f":"IF(I53>0,\" \",IF(AND('Individual Cost Statement'!$D$25:$D$25=\"Date when costs incurred\",G53>0),\"ENCODE Exchange rate !\",\" \"))","v":" "},null," "]
[47,null,null,null,null,null,null,null,{"$f":"IF(AND('Individual Cost Statement'!$D$25:$D$25=\"Not applicable (all costs in EURO)\",G54>0),1,IF(AND('Individual Cost Statement'!$D$25:$D$25=\"Date when costs incurred\",G54>0),0,'Individual Cost Statement'!$F$26))","v":0}," "," ",null,{"$f":"IF(I54>0,\" \",IF(AND('Individual Cost Statement'!$D$25:$D$25=\"Date when costs incurred\",G54>0),\"ENCODE Exchange rate !\",\" \"))","v":" "},null," "]
[48,null,null,null,null,null,null,null,{"$f":"IF(AND('Individual Cost Statement'!$D$25:$D$25=\"Not applicable (all costs in EURO)\",G55>0),1,IF(AND('Individual Cost Statement'!$D$25:$D$25=\"Date when costs incurred\",G55>0),0,'Individual Cost Statement'!$F$26))","v":0}," "," ",null,{"$f":"IF(I55>0,\" \",IF(AND('Individual Cost Statement'!$D$25:$D$25=\"Date when costs incurred\",G55>0),\"ENCODE Exchange rate !\",\" \"))","v":" "},null," "]
[49,null,null,null,null,null,null,null,{"$f":"IF(AND('Individual Cost Statement'!$D$25:$D$25=\"Not applicable (all costs in EURO)\",G56>0),1,IF(AND('Individual Cost Statement'!$D$25:$D$25=\"Date when costs incurred\",G56>0),0,'Individual Cost Statement'!$F$26))","v":0}," "," ",null,{"$f":"IF(I56>0,\" \",IF(AND('Individual Cost Statement'!$D$25:$D$25=\"Date when costs incurred\",G56>0),\"ENCODE Exchange rate !\",\" \"))","v":" "},null," "]
[50,null,null,null,null,null,null,null,{"$f":"IF(AND('Individual Cost Statement'!$D$25:$D$25=\"Not applicable (all costs in EURO)\",G57>0),1,IF(AND('Individual Cost Statement'!$D$25:$D$25=\"Date when costs incurred\",G57>0),0,'Individual Cost Statement'!$F$26))","v":0}," "," ",null,{"$f":"IF(I57>0,\" \",IF(AND('Individual Cost Statement'!$D$25:$D$25=\"Date when costs incurred\",G57>0),\"ENCODE Exchange rate !\",\" \"))","v":" "},null," "]
["Total",null,null,null,null,null,null,null,null,{"$f":"SUM(J8:INDIRECT(\"J\"&ROW()-1))","v":0},{"$f":"SUM(K8:INDIRECT(\"K\"&ROW()-1))","v":0}]
[]
[]
[]
[]
[]
["Explanation of the content of each Column"]
["PLEASE FILL-IN ONLY BLUE CELLS"]
["A","Sequential number of the entries."]
["B1","Date of invoice "]
["B2","Invoice number or reference number of another accounting document, with which the transaction is identified in the accounting system."]
["B3","Date of payment of the invoice"]
["C1","Name of the supplier - For beneficiaries declaring costs of affiliates in their individual statement, put here also a line with the name of the affiliate and include under column D4 & D5  the total prototype cost (with and without VAT) of the affiliate in EUR (according to its individual financial statement)"]
["C2","Description of the equipment. Please provide enough details in order to assess the eligibility of the cost item."]
["D1","Invoiced amount in national currency without VAT"]
["D2","Invoiced amount in national currency with non-recoverable VAT"]
["D3","If costs are reported in Euro, where beneficiary keeps its general accounts in Euro, no exchange rate to include"]
["D3","If the currency of the reported costs is not EURO, where beneficiary keeps its general accounts in a currency other than Euro and the exchange rate option chosen is \"1st day after the end of reporting period\", the monthly exchange rate encoded in the individual Costs statement sheet will be automatically inserted. "]
["D3","If the currency of the reported costs is not EURO, where beneficiary keeps its general accounts in a currency other than Euro and the exchange rate option chosen is the day when the costs incurred, please enter the monthly exchange rate published on the Commission website: http://ec.europa.eu/budget/contracts_grants/info_contracts/inforeuro/inforeuro_en.cfm."]
["D4","Invoiced amount in Euro without VAT (automatic calculation)"]
["D5","Invoiced amount in Euro with non-recoverable VAT (automatic calculation)"]
["F","Indicate which selection procedure have been used to select the supplier.\nFor public entities: public procurment rules\nFor private entities: direct award, multiple bids, open tender (for cost items >130.000), framework contract."]

{"sheet":"Land_purchase","index":8,"n_rows":85,"n_cols":21,"rows_kept":85,"cut":false,"hidden":false,"merged":[[57,0,57,15],[0,2,0,4],[1,2,1,4],[2,2,2,4],[4,1,4,4],[0,15,0,17],[1,15,1,17],[2,15,2,17],[4,8,5,8],[4,5,4,7],[4,9,4,17],[73,1,73,17],[82,1,82,17],[81,1,81,17],[64,0,64,17],[63,0,63,17]]}
[null,"PROJECT Reference :",{"$f":"'Individual Cost Statement'!B3:B3","v":"LIFEXX XXX/XX/XXXXXX - ACRONYM"},null,null,null,null,"PERIOD (FROM) :",{"$f":"'Individual Cost Statement'!E3:E3","v":"00:00:00"},null,null,null,null,null,null,"LAND PURCHASE"]
[null,"COUNTRY :",{"$f":"'Individual Cost Statement'!B4:B4","v":"Austria"},null,null,null,null,"PERIOD (TO) :",{"$f":"'Individual Cost Statement'!E4:E4","v":"00:00:00"},null,null,null,null,null,null,"Amount WITH NON-recoverable VAT"]
[null,"Beneficiary: ",{"$f":"'Individual Cost Statement'!B6:B6","v":0},null,null,null,null,null,null,null,null,null,null,null,null,{"$f":"R58","v":0}]
[]
[null,"Info on land",null,null,null,"Info on Notarial Act",null,null,"D","Calculation of the LAND PURCHASE costs"]
["A","B1","B2","B3","B4","C1","C2","C3",null,"E1","E2","E3","E4","E5","E6","E7","E8","E9"]
["Seq n°","Year","Location of the Land","Surface \n(Ha.)","Land register n°","Date (dd/mm/yy)","Number","Name of notary","Is the 'Nature conservation' clause included in the appropriate document?","Date of payment","Cost/hectare in national currency","Purchase price in national currency without VAT","Associated taxes in national currency \nwithout VAT","TOTAL amount \nin national currency \nwithout VAT","TOTAL amount \nin national currency\nwith non-recoverable VAT","Exchange rate","Total amount in EURO\nwithout VAT","Total amount in EURO \nwith non-recoverable VAT ",null,null,"VAT\nCalculation"]
[{"$f":"ROW()-7","v":1},null,null,null,null,null,null,null,null,null,null,{"$f":"D8*K8","v":0},null,{"$f":"L8+M8","v":0},null,{"$f":"IF(AND('Individual Cost Statement'!$D$25:$D$25=\"Not applicable (all costs in EURO)\",N8>0),1,IF(AND('Individual Cost Statement'!$D$25:$D$25=\"Date when costs incurred\",N8>0),0,'Individual Cost Statement'!$F$26))","v":0},{"$f":"IF(AND(N8>0,P8>0),N8/P8,\" \")","v":" "},{"$f":"IF(AND(O8>0,P8>0),O8/P8,\" \")","v":" "},{"$f":"IF(P8>0,\" \",IF(AND('Individual Cost Statement'!$D$25:$D$25=\"Date when costs incurred\",N8>0),\"ENCODE Exchange rate !\",\" \"))","v":" "},null,{"$f":"IF(Q8=\" \",\" \",R8-Q8)","v":" "}]
[2,null,null,null,null,null,null,null,null,null,null,{"$f":"D9*K9","v":0},null,{"$f":"L9+M9","v":0},null,{"$f":"IF(AND('Individual Cost Statement'!$D$25:$D$25=\"Not applicable (all costs in EURO)\",N9>0),1,IF(AND('Individual Cost Statement'!$D$25:$D$25=\"Date when costs incurred\",N9>0),0,'Individual Cost Statement'!$F$26))","v":0},{"$f":"IF(AND(N9>0,P9>0),N9/P9,\" \")","v":" "},{"$f":"IF(AND(O9>0,P9>0),O9/P9,\" \")","v":" "},{"$f":"IF(P9>0,\" \",IF(AND('Individual Cost Statement'!$D$25:$D$25=\"Date when costs incurred\",N9>0),\"ENCODE Exchange rate !\",\" \"))","v":" "},null,{"$f":"IF(Q9=\" \",\" \",R9-Q9)","v":" "}]
[3,null,null,null,null,null,null,null,null,null,null,0,null,0,null,{"$f":"IF(AND('Individual Cost Statement'!$D$25:$D$25=\"Not applicable (all costs in EURO)\",N10>0),1,IF(AND('Individual Cost Statement'!$D$25:$D$25=\"Date when costs incurred\",N10>0),0,'Individual Cost Statement'!$F$26))","v":0}," "," ",{"$f":"IF(P10>0,\" \",IF(AND('Individual Cost Statement'!$D$25:$D$25=\"Date when costs incurred\",N10>0),\"ENCODE Exchange rate !\",\" \"))","v":" "},null," "]
[4,null,null,null,null,null,null,null,null,null,null,0,null,0,null,{"$f":"IF(AND('Individual Cost Statement'!$D$25:$D$25=\"Not applicable (all costs in EURO)\",N11>0),1,IF(AND('Individual Cost Statement'!$D$25:$D$25=\"Date when costs incurred\",N11>0),0,'Individual Cost Statement'!$F$26))","v":0}," "," ",{"$f":"IF(P11>0,\" \",IF(AND('Individual Cost Statement'!$D$25:$D$25=\"Date when costs incurred\",N11>0),\"ENCODE Exchange rate !\",\" \"))","v":" "},null," "]
[5,null,null,null,null,null,null,null,null,null,null,0,null,0,null,{"$f":"IF(AND('Individual Cost Statement'!$D$25:$D$25=\"Not applicable (all costs in EURO)\",N12>0),1,IF(AND('Individual Cost Statement'!$D$25:$D$25=\"Date when costs incurred\",N12>0),0,'Individual Cost Statement'!$F$26))","v":0}," "," ",{"$f":"IF(P12>0,\" \",IF(AND('Individual Cost Statement'!$D$25:$D$25=\"Date when costs incurred\",N12>0),\"ENCODE Exchange rate !\",\" \"))","v":" "},null," "]
[6,null,null,null,null,null,null,null,null,null,null,0,null,0,null,{"$f":"IF(AND('Individual Cost Statement'!$D$25:$D$25=\"Not applicable (all costs in EURO)\",N13>0),1,IF(AND('Individual Cost Statement'!$D$25:$D$25=\"Date when costs incurred\",N13>0),0,'Individual Cost Statement'!$F$26))","v":0}," "," ",{"$f":"IF(P13>0,\" \",IF(AND('Individual Cost Statement'!$D$25:$D$25=\"Date when costs incurred\",N13>0),\"ENCODE Exchange rate !\",\" \"))","v":" "},null," "]
[7,null,null,null,null,null,null,null,null,null,null,0,null,0,null,{"$f":"IF(AND('Individual Cost Statement'!$D$25:$D$25=\"Not applicable (all costs in EURO)\",N14>0),1,IF(AND('Individual Cost Statement'!$D$25:$D$25=\"Date when costs incurred\",N14>0),0,'Individual Cost Statement'!$F$26))","v":0}," "," ",{"$f":"IF(P14>0,\" \",IF(AND('Individual Cost Statement'!$D$25:$D$25=\"Date when costs incurred\",N14>0),\"ENCODE Exchange rate !\",\" \"))","v":" "},null," "]
[8,null,null,null,null,null,null,null,null,null,null,0,null,0,null,{"$f":"IF(AND('Individual Cost Statement'!$D$25:$D$25=\"Not applicable (all costs in EURO)\",N15>0),1,IF(AND('Individual Cost Statement'!$D$25:$D$25=\"Date when costs incurred\",N15>0),0,'Individual Cost Statement'!$F$26))","v":0}," "," ",{"$f":"IF(P15>0,\" \",IF(AND('Individual Cost Statement'!$D$25:$D$25=\"Date when costs incurred\",N15>0),\"ENCODE Exchange rate !\",\" \"))","v":" "},null," "]
[9,null,null,null,null,null,null,null,null,null,null,0,null,0,null,{"$f":"IF(AND('Individual Cost Statement'!$D$25:$D$25=\"Not applicable (all costs in EURO)\",N16>0),1,IF(AND('Individual Cost Statement'!$D$25:$D$25=\"Date when costs incurred\",N16>0),0,'Individual Cost Statement'!$F$26))","v":0}," "," ",{"$f":"IF(P16>0,\" \",IF(AND('Individual Cost Statement'!$D$25:$D$25=\"Date when costs incurred\",N16>0),\"ENCODE Exchange rate !\",\" \"))","v":" "},null," "]
[10,null,null,null,null,null,null,null,null,null,null,0,null,0,null,{"$f":"IF(AND('Individual Cost Statement'!$D$25:$D$25=\"Not applicable (all costs in EURO)\",N17>0),1,IF(AND('Individual Cost Statement'!$D$25:$D$25=\"Date when costs incurred\",N17>0),0,'Individual Cost Statement'!$F$26))","v":0}," "," ",{"$f":"IF(P17>0,\" \",IF(AND('Individual Cost Statement'!$D$25:$D$25=\"Date when costs incurred\",N17>0),\"ENCODE Exchange rate !\",\" \"))","v":" "},null," "]
[11,null,null,null,null,null,null,null,null,null,null,0,null,0,null,{"$f":"IF(AND('Individual Cost Statement'!$D$25:$D$25=\"Not applicable (all costs in EURO)\",N18>0),1,IF(AND('Individual Cost Statement'!$D$25:$D$25=\"Date when costs incurred\",N18>0),0,'Individual Cost Statement'!$F$26))","v":0}," "," ",{"$f":"IF(P18>0,\" \",IF(AND('Individual Cost Statement'!$D$25:$D$25=\"Date when costs incurred\",N18>0),\"ENCODE Exchange rate !\",\" \"))","v":" "},null," "]
[12,null,null,null,null,null,null,null,null,null,null,0,null,0,null,{"$f":"IF(AND('Individual Cost Statement'!$D$25:$D$25=\"Not applicable (all costs in EURO)\",N19>0),1,IF(AND('Individual Cost Statement'!$D$25:$D$25=\"Date when costs incurred\",N19>0),0,'Individual Cost Statement'!$F$26))","v":0}," "," ",{"$f":"IF(P19>0,\" \",IF(AND('Individual Cost Statement'!$D$25:$D$25=\"Date when costs incurred\",N19>0),\"ENCODE Exchange rate !\",\" \"))","v":" "},null," "]
[13,null,null,null,null,null,null,null,null,null,null,0,null,0,null,{"$f":"IF(AND('Individual Cost Statement'!$D$25:$D$25=\"Not applicable (all costs in EURO)\",N20>0),1,IF(AND('Individual Cost Statement'!$D$25:$D$25=\"Date when costs incurred\",N20>0),0,'Individual Cost Statement'!$F$26))","v":0}," "," ",{"$f":"IF(P20>0,\" \",IF(AND('Individual Cost Statement'!$D$25:$D$25=\"Date when costs incurred\",N20>0),\"ENCODE Exchange rate !\",\" \"))","v":" "},null," "]
[14,null,null,null,null,null,null,null,null,null,null,0,null,0,null,{"$f":"IF(AND('Individual Cost Statement'!$D$25:$D$25=\"Not applicable (all costs in EURO)\",N21>0),1,IF(AND('Individual Cost Statement'!$D$25:$D$25=\"Date when costs incurred\",N21>0),0,'Individual Cost Statement'!$F$26))","v":0}," "," ",{"$f":"IF(P21>0,\" \",IF(AND('Individual Cost Statement'!$D$25:$D$25=\"Date when costs incurred\",N21>0),\"ENCODE Exchange rate !\",\" \"))","v":" "},null," "]
[15,null,null,null,null,null,null,null,null,null,null,0,null,0,null,{"$f":"IF(AND('Individual Cost Statement'!$D$25:$D$25=\"Not applicable (all costs in EURO)\",N22>0),1,IF(AND('Individual Cost Statement'!$D$25:$D$25=\"Date when costs incurred\",N22>0),0,'Individual Cost Statement'!$F$26))","v":0}," "," ",{"$f":"IF(P22>0,\" \",IF(AND('Individual Cost Statement'!$D$25:$D$25=\"Date when costs incurred\",N22>0),\"ENCODE Exchange rate !\",\" \"))","v":" "},null," "]
[16,null,null,null,null,null,null,null,null,null,null,0,null,0,null,{"$f":"IF(AND('Individual Cost Statement'!$D$25:$D$25=\"Not applicable (all costs in EURO)\",N23>0),1,IF(AND('Individual Cost Statement'!$D$25:$D$25=\"Date when costs incurred\",N23>0),0,'Individual Cost Statement'!$F$26))","v":0}," "," ",{"$f":"IF(P23>0,\" \",IF(AND('Individual Cost Statement'!$D$25:$D$25=\"Date when costs incurred\",N23>0),\"ENCODE Exchange rate !\",\" \"))","v":" "},null," "]
[17,null,null,null,null,null,null,null,null,null,null,0,null,0,null,{"$f":"IF(AND('Individual Cost Statement'!$D$25:$D$25=\"Not applicable (all costs in EURO)\",N24>0),1,IF(AND('Individual Cost Statement'!$D$25:$D$25=\"Date when costs incurred\",N24>0),0,'Individual Cost Statement'!$F$26))","v":0}," "," ",{"$f":"IF(P24>0,\" \",IF(AND('Individual Cost Statement'!$D$25:$D$25=\"Date when costs incurred\",N24>0),\"ENCODE Exchange rate !\",\" \"))","v":" "},null," "]
[18,null,null,null,null,null,null,null,null,null,null,0,null,0,null,{"$f":"IF(AND('Individual Cost Statement'!$D$25:$D$25=\"Not applicable (all costs in EURO)\",N25>0),1,IF(AND('Individual Cost Statement'!$D$25:$D$25=\"Date when costs incurred\",N25>0),0,'Individual Cost Statement'!$F$26))","v":0}," "," ",{"$f":"IF(P25>0,\" \",IF(AND('Individual Cost Statement'!$D$25:$D$25=\"Date when costs incurred\",N25>0),\"ENCODE Exchange rate !\",\" \"))","v":" "},null," "]
[19,null,null,null,null,null,null,null,null,null,null,0,null,0,null,{"$f":"IF(AND('Individual Cost Statement'!$D$25:$D$25=\"Not applicable (all costs in EURO)\",N26>0),1,IF(AND('Individual Cost Statement'!$D$25:$D$25=\"Date when costs incurred\",N26>0),0,'Individual Cost Statement'!$F$26))","v":0}," "," ",{"$f":"IF(P26>0,\" \",IF(AND('Individual Cost Statement'!$D$25:$D$25=\"Date when costs incurred\",N26>0),\"ENCODE Exchange rate !\",\" \"))","v":" "},null," "]
[20,null,null,null,null,null,null,null,null,null,null,0,null,0,null,{"$f":"IF(AND('Individual Cost Statement'!$D$25:$D$25=\"Not applicable (all costs in EURO)\",N27>0),1,IF(AND('Individual Cost Statement'!$D$25:$D$25=\"Date when costs incurred\",N27>0),0,'Individual Cost Statement'!$F$26))","v":0}," "," ",{"$f":"IF(P27>0,\" \",IF(AND('Individual Cost Statement'!$D$25:$D$25=\"Date when costs incurred\",N27>0),\"ENCODE Exchange rate !\",\" \"))","v":" "},null," "]
[21,null,null,null,null,null,null,null,null,null,null,0,null,0,null,{"$f":"IF(AND('Individual Cost Statement'!$D$25:$D$25=\"Not applicable (all costs in EURO)\",N28>0),1,IF(AND('Individual Cost Statement'!$D$25:$D$25=\"Date when costs incurred\",N28>0),0,'Individual Cost Statement'!$F$26))","v":0}," "," ",{"$f":"IF(P28>0,\" \",IF(AND('Individual Cost Statement'!$D$25:$D$25=\"Date when costs incurred\",N28>0),\"ENCODE Exchange rate !\",\" \"))","v":" "},null," "]
[22,null,null,null,null,null,null,null,null,null,null,0,null,0,null,{"$f":"IF(AND('Individual Cost Statement'!$D$25:$D$25=\"Not applicable (all costs in EURO)\",N29>0),1,IF(AND('Individual Cost Statement'!$D$25:$D$25=\"Date when costs incurred\",N29>0),0,'Individual Cost Statement'!$F$26))","v":0}," "," ",{"$f":"IF(P29>0,\" \",IF(AND('Individual Cost Statement'!$D$25:$D$25=\"Date when costs incurred\",N29>0),\"ENCODE Exchange rate !\",\" \"))","v":" "},null," "]
[23,null,null,null,null,null,null,null,null,null,null,0,null,0,null,{"$f":"IF(AND('Individual Cost Statement'!$D$25:$D$25=\"Not applicable (all costs in EURO)\",N30>0),1,IF(AND('Individual Cost Statement'!$D$25:$D$25=\"Date when costs incurred\",N30>0),0,'Individual Cost Statement'!$F$26))","v":0}," "," ",{"$f":"IF(P30>0,\" \",IF(AND('Individual Cost Statement'!$D$25:$D$25=\"Date when costs incurred\",N30>0),\"ENCODE Exchange rate !\",\" \"))","v":" "},null," "]
[24,null,null,null,null,null,null,null,null,null,null,0,null,0,null,{"$f":"IF(AND('Individual Cost Statement'!$D$25:$D$25=\"Not applicable (all costs in EURO)\",N31>0),1,IF(AND('Individual Cost Statement'!$D$25:$D$25=\"Date when costs incurred\",N31>0),0,'Individual Cost Statement'!$F$26))","v":0}," "," ",{"$f":"IF(P31>0,\" \",IF(AND('Individual Cost Statement'!$D$25:$D$25=\"Date when costs incurred\",N31>0),\"ENCODE Exchange rate !\",\" \"))","v":" "},null," "]
[25,null,null,null,null,null,null,null,null,null,null,0,null,0,null,{"$f":"IF(AND('Individual Cost Statement'!$D$25:$D$25=\"Not applicable (all costs in EURO)\",N32>0),1,IF(AND('Individual Cost Statement'!$D$25:$D$25=\"Date when costs incurred\",N32>0),0,'Individual Cost Statement'!$F$26))","v":0}," "," ",{"$f":"IF(P32>0,\" \",IF(AND('Individual Cost Statement'!$D$25:$D$25=\"Date when costs incurred\",N32>0),\"ENCODE Exchange rate !\",\" \"))","v":" "},null," "]
[26,null,null,null,null,null,null,null,null,null,null,0,null,0,null,{"$f":"IF(AND('Individual Cost Statement'!$D$25:$D$25=\"Not applicable (all costs in EURO)\",N33>0),1,IF(AND('Individual Cost Statement'!$D$25:$D$25=\"Date when costs incurred\",N33>0),0,'Individual Cost Statement'!$F$26))","v":0}," "," ",{"$f":"IF(P33>0,\" \",IF(AND('Individual Cost Statement'!$D$25:$D$25=\"Date when costs incurred\",N33>0),\"ENCODE Exchange rate !\",\" \"))","v":" "},null," "]
[27,null,null,null,null,null,null,null,null,null,null,0,null,0,null,{"$f":"IF(AND('Individual Cost Statement'!$D$25:$D$25=\"Not applicable (all costs in EURO)\",N34>0),1,IF(AND('Individual Cost Statement'!$D$25:$D$25=\"Date when costs incurred\",N34>0),0,'Individual Cost Statement'!$F$26))","v":0}," "," ",{"$f":"IF(P34>0,\" \",IF(AND('Individual Cost Statement'!$D$25:$D$25=\"Date when costs incurred\",N34>0),\"ENCODE Exchange rate !\",\" \"))","v":" "},null," "]
[28,null,null,null,null,null,null,null,null,null,null,0,null,0,null,{"$f":"IF(AND('Individual Cost Statement'!$D$25:$D$25=\"Not applicable (all costs in EURO)\",N35>0),1,IF(AND('Individual Cost Statement'!$D$25:$D$25=\"Date when costs incurred\",N35>0),0,'Individual Cost Statement'!$F$26))","v":0}," "," ",{"$f":"IF(P35>0,\" \",IF(AND('Individual Cost Statement'!$D$25:$D$25=\"Date when costs incurred\",N35>0),\"ENCODE Exchange rate !\",\" \"))","v":" "},null," "]
[29,null,null,null,null,null,null,null,null,null,null,0,null,0,null,{"$f":"IF(AND('Individual Cost Statement'!$D$25:$D$25=\"Not applicable (all costs in EURO)\",N36>0),1,IF(AND('Individual Cost Statement'!$D$25:$D$25=\"Date when costs incurred\",N36>0),0,'Individual Cost Statement'!$F$26))","v":0}," "," ",{"$f":"IF(P36>0,\" \",IF(AND('Individual Cost Statement'!$D$25:$D$25=\"Date when costs incurred\",N36>0),\"ENCODE Exchange rate !\",\" \"))","v":" "},null," "]
[30,null,null,null,null,null,null,null,null,null,null,0,null,0,null,{"$f":"IF(AND('Individual Cost Statement'!$D$25:$D$25=\"Not applicable (all costs in EURO)\",N37>0),1,IF(AND('Individual Cost Statement'!$D$25:$D$25=\"Date when costs incurred\",N37>0),0,'Individual Cost Statement'!$F$26))","v":0}," "," ",{"$f":"IF(P37>0,\" \",IF(AND('Individual Cost Statement'!$D$25:$D$25=\"Date when costs incurred\",N37>0),\"ENCODE Exchange rate !\",\" \"))","v":" "},null," "]
[31,null,null,null,null,null,null,null,null,null,null,0,null,0,null,{"$f":"IF(AND('Individual Cost Statement'!$D$25:$D$25=\"Not applicable (all costs in EURO)\",N38>0),1,IF(AND('Individual Cost Statement'!$D$25:$D$25=\"Date when costs incurred\",N38>0),0,'Individual Cost Statement'!$F$26))","v":0}," "," ",{"$f":"IF(P38>0,\" \",IF(AND('Individual Cost Statement'!$D$25:$D$25=\"Date when costs incurred\",N38>0),\"ENCODE Exchange rate !\",\" \"))","v":" "},null," "]
[32,null,null,null,null,null,null,null,null,null,null,0,null,0,null,{"$f":"IF(AND('Individual Cost Statement'!$D$25:$D$25=\"Not applicable (all costs in EURO)\",N39>0),1,IF(AND('Individual Cost Statement'!$D$25:$D$25=\"Date when costs incurred\",N39>0),0,'Individual Cost Statement'!$F$26))","v":0}," "," ",{"$f":"IF(P39>0,\" \",IF(AND('Individual Cost Statement'!$D$25:$D$25=\"Date when costs incurred\",N39>0),\"ENCODE Exchange rate !\",\" \"))","v":" "},null," "]
[33,null,null,null,null,null,null,null,null,null,null,0,null,0,null,{"$f":"IF(AND('Individual Cost Statement'!$D$25:$D$25=\"Not applicable (all costs in EURO)\",N40>0),1,IF(AND('Individual Cost Statement'!$D$25:$D$25=\"Date when costs incurred\",N40>0),0,'Individual Cost Statement'!$F$26))","v":0}," "," ",{"$f":"IF(P40>0,\" \",IF(AND('Individual Cost Statement'!$D$25:$D$25=\"Date when costs incurred\",N40>0),\"ENCODE Exchange rate !\",\" \"))","v":" "},null," "]
[34,null,null,null,null,null,null,null,null,null,null,0,null,0,null,{"$f":"IF(AND('Individual Cost Statement'!$D$25:$D$25=\"Not applicable (all costs in EURO)\",N41>0),1,IF(AND('Individual Cost Statement'!$D$25:$D$25=\"Date when costs incurred\",N41>0),0,'Individual Cost Statement'!$F$26))","v":0}," "," ",{"$f":"IF(P41>0,\" \",IF(AND('Individual Cost Statement'!$D$25:$D$25=\"Date when costs incurred\",N41>0),\"ENCODE Exchange rate !\",\" \"))","v":" "},null," "]
[35,null,null,null,null,null,null,null,null,null,null,0,null,0,null,{"$f":"IF(AND('Individual Cost Statement'!$D$25:$D$25=\"Not applicable (all costs in EURO)\",N42>0),1,IF(AND('Individual Cost Statement'!$D$25:$D$25=\"Date when costs incurred\",N42>0),0,'Individual Cost Statement'!$F$26))","v":0}," "," ",{"$f":"IF(P42>0,\" \",IF(AND('Individual Cost Statement'!$D$25:$D$25=\"Date when costs incurred\",N42>0),\"ENCODE Exchange rate !\",\" \"))","v":" "},null," "]
[36,null,null,null,null,null,null,null,null,null,null,0,null,0,null,{"$f":"IF(AND('Individual Cost Statement'!$D$25:$D$25=\"Not applicable (all costs in EURO)\",N43>0),1,IF(AND('Individual Cost Statement'!$D$25:$D$25=\"Date when costs incurred\",N43>0),0,'Individual Cost Statement'!$F$26))","v":0}," "," ",{"$f":"IF(P43>0,\" \",IF(AND('Individual Cost Statement'!$D$25:$D$25=\"Date when costs incurred\",N43>0),\"ENCODE Exchange rate !\",\" \"))","v":" "},null," "]
[37,null,null,null,null,null,null,null,null,null,null,0,null,0,null,{"$f":"IF(AND('Individual Cost Statement'!$D$25:$D$25=\"Not applicable (all costs in EURO)\",N44>0),1,IF(AND('Individual Cost Statement'!$D$25:$D$25=\"Date when costs incurred\",N44>0),0,'Individual Cost Statement'!$F$26))","v":0}," "," ",{"$f":"IF(P44>0,\" \",IF(AND('Individual Cost Statement'!$D$25:$D$25=\"Date when costs incurred\",N44>0),\"ENCODE Exchange rate !\",\" \"))","v":" "},null," "]
[38,null,null,null,null,null,null,null,null,null,null,0,null,0,null,{"$f":"IF(AND('Individual Cost Statement'!$D$25:$D$25=\"Not applicable (all costs in EURO)\",N45>0),1,IF(AND('Individual Cost Statement'!$D$25:$D$25=\"Date when costs incurred\",N45>0),0,'Individual Cost Statement'!$F$26))","v":0}," "," ",{"$f":"IF(P45>0,\" \",IF(AND('Individual Cost Statement'!$D$25:$D$25=\"Date when costs incurred\",N45>0),\"ENCODE Exchange rate !\",\" \"))","v":" "},null," "]
[39,null,null,null,null,null,null,null,null,null,null,0,null,0,null,{"$f":"IF(AND('Individual Cost Statement'!$D$25:$D$25=\"Not applicable (all costs in EURO)\",N46>0),1,IF(AND('Individual Cost Statement'!$D$25:$D$25=\"Date when costs incurred\",N46>0),0,'Individual Cost Statement'!$F$26))","v":0}," "," ",{"$f":"IF(P46>0,\" \",IF(AND('Individual Cost Statement'!$D$25:$D$25=\"Date when costs incurred\",N46>0),\"ENCODE Exchange rate !\",\" \"))","v":" "},null," "]
[40,null,null,null,null,null,null,null,null,null,null,0,null,0,null,{"$f":"IF(AND('Individual Cost Statement'!$D$25:$D$25=\"Not applicable (all costs in EURO)\",N47>0),1,IF(AND('Individual Cost Statement'!$D$25:$D$25=\"Date when costs incurred\",N47>0),0,'Individual Cost Statement'!$F$26))","v":0}," "," ",{"$f":"IF(P47>0,\" \",IF(AND('Individual Cost Statement'!$D$25:$D$25=\"Date when costs incurred\",N47>0),\"ENCODE Exchange rate !\",\" \"))","v":" "},null," "]
[41,null,null,null,null,null,null,null,null,null,null,0,null,0,null,{"$f":"IF(AND('Individual Cost Statement'!$D$25:$D$25=\"Not applicable (all costs in EURO)\",N48>0),1,IF(AND('Individual Cost Statement'!$D$25:$D$25=\"Date when costs incurred\",N48>0),0,'Individual Cost Statement'!$F$26))","v":0}," "," ",{"$f":"IF(P48>0,\" \",IF(AND('Individual Cost Statement'!$D$25:$D$25=\"Date when costs incurred\",N48>0),\"ENCODE Exchange rate !\",\" \"))","v":" "},null," "]
[42,null,null,null,null,null,null,null,null,null,null,0,null,0,null,{"$f":"IF(AND('Individual Cost Statement'!$D$25:$D$25=\"Not applicable (all costs in EURO)\",N49>0),1,IF(AND('Individual Cost Statement'!$D$25:$D$25=\"Date when costs incurred\",N49>0),0,'Individual Cost Statement'!$F$26))","v":0}," "," ",{"$f":"IF(P49>0,\" \",IF(AND('Individual Cost Statement'!$D$25:$D$25=\"Date when costs incurred\",N49>0),\"ENCODE Exchange rate !\",\" \"))","v":" "},null," "]
[43,null,null,null,null,null,null,null,null,null,null,0,null,0,null,{"$f":"IF(AND('Individual Cost Statement'!$D$25:$D$25=\"Not applicable (all costs in EURO)\",N50>0),1,IF(AND('Individual Cost Statement'!$D$25:$D$25=\"Date when costs incurred\",N50>0),0,'Individual Cost Statement'!$F$26))","v":0}," "," ",{"$f":"IF(P50>0,\" \",IF(AND('Individual Cost Statement'!$D$25:$D$25=\"Date when costs incurred\",N50>0),\"ENCODE Exchange rate !\",\" \"))","v":" "},null," "]
[44,null,null,null,null,null,null,null,null,null,null,0,null,0,null,{"$f":"IF(AND('Individual Cost Statement'!$D$25:$D$25=\"Not applicable (all costs in EURO)\",N51>0),1,IF(AND('Individual Cost Statement'!$D$25:$D$25=\"Date when costs incurred\",N51>0),0,'Individual Cost Statement'!$F$26))","v":0}," "," ",{"$f":"IF(P51>0,\" \",IF(AND('Individual Cost Statement'!$D$25:$D$25=\"Date when costs incurred\",N51>0),\"ENCODE Exchange rate !\",\" \"))","v":" "},null," "]
[45,null,null,null,null,null,null,null,null,null,null,0,null,0,null,{"$f":"IF(AND('Individual Cost Statement'!$D$25:$D$25=\"Not applicable (all costs in EURO)\",N52>0),1,IF(AND('Individual Cost Statement'!$D$25:$D$25=\"Date when costs incurred\",N52>0),0,'Individual Cost Statement'!$F$26))","v":0}," "," ",{"$f":"IF(P52>0,\" \",IF(AND('Individual Cost Statement'!$D$25:$D$25=\"Date when costs incurred\",N52>0),\"ENCODE Exchange rate !\",\" \"))","v":" "},null," "]
[46,null,null,null,null,null,null,null,null,null,null,0,null,0,null,{"$f":"IF(AND('Individual Cost Statement'!$D$25:$D$25=\"Not applicable (all costs in EURO)\",N53>0),1,IF(AND('Individual Cost Statement'!$D$25:$D$25=\"Date when costs incurred\",N53>0),0,'Individual Cost Statement'!$F$26))","v":0}," "," ",{"$f":"IF(P53>0,\" \",IF(AND('Individual Cost Statement'!$D$25:$D$25=\"Date when costs incurred\",N53>0),\"ENCODE Exchange rate !\",\" \"))","v":" "},null," "]
[47,null,null,null,null,null,null,null,null,null,null,0,null,0,null,{"$f":"IF(AND('Individual Cost Statement'!$D$25:$D$25=\"Not applicable (all costs in EURO)\",N54>0),1,IF(AND('Individual Cost Statement'!$D$25:$D$25=\"Date when costs incurred\",N54>0),0,'Individual Cost Statement'!$F$26))","v":0}," "," ",{"$f":"IF(P54>0,\" \",IF(AND('Individual Cost Statement'!$D$25:$D$25=\"Date when costs incurred\",N54>0),\"ENCODE Exchange rate !\",\" \"))","v":" "},null," "]
[48,null,null,null,null,null,null,null,null,null,null,0,null,0,null,{"$f":"IF(AND('Individual Cost Statement'!$D$25:$D$25=\"Not applicable (all costs in EURO)\",N55>0),1,IF(AND('Individual Cost Statement'!$D$25:$D$25=\"Date when costs incurred\",N55>0),0,'Individual Cost Statement'!$F$26))","v":0}," "," ",{"$f":"IF(P55>0,\" \",IF(AND('Individual Cost Statement'!$D$25:$D$25=\"Date when costs incurred\",N55>0),\"ENCODE Exchange rate !\",\" \"))","v":" "},null," "]
[49,null,null,null,null,null,null,null,null,null,null,0,null,0,null,{"$f":"IF(AND('Individual Cost Statement'!$D$25:$D$25=\"Not applicable (all costs in EURO)\",N56>0),1,IF(AND('Individual Cost Statement'!$D$25:$D$25=\"Date when costs incurred\",N56>0),0,'Individual Cost Statement'!$F$26))","v":0}," "," ",{"$f":"IF(P56>0,\" \",IF(AND('Individual Cost Statement'!$D$25:$D$25=\"Date when costs incurred\",N56>0),\"ENCODE Exchange rate !\",\" \"))","v":" "},null," "]
[50,null,null,null,null,null,null,null,null,null,null,0,null,0,null,{"$f":"IF(AND('Individual Cost Statement'!$D$25:$D$25=\"Not applicable (all costs in EURO)\",N57>0),1,IF(AND('Individual Cost Statement'!$D$25:$D$25=\"Date when costs incurred\",N57>0),0,'Individual Cost Statement'!$F$26))","v":0}," "," ",{"$f":"IF(P57>0,\" \",IF(AND('Individual Cost Statement'!$D$25:$D$25=\"Date when costs incurred\",N57>0),\"ENCODE Exchange rate !\",\" \"))","v":" "},null," "]
["Total",null,null,null,null,null,null,null,null,null,null,null,null,null,null,null,{"$f":"SUM(Q8:INDIRECT(\"Q\"&ROW()-1))","v":0},{"$f":"SUM(R8:INDIRECT(\"R\"&ROW()-1))","v":0}]
[]
[]
[]
[]
[]
["Explanation of the content of each Column"]
["PLEASE FILL-IN ONLY BLUE CELLS"]
["A","Sequential number of the entries. "]
["B1","The calendar year in which the costs were incurred (relevant for participants from non-Euro countries for use of correct exchange rate) "]
["B2","Location of the land "]
["B3","The surface of the land is measured in Ha"]
["B4","The number the land has in the landregister."]
["C1","Date of the notorial act"]
["C2","The notorial act number"]
["C3","Name of the notary"]
["D","Is the nature conservation clause included in the land register, land sale contract (for member state where land register does not exist or does not provide sufficent legal guarantee) or equivalent guarantee provided (for countries where it would be illegal to include such a clause in the land register or land sale contract)?"]
["E1","Date of payment of the land"]
["E2","Cost per hectare in national currency"]
["E3","Purchase price in national currency without VAT"]
["E4","Associated taxes without VAT in national currency"]
["E5","Total amount without VAT in national currency (E2+E3)"]
["E6","Total amount in national currency with non-recoverable VAT"]
["E7","If costs are reported in Euro, where beneficiary keeps its general accounts in Euro, no exchange rate to include"]
["E7","If the currency of the reported costs is not EURO, where beneficiary keeps its general accounts in a currency other than Euro and the exchange rate option chosen is \"1st day after the end of reporting period\", the monthly exchange rate encoded in the individual Costs statement sheet will be automatically inserted. "]
["E7","If the currency of the reported costs is not EURO, where beneficiary keeps its general accounts in a currency other than Euro and the exchange rate option chosen is the day when the costs incurred, please enter the monthly exchange rate published on the Commission website: http://ec.europa.eu/budget/contracts_grants/info_contracts/inforeuro/inforeuro_en.cfm."]
["E8","Total amount in EURO without VAT"]
["E9","Total amount in EURO with non-recoverable VAT "]

{"sheet":"Land_Lease_Compensation","index":9,"n_rows":85,"n_cols":21,"rows_kept":85,"cut":false,"hidden":false,"merged":[[0,2,0,4],[0,7,0,8],[0,15,0,17],[1,2,1,4],[1,7,1,8],[1,15,1,17],[82,1,82,17],[4,9,4,17],[2,2,2,4],[2,15,2,17],[4,1,4,3],[4,4,4,5],[4,7,4,8],[57,0,57,15],[63,0,63,17],[64,0,64,17],[81,1,81,17]]}
[null,"PROJECT Reference :",{"$f":"'Individual Cost Statement'!B3:B3","v":"LIFEXX XXX/XX/XXXXXX - ACRONYM"},null,null,null,null,"PERIOD (FROM) :",null,{"$f":"'Individual Cost Statement'!E3:E3","v":"00:00:00"},null,null,null,null,null,"Land lease/One-off Compensation"]
[null,"COUNTRY :",{"$f":"'Individual Cost Statement'!B4:B4","v":"Austria"},null,null,null,null,"PERIOD (TO) :",null,{"$f":"'Individual Cost Statement'!E4:E4","v":"00:00:00"},null,null,null,null,null,"Amount WITH NON-recoverable VAT"]
[null,"Beneficiary: ",{"$f":"'Individual Cost Statement'!B6:B6","v":0},null,null,null,null,null,null,null,null,null,null,null,null,{"$f":"R58","v":0}]
[]
[null,"Info on land",null,null,"Info on lease contract",null,"Info on one-off compensation for land use rights ","Invoice/receipt",null,"Calculation of the LEASE OF LAND costs"]
["A","B1","B2","B3","C1","C2","D","E1","E2","F1","F2","F3","F4","F5","F6","F7","F8","F9"]
["Seq n°","Year","Surface (Ha)","Land Register n°","Contract duration (months)","Type of payment (monthly, annual, ….)","Description","Date (dd/mm/yy)","Number","Date of payment","Cost/hectare in national currency","Lease price \nin national currency without VAT","Associated taxes in national currency \nwithout VAT","TOTAL amount \nin national currency \nwithout VAT","TOTAL amount in national currency with non-recoverable VAT","Exchange rate","Amount in EURO\nwithout VAT","Amount in EURO \nwith non-recoverable VAT ",null,null,"VAT\nCalculation"]
[{"$f":"ROW()-7","v":1},null,null,null,null,null,null,null,null,null,null,{"$f":"C8*K8","v":0},null,{"$f":"L8+M8","v":0},null,{"$f":"IF(AND('Individual Cost Statement'!$D$25:$D$25=\"Not applicable (all costs in EURO)\",N8>0),1,IF(AND('Individual Cost Statement'!$D$25:$D$25=\"Date when costs incurred\",N8>0),0,'Individual Cost Statement'!$F$26))","v":0},{"$f":"IF(AND(N8>0,P8>0),N8/P8,\" \")","v":" "},{"$f":"IF(AND(O8>0,P8>0),O8/P8,\" \")","v":" "},{"$f":"IF(P8>0,\" \",IF(AND('Individual Cost Statement'!$D$25:$D$25=\"Date when costs incurred\",N8>0),\"ENCODE Exchange rate !\",\" \"))","v":" "},null,{"$f":"IF(Q8=\" \",\" \",R8-Q8)","v":" "}]
[2,null,null,null,null,null,null,null,null,null,null,{"$f":"C9*K9","v":0},null,{"$f":"L9+M9","v":0},null,{"$f":"IF(AND('Individual Cost Statement'!$D$25:$D$25=\"Not applicable (all costs in EURO)\",N9>0),1,IF(AND('Individual Cost Statement'!$D$25:$D$25=\"Date when costs incurred\",N9>0),0,'Individual Cost Statement'!$F$26))","v":0},{"$f":"IF(AND(N9>0,P9>0),N9/P9,\" \")","v":" "},{"$f":"IF(AND(O9>0,P9>0),O9/P9,\" \")","v":" "},{"$f":"IF(P9>0,\" \",IF(AND('Individual Cost Statement'!$D$25:$D$25=\"Date when costs incurred\",N9>0),\"ENCODE Exchange rate !\",\" \"))","v":" "},null,{"$f":"IF(Q9=\" \",\" \",R9-Q9)","v":" "}]
[3,null,null,null,null,null,null,null,null,null,null,0,null,0,null,{"$f":"IF(AND('Individual Cost Statement'!$D$25:$D$25=\"Not applicable (all costs in EURO)\",N10>0),1,IF(AND('Individual Cost Statement'!$D$25:$D$25=\"Date when costs incurred\",N10>0),0,'Individual Cost Statement'!$F$26))","v":0}," "," ",{"$f":"IF(P10>0,\" \",IF(AND('Individual Cost Statement'!$D$25:$D$25=\"Date when costs incurred\",N10>0),\"ENCODE Exchange rate !\",\" \"))","v":" "},null," "]
[4,null,null,null,null,null,null,null,null,null,null,0,null,0,null,{"$f":"IF(AND('Individual Cost Statement'!$D$25:$D$25=\"Not applicable (all costs in EURO)\",N11>0),1,IF(AND('Individual Cost Statement'!$D$25:$D$25=\"Date when costs incurred\",N11>0),0,'Individual Cost Statement'!$F$26))","v":0}," "," ",{"$f":"IF(P11>0,\" \",IF(AND('Individual Cost Statement'!$D$25:$D$25=\"Date when costs incurred\",N11>0),\"ENCODE Exchange rate !\",\" \"))","v":" "},null," "]
[5,null,null,null,null,null,null,null,null,null,null,0,null,0,null,{"$f":"IF(AND('Individual Cost Statement'!$D$25:$D$25=\"Not applicable (all costs in EURO)\",N12>0),1,IF(AND('Individual Cost Statement'!$D$25:$D$25=\"Date when costs incurred\",N12>0),0,'Individual Cost Statement'!$F$26))","v":0}," "," ",{"$f":"IF(P12>0,\" \",IF(AND('Individual Cost Statement'!$D$25:$D$25=\"Date when costs incurred\",N12>0),\"ENCODE Exchange rate !\",\" \"))","v":" "},null," "]
[6,null,null,null,null,null,null,null,null,null,null,0,null,0,null,{"$f":"IF(AND('Individual Cost Statement'!$D$25:$D$25=\"Not applicable (all costs in EURO)\",N13>0),1,IF(AND('Individual Cost Statement'!$D$25:$D$25=\"Date when costs incurred\",N13>0),0,'Individual Cost Statement'!$F$26))","v":0}," "," ",{"$f":"IF(P13>0,\" \",IF(AND('Individual Cost Statement'!$D$25:$D$25=\"Date when costs incurred\",N13>0),\"ENCODE Exchange rate !\",\" \"))","v":" "},null," "]
[7,null,null,null,null,null,null,null,null,null,null,0,null,0,null,{"$f":"IF(AND('Individual Cost Statement'!$D$25:$D$25=\"Not applicable (all costs in EURO)\",N14>0),1,IF(AND('Individual Cost Statement'!$D$25:$D$25=\"Date when costs incurred\",N14>0),0,'Individual Cost Statement'!$F$26))","v":0}," "," ",{"$f":"IF(P14>0,\" \",IF(AND('Individual Cost Statement'!$D$25:$D$25=\"Date when costs incurred\",N14>0),\"ENCODE Exchange rate !\",\" \"))","v":" "},null," "]
[8,null,null,null,null,null,null,null,null,null,null,0,null,0,null,{"$f":"IF(AND('Individual Cost Statement'!$D$25:$D$25=\"Not applicable (all costs in EURO)\",N15>0),1,IF(AND('Individual Cost Statement'!$D$25:$D$25=\"Date when costs incurred\",N15>0),0,'Individual Cost Statement'!$F$26))","v":0}," "," ",{"$f":"IF(P15>0,\" \",IF(AND('Individual Cost Statement'!$D$25:$D$25=\"Date when costs incurred\",N15>0),\"ENCODE Exchange rate !\",\" \"))","v":" "},null," "]
[9,null,null,null,null,null,null,null,null,null,null,0,null,0,null,{"$f":"IF(AND('Individual Cost Statement'!$D$25:$D$25=\"Not applicable (all costs in EURO)\",N16>0),1,IF(AND('Individual Cost Statement'!$D$25:$D$25=\"Date when costs incurred\",N16>0),0,'Individual Cost Statement'!$F$26))","v":0}," "," ",{"$f":"IF(P16>0,\" \",IF(AND('Individual Cost Statement'!$D$25:$D$25=\"Date when costs incurred\",N16>0),\"ENCODE Exchange rate !\",\" \"))","v":" "},null," "]
[10,null,null,null,null,null,null,null,null,null,null,0,null,0,null,{"$f":"IF(AND('Individual Cost Statement'!$D$25:$D$25=\"Not applicable (all costs in EURO)\",N17>0),1,IF(AND('Individual Cost Statement'!$D$25:$D$25=\"Date when costs incurred\",N17>0),0,'Individual Cost Statement'!$F$26))","v":0}," "," ",{"$f":"IF(P17>0,\" \",IF(AND('Individual Cost Statement'!$D$25:$D$25=\"Date when costs incurred\",N17>0),\"ENCODE Exchange rate !\",\" \"))","v":" "},null," "]
[11,null,null,null,null,null,null,null,null,null,null,0,null,0,null,{"$f":"IF(AND('Individual Cost Statement'!$D$25:$D$25=\"Not applicable (all costs in EURO)\",N18>0),1,IF(AND('Individual Cost Statement'!$D$25:$D$25=\"Date when costs incurred\",N18>0),0,'Individual Cost Statement'!$F$26))","v":0}," "," ",{"$f":"IF(P18>0,\" \",IF(AND('Individual Cost Statement'!$D$25:$D$25=\"Date when costs incurred\",N18>0),\"ENCODE Exchange rate !\",\" \"))","v":" "},null," "]
[12,null,null,null,null,null,null,null,null,null,null,0,null,0,null,{"$f":"IF(AND('Individual Cost Statement'!$D$25:$D$25=\"Not applicable (all costs in EURO)\",N19>0),1,IF(AND('Individual Cost Statement'!$D$25:$D$25=\"Date when costs incurred\",N19>0),0,'Individual Cost Statement'!$F$26))","v":0}," "," ",{"$f":"IF(P19>0,\" \",IF(AND('Individual Cost Statement'!$D$25:$D$25=\"Date when costs incurred\",N19>0),\"ENCODE Exchange rate !\",\" \"))","v":" "},null," "]
[13,null,null,null,null,null,null,null,null,null,null,0,null,0,null,{"$f":"IF(AND('Individual Cost Statement'!$D$25:$D$25=\"Not applicable (all costs in EURO)\",N20>0),1,IF(AND('Individual Cost Statement'!$D$25:$D$25=\"Date when costs incurred\",N20>0),0,'Individual Cost Statement'!$F$26))","v":0}," "," ",{"$f":"IF(P20>0,\" \",IF(AND('Individual Cost Statement'!$D$25:$D$25=\"Date when costs incurred\",N20>0),\"ENCODE Exchange rate !\",\" \"))","v":" "},null," "]
[14,null,null,null,null,null,null,null,null,null,null,0,null,0,null,{"$f":"IF(AND('Individual Cost Statement'!$D$25:$D$25=\"Not applicable (all costs in EURO)\",N21>0),1,IF(AND('Individual Cost Statement'!$D$25:$D$25=\"Date when costs incurred\",N21>0),0,'Individual Cost Statement'!$F$26))","v":0}," "," ",{"$f":"IF(P21>0,\" \",IF(AND('Individual Cost Statement'!$D$25:$D$25=\"Date when costs incurred\",N21>0),\"ENCODE Exchange rate !\",\" \"))","v":" "},null," "]
[15,null,null,null,null,null,null,null,null,null,null,0,null,0,null,{"$f":"IF(AND('Individual Cost Statement'!$D$25:$D$25=\"Not applicable (all costs in EURO)\",N22>0),1,IF(AND('Individual Cost Statement'!$D$25:$D$25=\"Date when costs incurred\",N22>0),0,'Individual Cost Statement'!$F$26))","v":0}," "," ",{"$f":"IF(P22>0,\" \",IF(AND('Individual Cost Statement'!$D$25:$D$25=\"Date when costs incurred\",N22>0),\"ENCODE Exchange rate !\",\" \"))","v":" "},null," "]
[16,null,null,null,null,null,null,null,null,null,null,0,null,0,null,{"$f":"IF(AND('Individual Cost Statement'!$D$25:$D$25=\"Not applicable (all costs in EURO)\",N23>0),1,IF(AND('Individual Cost Statement'!$D$25:$D$25=\"Date when costs incurred\",N23>0),0,'Individual Cost Statement'!$F$26))","v":0}," "," ",{"$f":"IF(P23>0,\" \",IF(AND('Individual Cost Statement'!$D$25:$D$25=\"Date when costs incurred\",N23>0),\"ENCODE Exchange rate !\",\" \"))","v":" "},null," "]
[17,null,null,null,null,null,null,null,null,null,null,0,null,0,null,{"$f":"IF(AND('Individual Cost Statement'!$D$25:$D$25=\"Not applicable (all costs in EURO)\",N24>0),1,IF(AND('Individual Cost Statement'!$D$25:$D$25=\"Date when costs incurred\",N24>0),0,'Individual Cost Statement'!$F$26))","v":0}," "," ",{"$f":"IF(P24>0,\" \",IF(AND('Individual Cost Statement'!$D$25:$D$25=\"Date when costs incurred\",N24>0),\"ENCODE Exchange rate !\",\" \"))","v":" "},null," "]
[18,null,null,null,null,null,null,null,null,null,null,0,null,0,null,{"$f":"IF(AND('Individual Cost Statement'!$D$25:$D$25=\"Not applicable (all costs in EURO)\",N25>0),1,IF(AND('Individual Cost Statement'!$D$25:$D$25=\"Date when costs incurred\",N25>0),0,'Individual Cost Statement'!$F$26))","v":0}," "," ",{"$f":"IF(P25>0,\" \",IF(AND('Individual Cost Statement'!$D$25:$D$25=\"Date when costs incurred\",N25>0),\"ENCODE Exchange rate !\",\" \"))","v":" "},null," "]
[19,null,null,null,null,null,null,null,null,null,null,0,null,0,null,{"$f":"IF(AND('Individual Cost Statement'!$D$25:$D$25=\"Not applicable (all costs in EURO)\",N26>0),1,IF(AND('Individual Cost Statement'!$D$25:$D$25=\"Date when costs incurred\",N26>0),0,'Individual Cost Statement'!$F$26))","v":0}," "," ",{"$f":"IF(P26>0,\" \",IF(AND('Individual Cost Statement'!$D$25:$D$25=\"Date when costs incurred\",N26>0),\"ENCODE Exchange rate !\",\" \"))","v":" "},null," "]
[20,null,null,null,null,null,null,null,null,null,null,0,null,0,null,{"$f":"IF(AND('Individual Cost Statement'!$D$25:$D$25=\"Not applicable (all costs in EURO)\",N27>0),1,IF(AND('Individual Cost Statement'!$D$25:$D$25=\"Date when costs incurred\",N27>0),0,'Individual Cost Statement'!$F$26))","v":0}," "," ",{"$f":"IF(P27>0,\" \",IF(AND('Individual Cost Statement'!$D$25:$D$25=\"Date when costs incurred\",N27>0),\"ENCODE Exchange rate !\",\" \"))","v":" "},null," "]
[21,null,null,null,null,null,null,null,null,null,null,0,null,0,null,{"$f":"IF(AND('Individual Cost Statement'!$D$25:$D$25=\"Not applicable (all costs in EURO)\",N28>0),1,IF(AND('Individual Cost Statement'!$D$25:$D$25=\"Date when costs incurred\",N28>0),0,'Individual Cost Statement'!$F$26))","v":0}," "," ",{"$f":"IF(P28>0,\" \",IF(AND('Individual Cost Statement'!$D$25:$D$25=\"Date when costs incurred\",N28>0),\"ENCODE Exchange rate !\",\" \"))","v":" "},null," "]
[22,null,null,null,null,null,null,null,null,null,null,0,null,0,null,{"$f":"IF(AND('Individual Cost Statement'!$D$25:$D$25=\"Not applicable (all costs in EURO)\",N29>0),1,IF(AND('Individual Cost Statement'!$D$25:$D$25=\"Date when costs incurred\",N29>0),0,'Individual Cost Statement'!$F$26))","v":0}," "," ",{"$f":"IF(P29>0,\" \",IF(AND('Individual Cost Statement'!$D$25:$D$25=\"Date when costs incurred\",N29>0),\"ENCODE Exchange rate !\",\" \"))","v":" "},null," "]
[23,null,null,null,null,null,null,null,null,null,null,0,null,0,null,{"$f":"IF(AND('Individual Cost Statement'!$D$25:$D$25=\"Not applicable (all costs in EURO)\",N30>0),1,IF(AND('Individual Cost Statement'!$D$25:$D$25=\"Date when costs incurred\",N30>0),0,'Individual Cost Statement'!$F$26))","v":0}," "," ",{"$f":"IF(P30>0,\" \",IF(AND('Individual Cost Statement'!$D$25:$D$25=\"Date when costs incurred\",N30>0),\"ENCODE Exchange rate !\",\" \"))","v":" "},null," "]
[24,null,null,null,null,null,null,null,null,null,null,0,null,0,null,{"$f":"IF(AND('Individual Cost Statement'!$D$25:$D$25=\"Not applicable (all costs in EURO)\",N31>0),1,IF(AND('Individual Cost Statement'!$D$25:$D$25=\"Date when costs incurred\",N31>0),0,'Individual Cost Statement'!$F$26))","v":0}," "," ",{"$f":"IF(P31>0,\" \",IF(AND('Individual Cost Statement'!$D$25:$D$25=\"Date when costs incurred\",N31>0),\"ENCODE Exchange rate !\",\" \"))","v":" "},null," "]
[25,null,null,null,null,null,null,null,null,null,null,0,null,0,null,{"$f":"IF(AND('Individual Cost Statement'!$D$25:$D$25=\"Not applicable (all costs in EURO)\",N32>0),1,IF(AND('Individual Cost Statement'!$D$25:$D$25=\"Date when costs incurred\",N32>0),0,'Individual Cost Statement'!$F$26))","v":0}," "," ",{"$f":"IF(P32>0,\" \",IF(AND('Individual Cost Statement'!$D$25:$D$25=\"Date when costs incurred\",N32>0),\"ENCODE Exchange rate !\",\" \"))","v":" "},null," "]
[26,null,null,null,null,null,null,null,null,null,null,0,null,0,null,{"$f":"IF(AND('Individual Cost Statement'!$D$25:$D$25=\"Not applicable (all costs in EURO)\",N33>0),1,IF(AND('Individual Cost Statement'!$D$25:$D$25=\"Date when costs incurred\",N33>0),0,'Individual Cost Statement'!$F$26))","v":0}," "," ",{"$f":"IF(P33>0,\" \",IF(AND('Individual Cost Statement'!$D$25:$D$25=\"Date when costs incurred\",N33>0),\"ENCODE Exchange rate !\",\" \"))","v":" "},null," "]
[27,null,null,null,null,null,null,null,null,null,null,0,null,0,null,{"$f":"IF(AND('Individual Cost Statement'!$D$25:$D$25=\"Not applicable (all costs in EURO)\",N34>0),1,IF(AND('Individual Cost Statement'!$D$25:$D$25=\"Date when costs incurred\",N34>0),0,'Individual Cost Statement'!$F$26))","v":0}," "," ",{"$f":"IF(P34>0,\" \",IF(AND('Individual Cost Statement'!$D$25:$D$25=\"Date when costs incurred\",N34>0),\"ENCODE Exchange rate !\",\" \"))","v":" "},null," "]
[28,null,null,null,null,null,null,null,null,null,null,0,null,0,null,{"$f":"IF(AND('Individual Cost Statement'!$D$25:$D$25=\"Not applicable (all costs in EURO)\",N35>0),1,IF(AND('Individual Cost Statement'!$D$25:$D$25=\"Date when costs incurred\",N35>0),0,'Individual Cost Statement'!$F$26))","v":0}," "," ",{"$f":"IF(P35>0,\" \",IF(AND('Individual Cost Statement'!$D$25:$D$25=\"Date when costs incurred\",N35>0),\"ENCODE Exchange rate !\",\" \"))","v":" "},null," "]
[29,null,null,null,null,null,null,null,null,null,null,0,null,0,null,{"$f":"IF(AND('Individual Cost Statement'!$D$25:$D$25=\"Not applicable (all costs in EURO)\",N36>0),1,IF(AND('Individual Cost Statement'!$D$25:$D$25=\"Date when costs incurred\",N36>0),0,'Individual Cost Statement'!$F$26))","v":0}," "," ",{"$f":"IF(P36>0,\" \",IF(AND('Individual Cost Statement'!$D$25:$D$25=\"Date when costs incurred\",N36>0),\"ENCODE Exchange rate !\",\" \"))","v":" "},null," "]
[30,null,null,null,null,null,null,null,null,null,null,0,null,0,null,{"$f":"IF(AND('Individual Cost Statement'!$D$25:$D$25=\"Not applicable (all costs in EURO)\",N37>0),1,IF(AND('Individual Cost Statement'!$D$25:$D$25=\"Date when costs incurred\",N37>0),0,'Individual Cost Statement'!$F$26))","v":0}," "," ",{"$f":"IF(P37>0,\" \",IF(AND('Individual Cost Statement'!$D$25:$D$25=\"Date when costs incurred\",N37>0),\"ENCODE Exchange rate !\",\" \"))","v":" "},null," "]
[31,null,null,null,null,null,null,null,null,null,null,0,null,0,null,{"$f":"IF(AND('Individual Cost Statement'!$D$25:$D$25=\"Not applicable (all costs in EURO)\",N38>0),1,IF(AND('Individual Cost Statement'!$D$25:$D$25=\"Date when costs incurred\",N38>0),0,'Individual Cost Statement'!$F$26))","v":0}," "," ",{"$f":"IF(P38>0,\" \",IF(AND('Individual Cost Statement'!$D$25:$D$25=\"Date when costs incurred\",N38>0),\"ENCODE Exchange rate !\",\" \"))","v":" "},null," "]
[32,null,null,null,null,null,null,null,null,null,null,0,null,0,null,{"$f":"IF(AND('Individual Cost Statement'!$D$25:$D$25=\"Not applicable (all costs in EURO)\",N39>0),1,IF(AND('Individual Cost Statement'!$D$25:$D$25=\"Date when costs incurred\",N39>0),0,'Individual Cost Statement'!$F$26))","v":0}," "," ",{"$f":"IF(P39>0,\" \",IF(AND('Individual Cost Statement'!$D$25:$D$25=\"Date when costs incurred\",N39>0),\"ENCODE Exchange rate !\",\" \"))","v":" "},null," "]
[33,null,null,null,null,null,null,null,null,null,null,0,null,0,null,{"$f":"IF(AND('Individual Cost Statement'!$D$25:$D$25=\"Not applicable (all costs in EURO)\",N40>0),1,IF(AND('Individual Cost Statement'!$D$25:$D$25=\"Date when costs incurred\",N40>0),0,'Individual Cost Statement'!$F$26))","v":0}," "," ",{"$f":"IF(P40>0,\" \",IF(AND('Individual Cost Statement'!$D$25:$D$25=\"Date when costs incurred\",N40>0),\"ENCODE Exchange rate !\",\" \"))","v":" "},null," "]
[34,null,null,null,null,null,null,null,null,null,null,0,null,0,null,{"$f":"IF(AND('Individual Cost Statement'!$D$25:$D$25=\"Not applicable (all costs in EURO)\",N41>0),1,IF(AND('Individual Cost Statement'!$D$25:$D$25=\"Date when costs incurred\",N41>0),0,'Individual Cost Statement'!$F$26))","v":0}," "," ",{"$f":"IF(P41>0,\" \",IF(AND('Individual Cost Statement'!$D$25:$D$25=\"Date when costs incurred\",N41>0),\"ENCODE Exchange rate !\",\" \"))","v":" "},null," "]
[35,null,null,null,null,null,null,null,null,null,null,0,null,0,null,{"$f":"IF(AND('Individual Cost Statement'!$D$25:$D$25=\"Not applicable (all costs in EURO)\",N42>0),1,IF(AND('Individual Cost Statement'!$D$25:$D$25=\"Date when costs incurred\",N42>0),0,'Individual Cost Statement'!$F$26))","v":0}," "," ",{"$f":"IF(P42>0,\" \",IF(AND('Individual Cost Statement'!$D$25:$D$25=\"Date when costs incurred\",N42>0),\"ENCODE Exchange rate !\",\" \"))","v":" "},null," "]
[36,null,null,null,null,null,null,null,null,null,null,0,null,0,null,{"$f":"IF(AND('Individual Cost Statement'!$D$25:$D$25=\"Not applicable (all costs in EURO)\",N43>0),1,IF(AND('Individual Cost Statement'!$D$25:$D$25=\"Date when costs incurred\",N43>0),0,'Individual Cost Statement'!$F$26))","v":0}," "," ",{"$f":"IF(P43>0,\" \",IF(AND('Individual Cost Statement'!$D$25:$D$25=\"Date when costs incurred\",N43>0),\"ENCODE Exchange rate !\",\" \"))","v":" "},null," "]
[37,null,null,null,null,null,null,null,null,null,null,0,null,0,null,{"$f":"IF(AND('Individual Cost Statement'!$D$25:$D$25=\"Not applicable (all costs in EURO)\",N44>0),1,IF(AND('Individual Cost Statement'!$D$25:$D$25=\"Date when costs incurred\",N44>0),0,'Individual Cost Statement'!$F$26))","v":0}," "," ",{"$f":"IF(P44>0,\" \",IF(AND('Individual Cost Statement'!$D$25:$D$25=\"Date when costs incurred\",N44>0),\"ENCODE Exchange rate !\",\" \"))","v":" "},null," "]
[38,null,null,null,null,null,null,null,null,null,null,0,null,0,null,{"$f":"IF(AND('Individual Cost Statement'!$D$25:$D$25=\"Not applicable (all costs in EURO)\",N45>0),1,IF(AND('Individual Cost Statement'!$D$25:$D$25=\"Date when costs incurred\",N45>0),0,'Individual Cost Statement'!$F$26))","v":0}," "," ",{"$f":"IF(P45>0,\" \",IF(AND('Individual Cost Statement'!$D$25:$D$25=\"Date when costs incurred\",N45>0),\"ENCODE Exchange rate !\",\" \"))","v":" "},null," "]
[39,null,null,null,null,null,null,null,null,null,null,0,null,0,null,{"$f":"IF(AND('Individual Cost Statement'!$D$25:$D$25=\"Not applicable (all costs in EURO)\",N46>0),1,IF(AND('Individual Cost Statement'!$D$25:$D$25=\"Date when costs incurred\",N46>0),0,'Individual Cost Statement'!$F$26))","v":0}," "," ",{"$f":"IF(P46>0,\" \",IF(AND('Individual Cost Statement'!$D$25:$D$25=\"Date when costs incurred\",N46>0),\"ENCODE Exchange rate !\",\" \"))","v":" "},null," "]
[40,null,null,null,null,null,null,null,null,null,null,0,null,0,null,{"$f":"IF(AND('Individual Cost Statement'!$D$25:$D$25=\"Not applicable (all costs in EURO)\",N47>0),1,IF(AND('Individual Cost Statement'!$D$25:$D$25=\"Date when costs incurred\",N47>0),0,'Individual Cost Statement'!$F$26))","v":0}," "," ",{"$f":"IF(P47>0,\" \",IF(AND('Individual Cost Statement'!$D$25:$D$25=\"Date when costs incurred\",N47>0),\"ENCODE Exchange rate !\",\" \"))","v":" "},null," "]
[41,null,null,null,null,null,null,null,null,null,null,0,null,0,null,{"$f":"IF(AND('Individual Cost Statement'!$D$25:$D$25=\"Not applicable (all costs in EURO)\",N48>0),1,IF(AND('Individual Cost Statement'!$D$25:$D$25=\"Date when costs incurred\",N48>0),0,'Individual Cost Statement'!$F$26))","v":0}," "," ",{"$f":"IF(P48>0,\" \",IF(AND('Individual Cost Statement'!$D$25:$D$25=\"Date when costs incurred\",N48>0),\"ENCODE Exchange rate !\",\" \"))","v":" "},null," "]
[42,null,null,null,null,null,null,null,null,null,null,0,null,0,null,{"$f":"IF(AND('Individual Cost Statement'!$D$25:$D$25=\"Not applicable (all costs in EURO)\",N49>0),1,IF(AND('Individual Cost Statement'!$D$25:$D$25=\"Date when costs incurred\",N49>0),0,'Individual Cost Statement'!$F$26))","v":0}," "," ",{"$f":"IF(P49>0,\" \",IF(AND('Individual Cost Statement'!$D$25:$D$25=\"Date when costs incurred\",N49>0),\"ENCODE Exchange rate !\",\" \"))","v":" "},null," "]
[43,null,null,null,null,null,null,null,null,null,null,0,null,0,null,{"$f":"IF(AND('Individual Cost Statement'!$D$25:$D$25=\"Not applicable (all costs in EURO)\",N50>0),1,IF(AND('Individual Cost Statement'!$D$25:$D$25=\"Date when costs incurred\",N50>0),0,'Individual Cost Statement'!$F$26))","v":0}," "," ",{"$f":"IF(P50>0,\" \",IF(AND('Individual Cost Statement'!$D$25:$D$25=\"Date when costs incurred\",N50>0),\"ENCODE Exchange rate !\",\" \"))","v":" "},null," "]
[44,null,null,null,null,null,null,null,null,null,null,0,null,0,null,{"$f":"IF(AND('Individual Cost Statement'!$D$25:$D$25=\"Not applicable (all costs in EURO)\",N51>0),1,IF(AND('Individual Cost Statement'!$D$25:$D$25=\"Date when costs incurred\",N51>0),0,'Individual Cost Statement'!$F$26))","v":0}," "," ",{"$f":"IF(P51>0,\" \",IF(AND('Individual Cost Statement'!$D$25:$D$25=\"Date when costs incurred\",N51>0),\"ENCODE Exchange rate !\",\" \"))","v":" "},null," "]
[45,null,null,null,null,null,null,null,null,null,null,0,null,0,null,{"$f":"IF(AND('Individual Cost Statement'!$D$25:$D$25=\"Not applicable (all costs in EURO)\",N52>0),1,IF(AND('Individual Cost Statement'!$D$25:$D$25=\"Date when costs incurred\",N52>0),0,'Individual Cost Statement'!$F$26))","v":0}," "," ",{"$f":"IF(P52>0,\" \",IF(AND('Individual Cost Statement'!$D$25:$D$25=\"Date when costs incurred\",N52>0),\"ENCODE Exchange rate !\",\" \"))","v":" "},null," "]
[46,null,null,null,null,null,null,null,null,null,null,0,null,0,null,{"$f":"IF(AND('Individual Cost Statement'!$D$25:$D$25=\"Not applicable (all costs in EURO)\",N53>0),1,IF(AND('Individual Cost Statement'!$D$25:$D$25=\"Date when costs incurred\",N53>0),0,'Individual Cost Statement'!$F$26))","v":0}," "," ",{"$f":"IF(P53>0,\" \",IF(AND('Individual Cost Statement'!$D$25:$D$25=\"Date when costs incurred\",N53>0),\"ENCODE Exchange rate !\",\" \"))","v":" "},null," "]
[47,null,null,null,null,null,null,null,null,null,null,0,null,0,null,{"$f":"IF(AND('Individual Cost Statement'!$D$25:$D$25=\"Not applicable (all costs in EURO)\",N54>0),1,IF(AND('Individual Cost Statement'!$D$25:$D$25=\"Date when costs incurred\",N54>0),0,'Individual Cost Statement'!$F$26))","v":0}," "," ",{"$f":"IF(P54>0,\" \",IF(AND('Individual Cost Statement'!$D$25:$D$25=\"Date when costs incurred\",N54>0),\"ENCODE Exchange rate !\",\" \"))","v":" "},null," "]
[48,null,null,null,null,null,null,null,null,null,null,0,null,0,null,{"$f":"IF(AND('Individual Cost Statement'!$D$25:$D$25=\"Not applicable (all costs in EURO)\",N55>0),1,IF(AND('Individual Cost Statement'!$D$25:$D$25=\"Date when costs incurred\",N55>0),0,'Individual Cost Statement'!$F$26))","v":0}," "," ",{"$f":"IF(P55>0,\" \",IF(AND('Individual Cost Statement'!$D$25:$D$25=\"Date when costs incurred\",N55>0),\"ENCODE Exchange rate !\",\" \"))","v":" "},null," "]
[49,null,null,null,null,null,null,null,null,null,null,0,null,0,null,{"$f":"IF(AND('Individual Cost Statement'!$D$25:$D$25=\"Not applicable (all costs in EURO)\",N56>0),1,IF(AND('Individual Cost Statement'!$D$25:$D$25=\"Date when costs incurred\",N56>0),0,'Individual Cost Statement'!$F$26))","v":0}," "," ",{"$f":"IF(P56>0,\" \",IF(AND('Individual Cost Statement'!$D$25:$D$25=\"Date when costs incurred\",N56>0),\"ENCODE Exchange rate !\",\" \"))","v":" "},null," "]
[50,null,null,null,null,null,null,null,null,null,null,0,null,0,null,{"$f":"IF(AND('Individual Cost Statement'!$D$25:$D$25=\"Not applicable (all costs in EURO)\",N57>0),1,IF(AND('Individual Cost Statement'!$D$25:$D$25=\"Date when costs incurred\",N57>0),0,'Individual Cost Statement'!$F$26))","v":0}," "," ",{"$f":"IF(P57>0,\" \",IF(AND('Individual Cost Statement'!$D$25:$D$25=\"Date when costs incurred\",N57>0),\"ENCODE Exchange rate !\",\" \"))","v":" "},null," "]
["Total",null,null,null,null,null,null,null,null,null,null,null,null,null,null,null,{"$f":"SUM(Q8:INDIRECT(\"Q\"&ROW()-1))","v":0},{"$f":"SUM(R8:INDIRECT(\"R\"&ROW()-1))","v":0}]
[]
[]
[]
[]
[]
["Explanation of the content of each Column"]
["PLEASE FILL-IN ONLY BLUE CELLS"]
["A","Sequential number of the entries."]
["B1","The calendar year in which the costs were incurred (relevant for participants from non-Euro countries for use of correct exchange rate) "]
["B2","The surface of the land is measured in Ha"]
["B3","The number the land has in the landregister."]
["C1","The duration of the land lease contract in  months"]
["C2","Type of payment, i.e. are the instalments monthly or yearly"]
["D","One-off compensation for land use rights, if applicable"]
["E1","Date of invoice or receipt"]
["E2","Number of invoice or receipt"]
["F1","Date of payment"]
["F2","Cost per hectare in national currency"]
["F3","Lease price in national currency without VAT"]
["F4","Associated taxes without VAT in national currency"]
["F5","Amount in national currency without VAT"]
["F6","Amount in national currency with non-recoverable VAT"]
["F7","If costs are reported in Euro, where beneficiary keeps its general accounts in Euro, no exchange rate to include"]
["F7","If the currency of the reported costs is not EURO, where beneficiary keeps its general accounts in a currency other than Euro and the exchange rate option chosen is \"1st day after the end of reporting period\", the monthly exchange rate encoded in the individual Costs statement sheet will be automatically inserted. "]
["F7","If the currency of the reported costs is not EURO, where beneficiary keeps its general accounts in a currency other than Euro and the exchange rate option chosen is the day when the costs incurred, please enter the monthly exchange rate published on the Commission website: http://ec.europa.eu/budget/contracts_grants/info_contracts/inforeuro/inforeuro_en.cfm."]
["F8","Invoiced amount in EURO without VAT"]
["F9","Invoiced amount in EURO with non-recoverable VAT "]

{"sheet":"Consumables","index":10,"n_rows":79,"n_cols":15,"rows_kept":79,"cut":false,"hidden":false,"merged":[[0,8,0,10],[1,8,1,10],[2,8,2,10],[65,1,65,10],[57,0,57,8],[0,2,0,4],[1,2,1,4],[2,2,2,4],[4,4,4,5],[4,1,4,3],[78,1,78,11],[74,1,74,11],[75,1,75,11],[4,6,4,10],[63,0,63,11],[64,0,64,11],[69,1,69,11]]}
[null,"PROJECT Reference :",{"$f":"'Individual Cost Statement'!B3:B3","v":"LIFEXX XXX/XX/XXXXXX - ACRONYM"},null,null,null,"PERIOD (FROM) :",{"$f":"'Individual Cost Statement'!E3:E3","v":"00:00:00"},"CONSUMABLES"]
[null,"COUNTRY :",{"$f":"'Individual Cost Statement'!B4:B4","v":"Austria"},null,null,null,"PERIOD (TO) :",{"$f":"'Individual Cost Statement'!E4:E4","v":"00:00:00"},"Amount WITH NON-recoverable VAT"]
[null,"Beneficiary: ",{"$f":"'Individual Cost Statement'!B6:B6","v":0},null,null,null,null,null,{"$f":"K58","v":0}]
[]
[null,"Details on cost item",null,null,"Info on cost item",null,"Calculation of the CONSUMABLE costs",null,null,null,null,"Selection procedure"]
["A","B1","B2","B3","C1","C2","D1","D2","D3","D4","D5","E"]
["Seq n°","Date of invoice","Invoice number","Date of payment","Supplier","Description of cost item","Amount in national currency without VAT","Amount in national currency with non-recoverable VAT","Exchange rate","Amount in EURO\nwithout VAT","Amount in EURO \nwith non-recoverable VAT ","Applied selection procedure",null,null,"VAT\nCalculation"]
[{"$f":"ROW()-7","v":1},null,null,null,null,null,null,null,{"$f":"IF(AND('Individual Cost Statement'!$D$25:$D$25=\"Not applicable (all costs in EURO)\",G8>0),1,IF(AND('Individual Cost Statement'!$D$25:$D$25=\"Date when costs incurred\",G8>0),0,'Individual Cost Statement'!$F$26))","v":0},{"$f":"IF(AND(G8>0,I8>0),G8/I8,\" \")","v":" "},{"$f":"IF(AND(H8>0,I8>0),H8/I8,\" \")","v":" "},null,{"$f":"IF(I8>0,\" \",IF(AND('Individual Cost Statement'!$D$25:$D$25=\"Date when costs incurred\",G8>0),\"ENCODE Exchange rate !\",\" \"))","v":" "},null,{"$f":"IF(J8=\" \",\" \",K8-J8)","v":" "}]
[2,null,null,null,null,null,null,null,{"$f":"IF(AND('Individual Cost Statement'!$D$25:$D$25=\"Not applicable (all costs in EURO)\",G9>0),1,IF(AND('Individual Cost Statement'!$D$25:$D$25=\"Date when costs incurred\",G9>0),0,'Individual Cost Statement'!$F$26))","v":0},{"$f":"IF(AND(G9>0,I9>0),G9/I9,\" \")","v":" "},{"$f":"IF(AND(H9>0,I9>0),H9/I9,\" \")","v":" "},null,{"$f":"IF(I9>0,\" \",IF(AND('Individual Cost Statement'!$D$25:$D$25=\"Date when costs incurred\",G9>0),\"ENCODE Exchange rate !\",\" \"))","v":" "},null,{"$f":"IF(J9=\" \",\" \",K9-J9)","v":" "}]
[3,null,null,null,null,null,null,null,{"$f":"IF(AND('Individual Cost Statement'!$D$25:$D$25=\"Not applicable (all costs in EURO)\",G10>0),1,IF(AND('Individual Cost Statement'!$D$25:$D$25=\"Date when costs incurred\",G10>0),0,'Individual Cost Statement'!$F$26))","v":0}," "," ",null,{"$f":"IF(I10>0,\" \",IF(AND('Individual Cost Statement'!$D$25:$D$25=\"Date when costs incurred\",G10>0),\"ENCODE Exchange rate !\",\" \"))","v":" "},null," "]
[4,null,null,null,null,null,null,null,{"$f":"IF(AND('Individual Cost Statement'!$D$25:$D$25=\"Not applicable (all costs in EURO)\",G11>0),1,IF(AND('Individual Cost Statement'!$D$25:$D$25=\"Date when costs incurred\",G11>0),0,'Individual Cost Statement'!$F$26))","v":0}," "," ",null,{"$f":"IF(I11>0,\" \",IF(AND('Individual Cost Statement'!$D$25:$D$25=\"Date when costs incurred\",G11>0),\"ENCODE Exchange rate !\",\" \"))","v":" "},null," "]
[5,null,null,null,null,null,null,null,{"$f":"IF(AND('Individual Cost Statement'!$D$25:$D$25=\"Not applicable (all costs in EURO)\",G12>0),1,IF(AND('Individual Cost Statement'!$D$25:$D$25=\"Date when costs incurred\",G12>0),0,'Individual Cost Statement'!$F$26))","v":0}," "," ",null,{"$f":"IF(I12>0,\" \",IF(AND('Individual Cost Statement'!$D$25:$D$25=\"Date when costs incurred\",G12>0),\"ENCODE Exchange rate !\",\" \"))","v":" "},null," "]
[6,null,null,null,null,null,null,null,{"$f":"IF(AND('Individual Cost Statement'!$D$25:$D$25=\"Not applicable (all costs in EURO)\",G13>0),1,IF(AND('Individual Cost Statement'!$D$25:$D$25=\"Date when costs incurred\",G13>0),0,'Individual Cost Statement'!$F$26))","v":0}," "," ",null,{"$f":"IF(I13>0,\" \",IF(AND('Individual Cost Statement'!$D$25:$D$25=\"Date when costs incurred\",G13>0),\"ENCODE Exchange rate !\",\" \"))","v":" "},null," "]
[7,null,null,null,null,null,null,null,{"$f":"IF(AND('Individual Cost Statement'!$D$25:$D$25=\"Not applicable (all costs in EURO)\",G14>0),1,IF(AND('Individual Cost Statement'!$D$25:$D$25=\"Date when costs incurred\",G14>0),0,'Individual Cost Statement'!$F$26))","v":0}," "," ",null,{"$f":"IF(I14>0,\" \",IF(AND('Individual Cost Statement'!$D$25:$D$25=\"Date when costs incurred\",G14>0),\"ENCODE Exchange rate !\",\" \"))","v":" "},null," "]
[8,null,null,null,null,null,null,null,{"$f":"IF(AND('Individual Cost Statement'!$D$25:$D$25=\"Not applicable (all costs in EURO)\",G15>0),1,IF(AND('Individual Cost Statement'!$D$25:$D$25=\"Date when costs incurred\",G15>0),0,'Individual Cost Statement'!$F$26))","v":0}," "," ",null,{"$f":"IF(I15>0,\" \",IF(AND('Individual Cost Statement'!$D$25:$D$25=\"Date when costs incurred\",G15>0),\"ENCODE Exchange rate !\",\" \"))","v":" "},null," "]
[9,null,null,null,null,null,null,null,{"$f":"IF(AND('Individual Cost Statement'!$D$25:$D$25=\"Not applicable (all costs in EURO)\",G16>0),1,IF(AND('Individual Cost Statement'!$D$25:$D$25=\"Date when costs incurred\",G16>0),0,'Individual Cost Statement'!$F$26))","v":0}," "," ",null,{"$f":"IF(I16>0,\" \",IF(AND('Individual Cost Statement'!$D$25:$D$25=\"Date when costs incurred\",G16>0),\"ENCODE Exchange rate !\",\" \"))","v":" "},null," "]
[10,null,null,null,null,null,null,null,{"$f":"IF(AND('Individual Cost Statement'!$D$25:$D$25=\"Not applicable (all costs in EURO)\",G17>0),1,IF(AND('Individual Cost Statement'!$D$25:$D$25=\"Date when costs incurred\",G17>0),0,'Individual Cost Statement'!$F$26))","v":0}," "," ",null,{"$f":"IF(I17>0,\" \",IF(AND('Individual Cost Statement'!$D$25:$D$25=\"Date when costs incurred\",G17>0),\"ENCODE Exchange rate !\",\" \"))","v":" "},null," "]
[11,null,null,null,null,null,null,null,{"$f":"IF(AND('Individual Cost Statement'!$D$25:$D$25=\"Not applicable (all costs in EURO)\",G18>0),1,IF(AND('Individual Cost Statement'!$D$25:$D$25=\"Date when costs incurred\",G18>0),0,'Individual Cost Statement'!$F$26))","v":0}," "," ",null,{"$f":"IF(I18>0,\" \",IF(AND('Individual Cost Statement'!$D$25:$D$25=\"Date when costs incurred\",G18>0),\"ENCODE Exchange rate !\",\" \"))","v":" "},null," "]
[12,null,null,null,null,null,null,null,{"$f":"IF(AND('Individual Cost Statement'!$D$25:$D$25=\"Not applicable (all costs in EURO)\",G19>0),1,IF(AND('Individual Cost Statement'!$D$25:$D$25=\"Date when costs incurred\",G19>0),0,'Individual Cost Statement'!$F$26))","v":0}," "," ",null,{"$f":"IF(I19>0,\" \",IF(AND('Individual Cost Statement'!$D$25:$D$25=\"Date when costs incurred\",G19>0),\"ENCODE Exchange rate !\",\" \"))","v":" "},null," "]
[13,null,null,null,null,null,null,null,{"$f":"IF(AND('Individual Cost Statement'!$D$25:$D$25=\"Not applicable (all costs in EURO)\",G20>0),1,IF(AND('Individual Cost Statement'!$D$25:$D$25=\"Date when costs incurred\",G20>0),0,'Individual Cost Statement'!$F$26))","v":0}," "," ",null,{"$f":"IF(I20>0,\" \",IF(AND('Individual Cost Statement'!$D$25:$D$25=\"Date when costs incurred\",G20>0),\"ENCODE Exchange rate !\",\" \"))","v":" "},null," "]
[14,null,null,null,null,null,null,null,{"$f":"IF(AND('Individual Cost Statement'!$D$25:$D$25=\"Not applicable (all costs in EURO)\",G21>0),1,IF(AND('Individual Cost Statement'!$D$25:$D$25=\"Date when costs incurred\",G21>0),0,'Individual Cost Statement'!$F$26))","v":0}," "," ",null,{"$f":"IF(I21>0,\" \",IF(AND('Individual Cost Statement'!$D$25:$D$25=\"Date when costs incurred\",G21>0),\"ENCODE Exchange rate !\",\" \"))","v":" "},null," "]
[15,null,null,null,null,null,null,null,{"$f":"IF(AND('Individual Cost Statement'!$D$25:$D$25=\"Not applicable (all costs in EURO)\",G22>0),1,IF(AND('Individual Cost Statement'!$D$25:$D$25=\"Date when costs incurred\",G22>0),0,'Individual Cost Statement'!$F$26))","v":0}," "," ",null,{"$f":"IF(I22>0,\" \",IF(AND('Individual Cost Statement'!$D$25:$D$25=\"Date when costs incurred\",G22>0),\"ENCODE Exchange rate !\",\" \"))","v":" "},null," "]
[16,null,null,null,null,null,null,null,{"$f":"IF(AND('Individual Cost Statement'!$D$25:$D$25=\"Not applicable (all costs in EURO)\",G23>0),1,IF(AND('Individual Cost Statement'!$D$25:$D$25=\"Date when costs incurred\",G23>0),0,'Individual Cost Statement'!$F$26))","v":0}," "," ",null,{"$f":"IF(I23>0,\" \",IF(AND('Individual Cost Statement'!$D$25:$D$25=\"Date when costs incurred\",G23>0),\"ENCODE Exchange rate !\",\" \"))","v":" "},null," "]
[17,null,null,null,null,null,null,null,{"$f":"IF(AND('Individual Cost Statement'!$D$25:$D$25=\"Not applicable (all costs in EURO)\",G24>0),1,IF(AND('Individual Cost Statement'!$D$25:$D$25=\"Date when costs incurred\",G24>0),0,'Individual Cost Statement'!$F$26))","v":0}," "," ",null,{"$f":"IF(I24>0,\" \",IF(AND('Individual Cost Statement'!$D$25:$D$25=\"Date when costs incurred\",G24>0),\"ENCODE Exchange rate !\",\" \"))","v":" "},null," "]
[18,null,null,null,null,null,null,null,{"$f":"IF(AND('Individual Cost Statement'!$D$25:$D$25=\"Not applicable (all costs in EURO)\",G25>0),1,IF(AND('Individual Cost Statement'!$D$25:$D$25=\"Date when costs incurred\",G25>0),0,'Individual Cost Statement'!$F$26))","v":0}," "," ",null,{"$f":"IF(I25>0,\" \",IF(AND('Individual Cost Statement'!$D$25:$D$25=\"Date when costs incurred\",G25>0),\"ENCODE Exchange rate !\",\" \"))","v":" "},null," "]
[19,null,null,null,null,null,null,null,{"$f":"IF(AND('Individual Cost Statement'!$D$25:$D$25=\"Not applicable (all costs in EURO)\",G26>0),1,IF(AND('Individual Cost Statement'!$D$25:$D$25=\"Date when costs incurred\",G26>0),0,'Individual Cost Statement'!$F$26))","v":0}," "," ",null,{"$f":"IF(I26>0,\" \",IF(AND('Individual Cost Statement'!$D$25:$D$25=\"Date when costs incurred\",G26>0),\"ENCODE Exchange rate !\",\" \"))","v":" "},null," "]
[20,null,null,null,null,null,null,null,{"$f":"IF(AND('Individual Cost Statement'!$D$25:$D$25=\"Not applicable (all costs in EURO)\",G27>0),1,IF(AND('Individual Cost Statement'!$D$25:$D$25=\"Date when costs incurred\",G27>0),0,'Individual Cost Statement'!$F$26))","v":0}," "," ",null,{"$f":"IF(I27>0,\" \",IF(AND('Individual Cost Statement'!$D$25:$D$25=\"Date when costs incurred\",G27>0),\"ENCODE Exchange rate !\",\" \"))","v":" "},null," "]
[21,null,null,null,null,null,null,null,{"$f":"IF(AND('Individual Cost Statement'!$D$25:$D$25=\"Not applicable (all costs in EURO)\",G28>0),1,IF(AND('Individual Cost Statement'!$D$25:$D$25=\"Date when costs incurred\",G28>0),0,'Individual Cost Statement'!$F$26))","v":0}," "," ",null,{"$f":"IF(I28>0,\" \",IF(AND('Individual Cost Statement'!$D$25:$D$25=\"Date when costs incurred\",G28>0),\"ENCODE Exchange rate !\",\" \"))","v":" "},null," "]
[22,null,null,null,null,null,null,null,{"$f":"IF(AND('Individual Cost Statement'!$D$25:$D$25=\"Not applicable (all costs in EURO)\",G29>0),1,IF(AND('Individual Cost Statement'!$D$25:$D$25=\"Date when costs incurred\",G29>0),0,'Individual Cost Statement'!$F$26))","v":0}," "," ",null,{"$f":"IF(I29>0,\" \",IF(AND('Individual Cost Statement'!$D$25:$D$25=\"Date when costs incurred\",G29>0),\"ENCODE Exchange rate !\",\" \"))","v":" "},null," "]
[23,null,null,null,null,null,null,null,{"$f":"IF(AND('Individual Cost Statement'!$D$25:$D$25=\"Not applicable (all costs in EURO)\",G30>0),1,IF(AND('Individual Cost Statement'!$D$25:$D$25=\"Date when costs incurred\",G30>0),0,'Individual Cost Statement'!$F$26))","v":0}," "," ",null,{"$f":"IF(I30>0,\" \",IF(AND('Individual Cost Statement'!$D$25:$D$25=\"Date when costs incurred\",G30>0),\"ENCODE Exchange rate !\",\" \"))","v":" "},null," "]
[24,null,null,null,null,null,null,null,{"$f":"IF(AND('Individual Cost Statement'!$D$25:$D$25=\"Not applicable (all costs in EURO)\",G31>0),1,IF(AND('Individual Cost Statement'!$D$25:$D$25=\"Date when costs incurred\",G31>0),0,'Individual Cost Statement'!$F$26))","v":0}," "," ",null,{"$f":"IF(I31>0,\" \",IF(AND('Individual Cost Statement'!$D$25:$D$25=\"Date when costs incurred\",G31>0),\"ENCODE Exchange rate !\",\" \"))","v":" "},null," "]
[25,null,null,null,null,null,null,null,{"$f":"IF(AND('Individual Cost Statement'!$D$25:$D$25=\"Not applicable (all costs in EURO)\",G32>0),1,IF(AND('Individual Cost Statement'!$D$25:$D$25=\"Date when costs incurred\",G32>0),0,'Individual Cost Statement'!$F$26))","v":0}," "," ",null,{"$f":"IF(I32>0,\" \",IF(AND('Individual Cost Statement'!$D$25:$D$25=\"Date when costs incurred\",G32>0),\"ENCODE Exchange rate !\",\" \"))","v":" "},null," "]
[26,null,null,null,null,null,null,null,{"$f":"IF(AND('Individual Cost Statement'!$D$25:$D$25=\"Not applicable (all costs in EURO)\",G33>0),1,IF(AND('Individual Cost Statement'!$D$25:$D$25=\"Date when costs incurred\",G33>0),0,'Individual Cost Statement'!$F$26))","v":0}," "," ",null,{"$f":"IF(I33>0,\" \",IF(AND('Individual Cost Statement'!$D$25:$D$25=\"Date when costs incurred\",G33>0),\"ENCODE Exchange rate !\",\" \"))","v":" "},null," "]
[27,null,null,null,null,null,null,null,{"$f":"IF(AND('Individual Cost Statement'!$D$25:$D$25=\"Not applicable (all costs in EURO)\",G34>0),1,IF(AND('Individual Cost Statement'!$D$25:$D$25=\"Date when costs incurred\",G34>0),0,'Individual Cost Statement'!$F$26))","v":0}," "," ",null,{"$f":"IF(I34>0,\" \",IF(AND('Individual Cost Statement'!$D$25:$D$25=\"Date when costs incurred\",G34>0),\"ENCODE Exchange rate !\",\" \"))","v":" "},null," "]
[28,null,null,null,null,null,null,null,{"$f":"IF(AND('Individual Cost Statement'!$D$25:$D$25=\"Not applicable (all costs in EURO)\",G35>0),1,IF(AND('Individual Cost Statement'!$D$25:$D$25=\"Date when costs incurred\",G35>0),0,'Individual Cost Statement'!$F$26))","v":0}," "," ",null,{"$f":"IF(I35>0,\" \",IF(AND('Individual Cost Statement'!$D$25:$D$25=\"Date when costs incurred\",G35>0),\"ENCODE Exchange rate !\",\" \"))","v":" "},null," "]
[29,null,null,null,null,null,null,null,{"$f":"IF(AND('Individual Cost Statement'!$D$25:$D$25=\"Not applicable (all costs in EURO)\",G36>0),1,IF(AND('Individual Cost Statement'!$D$25:$D$25=\"Date when costs incurred\",G36>0),0,'Individual Cost Statement'!$F$26))","v":0}," "," ",null,{"$f":"IF(I36>0,\" \",IF(AND('Individual Cost Statement'!$D$25:$D$25=\"Date when costs incurred\",G36>0),\"ENCODE Exchange rate !\",\" \"))","v":" "},null," "]
[30,null,null,null,null,null,null,null,{"$f":"IF(AND('Individual Cost Statement'!$D$25:$D$25=\"Not applicable (all costs in EURO)\",G37>0),1,IF(AND('Individual Cost Statement'!$D$25:$D$25=\"Date when costs incurred\",G37>0),0,'Individual Cost Statement'!$F$26))","v":0}," "," ",null,{"$f":"IF(I37>0,\" \",IF(AND('Individual Cost Statement'!$D$25:$D$25=\"Date when costs incurred\",G37>0),\"ENCODE Exchange rate !\",\" \"))","v":" "},null," "]
[31,null,null,null,null,null,null,null,{"$f":"IF(AND('Individual Cost Statement'!$D$25:$D$25=\"Not applicable (all costs in EURO)\",G38>0),1,IF(AND('Individual Cost Statement'!$D$25:$D$25=\"Date when costs incurred\",G38>0),0,'Individual Cost Statement'!$F$26))","v":0}," "," ",null,{"$f":"IF(I38>0,\" \",IF(AND('Individual Cost Statement'!$D$25:$D$25=\"Date when costs incurred\",G38>0),\"ENCODE Exchange rate !\",\" \"))","v":" "},null," "]
[32,null,null,null,null,null,null,null,{"$f":"IF(AND('Individual Cost Statement'!$D$25:$D$25=\"Not applicable (all costs in EURO)\",G39>0),1,IF(AND('Individual Cost Statement'!$D$25:$D$25=\"Date when costs incurred\",G39>0),0,'Individual Cost Statement'!$F$26))","v":0}," "," ",null,{"$f":"IF(I39>0,\" \",IF(AND('Individual Cost Statement'!$D$25:$D$25=\"Date when costs incurred\",G39>0),\"ENCODE Exchange rate !\",\" \"))","v":" "},null," "]
[33,null,null,null,null,null,null,null,{"$f":"IF(AND('Individual Cost Statement'!$D$25:$D$25=\"Not applicable (all costs in EURO)\",G40>0),1,IF(AND('Individual Cost Statement'!$D$25:$D$25=\"Date when costs incurred\",G40>0),0,'Individual Cost Statement'!$F$26))","v":0}," "," ",null,{"$f":"IF(I40>0,\" \",IF(AND('Individual Cost Statement'!$D$25:$D$25=\"Date when costs incurred\",G40>0),\"ENCODE Exchange rate !\",\" \"))","v":" "},null," "]
[34,null,null,null,null,null,null,null,{"$f":"IF(AND('Individual Cost Statement'!$D$25:$D$25=\"Not applicable (all costs in EURO)\",G41>0),1,IF(AND('Individual Cost Statement'!$D$25:$D$25=\"Date when costs incurred\",G41>0),0,'Individual Cost Statement'!$F$26))","v":0}," "," ",null,{"$f":"IF(I41>0,\" \",IF(AND('Individual Cost Statement'!$D$25:$D$25=\"Date when costs incurred\",G41>0),\"ENCODE Exchange rate !\",\" \"))","v":" "},null," "]
[35,null,null,null,null,null,null,null,{"$f":"IF(AND('Individual Cost Statement'!$D$25:$D$25=\"Not applicable (all costs in EURO)\",G42>0),1,IF(AND('Individual Cost Statement'!$D$25:$D$25=\"Date when costs incurred\",G42>0),0,'Individual Cost Statement'!$F$26))","v":0}," "," ",null,{"$f":"IF(I42>0,\" \",IF(AND('Individual Cost Statement'!$D$25:$D$25=\"Date when costs incurred\",G42>0),\"ENCODE Exchange rate !\",\" \"))","v":" "},null," "]
[36,null,null,null,null,null,null,null,{"$f":"IF(AND('Individual Cost Statement'!$D$25:$D$25=\"Not applicable (all costs in EURO)\",G43>0),1,IF(AND('Individual Cost Statement'!$D$25:$D$25=\"Date when costs incurred\",G43>0),0,'Individual Cost Statement'!$F$26))","v":0}," "," ",null,{"$f":"IF(I43>0,\" \",IF(AND('Individual Cost Statement'!$D$25:$D$25=\"Date when costs incurred\",G43>0),\"ENCODE Exchange rate !\",\" \"))","v":" "},null," "]
[37,null,null,null,null,null,null,null,{"$f":"IF(AND('Individual Cost Statement'!$D$25:$D$25=\"Not applicable (all costs in EURO)\",G44>0),1,IF(AND('Individual Cost Statement'!$D$25:$D$25=\"Date when costs incurred\",G44>0),0,'Individual Cost Statement'!$F$26))","v":0}," "," ",null,{"$f":"IF(I44>0,\" \",IF(AND('Individual Cost Statement'!$D$25:$D$25=\"Date when costs incurred\",G44>0),\"ENCODE Exchange rate !\",\" \"))","v":" "},null," "]
[38,null,null,null,null,null,null,null,{"$f":"IF(AND('Individual Cost Statement'!$D$25:$D$25=\"Not applicable (all costs in EURO)\",G45>0),1,IF(AND('Individual Cost Statement'!$D$25:$D$25=\"Date when costs incurred\",G45>0),0,'Individual Cost Statement'!$F$26))","v":0}," "," ",null,{"$f":"IF(I45>0,\" \",IF(AND('Individual Cost Statement'!$D$25:$D$25=\"Date when costs incurred\",G45>0),\"ENCODE Exchange rate !\",\" \"))","v":" "},null," "]
[39,null,null,null,null,null,null,null,{"$f":"IF(AND('Individual Cost Statement'!$D$25:$D$25=\"Not applicable (all costs in EURO)\",G46>0),1,IF(AND('Individual Cost Statement'!$D$25:$D$25=\"Date when costs incurred\",G46>0),0,'Individual Cost Statement'!$F$26))","v":0}," "," ",null,{"$f":"IF(I46>0,\" \",IF(AND('Individual Cost Statement'!$D$25:$D$25=\"Date when costs incurred\",G46>0),\"ENCODE Exchange rate !\",\" \"))","v":" "},null," "]
[40,null,null,null,null,null,null,null,{"$f":"IF(AND('Individual Cost Statement'!$D$25:$D$25=\"Not applicable (all costs in EURO)\",G47>0),1,IF(AND('Individual Cost Statement'!$D$25:$D$25=\"Date when costs incurred\",G47>0),0,'Individual Cost Statement'!$F$26))","v":0}," "," ",null,{"$f":"IF(I47>0,\" \",IF(AND('Individual Cost Statement'!$D$25:$D$25=\"Date when costs incurred\",G47>0),\"ENCODE Exchange rate !\",\" \"))","v":" "},null," "]
[41,null,null,null,null,null,null,null,{"$f":"IF(AND('Individual Cost Statement'!$D$25:$D$25=\"Not applicable (all costs in EURO)\",G48>0),1,IF(AND('Individual Cost Statement'!$D$25:$D$25=\"Date when costs incurred\",G48>0),0,'Individual Cost Statement'!$F$26))","v":0}," "," ",null,{"$f":"IF(I48>0,\" \",IF(AND('Individual Cost Statement'!$D$25:$D$25=\"Date when costs incurred\",G48>0),\"ENCODE Exchange rate !\",\" \"))","v":" "},null," "]
[42,null,null,null,null,null,null,null,{"$f":"IF(AND('Individual Cost Statement'!$D$25:$D$25=\"Not applicable (all costs in EURO)\",G49>0),1,IF(AND('Individual Cost Statement'!$D$25:$D$25=\"Date when costs incurred\",G49>0),0,'Individual Cost Statement'!$F$26))","v":0}," "," ",null,{"$f":"IF(I49>0,\" \",IF(AND('Individual Cost Statement'!$D$25:$D$25=\"Date when costs incurred\",G49>0),\"ENCODE Exchange rate !\",\" \"))","v":" "},null," "]
[43,null,null,null,null,null,null,null,{"$f":"IF(AND('Individual Cost Statement'!$D$25:$D$25=\"Not applicable (all costs in EURO)\",G50>0),1,IF(AND('Individual Cost Statement'!$D$25:$D$25=\"Date when costs incurred\",G50>0),0,'Individual Cost Statement'!$F$26))","v":0}," "," ",null,{"$f":"IF(I50>0,\" \",IF(AND('Individual Cost Statement'!$D$25:$D$25=\"Date when costs incurred\",G50>0),\"ENCODE Exchange rate !\",\" \"))","v":" "},null," "]
[44,null,null,null,null,null,null,null,{"$f":"IF(AND('Individual Cost Statement'!$D$25:$D$25=\"Not applicable (all costs in EURO)\",G51>0),1,IF(AND('Individual Cost Statement'!$D$25:$D$25=\"Date when costs incurred\",G51>0),0,'Individual Cost Statement'!$F$26))","v":0}," "," ",null,{"$f":"IF(I51>0,\" \",IF(AND('Individual Cost Statement'!$D$25:$D$25=\"Date when costs incurred\",G51>0),\"ENCODE Exchange rate !\",\" \"))","v":" "},null," "]
[45,null,null,null,null,null,null,null,{"$f":"IF(AND('Individual Cost Statement'!$D$25:$D$25=\"Not applicable (all costs in EURO)\",G52>0),1,IF(AND('Individual Cost Statement'!$D$25:$D$25=\"Date when costs incurred\",G52>0),0,'Individual Cost Statement'!$F$26))","v":0}," "," ",null,{"$f":"IF(I52>0,\" \",IF(AND('Individual Cost Statement'!$D$25:$D$25=\"Date when costs incurred\",G52>0),\"ENCODE Exchange rate !\",\" \"))","v":" "},null," "]
[46,null,null,null,null,null,null,null,{"$f":"IF(AND('Individual Cost Statement'!$D$25:$D$25=\"Not applicable (all costs in EURO)\",G53>0),1,IF(AND('Individual Cost Statement'!$D$25:$D$25=\"Date when costs incurred\",G53>0),0,'Individual Cost Statement'!$F$26))","v":0}," "," ",null,{"$f":"IF(I53>0,\" \",IF(AND('Individual Cost Statement'!$D$25:$D$25=\"Date when costs incurred\",G53>0),\"ENCODE Exchange rate !\",\" \"))","v":" "},null," "]
[47,null,null,null,null,null,null,null,{"$f":"IF(AND('Individual Cost Statement'!$D$25:$D$25=\"Not applicable (all costs in EURO)\",G54>0),1,IF(AND('Individual Cost Statement'!$D$25:$D$25=\"Date when costs incurred\",G54>0),0,'Individual Cost Statement'!$F$26))","v":0}," "," ",null,{"$f":"IF(I54>0,\" \",IF(AND('Individual Cost Statement'!$D$25:$D$25=\"Date when costs incurred\",G54>0),\"ENCODE Exchange rate !\",\" \"))","v":" "},null," "]
[48,null,null,null,null,null,null,null,{"$f":"IF(AND('Individual Cost Statement'!$D$25:$D$25=\"Not applicable (all costs in EURO)\",G55>0),1,IF(AND('Individual Cost Statement'!$D$25:$D$25=\"Date when costs incurred\",G55>0),0,'Individual Cost Statement'!$F$26))","v":0}," "," ",null,{"$f":"IF(I55>0,\" \",IF(AND('Individual Cost Statement'!$D$25:$D$25=\"Date when costs incurred\",G55>0),\"ENCODE Exchange rate !\",\" \"))","v":" "},null," "]
[49,null,null,null,null,null,null,null,{"$f":"IF(AND('Individual Cost Statement'!$D$25:$D$25=\"Not applicable (all costs in EURO)\",G56>0),1,IF(AND('Individual Cost Statement'!$D$25:$D$25=\"Date when costs incurred\",G56>0),0,'Individual Cost Statement'!$F$26))","v":0}," "," ",null,{"$f":"IF(I56>0,\" \",IF(AND('Individual Cost Statement'!$D$25:$D$25=\"Date when costs incurred\",G56>0),\"ENCODE Exchange rate !\",\" \"))","v":" "},null," "]
[50,null,null,null,null,null,null,null,{"$f":"IF(AND('Individual Cost Statement'!$D$25:$D$25=\"Not applicable (all costs in EURO)\",G57>0),1,IF(AND('Individual Cost Statement'!$D$25:$D$25=\"Date when costs incurred\",G57>0),0,'Individual Cost Statement'!$F$26))","v":0}," "," ",null,{"$f":"IF(I57>0,\" \",IF(AND('Individual Cost Statement'!$D$25:$D$25=\"Date when costs incurred\",G57>0),\"ENCODE Exchange rate !\",\" \"))","v":" "},null," "]
["Total",null,null,null,null,null,null,null,null,{"$f":"SUM(J8:INDIRECT(\"J\"&ROW()-1))","v":0},{"$f":"SUM(K8:INDIRECT(\"K\"&ROW()-1))","v":0}]
[]
[]
[]
[]
[]
["Explanation of the content of each Column"]
["PLEASE FILL-IN ONLY BLUE CELLS"]
["A","Sequential number of the entries."]
["B1","Date of invoice "]
["B2","Invoice number or reference number of another accounting document, with which the transaction is identified in the accounting system."]
["B3","Date of payment of the invoice"]
["C1","Name of the supplier - For beneficiaries declaring costs of affiliates in their individual statement, put here also a line with the name of the affiliate and include under column D4 & D5  the total consumable cost (with and without VAT) of the affiliate in EUR (according to its individual financial statement)"]
["C2","Description of the cost item. Please provide enough details in order to assess the eligibility of the cost item."]
["D1","Amount in national currency without VAT"]
["D2","Amount in national currency with non-recoverable VAT"]
["D3","If costs are reported in Euro, where beneficiary keeps its general accounts in Euro, no exchange rate to include"]
["D3","If the currency of the reported costs is not EURO, where beneficiary keeps its general accounts in a currency other than Euro and the exchange rate option chosen is \"1st day after the end of reporting period\", the monthly exchange rate encoded in the individual Costs statement sheet will be automatically inserted. "]
["D3","If the currency of the reported costs is not EURO, where beneficiary keeps its general accounts in a currency other than Euro and the exchange rate option chosen is the day when the costs incurred, please enter the monthly exchange rate published on the Commission website: http://ec.europa.eu/budget/contracts_grants/info_contracts/inforeuro/inforeuro_en.cfm."]
["D4","Invoiced amount in Euro with non-recoverable VAT"]
["D5","Invoiced amount in  in Euro with non-recoverable VAT"]
["E","Indicate which selection procedure have been used to select the supplier.\nFor public entities: public procurment rules\nFor private entities: direct award, multiple bids, open tender (for cost items >130.000), framework contract."]

{"sheet":"Other direct costs","index":11,"n_rows":79,"n_cols":15,"rows_kept":79,"cut":false,"hidden":false,"merged":[[0,8,0,10],[1,8,1,10],[2,8,2,10],[65,1,65,10],[57,0,57,8],[4,6,4,10],[0,2,0,4],[1,2,1,4],[2,2,2,4],[4,4,4,5],[78,1,78,11],[74,1,74,11],[75,1,75,11],[4,1,4,3],[63,0,63,11],[64,0,64,11],[69,1,69,11]]}
[null,"PROJECT Reference :",{"$f":"'Individual Cost Statement'!B3:B3","v":"LIFEXX XXX/XX/XXXXXX - ACRONYM"},null,null,null,"PERIOD (FROM) :",{"$f":"'Individual Cost Statement'!E3:E3","v":"00:00:00"},"OTHER DIRECT COSTS"]
[null,"COUNTRY :",{"$f":"'Individual Cost Statement'!B4:B4","v":"Austria"},null,null,null,"PERIOD (TO) :",{"$f":"'Individual Cost Statement'!E4:E4","v":"00:00:00"},"Amount WITH NON-recoverable VAT"]
[null,"Beneficiary: ",{"$f":"'Individual Cost Statement'!B6:B6","v":0},null,null,null,null,null,{"$f":"K58","v":0}]
[]
[null,"Details on cost item",null,null,"Info on cost item",null,"Calculation of the OTHER DIRECT costs",null,null,null,null,"Selection procedure"]
["A","B1","B2","B3","C1","C2","D1","D2","D3","D4","D5","E"]
["Seq n°","Date of invoice","Invoice number","Date of payment","Supplier","Description of cost item","Amount in national currency without VAT","Amount in national currency with non-recoverable VAT","Exchange rate","Amount in EURO\nwithout VAT","Amount in EURO \nwith non-recoverable VAT ","Applied selection procedure",null,null,"VAT\nCalculation"]
[{"$f":"ROW()-7","v":1},null,null,null,null,null,null,null,{"$f":"IF(AND('Individual Cost Statement'!$D$25:$D$25=\"Not applicable (all costs in EURO)\",G8>0),1,IF(AND('Individual Cost Statement'!$D$25:$D$25=\"Date when costs incurred\",G8>0),0,'Individual Cost Statement'!$F$26))","v":0},{"$f":"IF(AND(G8>0,I8>0),G8/I8,\" \")","v":" "},{"$f":"IF(AND(H8>0,I8>0),H8/I8,\" \")","v":" "},null,{"$f":"IF(I8>0,\" \",IF(AND('Individual Cost Statement'!$D$25:$D$25=\"Date when costs incurred\",G8>0),\"ENCODE Exchange rate !\",\" \"))","v":" "},null,{"$f":"IF(J8=\" \",\" \",K8-J8)","v":" "}]
[2,null,null,null,null,null,null,null,{"$f":"IF(AND('Individual Cost Statement'!$D$25:$D$25=\"Not applicable (all costs in EURO)\",G9>0),1,IF(AND('Individual Cost Statement'!$D$25:$D$25=\"Date when costs incurred\",G9>0),0,'Individual Cost Statement'!$F$26))","v":0},{"$f":"IF(AND(G9>0,I9>0),G9/I9,\" \")","v":" "},{"$f":"IF(AND(H9>0,I9>0),H9/I9,\" \")","v":" "},null,{"$f":"IF(I9>0,\" \",IF(AND('Individual Cost Statement'!$D$25:$D$25=\"Date when costs incurred\",G9>0),\"ENCODE Exchange rate !\",\" \"))","v":" "},null,{"$f":"IF(J9=\" \",\" \",K9-J9)","v":" "}]
[3,null,null,null,null,null,null,null,{"$f":"IF(AND('Individual Cost Statement'!$D$25:$D$25=\"Not applicable (all costs in EURO)\",G10>0),1,IF(AND('Individual Cost Statement'!$D$25:$D$25=\"Date when costs incurred\",G10>0),0,'Individual Cost Statement'!$F$26))","v":0}," "," ",null,{"$f":"IF(I10>0,\" \",IF(AND('Individual Cost Statement'!$D$25:$D$25=\"Date when costs incurred\",G10>0),\"ENCODE Exchange rate !\",\" \"))","v":" "},null," "]
[4,null,null,null,null,null,null,null,{"$f":"IF(AND('Individual Cost Statement'!$D$25:$D$25=\"Not applicable (all costs in EURO)\",G11>0),1,IF(AND('Individual Cost Statement'!$D$25:$D$25=\"Date when costs incurred\",G11>0),0,'Individual Cost Statement'!$F$26))","v":0},{"$f":"IF(AND(G11>0,I11>0),G11/I11,\" \")","v":" "},{"$f":"IF(AND(H11>0,I11>0),H11/I11,\" \")","v":" "},null,{"$f":"IF(I11>0,\" \",IF(AND('Individual Cost Statement'!$D$25:$D$25=\"Date when costs incurred\",G11>0),\"ENCODE Exchange rate !\",\" \"))","v":" "},null,{"$f":"IF(J11=\" \",\" \",K11-J11)","v":" "}]
[5,null,null,null,null,null,null,null,{"$f":"IF(AND('Individual Cost Statement'!$D$25:$D$25=\"Not applicable (all costs in EURO)\",G12>0),1,IF(AND('Individual Cost Statement'!$D$25:$D$25=\"Date when costs incurred\",G12>0),0,'Individual Cost Statement'!$F$26))","v":0}," "," ",null,{"$f":"IF(I12>0,\" \",IF(AND('Individual Cost Statement'!$D$25:$D$25=\"Date when costs incurred\",G12>0),\"ENCODE Exchange rate !\",\" \"))","v":" "},null," "]
[6,null,null,null,null,null,null,null,{"$f":"IF(AND('Individual Cost Statement'!$D$25:$D$25=\"Not applicable (all costs in EURO)\",G13>0),1,IF(AND('Individual Cost Statement'!$D$25:$D$25=\"Date when costs incurred\",G13>0),0,'Individual Cost Statement'!$F$26))","v":0}," "," ",null,{"$f":"IF(I13>0,\" \",IF(AND('Individual Cost Statement'!$D$25:$D$25=\"Date when costs incurred\",G13>0),\"ENCODE Exchange rate !\",\" \"))","v":" "},null," "]
[7,null,null,null,null,null,null,null,{"$f":"IF(AND('Individual Cost Statement'!$D$25:$D$25=\"Not applicable (all costs in EURO)\",G14>0),1,IF(AND('Individual Cost Statement'!$D$25:$D$25=\"Date when costs incurred\",G14>0),0,'Individual Cost Statement'!$F$26))","v":0}," "," ",null,{"$f":"IF(I14>0,\" \",IF(AND('Individual Cost Statement'!$D$25:$D$25=\"Date when costs incurred\",G14>0),\"ENCODE Exchange rate !\",\" \"))","v":" "},null," "]
[8,null,null,null,null,null,null,null,{"$f":"IF(AND('Individual Cost Statement'!$D$25:$D$25=\"Not applicable (all costs in EURO)\",G15>0),1,IF(AND('Individual Cost Statement'!$D$25:$D$25=\"Date when costs incurred\",G15>0),0,'Individual Cost Statement'!$F$26))","v":0}," "," ",null,{"$f":"IF(I15>0,\" \",IF(AND('Individual Cost Statement'!$D$25:$D$25=\"Date when costs incurred\",G15>0),\"ENCODE Exchange rate !\",\" \"))","v":" "},null," "]
[9,null,null,null,null,null,null,null,{"$f":"IF(AND('Individual Cost Statement'!$D$25:$D$25=\"Not applicable (all costs in EURO)\",G16>0),1,IF(AND('Individual Cost Statement'!$D$25:$D$25=\"Date when costs incurred\",G16>0),0,'Individual Cost Statement'!$F$26))","v":0}," "," ",null,{"$f":"IF(I16>0,\" \",IF(AND('Individual Cost Statement'!$D$25:$D$25=\"Date when costs incurred\",G16>0),\"ENCODE Exchange rate !\",\" \"))","v":" "},null," "]
[10,null,null,null,null,null,null,null,{"$f":"IF(AND('Individual Cost Statement'!$D$25:$D$25=\"Not applicable (all costs in EURO)\",G17>0),1,IF(AND('Individual Cost Statement'!$D$25:$D$25=\"Date when costs incurred\",G17>0),0,'Individual Cost Statement'!$F$26))","v":0}," "," ",null,{"$f":"IF(I17>0,\" \",IF(AND('Individual Cost Statement'!$D$25:$D$25=\"Date when costs incurred\",G17>0),\"ENCODE Exchange rate !\",\" \"))","v":" "},null," "]
[11,null,null,null,null,null,null,null,{"$f":"IF(AND('Individual Cost Statement'!$D$25:$D$25=\"Not applicable (all costs in EURO)\",G18>0),1,IF(AND('Individual Cost Statement'!$D$25:$D$25=\"Date when costs incurred\",G18>0),0,'Individual Cost Statement'!$F$26))","v":0}," "," ",null,{"$f":"IF(I18>0,\" \",IF(AND('Individual Cost Statement'!$D$25:$D$25=\"Date when costs incurred\",G18>0),\"ENCODE Exchange rate !\",\" \"))","v":" "},null," "]
[12,null,null,null,null,null,null,null,{"$f":"IF(AND('Individual Cost Statement'!$D$25:$D$25=\"Not applicable (all costs in EURO)\",G19>0),1,IF(AND('Individual Cost Statement'!$D$25:$D$25=\"Date when costs incurred\",G19>0),0,'Individual Cost Statement'!$F$26))","v":0}," "," ",null,{"$f":"IF(I19>0,\" \",IF(AND('Individual Cost Statement'!$D$25:$D$25=\"Date when costs incurred\",G19>0),\"ENCODE Exchange rate !\",\" \"))","v":" "},null," "]
[13,null,null,null,null,null,null,null,{"$f":"IF(AND('Individual Cost Statement'!$D$25:$D$25=\"Not applicable (all costs in EURO)\",G20>0),1,IF(AND('Individual Cost Statement'!$D$25:$D$25=\"Date when costs incurred\",G20>0),0,'Individual Cost Statement'!$F$26))","v":0}," "," ",null,{"$f":"IF(I20>0,\" \",IF(AND('Individual Cost Statement'!$D$25:$D$25=\"Date when costs incurred\",G20>0),\"ENCODE Exchange rate !\",\" \"))","v":" "},null," "]
[14,null,null,null,null,null,null,null,{"$f":"IF(AND('Individual Cost Statement'!$D$25:$D$25=\"Not applicable (all costs in EURO)\",G21>0),1,IF(AND('Individual Cost Statement'!$D$25:$D$25=\"Date when costs incurred\",G21>0),0,'Individual Cost Statement'!$F$26))","v":0}," "," ",null,{"$f":"IF(I21>0,\" \",IF(AND('Individual Cost Statement'!$D$25:$D$25=\"Date when costs incurred\",G21>0),\"ENCODE Exchange rate !\",\" \"))","v":" "},null," "]
[15,null,null,null,null,null,null,null,{"$f":"IF(AND('Individual Cost Statement'!$D$25:$D$25=\"Not applicable (all costs in EURO)\",G22>0),1,IF(AND('Individual Cost Statement'!$D$25:$D$25=\"Date when costs incurred\",G22>0),0,'Individual Cost Statement'!$F$26))","v":0}," "," ",null,{"$f":"IF(I22>0,\" \",IF(AND('Individual Cost Statement'!$D$25:$D$25=\"Date when costs incurred\",G22>0),\"ENCODE Exchange rate !\",\" \"))","v":" "},null," "]
[16,null,null,null,null,null,null,null,{"$f":"IF(AND('Individual Cost Statement'!$D$25:$D$25=\"Not applicable (all costs in EURO)\",G23>0),1,IF(AND('Individual Cost Statement'!$D$25:$D$25=\"Date when costs incurred\",G23>0),0,'Individual Cost Statement'!$F$26))","v":0}," "," ",null,{"$f":"IF(I23>0,\" \",IF(AND('Individual Cost Statement'!$D$25:$D$25=\"Date when costs incurred\",G23>0),\"ENCODE Exchange rate !\",\" \"))","v":" "},null," "]
[17,null,null,null,null,null,null,null,{"$f":"IF(AND('Individual Cost Statement'!$D$25:$D$25=\"Not applicable (all costs in EURO)\",G24>0),1,IF(AND('Individual Cost Statement'!$D$25:$D$25=\"Date when costs incurred\",G24>0),0,'Individual Cost Statement'!$F$26))","v":0}," "," ",null,{"$f":"IF(I24>0,\" \",IF(AND('Individual Cost Statement'!$D$25:$D$25=\"Date when costs incurred\",G24>0),\"ENCODE Exchange rate !\",\" \"))","v":" "},null," "]
[18,null,null,null,null,null,null,null,{"$f":"IF(AND('Individual Cost Statement'!$D$25:$D$25=\"Not applicable (all costs in EURO)\",G25>0),1,IF(AND('Individual Cost Statement'!$D$25:$D$25=\"Date when costs incurred\",G25>0),0,'Individual Cost Statement'!$F$26))","v":0}," "," ",null,{"$f":"IF(I25>0,\" \",IF(AND('Individual Cost Statement'!$D$25:$D$25=\"Date when costs incurred\",G25>0),\"ENCODE Exchange rate !\",\" \"))","v":" "},null," "]
[19,null,null,null,null,null,null,null,{"$f":"IF(AND('Individual Cost Statement'!$D$25:$D$25=\"Not applicable (all costs in EURO)\",G26>0),1,IF(AND('Individual Cost Statement'!$D$25:$D$25=\"Date when costs incurred\",G26>0),0,'Individual Cost Statement'!$F$26))","v":0}," "," ",null,{"$f":"IF(I26>0,\" \",IF(AND('Individual Cost Statement'!$D$25:$D$25=\"Date when costs incurred\",G26>0),\"ENCODE Exchange rate !\",\" \"))","v":" "},null," "]
[20,null,null,null,null,null,null,null,{"$f":"IF(AND('Individual Cost Statement'!$D$25:$D$25=\"Not applicable (all costs in EURO)\",G27>0),1,IF(AND('Individual Cost Statement'!$D$25:$D$25=\"Date when costs incurred\",G27>0),0,'Individual Cost Statement'!$F$26))","v":0}," "," ",null,{"$f":"IF(I27>0,\" \",IF(AND('Individual Cost Statement'!$D$25:$D$25=\"Date when costs incurred\",G27>0),\"ENCODE Exchange rate !\",\" \"))","v":" "},null," "]
[21,null,null,null,null,null,null,null,{"$f":"IF(AND('Individual Cost Statement'!$D$25:$D$25=\"Not applicable (all costs in EURO)\",G28>0),1,IF(AND('Individual Cost Statement'!$D$25:$D$25=\"Date when costs incurred\",G28>0),0,'Individual Cost Statement'!$F$26))","v":0}," "," ",null,{"$f":"IF(I28>0,\" \",IF(AND('Individual Cost Statement'!$D$25:$D$25=\"Date when costs incurred\",G28>0),\"ENCODE Exchange rate !\",\" \"))","v":" "},null," "]
[22,null,null,null,null,null,null,null,{"$f":"IF(AND('Individual Cost Statement'!$D$25:$D$25=\"Not applicable (all costs in EURO)\",G29>0),1,IF(AND('Individual Cost Statement'!$D$25:$D$25=\"Date when costs incurred\",G29>0),0,'Individual Cost Statement'!$F$26))","v":0}," "," ",null,{"$f":"IF(I29>0,\" \",IF(AND('Individual Cost Statement'!$D$25:$D$25=\"Date when costs incurred\",G29>0),\"ENCODE Exchange rate !\",\" \"))","v":" "},null," "]
[23,null,null,null,null,null,null,null,{"$f":"IF(AND('Individual Cost Statement'!$D$25:$D$25=\"Not applicable (all costs in EURO)\",G30>0),1,IF(AND('Individual Cost Statement'!$D$25:$D$25=\"Date when costs incurred\",G30>0),0,'Individual Cost Statement'!$F$26))","v":0}," "," ",null,{"$f":"IF(I30>0,\" \",IF(AND('Individual Cost Statement'!$D$25:$D$25=\"Date when costs incurred\",G30>0),\"ENCODE Exchange rate !\",\" \"))","v":" "},null," "]
[24,null,null,null,null,null,null,null,{"$f":"IF(AND('Individual Cost Statement'!$D$25:$D$25=\"Not applicable (all costs in EURO)\",G31>0),1,IF(AND('Individual Cost Statement'!$D$25:$D$25=\"Date when costs incurred\",G31>0),0,'Individual Cost Statement'!$F$26))","v":0}," "," ",null,{"$f":"IF(I31>0,\" \",IF(AND('Individual Cost Statement'!$D$25:$D$25=\"Date when costs incurred\",G31>0),\"ENCODE Exchange rate !\",\" \"))","v":" "},null," "]
[25,null,null,null,null,null,null,null,{"$f":"IF(AND('Individual Cost Statement'!$D$25:$D$25=\"Not applicable (all costs in EURO)\",G32>0),1,IF(AND('Individual Cost Statement'!$D$25:$D$25=\"Date when costs incurred\",G32>0),0,'Individual Cost Statement'!$F$26))","v":0}," "," ",null,{"$f":"IF(I32>0,\" \",IF(AND('Individual Cost Statement'!$D$25:$D$25=\"Date when costs incurred\",G32>0),\"ENCODE Exchange rate !\",\" \"))","v":" "},null," "]
[26,null,null,null,null,null,null,null,{"$f":"IF(AND('Individual Cost Statement'!$D$25:$D$25=\"Not applicable (all costs in EURO)\",G33>0),1,IF(AND('Individual Cost Statement'!$D$25:$D$25=\"Date when costs incurred\",G33>0),0,'Individual Cost Statement'!$F$26))","v":0}," "," ",null,{"$f":"IF(I33>0,\" \",IF(AND('Individual Cost Statement'!$D$25:$D$25=\"Date when costs incurred\",G33>0),\"ENCODE Exchange rate !\",\" \"))","v":" "},null," "]
[27,null,null,null,null,null,null,null,{"$f":"IF(AND('Individual Cost Statement'!$D$25:$D$25=\"Not applicable (all costs in EURO)\",G34>0),1,IF(AND('Individual Cost Statement'!$D$25:$D$25=\"Date when costs incurred\",G34>0),0,'Individual Cost Statement'!$F$26))","v":0}," "," ",null,{"$f":"IF(I34>0,\" \",IF(AND('Individual Cost Statement'!$D$25:$D$25=\"Date when costs incurred\",G34>0),\"ENCODE Exchange rate !\",\" \"))","v":" "},null," "]
[28,null,null,null,null,null,null,null,{"$f":"IF(AND('Individual Cost Statement'!$D$25:$D$25=\"Not applicable (all costs in EURO)\",G35>0),1,IF(AND('Individual Cost Statement'!$D$25:$D$25=\"Date when costs incurred\",G35>0),0,'Individual Cost Statement'!$F$26))","v":0}," "," ",null,{"$f":"IF(I35>0,\" \",IF(AND('Individual Cost Statement'!$D$25:$D$25=\"Date when costs incurred\",G35>0),\"ENCODE Exchange rate !\",\" \"))","v":" "},null," "]
[29,null,null,null,null,null,null,null,{"$f":"IF(AND('Individual Cost Statement'!$D$25:$D$25=\"Not applicable (all costs in EURO)\",G36>0),1,IF(AND('Individual Cost Statement'!$D$25:$D$25=\"Date when costs incurred\",G36>0),0,'Individual Cost Statement'!$F$26))","v":0}," "," ",null,{"$f":"IF(I36>0,\" \",IF(AND('Individual Cost Statement'!$D$25:$D$25=\"Date when costs incurred\",G36>0),\"ENCODE Exchange rate !\",\" \"))","v":" "},null," "]
[30,null,null,null,null,null,null,null,{"$f":"IF(AND('Individual Cost Statement'!$D$25:$D$25=\"Not applicable (all costs in EURO)\",G37>0),1,IF(AND('Individual Cost Statement'!$D$25:$D$25=\"Date when costs incurred\",G37>0),0,'Individual Cost Statement'!$F$26))","v":0}," "," ",null,{"$f":"IF(I37>0,\" \",IF(AND('Individual Cost Statement'!$D$25:$D$25=\"Date when costs incurred\",G37>0),\"ENCODE Exchange rate !\",\" \"))","v":" "},null," "]
[31,null,null,null,null,null,null,null,{"$f":"IF(AND('Individual Cost Statement'!$D$25:$D$25=\"Not applicable (all costs in EURO)\",G38>0),1,IF(AND('Individual Cost Statement'!$D$25:$D$25=\"Date when costs incurred\",G38>0),0,'Individual Cost Statement'!$F$26))","v":0}," "," ",null,{"$f":"IF(I38>0,\" \",IF(AND('Individual Cost Statement'!$D$25:$D$25=\"Date when costs incurred\",G38>0),\"ENCODE Exchange rate !\",\" \"))","v":" "},null," "]
[32,null,null,null,null,null,null,null,{"$f":"IF(AND('Individual Cost Statement'!$D$25:$D$25=\"Not applicable (all costs in EURO)\",G39>0),1,IF(AND('Individual Cost Statement'!$D$25:$D$25=\"Date when costs incurred\",G39>0),0,'Individual Cost Statement'!$F$26))","v":0}," "," ",null,{"$f":"IF(I39>0,\" \",IF(AND('Individual Cost Statement'!$D$25:$D$25=\"Date when costs incurred\",G39>0),\"ENCODE Exchange rate !\",\" \"))","v":" "},null," "]
[33,null,null,null,null,null,null,null,{"$f":"IF(AND('Individual Cost Statement'!$D$25:$D$25=\"Not applicable (all costs in EURO)\",G40>0),1,IF(AND('Individual Cost Statement'!$D$25:$D$25=\"Date when costs incurred\",G40>0),0,'Individual Cost Statement'!$F$26))","v":0}," "," ",null,{"$f":"IF(I40>0,\" \",IF(AND('Individual Cost Statement'!$D$25:$D$25=\"Date when costs incurred\",G40>0),\"ENCODE Exchange rate !\",\" \"))","v":" "},null," "]
[34,null,null,null,null,null,null,null,{"$f":"IF(AND('Individual Cost Statement'!$D$25:$D$25=\"Not applicable (all costs in EURO)\",G41>0),1,IF(AND('Individual Cost Statement'!$D$25:$D$25=\"Date when costs incurred\",G41>0),0,'Individual Cost Statement'!$F$26))","v":0}," "," ",null,{"$f":"IF(I41>0,\" \",IF(AND('Individual Cost Statement'!$D$25:$D$25=\"Date when costs incurred\",G41>0),\"ENCODE Exchange rate !\",\" \"))","v":" "},null," "]
[35,null,null,null,null,null,null,null,{"$f":"IF(AND('Individual Cost Statement'!$D$25:$D$25=\"Not applicable (all costs in EURO)\",G42>0),1,IF(AND('Individual Cost Statement'!$D$25:$D$25=\"Date when costs incurred\",G42>0),0,'Individual Cost Statement'!$F$26))","v":0}," "," ",null,{"$f":"IF(I42>0,\" \",IF(AND('Individual Cost Statement'!$D$25:$D$25=\"Date when costs incurred\",G42>0),\"ENCODE Exchange rate !\",\" \"))","v":" "},null," "]
[36,null,null,null,null,null,null,null,{"$f":"IF(AND('Individual Cost Statement'!$D$25:$D$25=\"Not applicable (all costs in EURO)\",G43>0),1,IF(AND('Individual Cost Statement'!$D$25:$D$25=\"Date when costs incurred\",G43>0),0,'Individual Cost Statement'!$F$26))","v":0}," "," ",null,{"$f":"IF(I43>0,\" \",IF(AND('Individual Cost Statement'!$D$25:$D$25=\"Date when costs incurred\",G43>0),\"ENCODE Exchange rate !\",\" \"))","v":" "},null," "]
[37,null,null,null,null,null,null,null,{"$f":"IF(AND('Individual Cost Statement'!$D$25:$D$25=\"Not applicable (all costs in EURO)\",G44>0),1,IF(AND('Individual Cost Statement'!$D$25:$D$25=\"Date when costs incurred\",G44>0),0,'Individual Cost Statement'!$F$26))","v":0}," "," ",null,{"$f":"IF(I44>0,\" \",IF(AND('Individual Cost Statement'!$D$25:$D$25=\"Date when costs incurred\",G44>0),\"ENCODE Exchange rate !\",\" \"))","v":" "},null," "]
[38,null,null,null,null,null,null,null,{"$f":"IF(AND('Individual Cost Statement'!$D$25:$D$25=\"Not applicable (all costs in EURO)\",G45>0),1,IF(AND('Individual Cost Statement'!$D$25:$D$25=\"Date when costs incurred\",G45>0),0,'Individual Cost Statement'!$F$26))","v":0}," "," ",null,{"$f":"IF(I45>0,\" \",IF(AND('Individual Cost Statement'!$D$25:$D$25=\"Date when costs incurred\",G45>0),\"ENCODE Exchange rate !\",\" \"))","v":" "},null," "]
[39,null,null,null,null,null,null,null,{"$f":"IF(AND('Individual Cost Statement'!$D$25:$D$25=\"Not applicable (all costs in EURO)\",G46>0),1,IF(AND('Individual Cost Statement'!$D$25:$D$25=\"Date when costs incurred\",G46>0),0,'Individual Cost Statement'!$F$26))","v":0}," "," ",null,{"$f":"IF(I46>0,\" \",IF(AND('Individual Cost Statement'!$D$25:$D$25=\"Date when costs incurred\",G46>0),\"ENCODE Exchange rate !\",\" \"))","v":" "},null," "]
[40,null,null,null,null,null,null,null,{"$f":"IF(AND('Individual Cost Statement'!$D$25:$D$25=\"Not applicable (all costs in EURO)\",G47>0),1,IF(AND('Individual Cost Statement'!$D$25:$D$25=\"Date when costs incurred\",G47>0),0,'Individual Cost Statement'!$F$26))","v":0}," "," ",null,{"$f":"IF(I47>0,\" \",IF(AND('Individual Cost Statement'!$D$25:$D$25=\"Date when costs incurred\",G47>0),\"ENCODE Exchange rate !\",\" \"))","v":" "},null," "]
[41,null,null,null,null,null,null,null,{"$f":"IF(AND('Individual Cost Statement'!$D$25:$D$25=\"Not applicable (all costs in EURO)\",G48>0),1,IF(AND('Individual Cost Statement'!$D$25:$D$25=\"Date when costs incurred\",G48>0),0,'Individual Cost Statement'!$F$26))","v":0}," "," ",null,{"$f":"IF(I48>0,\" \",IF(AND('Individual Cost Statement'!$D$25:$D$25=\"Date when costs incurred\",G48>0),\"ENCODE Exchange rate !\",\" \"))","v":" "},null," "]
[42,null,null,null,null,null,null,null,{"$f":"IF(AND('Individual Cost Statement'!$D$25:$D$25=\"Not applicable (all costs in EURO)\",G49>0),1,IF(AND('Individual Cost Statement'!$D$25:$D$25=\"Date when costs incurred\",G49>0),0,'Individual Cost Statement'!$F$26))","v":0}," "," ",null,{"$f":"IF(I49>0,\" \",IF(AND('Individual Cost Statement'!$D$25:$D$25=\"Date when costs incurred\",G49>0),\"ENCODE Exchange rate !\",\" \"))","v":" "},null," "]
[43,null,null,null,null,null,null,null,{"$f":"IF(AND('Individual Cost Statement'!$D$25:$D$25=\"Not applicable (all costs in EURO)\",G50>0),1,IF(AND('Individual Cost Statement'!$D$25:$D$25=\"Date when costs incurred\",G50>0),0,'Individual Cost Statement'!$F$26))","v":0}," "," ",null,{"$f":"IF(I50>0,\" \",IF(AND('Individual Cost Statement'!$D$25:$D$25=\"Date when costs incurred\",G50>0),\"ENCODE Exchange rate !\",\" \"))","v":" "},null," "]
[44,null,null,null,null,null,null,null,{"$f":"IF(AND('Individual Cost Statement'!$D$25:$D$25=\"Not applicable (all costs in EURO)\",G51>0),1,IF(AND('Individual Cost Statement'!$D$25:$D$25=\"Date when costs incurred\",G51>0),0,'Individual Cost Statement'!$F$26))","v":0}," "," ",null,{"$f":"IF(I51>0,\" \",IF(AND('Individual Cost Statement'!$D$25:$D$25=\"Date when costs incurred\",G51>0),\"ENCODE Exchange rate !\",\" \"))","v":" "},null," "]
[45,null,null,null,null,null,null,null,{"$f":"IF(AND('Individual Cost Statement'!$D$25:$D$25=\"Not applicable (all costs in EURO)\",G52>0),1,IF(AND('Individual Cost Statement'!$D$25:$D$25=\"Date when costs incurred\",G52>0),0,'Individual Cost Statement'!$F$26))","v":0}," "," ",null,{"$f":"IF(I52>0,\" \",IF(AND('Individual Cost Statement'!$D$25:$D$25=\"Date when costs incurred\",G52>0),\"ENCODE Exchange rate !\",\" \"))","v":" "},null," "]
[46,null,null,null,null,null,null,null,{"$f":"IF(AND('Individual Cost Statement'!$D$25:$D$25=\"Not applicable (all costs in EURO)\",G53>0),1,IF(AND('Individual Cost Statement'!$D$25:$D$25=\"Date when costs incurred\",G53>0),0,'Individual Cost Statement'!$F$26))","v":0}," "," ",null,{"$f":"IF(I53>0,\" \",IF(AND('Individual Cost Statement'!$D$25:$D$25=\"Date when costs incurred\",G53>0),\"ENCODE Exchange rate !\",\" \"))","v":" "},null," "]
[47,null,null,null,null,null,null,null,{"$f":"IF(AND('Individual Cost Statement'!$D$25:$D$25=\"Not applicable (all costs in EURO)\",G54>0),1,IF(AND('Individual Cost Statement'!$D$25:$D$25=\"Date when costs incurred\",G54>0),0,'Individual Cost Statement'!$F$26))","v":0}," "," ",null,{"$f":"IF(I54>0,\" \",IF(AND('Individual Cost Statement'!$D$25:$D$25=\"Date when costs incurred\",G54>0),\"ENCODE Exchange rate !\",\" \"))","v":" "},null," "]
[48,null,null,null,null,null,null,null,{"$f":"IF(AND('Individual Cost Statement'!$D$25:$D$25=\"Not applicable (all costs in EURO)\",G55>0),1,IF(AND('Individual Cost Statement'!$D$25:$D$25=\"Date when costs incurred\",G55>0),0,'Individual Cost Statement'!$F$26))","v":0}," "," ",null,{"$f":"IF(I55>0,\" \",IF(AND('Individual Cost Statement'!$D$25:$D$25=\"Date when costs incurred\",G55>0),\"ENCODE Exchange rate !\",\" \"))","v":" "},null," "]
[49,null,null,null,null,null,null,null,{"$f":"IF(AND('Individual Cost Statement'!$D$25:$D$25=\"Not applicable (all costs in EURO)\",G56>0),1,IF(AND('Individual Cost Statement'!$D$25:$D$25=\"Date when costs incurred\",G56>0),0,'Individual Cost Statement'!$F$26))","v":0}," "," ",null,{"$f":"IF(I56>0,\" \",IF(AND('Individual Cost Statement'!$D$25:$D$25=\"Date when costs incurred\",G56>0),\"ENCODE Exchange rate !\",\" \"))","v":" "},null," "]
[50,null,null,null,null,null,null,null,{"$f":"IF(AND('Individual Cost Statement'!$D$25:$D$25=\"Not applicable (all costs in EURO)\",G57>0),1,IF(AND('Individual Cost Statement'!$D$25:$D$25=\"Date when costs incurred\",G57>0),0,'Individual Cost Statement'!$F$26))","v":0}," "," ",null,{"$f":"IF(I57>0,\" \",IF(AND('Individual Cost Statement'!$D$25:$D$25=\"Date when costs incurred\",G57>0),\"ENCODE Exchange rate !\",\" \"))","v":" "},null," "]
["Total",null,null,null,null,null,null,null,null,{"$f":"SUM(J8:INDIRECT(\"J\"&ROW()-1))","v":0},{"$f":"SUM(K8:INDIRECT(\"K\"&ROW()-1))","v":0}]
[]
[]
[]
[]
[]
["Explanation of the content of each Column"]
["PLEASE FILL-IN ONLY BLUE CELLS"]
["A","Sequential number of the entries. In case additional rows are inserted, please re-number the rows"]
["B1","Date of invoice "]
["B2","Invoice number or reference number of another accounting document, with which the transaction is identified in the accounting system."]
["B3","Date of payment of the invoice"]
["C1","Name of the supplier - For beneficiaries declaring costs of affiliates in their individual statement, put here also a line with the name of the affiliate and include under column D4 & D5  the total other direct cost (with and without VAT) of the affiliate in EUR (according to its individual financial statement)"]
["C2","Description of the cost item. Please provide enough details in order to assess the eligibility of the cost item."]
["D1","Amount in national currency without VAT"]
["D2","Amount in national currency with non-recoverable VAT"]
["D3","If costs are reported in Euro, where beneficiary keeps its general accounts in Euro, no exchange rate to include"]
["D3","If the currency of the reported costs is not EURO, where beneficiary keeps its general accounts in a currency other than Euro and the exchange rate option chosen is \"1st day after the end of reporting period\", the monthly exchange rate encoded in the individual Costs statement sheet will be automatically inserted. "]
["D3","If the currency of the reported costs is not EURO, where beneficiary keeps its general accounts in a currency other than Euro and the exchange rate option chosen is the day when the costs incurred, please enter the monthly exchange rate published on the Commission website: http://ec.europa.eu/budget/contracts_grants/info_contracts/inforeuro/inforeuro_en.cfm."]
["D4","Invoiced amount in Euro without VAT"]
["D5","Invoiced amount in in Euro with non-recoverable VAT"]
["E","Indicate which selection procedure have been used to select the supplier.\nFor public entities: public procurment rules\nFor private entities: direct award, multiple bids, open tender (for cost items >130.000), framework contract."]

{"sheet":"Funding","index":12,"n_rows":47,"n_cols":7,"rows_kept":47,"cut":false,"hidden":false,"merged":[[14,1,14,5],[21,1,21,4],[2,2,2,4],[1,2,1,4],[0,2,0,4],[46,1,46,4],[34,1,34,5],[24,1,24,5],[4,1,4,5],[11,1,11,4],[31,1,31,4],[5,1,5,4],[6,1,6,4],[7,1,7,4],[8,1,8,4],[9,1,9,4],[10,1,10,4]]}
[null,"PROJECT Reference :",{"$f":"'Individual Cost Statement'!B3:B3","v":"LIFEXX XXX/XX/XXXXXX - ACRONYM"},null,null,"PERIOD (FROM) :",{"$f":"'Individual Cost Statement'!E3:E3","v":"00:00:00"}]
[null,"COUNTRY :",{"$f":"'Individual Cost Statement'!B4:B4","v":"Austria"},null,null,"PERIOD (TO) :",{"$f":"'Individual Cost Statement'!E4:E4","v":"00:00:00"}]
[null,"Beneficiary: ",{"$f":"'Individual Cost Statement'!B6:B6","v":0}]
[]
[null,"Requested Union Contribution"]
[null,{"$f":"IF(ISBLANK('Individual Cost Statement'!B7:B7),\" \", IF('Individual Cost Statement'!B7:B7=\"COORDINATING beneficiary\", \"List of payments received and expected from EC/EASME\",\"List of payments received and expected from the Coordinating Beneficiary\"))","v":"List of payments received and expected from EC/EASME"},null,null,null,"Amount of co-funding in €"]
[1]
[2]
[3]
[4]
[5]
[null,"Requested Union contribution",null,null,null,{"$f":"SUM(F7:F11)","v":0}]
[]
[]
[null,"Beneficiary's own contribution"]
[null,"Details","Amount in national currency","Year","Exchange rate","Amount of co-funding in €"]
[1,null,null,null,{"$f":"IF(AND('Individual Cost Statement'!$D$25:$D$25=\"Not applicable (all costs in EURO)\",C17>0),1,IF(AND('Individual Cost Statement'!$D$25:$D$25=\"Date when costs incurred\",C17>0),0,'Individual Cost Statement'!$F$26))","v":0},{"$f":"IF(C17<>0,C17/E17,\" \")","v":" "},{"$f":"IF(E17>0,\" \",IF(AND('Individual Cost Statement'!$D$25:$D$25=\"Date when costs incurred\",C17>0),\"ENCODE Exchange rate !\",\" \"))","v":" "}]
[2,null,null,null,{"$f":"IF(AND('Individual Cost Statement'!$D$25:$D$25=\"Not applicable (all costs in EURO)\",C18>0),1,IF(AND('Individual Cost Statement'!$D$25:$D$25=\"Date when costs incurred\",C18>0),0,'Individual Cost Statement'!$F$26))","v":0},{"$f":"IF(C18<>0,C18/E18,\" \")","v":" "},{"$f":"IF(E18>0,\" \",IF(AND('Individual Cost Statement'!$D$25:$D$25=\"Date when costs incurred\",C18>0),\"ENCODE Exchange rate !\",\" \"))","v":" "}]
[3,null,null,null,{"$f":"IF(AND('Individual Cost Statement'!$D$25:$D$25=\"Not applicable (all costs in EURO)\",C19>0),1,IF(AND('Individual Cost Statement'!$D$25:$D$25=\"Date when costs incurred\",C19>0),0,'Individual Cost Statement'!$F$26))","v":0},{"$f":"IF(C19<>0,C19/E19,\" \")","v":" "},{"$f":"IF(E19>0,\" \",IF(AND('Individual Cost Statement'!$D$25:$D$25=\"Date when costs incurred\",C19>0),\"ENCODE Exchange rate !\",\" \"))","v":" "}]
[4,null,null,null,{"$f":"IF(AND('Individual Cost Statement'!$D$25:$D$25=\"Not applicable (all costs in EURO)\",C20>0),1,IF(AND('Individual Cost Statement'!$D$25:$D$25=\"Date when costs incurred\",C20>0),0,'Individual Cost Statement'!$F$26))","v":0},{"$f":"IF(C20<>0,C20/E20,\" \")","v":" "},{"$f":"IF(E20>0,\" \",IF(AND('Individual Cost Statement'!$D$25:$D$25=\"Date when costs incurred\",C20>0),\"ENCODE Exchange rate !\",\" \"))","v":" "}]
[5,null,null,null,{"$f":"IF(AND('Individual Cost Statement'!$D$25:$D$25=\"Not applicable (all costs in EURO)\",C21>0),1,IF(AND('Individual Cost Statement'!$D$25:$D$25=\"Date when costs incurred\",C21>0),0,'Individual Cost Statement'!$F$26))","v":0},{"$f":"IF(C21<>0,C21/E21,\" \")","v":" "},{"$f":"IF(E21>0,\" \",IF(AND('Individual Cost Statement'!$D$25:$D$25=\"Date when costs incurred\",C21>0),\"ENCODE Exchange rate !\",\" \"))","v":" "}]
[null,"Total  Beneficiary's own contribution",null,null,null,{"$f":"SUM(F17:F21)","v":0}]
[]
[]
[null,"Co-financer's contribution"]
[null,"Name of co-financer","Amount in national currency","Year","Exchange rate","Amount of co-funding in €"]
[1,null,null,null,{"$f":"IF(AND('Individual Cost Statement'!$D$25:$D$25=\"Not applicable (all costs in EURO)\",C27>0),1,IF(AND('Individual Cost Statement'!$D$25:$D$25=\"Date when costs incurred\",C27>0),0,'Individual Cost Statement'!$F$26))","v":0},{"$f":"IF(C27<>0,C27/E27,\" \")","v":" "},{"$f":"IF(E27>0,\" \",IF(AND('Individual Cost Statement'!$D$25:$D$25=\"Date when costs incurred\",C27>0),\"ENCODE Exchange rate !\",\" \"))","v":" "}]
[2,null,null,null,{"$f":"IF(AND('Individual Cost Statement'!$D$25:$D$25=\"Not applicable (all costs in EURO)\",C28>0),1,IF(AND('Individual Cost Statement'!$D$25:$D$25=\"Date when costs incurred\",C28>0),0,'Individual Cost Statement'!$F$26))","v":0},{"$f":"IF(C28<>0,C28/E28,\" \")","v":" "},{"$f":"IF(E28>0,\" \",IF(AND('Individual Cost Statement'!$D$25:$D$25=\"Date when costs incurred\",C28>0),\"ENCODE Exchange rate !\",\" \"))","v":" "}]
[3,null,null,null,{"$f":"IF(AND('Individual Cost Statement'!$D$25:$D$25=\"Not applicable (all costs in EURO)\",C29>0),1,IF(AND('Individual Cost Statement'!$D$25:$D$25=\"Date when costs incurred\",C29>0),0,'Individual Cost Statement'!$F$26))","v":0},{"$f":"IF(C29<>0,C29/E29,\" \")","v":" "},{"$f":"IF(E29>0,\" \",IF(AND('Individual Cost Statement'!$D$25:$D$25=\"Date when costs incurred\",C29>0),\"ENCODE Exchange rate !\",\" \"))","v":" "}]
[4,null,null,null,{"$f":"IF(AND('Individual Cost Statement'!$D$25:$D$25=\"Not applicable (all costs in EURO)\",C30>0),1,IF(AND('Individual Cost Statement'!$D$25:$D$25=\"Date when costs incurred\",C30>0),0,'Individual Cost Statement'!$F$26))","v":0},{"$f":"IF(C30<>0,C30/E30,\" \")","v":" "},{"$f":"IF(E30>0,\" \",IF(AND('Individual Cost Statement'!$D$25:$D$25=\"Date when costs incurred\",C30>0),\"ENCODE Exchange rate !\",\" \"))","v":" "}]
[5,null,null,null,{"$f":"IF(AND('Individual Cost Statement'!$D$25:$D$25=\"Not applicable (all costs in EURO)\",C31>0),1,IF(AND('Individual Cost Statement'!$D$25:$D$25=\"Date when costs incurred\",C31>0),0,'Individual Cost Statement'!$F$26))","v":0},{"$f":"IF(C31<>0,C31/E31,\" \")","v":" "},{"$f":"IF(E31>0,\" \",IF(AND('Individual Cost Statement'!$D$25:$D$25=\"Date when costs incurred\",C31>0),\"ENCODE Exchange rate !\",\" \"))","v":" "}]
[null,"Total funding from co-financers",null,null,null,{"$f":"SUM(F27:F31)","v":0}]
[]
[]
[null,"Direct income of the project"]
[null,"Description of the direct income","Amount in national currency","Year","Exchange rate","Amount in €"]
[1,null,null,null,{"$f":"IF(AND('Individual Cost Statement'!$D$25:$D$25=\"Not applicable (all costs in EURO)\",C37>0),1,IF(AND('Individual Cost Statement'!$D$25:$D$25=\"Date when costs incurred\",C37>0),0,'Individual Cost Statement'!$F$26))","v":0},{"$f":"IF(C37<>0,C37/E37,\" \")","v":" "},{"$f":"IF(E37>0,\" \",IF(AND('Individual Cost Statement'!$D$25:$D$25=\"Date when costs incurred\",C37>0),\"ENCODE Exchange rate !\",\" \"))","v":" "}]
[2,null,null,null,{"$f":"IF(AND('Individual Cost Statement'!$D$25:$D$25=\"Not applicable (all costs in EURO)\",C38>0),1,IF(AND('Individual Cost Statement'!$D$25:$D$25=\"Date when costs incurred\",C38>0),0,'Individual Cost Statement'!$F$26))","v":0},{"$f":"IF(C38<>0,C38/E38,\" \")","v":" "},{"$f":"IF(E38>0,\" \",IF(AND('Individual Cost Statement'!$D$25:$D$25=\"Date when costs incurred\",C38>0),\"ENCODE Exchange rate !\",\" \"))","v":" "}]
[3,null,null,null,{"$f":"IF(AND('Individual Cost Statement'!$D$25:$D$25=\"Not applicable (all costs in EURO)\",C39>0),1,IF(AND('Individual Cost Statement'!$D$25:$D$25=\"Date when costs incurred\",C39>0),0,'Individual Cost Statement'!$F$26))","v":0},{"$f":"IF(C39<>0,C39/E39,\" \")","v":" "},{"$f":"IF(E39>0,\" \",IF(AND('Individual Cost Statement'!$D$25:$D$25=\"Date when costs incurred\",C39>0),\"ENCODE Exchange rate !\",\" \"))","v":" "}]
[4,null,null,null,{"$f":"IF(AND('Individual Cost Statement'!$D$25:$D$25=\"Not applicable (all costs in EURO)\",C40>0),1,IF(AND('Individual Cost Statement'!$D$25:$D$25=\"Date when costs incurred\",C40>0),0,'Individual Cost Statement'!$F$26))","v":0}," ",{"$f":"IF(E40>0,\" \",IF(AND('Individual Cost Statement'!$D$25:$D$25=\"Date when costs incurred\",C40>0),\"ENCODE Exchange rate !\",\" \"))","v":" "}]
[5,null,null,null,{"$f":"IF(AND('Individual Cost Statement'!$D$25:$D$25=\"Not applicable (all costs in EURO)\",C41>0),1,IF(AND('Individual Cost Statement'!$D$25:$D$25=\"Date when costs incurred\",C41>0),0,'Individual Cost Statement'!$F$26))","v":0}," ",{"$f":"IF(E41>0,\" \",IF(AND('Individual Cost Statement'!$D$25:$D$25=\"Date when costs incurred\",C41>0),\"ENCODE Exchange rate !\",\" \"))","v":" "}]
[6,null,null,null,{"$f":"IF(AND('Individual Cost Statement'!$D$25:$D$25=\"Not applicable (all costs in EURO)\",C42>0),1,IF(AND('Individual Cost Statement'!$D$25:$D$25=\"Date when costs incurred\",C42>0),0,'Individual Cost Statement'!$F$26))","v":0}," ",{"$f":"IF(E42>0,\" \",IF(AND('Individual Cost Statement'!$D$25:$D$25=\"Date when costs incurred\",C42>0),\"ENCODE Exchange rate !\",\" \"))","v":" "}]
[7,null,null,null,{"$f":"IF(AND('Individual Cost Statement'!$D$25:$D$25=\"Not applicable (all costs in EURO)\",C43>0),1,IF(AND('Individual Cost Statement'!$D$25:$D$25=\"Date when costs incurred\",C43>0),0,'Individual Cost Statement'!$F$26))","v":0}," ",{"$f":"IF(E43>0,\" \",IF(AND('Individual Cost Statement'!$D$25:$D$25=\"Date when costs incurred\",C43>0),\"ENCODE Exchange rate !\",\" \"))","v":" "}]
[8,null,null,null,{"$f":"IF(AND('Individual Cost Statement'!$D$25:$D$25=\"Not applicable (all costs in EURO)\",C44>0),1,IF(AND('Individual Cost Statement'!$D$25:$D$25=\"Date when costs incurred\",C44>0),0,'Individual Cost Statement'!$F$26))","v":0},{"$f":"IF(C44<>0,C44/E44,\" \")","v":" "},{"$f":"IF(E44>0,\" \",IF(AND('Individual Cost Statement'!$D$25:$D$25=\"Date when costs incurred\",C44>0),\"ENCODE Exchange rate !\",\" \"))","v":" "}]
[9,null,null,null,{"$f":"IF(AND('Individual Cost Statement'!$D$25:$D$25=\"Not applicable (all costs in EURO)\",C45>0),1,IF(AND('Individual Cost Statement'!$D$25:$D$25=\"Date when costs incurred\",C45>0),0,'Individual Cost Statement'!$F$26))","v":0},{"$f":"IF(C45<>0,C45/E45,\" \")","v":" "},{"$f":"IF(E45>0,\" \",IF(AND('Individual Cost Statement'!$D$25:$D$25=\"Date when costs incurred\",C45>0),\"ENCODE Exchange rate !\",\" \"))","v":" "}]
[10,null,null,null,{"$f":"IF(AND('Individual Cost Statement'!$D$25:$D$25=\"Not applicable (all costs in EURO)\",C46>0),1,IF(AND('Individual Cost Statement'!$D$25:$D$25=\"Date when costs incurred\",C46>0),0,'Individual Cost Statement'!$F$26))","v":0},{"$f":"IF(C46<>0,C46/E46,\" \")","v":" "},{"$f":"IF(E46>0,\" \",IF(AND('Individual Cost Statement'!$D$25:$D$25=\"Date when costs incurred\",C46>0),\"ENCODE Exchange rate !\",\" \"))","v":" "}]
[null,"Total 'Direct income'",null,null,null,{"$f":"SUM(F37:F46)","v":0}]

{"sheet":"Certificate_NATURE_projects","index":13,"n_rows":16,"n_cols":4,"rows_kept":16,"cut":false,"hidden":true,"merged":[[5,0,5,2],[5,3,5,7],[6,3,6,7],[0,0,0,7],[2,0,2,2],[2,3,2,7],[3,0,3,2],[3,3,3,7],[6,0,6,2],[10,0,10,7],[11,0,11,2],[11,3,11,7],[8,0,8,7],[15,0,15,2],[15,3,15,7],[12,0,12,2],[12,3,12,7],[13,0,13,2],[13,3,13,7],[14,0,14,2],[14,3,14,7]]}
["Beneficiary's Certificate for NATURE and BIODIVERSITY Projects"]
[]
["Project reference",null,null,{"$f":"'Individual Cost Statement'!B3:B3","v":"LIFEXX XXX/XX/XXXXXX - ACRONYM"}]
["Full name of beneficiary",null,null,{"$f":"'Individual Cost Statement'!B6:B6","v":0}]
[]
["PERIOD (FROM) :",null,null,{"$f":"'Individual Cost Statement'!E3:E3","v":"00:00:00"}]
["PERIOD (TO) :",null,null,{"$f":"'Individual Cost Statement'!E4:E4","v":"00:00:00"}]
[]
["We certify that the durable goods purchased/manufactured for the project, during the project period and for which the life-expectancy is longer than that of the project, will in the future be used exclusively for nature conservation activities"]
[]
["Legal / Statutory representative"]
["Name:"]
["Title:"]
["Function:"]
["Date:"]
["Signature:"]

{"sheet":"Certificate_INTEGRATED_projects","index":14,"n_rows":16,"n_cols":4,"rows_kept":16,"cut":false,"hidden":true,"merged":[[5,0,5,2],[5,3,5,7],[0,0,0,7],[2,0,2,2],[2,3,2,7],[3,0,3,2],[3,3,3,7],[6,0,6,2],[6,3,6,7],[8,0,8,7],[10,0,10,7],[11,0,11,2],[11,3,11,7],[15,0,15,2],[15,3,15,7],[12,0,12,2],[12,3,12,7],[13,0,13,2],[13,3,13,7],[14,0,14,2],[14,3,14,7]]}
["Beneficiary's Certificate for INTEGRATED Projects"]
[]
["Project reference",null,null,{"$f":"'Individual Cost Statement'!B3:B3","v":"LIFEXX XXX/XX/XXXXXX - ACRONYM"}]
["Full name of beneficiary",null,null,{"$f":"'Individual Cost Statement'!B6:B6","v":0}]
[]
["PERIOD (FROM) :",null,null,{"$f":"'Individual Cost Statement'!E3:E3","v":"00:00:00"}]
["PERIOD (TO) :",null,null,{"$f":"'Individual Cost Statement'!E4:E4","v":"00:00:00"}]
[]
["We certify that the durable goods purchased/manufactured for the project, during the project period and for which the life-expectancy is longer than that of the project, will in the future be definitively assigned to activities implementing the targeted plan beyond the end of the integrated project."]
[]
["Legal / Statutory representative"]
["Name:"]
["Title:"]
["Function:"]
["Date:"]
["Signature:"]

{"sheet":"VAT_Calculation","index":15,"n_rows":23,"n_cols":3,"rows_kept":23,"cut":false,"hidden":true,"merged":[[8,1,8,2]]}
[null,"PROJECT Reference :",{"$f":"'Individual Cost Statement'!B3:B3","v":"LIFEXX XXX/XX/XXXXXX - ACRONYM"}]
[null,"COUNTRY :",{"$f":"'Individual Cost Statement'!B4:B4","v":"Austria"}]
[null,"Beneficiary: ",{"$f":"'Individual Cost Statement'!B6:B6","v":0}]
[]
[null,"PERIOD (FROM) :",{"$f":"'Individual Cost Statement'!E3:E3","v":"00:00:00"}]
[null,"PERIOD (TO) :",{"$f":"'Individual Cost Statement'!E4:E4","v":"00:00:00"}]
[]
[]
[null,"Non-recoverable VAT"]
[null,"PERSONNEL",{"$f":"SUM(C11:C12)","v":0}]
[null,"Personnel_EMPLOYEES"]
[null,"Personnel_NON_EMPLOYEES",{"$f":"SUM(Personnel_NON_EMPLOYEES!U:U)","v":0}]
[null,"TRAVEL",{"$f":"SUM(Travel!T:T)","v":0}]
[null,"EXTERNAL ASSISTANCE",{"$f":"SUM('External assistance'!Q:Q)","v":0}]
[null,"Durable goods - INFRASTRUCTURE",{"$f":"SUM(Infrastructure!S:S)","v":0}]
[null,"Durable goods - EQUIPMENT",{"$f":"SUM(Equipment!S:S)","v":0}]
[null,"Durable goods - PROTOTYPES",{"$f":"SUM(Prototype!O:O)","v":0}]
[null,"LAND PURCHASE/ONE-OFF COMPENSATION",{"$f":"SUM(C19:C20)","v":0}]
[null,"Land Purchase",{"$f":"SUM(Land_purchase!U:U)","v":0}]
[null,"Lease of Land, one-off compensation",{"$f":"SUM(Land_Lease_Compensation!U:U)","v":0}]
[null,"CONSUMABLES",{"$f":"SUM(Consumables!O:O)","v":0}]
[null,"OTHER direct costs",{"$f":"SUM('Other direct costs'!O:O)","v":0}]
[null,"TOTAL",{"$f":"SUM(C10,C13:C18,C21:C22)","v":0}]

{"sheet":"LISTS","index":16,"n_rows":167,"n_cols":15,"rows_kept":167,"cut":false,"hidden":true,"merged":[]}
["Austria","AT",null,null,null,"Code","Currency",null,null,null,"Procurement procedure",null,null,null,"Strand types"]
["Belgium","BE",null,null,null,null,null,null,null,null,"Publ. Procuremt-direct award",null,null,null,"CAPACITY BUILDING - CAP"]
["Bulgaria","BG",null,null,null,"EUR","Euro",null,null,null,"Publ. Procuremt-negotiated procedure",null,null,null,"CLIMA - CCA"]
["Croatia","HR",null,null,null,null,null,null,null,null,"Publ. Procuremt-restricted procedure",null,null,null,"CLIMA - CCM"]
["Cyprus","CY",null,null,null,"BGN","Bulgarian lev",null,null,null,"Publ. Procuremt-open procedure",null,null,null,"CLIMA - GIC"]
["Czech Republic","CZ",null,null,null,"CZK","Czech koruna",null,null,null,"Direct award",null,null,null,"ENVIRONMENT - ENV"]
["Denmark","DK",null,null,null,"DKK","Danish krone",null,null,null,"Multiple bids",null,null,null,"ENVIRONMENT - GIE"]
["Estonia","EE",null,null,null,"GBP","Pound sterling",null,null,null,"Open tender",null,null,null,"ENVIRONMENT - NAT"]
["Finland","FI",null,null,null,"HRK","Croatian kuna",null,null,null,"Framework contract",null,null,null,"TECHNICAL ASSISTANCE - TA"]
["France","FR",null,null,null,"HUF","Hungarian forint",null,null,null,null,null,null,null,"INTEGRATED PROJECT - IP"]
["Germany","DE",null,null,null,"PLN","Polish złoty"]
["Greece","EL",null,null,null,"RON","Romanian leu"]
["Hungary","HU",null,null,null,"SEK","Swedish krona/kronor"]
["Ireland","IE"]
["Italy","IT",null,null,null,"ALL","Albanian lek"]
["Latvia","LV",null,null,null,"CHF","Swiss franc"]
["Lithuania","LT",null,null,null,"ISK","Icelandic króna"]
["Luxembourg","LU",null,null,null,"NOK","Norwegian krone"]
["Malta","MT",null,null,null,"RSD","Serbian dinar"]
["Netherlands","NL",null,null,null,"TRY","Turkish lira"]
["Poland","PL"]
["Portugal","PT",null,null,null,"AED","United Arab Emirates dirham"]
["Romania","RO",null,null,null,"AFN","Afghan afghani"]
["Slovakia","SK",null,null,null,"AMD","Armenian dram"]
["Slovenia","SI",null,null,null,"ANG","Netherlands Antillean guilder"]
["Spain","ES",null,null,null,"AOA","Angolan kwanza"]
["Sweden","SE",null,null,null,"ARS","Argentine peso"]
["United Kingdom","UK",null,null,null,"AUD","Australian dollar"]
["Albania","AL",null,null,null,"AWG","Aruban florin"]
["Iceland","IS",null,null,null,"AZN","Azerbaijani manat"]
["Liechtenstein","LI",null,null,null,"BAM","Bosnia and Herzegovina convertible mark"]
["Montenegro","ME",null,null,null,"BBD","Barbados dollar"]
["Norway","NO",null,null,null,"BDT","Bangladeshi taka"]
["Serbia","RS",null,null,null,"BHD","Bahraini dinar"]
["Switzerland","CH",null,null,null,"BIF","Burundian franc"]
["Turkey","TR",null,null,null,"BMD","Bermudian dollar"]
[null,null,null,null,null,"BND","Brunei dollar"]
[null,null,null,null,null,"BOB","Boliviano"]
[null,null,null,null,null,"BOV","Bolivian Mvdol (funds code)"]
[null,null,null,null,null,"BRL","Brazilian real"]
[null,null,null,null,null,"BSD","Bahamian dollar"]
[null,null,null,null,null,"BTN","Bhutanese ngultrum"]
[null,null,null,null,null,"BWP","Botswana pula"]
[null,null,null,null,null,"BYR","Belarusian ruble"]
[null,null,null,null,null,"BZD","Belize dollar"]
[null,null,null,null,null,"CAD","Canadian dollar"]
[null,null,null,null,null,"CDF","Congolese franc"]
[null,null,null,null,null,"CLF","Unidad de Fomento (funds code)"]
[null,null,null,null,null,"CLP","Chilean peso"]
[null,null,null,null,null,"CNY","Chinese yuan"]
[null,null,null,null,null,"COP","Colombian peso"]
[null,null,null,null,null,"COU","Unidad de Valor Real (UVR) (funds code)[7]"]
[null,null,null,null,null,"CRC","Costa Rican colon"]
[null,null,null,null,null,"CUC","Cuban convertible peso"]
[null,null,null,null,null,"CUP","Cuban peso"]
[null,null,null,null,null,"CVE","Cape Verde escudo"]
[null,null,null,null,null,"DJF","Djiboutian franc"]
[null,null,null,null,null,"DOP","Dominican peso"]
[null,null,null,null,null,"DZD","Algerian dinar"]
[null,null,null,null,null,"EGP","Egyptian pound"]
[null,null,null,null,null,"ERN","Eritrean nakfa"]
[null,null,null,null,null,"ETB","Ethiopian birr"]
[null,null,null,null,null,"FJD","Fiji dollar"]
[null,null,null,null,null,"FKP","Falkland Islands pound"]
[null,null,null,null,null,"GEL","Georgian lari"]
[null,null,null,null,null,"GHS","Ghanaian cedi"]
[null,null,null,null,null,"GIP","Gibraltar pound"]
[null,null,null,null,null,"GMD","Gambian dalasi"]
[null,null,null,null,null,"GNF","Guinean franc"]
[null,null,null,null,null,"GTQ","Guatemalan quetzal"]
[null,null,null,null,null,"GYD","Guyanese dollar"]
[null,null,null,null,null,"HKD","Hong Kong dollar"]
[null,null,null,null,null,"HNL","Honduran lempira"]
[null,null,null,null,null,"HTG","Haitian gourde"]
[null,null,null,null,null,"IDR","Indonesian rupiah"]
[null,null,null,null,null,"ILS","Israeli new shekel"]
[null,null,null,null,null,"INR","Indian rupee"]
[null,null,null,null,null,"IQD","Iraqi dinar"]
[null,null,null,null,null,"IRR","Iranian rial"]
[null,null,null,null,null,"JMD","Jamaican dollar"]
[null,null,null,null,null,"JOD","Jordanian dinar"]
[null,null,null,null,null,"JPY","Japanese yen"]
[null,null,null,null,null,"KES","Kenyan shilling"]
[null,null,null,null,null,"KGS","Kyrgyzstani som"]
[null,null,null,null,null,"KHR","Cambodian riel"]
[null,null,null,null,null,"KMF","Comoro franc"]
[null,null,null,null,null,"KPW","North Korean won"]
[null,null,null,null,null,"KRW","South Korean won"]
[null,null,null,null,null,"KWD","Kuwaiti dinar"]
[null,null,null,null,null,"KYD","Cayman Islands dollar"]
[null,null,null,null,null,"KZT","Kazakhstani tenge"]
[null,null,null,null,null,"LAK","Lao kip"]
[null,null,null,null,null,"LBP","Lebanese pound"]
[null,null,null,null,null,"LKR","Sri Lankan rupee"]
[null,null,null,null,null,"LRD","Liberian dollar"]
[null,null,null,null,null,"LSL","Lesotho loti"]
[null,null,null,null,null,"LYD","Libyan dinar"]
[null,null,null,null,null,"MAD","Moroccan dirham"]
[null,null,null,null,null,"MDL","Moldovan leu"]
[null,null,null,null,null,"MGA","Malagasy ariary"]
[null,null,null,null,null,"MKD","Macedonian denar"]
[null,null,null,null,null,"MMK","Myanmar kyat"]
[null,null,null,null,null,"MNT","Mongolian tögrög"]
[null,null,null,null,null,"MOP","Macanese pataca"]
[null,null,null,null,null,"MRO","Mauritanian ouguiya"]
[null,null,null,null,null,"MUR","Mauritian rupee"]
[null,null,null,null,null,"MVR","Maldivian rufiyaa"]
[null,null,null,null,null,"MWK","Malawian kwacha"]
[null,null,null,null,null,"MXN","Mexican peso"]
[null,null,null,null,null,"MXV","Mexican Unidad de Inversion (UDI) (funds code)"]
[null,null,null,null,null,"MYR","Malaysian ringgit"]
[null,null,null,null,null,"MZN","Mozambican metical"]
[null,null,null,null,null,"NAD","Namibian dollar"]
[null,null,null,null,null,"NGN","Nigerian naira"]
[null,null,null,null,null,"NIO","Nicaraguan córdoba"]
[null,null,null,null,null,"NPR","Nepalese rupee"]
[null,null,null,null,null,"NZD","New Zealand dollar"]
[null,null,null,null,null,"OMR","Omani rial"]
[null,null,null,null,null,"PAB","Panamanian balboa"]
[null,null,null,null,null,"PEN","Peruvian nuevo sol"]
[null,null,null,null,null,"PGK","Papua New Guinean kina"]
[null,null,null,null,null,"PHP","Philippine peso"]
[null,null,null,null,null,"PKR","Pakistani rupee"]
[null,null,null,null,null,"PYG","Paraguayan guaraní"]
[null,null,null,null,null,"QAR","Qatari riyal"]
[null,null,null,null,null,"RUB","Russian ruble"]
[null,null,null,null,null,"RWF","Rwandan franc"]
[null,null,null,null,null,"SAR","Saudi riyal"]
[null,null,null,null,null,"SBD","Solomon Islands dollar"]
[null,null,null,null,null,"SCR","Seychelles rupee"]
[null,null,null,null,null,"SDG","Sudanese pound"]
[null,null,null,null,null,"SGD","Singapore dollar"]
[null,null,null,null,null,"SHP","Saint Helena pound"]
[null,null,null,null,null,"SLL","Sierra Leonean leone"]
[null,null,null,null,null,"SOS","Somali shilling"]
[null,null,null,null,null,"SRD","Surinamese dollar"]
[null,null,null,null,null,"SSP","South Sudanese pound"]
[null,null,null,null,null,"STD","São Tomé and Príncipe dobra"]
[null,null,null,null,null,"SYP","Syrian pound"]
[null,null,null,null,null,"SZL","Swazi lilangeni"]
[null,null,null,null,null,"THB","Thai baht"]
[null,null,null,null,null,"TJS","Tajikistani somoni"]
[null,null,null,null,null,"TMT","Turkmenistani manat"]
[null,null,null,null,null,"TND","Tunisian dinar"]
[null,null,null,null,null,"TOP","Tongan paʻanga"]
[null,null,null,null,null,"TTD","Trinidad and Tobago dollar"]
[null,null,null,null,null,"TWD","New Taiwan dollar"]
[null,null,null,null,null,"TZS","Tanzanian shilling"]
[null,null,null,null,null,"UAH","Ukrainian hryvnia"]
[null,null,null,null,null,"UGX","Ugandan shilling"]
[null,null,null,null,null,"USD","United States dollar"]
[null,null,null,null,null,"USN","United States dollar (next day) (funds code)"]
[null,null,null,null,null,"USS","United States dollar (same day) (funds code)[10]"]
[null,null,null,null,null,"UYI","Uruguay Peso en Unidades Indexadas (URUIURUI) (funds code)"]
[null,null,null,null,null,"UYU","Uruguayan peso"]
[null,null,null,null,null,"UZS","Uzbekistan som"]
[null,null,null,null,null,"VEF","Venezuelan bolívar"]
[null,null,null,null,null,"VND","Vietnamese dong"]
[null,null,null,null,null,"VUV","Vanuatu vatu"]
[null,null,null,null,null,"WST","Samoan tala"]
[null,null,null,null,null,"XAF","CFA franc BEAC"]
[null,null,null,null,null,"XCD","East Caribbean dollar"]
[null,null,null,null,null,"XOF","CFA franc BCEAO"]
[null,null,null,null,null,"XPF","CFP franc (franc Pacifique)"]
[null,null,null,null,null,"YER","Yemeni rial"]
[null,null,null,null,null,"ZAR","South African rand"]
[null,null,null,null,null,"ZMW","Zambian kwacha"]